Workbook

Sheet Intro
A1: Paks II pénzügyi modell
A2: Készítette: Felsmann Balázs, Budapesti Corvinus Egyetem, 2015. június.
A3: ©A modell a szerzőre hivatkozással szabadon használható a tervezett paksi projekttel kapcsolatos modellszámítások végzésére.
A4: A modell elkészítését az Energiaklub Pakskontroll projektje támogatta.
A6: Használati utasítás:
A7: 1) a modell megfelelő működéséhez engedélyezni kell a makrók futtatását az excelben.
A8: 2) a modellben a sárga háttérrel megjelölt cellák szabadon módosíthatók.
A9: 3) a 'Paraméterek' táblán szereplő nyomógomb visszaállítja a kinduló értékeket, amennyiben szeretnénk visszatérni a kiinduló állapothoz.
A10: 3) a paraméterek módosítását követően a 'Pü. Kimutatások' tábla bal felső sarkában lévő nyomógomb számítja ki a modell értékeit a beállított paraméterekkel.
A11: 4) az eredmények a 'Futtatási eredmények' táblában tekinthetők meg.
A13: A modell egyes táblái az alábbi információkat tartalmazzák:
A15: Paraméterek: a modell változtatható paramétereit tartalmazza.
A16: Futtatási eredmény: összefoglalja a beállított paraméterértékek melletti legfontosabb eredményeket.
A17: Pénzügyi kimutatások: eredménykimutatás, mérleg és cash flow 2015-től 2085-ig éves bontásban.
A18: Orosz hitel: részletezi az orosz hitel adósságszolgálatát a nmezetközi szerződés alapján.
A19: CAPEX&Depr.: a beruházást és az értékcsökkenést számítja
A20: Paks1: A Paksi Atomerőmű Zrt. 2003 és 2014 közötti tényszámait tartalmazza.

Sheet Paraméterek
A1: PARAMÉTEREK
A3: Tervezett kapacitáskihasználás Paks-1 üzemideje alatt | B3: 0.85
A4: Tervezett kapacitáskihasználás Paks-1 leállítása után | B4: 0.92
A5: Méretből és kihasználtságból számolt arányszám 2033-ig | B5: =D37/B37*B3/B43 -> 1.108695652 | C5: =B39*D37/B37*B3/B43 -> 15.96521739 | D5: TWh nettó termelés/év
A6: Méretből és kihasználtságból számolt arányszám 2034-től | B6: =D37/B37*B4/B43 -> 1.2 | C6: =B39*D37/B37*B4/B43 -> 17.28 | D6: TWh nettó termelés/év
A7: Költségtúllépés az eredeti beruházási tervekhez képest | B7: 0
C8: =B41 -> 43.39178529 | D8: EUR/MWh egységár 2013-ban (tény)
A9: Áramár-emelkedés mértéke reáláron 2026-ig | B9: 0.25 | C9: ='Pü. kimutatások'!O2 -> 63.89163422 | D9: EUR/MWh egységár 2026-ban
C10: ='Pü. kimutatások'!X2 -> 73.05305408 | D10: EUR/MWh egységár 2035-ben
A11: Inflációs ráta (euró övezet) | B11: 0.015 | D11: (ECB forecast 1,0-1,8% között).
A12: Addicionális finanszírozás költsége (EUR) | B12: 0.08
A13: Betéti kamat (EUR) | B13: 0.04
A15: Osztalékkifizetés aránya az éves eredményből | B15: 0.8 | D15: ha az eredmény pozitív és ST>JT
A17: Társasági adókulcs | B17: 0.16
A18: Iparűzési adó | B18: 0.02
A20: Amortizációs kulcsok
A21: Ingatlan | B21: 0.02 | D21: Lineáris leírási kulcsok
A22: Gépek, berendezések | B22: 0.04
A24: Félidős nagykarbantartás a berendezések | B24: 0.3 | C24: -t érinti.
A26: Befizetés a nukleáris pénzügyi alapba (EUR/MWh reáláron) | B26: 6 | C26: ='Paks1 '!T24 -> 4.520811816 | D26: EUR/MWh 2013-ban (tény)
A28: Forgótőke elemek
A29: Vevőállomány | B29: 30 | C29: nap
A30: Készletállomány | B30: 1 | C30: év | D30: A nukleáris tüzelőanyagra vetítve
A31: Beruházási szállítók | B31: 90 | C31: nap
A32: Egyéb szállítók | B32: 30 | C32: nap | D32: Vetítési alap az anyagjellegű ráfordítások
A33: Egyéb kötelezettségek | B33: 1 | C33: havi személyi költség+ÁFA pozíció
A34: ÁFA | B34: 0.27
A36: PAKS 1 tényadatok | C36: PAKS 2 adatok
A37: Üzemméret MW | B37: 2000 | C37: Üzemméret (MW) | D37: 2400
A38: Árbevétel (2013) mFt | B38: 185528 | C38: Törlesztés évi kétszeri részletekben, egyenletesen az alábbi esedékességgel:
A39: Nettó termelés 2013 TWh | B39: 14.4 | C39: Első 7 évben a fevett hitel | D39: 0.25
A40: Egységár Ft/kWh | B40: =B38/(B39*1000) -> 12.88388889 | C40: Második 7 évben a felvett hitel | D40: 0.35
A41: Egységár EUR/MWh | B41: =B40*1000/B42 -> 43.39178529 | C41: Harmadik 7 évben a felvett hitel | D41: 0.4
A42: Euró átlagárfolyam 2013 (MNB) | B42: 296.92
A43: Kapacitáskihasználás | B43: 0.92 | C43: Kamatok (euróban)
C44: A beruházás üzembe helyezéséig | D44: 0.0395
C45: Első 7 évben a hitelösszeg | D45: 0.045
C46: Második 7 évben a hitelösszeg | D46: 0.048
C47: Hamadik 7 évben a hitelösszeg | D47: 0.0495

Sheet Futtatási eredmény
B1: A modell futtatásánál használt paraméterek | N1: Paks-1 tény | O1: Modell
B2: =IF(ABS('Pü. kimutatások'!$BW$104)>10,"FIGYELEM! A MODELL NINCS EGYENSÚLYBAN. MENJEN A PÜ.KIMUTATÁSOK TÁBLÁHOZ ÉS NYOMJA MEG A BAL FELSŐ SAROKBAN LÉVŐ NYOMÓGOMBOT!","") ->  | N2: 2008-2014 | O2: 2026-2055 | P2: 2056-2085
B3: Tervezett kapacitáskihasználás Paks-1 üzemideje alatt | C3: =Paraméterek!B3 -> 0.85 | E3: Osztalékkifizetés aránya az éves eredményből | F3: =Paraméterek!B15 -> 0.8 | H3: Forgótőke elemek | M3: EBIT/Árbevétel | N3: ='Paks1 '!P29 -> 0.1718584015 | O3: ='Pü. kimutatások'!BW181 -> 0.2231273986 | P3: ='Pü. kimutatások'!BX181 -> 0.4189215598
B4: Tervezett kapacitáskihasználás Paks-1 leállítása után | C4: =Paraméterek!B4 -> 0.92 | E4: Társasági adókulcs | F4: =Paraméterek!B17 -> 0.16 | H4: Vevőállomány | I4: =Paraméterek!B29 -> 30 | J4: nap | M4: EBITDA/Árbevétel | N4: ='Paks1 '!P30 -> 0.2869211633 | O4: ='Pü. kimutatások'!BW182 -> 0.5045224046 | P4: ='Pü. kimutatások'!BX182 -> 0.5105099047
B5: Áramár-emelkedés mértéke reáláron 2026-ig | C5: =Paraméterek!B9 -> 0.25 | E5: Iparűzési adó | F5: =Paraméterek!B18 -> 0.02 | H5: Készletállomány | I5: =Paraméterek!B30 -> 1 | J5: év (nukleáris tüzelőanyag) | M5: Bérhányad | N5: ='Paks1 '!P31 -> 0.1796522304 | O5: ='Pü. kimutatások'!BW183 -> 0.1207769833 | P5: ='Pü. kimutatások'!BX183 -> 0.1181816222
B6: Inflációs ráta (euró övezet) | C6: =Paraméterek!B11 -> 0.015 | E6: Ingatlan amortizációs kulcs | F6: =Paraméterek!B21 -> 0.02 | H6: Beruházási szállítók | I6: =Paraméterek!B31 -> 90 | J6: nap | M6: Anyaghányad | N6: ='Paks1 '!P32 -> 0.3525361328 | O6: ='Pü. kimutatások'!BW184 -> 0.2420505873 | P6: ='Pü. kimutatások'!BX184 -> 0.2387398847
B7: Addicionális finanszírozás költsége (EUR) | C7: =Paraméterek!B12 -> 0.08 | E7: Gépek, berendezések értékcsökkenés | F7: =Paraméterek!B22 -> 0.04 | H7: Egyéb szállítók | I7: =Paraméterek!B32 -> 30 | J7: nap | M7: Egyéb ráfordítások aránya | N7: ='Paks1 '!P33 -> 0.2124139265 | O7: ='Pü. kimutatások'!BW185 -> 0.1326500248 | P7: ='Pü. kimutatások'!BX185 -> 0.1325685884
B8: Betéti kamat (EUR) | C8: =Paraméterek!B13 -> 0.04 | E8: A félidős nagykarbantartás a berendezések | F8: =Paraméterek!B24 -> 0.3 | G8: -t érinti. | H8: Egyéb kötelezettségek | I8: =Paraméterek!B33 -> 1 | J8: havi személyi költség+ÁFA pozíció
E9: Befizetés a KNPA-ba (EUR/MWh) | F9: =Paraméterek!B26 -> 6 | G9: EUR/MWh | H9: ÁFA | I9: =Paraméterek!B34 -> 0.27
B11: Futtatási eredmény: | C11: NPV | G11: (adatok millió euróban)
G12: Tulajdonosi tőke (jegyzett tőke 2025-ben) | J12: ='Pü. kimutatások'!O84 -> 2500 | P12: Beruh. | Q12: 2026-2035 | R12: 2036-2045 | S12: 2046-2055
B13: Nettó jelenérték reál r=5% (explicit periódus) | C13: ='Pü. kimutatások'!E148 -> -3261.553461 | E13: mEUR | G13: Tulajdonosi pótlólagos tőkeigény maximuma | J13: =MAX('Pü. kimutatások'!D86:BV86) -> 6605.890769 | M13: Éves átlagos tulajdonosi támogatás forintban | P13: ='Pü. kimutatások'!D193 -> 94197.76822 | Q13: ='Pü. kimutatások'!E193 -> 158341.2986 | R13: ='Pü. kimutatások'!F193 -> 50246.97709 | S13: ='Pü. kimutatások'!G193 -> 85.78482269
B14: NPV maradványértékkel (r=5%) | C14: ='Pü. kimutatások'!G148 -> -2975.586487 | E14: mEUR | G14: Pótlólagos (tulajdonosi) hitelnyújtás max. | J14: =MAX('Pü. kimutatások'!D96:BV96) -> 3542.230065
G15: Együttes finanszírozási maximum: | J15: =MAX('Pü. kimutatások'!D170:BV170) -> 12648.12083
B17: =IF(ABS('Pü. kimutatások'!$BW$104)>10,"FIGYELEM! A MODELL NINCS EGYENSÚLYBAN. MENJEN A PÜ.KIMUTATÁSOK TÁBLÁHOZ ÉS NYOMJA MEG A BAL FELSŐ SAROKBAN LÉVŐ NYOMÓGOMBOT!","") -> 

Sheet Pü. kimutatások
D1: 2015 | E1: 2016 | F1: 2017 | G1: 2018 | H1: 2019 | I1: 2020 | J1: 2021 | K1: 2022 | L1: 2023 | M1: 2024 | N1: 2025 | O1: 2026 | P1: 2027 | Q1: 2028 | R1: 2029 | S1: 2030 | T1: 2031 | U1: 2032 | V1: 2033 | W1: 2034 | X1: 2035 | Y1: 2036 | Z1: 2037 | AA1: 2038 | AB1: 2039 | AC1: 2040 | AD1: 2041 | AE1: 2042 | AF1: 2043 | AG1: 2044 | AH1: 2045 | AI1: 2046 | AJ1: 2047 | AK1: 2048 | AL1: 2049 | AM1: 2050 | AN1: 2051 | AO1: 2052 | AP1: 2053 | AQ1: 2054 | AR1: 2055 | AS1: 2056 | AT1: 2057 | AU1: 2058 | AV1: 2059 | AW1: 2060 | AX1: 2061 | AY1: 2062 | AZ1: 2063 | BA1: 2064 | BB1: 2065 | BC1: 2066 | BD1: 2067 | BE1: 2068 | BF1: 2069 | BG1: 2070 | BH1: 2071 | BI1: 2072 | BJ1: 2073 | BK1: 2074 | BL1: 2075 | BM1: 2076 | BN1: 2077 | BO1: 2078 | BP1: 2079 | BQ1: 2080 | BR1: 2081 | BS1: 2082 | BT1: 2083 | BU1: 2084 | BV1: 2085
B2: EREDMÉNYKIMUTATÁS | C2: Profit & Loss Statement | O2: =O3/Paraméterek!$C$5 -> 63.89163422 | P2: =P3/Paraméterek!$C$5 -> 64.85000873 | Q2: =Q3/Paraméterek!$C$5 -> 65.82275887 | R2: =R3/Paraméterek!$C$5 -> 66.81010025 | S2: =S3/Paraméterek!$C$5 -> 67.81225175 | T2: =T3/Paraméterek!$C$5 -> 68.82943553 | U2: =U3/Paraméterek!$C$5 -> 69.86187706 | V2: =V3/Paraméterek!$C$5 -> 70.90980522 | W2: =W3/Paraméterek!$C$6 -> 71.9734523 | X2: =X3/Paraméterek!$C$6 -> 73.05305408 | Y2: =Y3/Paraméterek!$C$6 -> 74.14884989 | Z2: =Z3/Paraméterek!$C$6 -> 75.26108264 | AA2: =AA3/Paraméterek!$C$6 -> 76.38999888 | AB2: =AB3/Paraméterek!$C$6 -> 77.53584886 | AC2: =AC3/Paraméterek!$C$6 -> 78.69888659 | AD2: =AD3/Paraméterek!$C$6 -> 79.87936989 | AE2: =AE3/Paraméterek!$C$6 -> 81.07756044 | AF2: =AF3/Paraméterek!$C$6 -> 82.29372385 | AG2: =AG3/Paraméterek!$C$6 -> 83.52812971 | AH2: =AH3/Paraméterek!$C$6 -> 84.78105165 | AI2: =AI3/Paraméterek!$C$6 -> 86.05276743 | AJ2: =AJ3/Paraméterek!$C$6 -> 87.34355894 | AK2: =AK3/Paraméterek!$C$6 -> 88.65371232 | AL2: =AL3/Paraméterek!$C$6 -> 89.98351801 | AM2: =AM3/Paraméterek!$C$6 -> 91.33327078 | AN2: =AN3/Paraméterek!$C$6 -> 92.70326984 | AO2: =AO3/Paraméterek!$C$6 -> 94.09381889 | AP2: =AP3/Paraméterek!$C$6 -> 95.50522617 | AQ2: =AQ3/Paraméterek!$C$6 -> 96.93780456 | AR2: =AR3/Paraméterek!$C$6 -> 98.39187163 | AS2: =AS3/Paraméterek!$C$6 -> 99.86774971 | AT2: =AT3/Paraméterek!$C$6 -> 101.365766 | AU2: =AU3/Paraméterek!$C$6 -> 102.8862524 | AV2: =AV3/Paraméterek!$C$6 -> 104.4295462 | AW2: =AW3/Paraméterek!$C$6 -> 105.9959894 | AX2: =AX3/Paraméterek!$C$6 -> 107.5859293 | AY2: =AY3/Paraméterek!$C$6 -> 109.1997182 | AZ2: =AZ3/Paraméterek!$C$6 -> 110.837714 | BA2: =BA3/Paraméterek!$C$6 -> 112.5002797 | BB2: =BB3/Paraméterek!$C$6 -> 114.1877839 | BC2: =BC3/Paraméterek!$C$6 -> 115.9006006 | BD2: =BD3/Paraméterek!$C$6 -> 117.6391096 | BE2: =BE3/Paraméterek!$C$6 -> 119.4036963 | BF2: =BF3/Paraméterek!$C$6 -> 121.1947517 | BG2: =BG3/Paraméterek!$C$6 -> 123.012673 | BH2: =BH3/Paraméterek!$C$6 -> 124.8578631 | BI2: =BI3/Paraméterek!$C$6 -> 126.7307311 | BJ2: =BJ3/Paraméterek!$C$6 -> 128.631692 | BK2: =BK3/Paraméterek!$C$6 -> 130.5611674 | BL2: =BL3/Paraméterek!$C$6 -> 132.5195849 | BM2: =BM3/Paraméterek!$C$6 -> 134.5073787 | BN2: =BN3/Paraméterek!$C$6 -> 136.5249894 | BO2: =BO3/Paraméterek!$C$6 -> 138.5728642 | BP2: =BP3/Paraméterek!$C$6 -> 140.6514572 | BQ2: =BQ3/Paraméterek!$C$6 -> 142.761229 | BR2: =BR3/Paraméterek!$C$6 -> 144.9026475 | BS2: =BS3/Paraméterek!$C$6 -> 147.0761872 | BT2: =BT3/Paraméterek!$C$6 -> 149.28233 | BU2: =BU3/Paraméterek!$C$6 -> 151.5215649 | BV2: =BV3/Paraméterek!$C$6 -> 153.7943884
A3: I. | B3: Értékesítés nettó árbevétele (01.+02.) | C3: Total sales (revenues) (01+02) | O3: =Paraméterek!$B$5*Paraméterek!$B$41*(1+Paraméterek!$B$11)^('Pü. kimutatások'!O1-'Pü. kimutatások'!$D1)*Paraméterek!$B$39*(1+Paraméterek!$B$9) -> 1020.04383 | P3: =Paraméterek!$B$5*Paraméterek!$B$41*(1+Paraméterek!$B$11)^('Pü. kimutatások'!P1-'Pü. kimutatások'!$D1)*Paraméterek!$B$39*(1+Paraméterek!$B$9) -> 1035.344487 | Q3: =Paraméterek!$B$5*Paraméterek!$B$41*(1+Paraméterek!$B$11)^('Pü. kimutatások'!Q1-'Pü. kimutatások'!$D1)*Paraméterek!$B$39*(1+Paraméterek!$B$9) -> 1050.874655 | R3: =Paraméterek!$B$5*Paraméterek!$B$41*(1+Paraméterek!$B$11)^('Pü. kimutatások'!R1-'Pü. kimutatások'!$D1)*Paraméterek!$B$39*(1+Paraméterek!$B$9) -> 1066.637774 | S3: =Paraméterek!$B$5*Paraméterek!$B$41*(1+Paraméterek!$B$11)^('Pü. kimutatások'!S1-'Pü. kimutatások'!$D1)*Paraméterek!$B$39*(1+Paraméterek!$B$9) -> 1082.637341 | T3: =Paraméterek!$B$5*Paraméterek!$B$41*(1+Paraméterek!$B$11)^('Pü. kimutatások'!T1-'Pü. kimutatások'!$D1)*Paraméterek!$B$39*(1+Paraméterek!$B$9) -> 1098.876901 | U3: =Paraméterek!$B$5*Paraméterek!$B$41*(1+Paraméterek!$B$11)^('Pü. kimutatások'!U1-'Pü. kimutatások'!$D1)*Paraméterek!$B$39*(1+Paraméterek!$B$9) -> 1115.360055 | V3: =Paraméterek!$B$5*Paraméterek!$B$41*(1+Paraméterek!$B$11)^('Pü. kimutatások'!V1-'Pü. kimutatások'!$D1)*Paraméterek!$B$39*(1+Paraméterek!$B$9) -> 1132.090455 | W3: =Paraméterek!$B$6*Paraméterek!$B$41*(1+Paraméterek!$B$11)^('Pü. kimutatások'!W1-'Pü. kimutatások'!$D1)*Paraméterek!$B$39*(1+Paraméterek!$B$9) -> 1243.701256 | X3: =Paraméterek!$B$6*Paraméterek!$B$41*(1+Paraméterek!$B$11)^('Pü. kimutatások'!X1-'Pü. kimutatások'!$D1)*Paraméterek!$B$39*(1+Paraméterek!$B$9) -> 1262.356774 | Y3: =Paraméterek!$B$6*Paraméterek!$B$41*(1+Paraméterek!$B$11)^('Pü. kimutatások'!Y1-'Pü. kimutatások'!$D1)*Paraméterek!$B$39*(1+Paraméterek!$B$9) -> 1281.292126 | Z3: =Paraméterek!$B$6*Paraméterek!$B$41*(1+Paraméterek!$B$11)^('Pü. kimutatások'!Z1-'Pü. kimutatások'!$D1)*Paraméterek!$B$39*(1+Paraméterek!$B$9) -> 1300.511508 | AA3: =Paraméterek!$B$6*Paraméterek!$B$41*(1+Paraméterek!$B$11)^('Pü. kimutatások'!AA1-'Pü. kimutatások'!$D1)*Paraméterek!$B$39*(1+Paraméterek!$B$9) -> 1320.019181 | AB3: =Paraméterek!$B$6*Paraméterek!$B$41*(1+Paraméterek!$B$11)^('Pü. kimutatások'!AB1-'Pü. kimutatások'!$D1)*Paraméterek!$B$39*(1+Paraméterek!$B$9) -> 1339.819468 | AC3: =Paraméterek!$B$6*Paraméterek!$B$41*(1+Paraméterek!$B$11)^('Pü. kimutatások'!AC1-'Pü. kimutatások'!$D1)*Paraméterek!$B$39*(1+Paraméterek!$B$9) -> 1359.91676 | AD3: =Paraméterek!$B$6*Paraméterek!$B$41*(1+Paraméterek!$B$11)^('Pü. kimutatások'!AD1-'Pü. kimutatások'!$D1)*Paraméterek!$B$39*(1+Paraméterek!$B$9) -> 1380.315512 | AE3: =Paraméterek!$B$6*Paraméterek!$B$41*(1+Paraméterek!$B$11)^('Pü. kimutatások'!AE1-'Pü. kimutatások'!$D1)*Paraméterek!$B$39*(1+Paraméterek!$B$9) -> 1401.020244 | AF3: =Paraméterek!$B$6*Paraméterek!$B$41*(1+Paraméterek!$B$11)^('Pü. kimutatások'!AF1-'Pü. kimutatások'!$D1)*Paraméterek!$B$39*(1+Paraméterek!$B$9) -> 1422.035548 | AG3: =Paraméterek!$B$6*Paraméterek!$B$41*(1+Paraméterek!$B$11)^('Pü. kimutatások'!AG1-'Pü. kimutatások'!$D1)*Paraméterek!$B$39*(1+Paraméterek!$B$9) -> 1443.366081 | AH3: =Paraméterek!$B$6*Paraméterek!$B$41*(1+Paraméterek!$B$11)^('Pü. kimutatások'!AH1-'Pü. kimutatások'!$D1)*Paraméterek!$B$39*(1+Paraméterek!$B$9) -> 1465.016573 | AI3: =Paraméterek!$B$6*Paraméterek!$B$41*(1+Paraméterek!$B$11)^('Pü. kimutatások'!AI1-'Pü. kimutatások'!$D1)*Paraméterek!$B$39*(1+Paraméterek!$B$9) -> 1486.991821 | AJ3: =Paraméterek!$B$6*Paraméterek!$B$41*(1+Paraméterek!$B$11)^('Pü. kimutatások'!AJ1-'Pü. kimutatások'!$D1)*Paraméterek!$B$39*(1+Paraméterek!$B$9) -> 1509.296698 | AK3: =Paraméterek!$B$6*Paraméterek!$B$41*(1+Paraméterek!$B$11)^('Pü. kimutatások'!AK1-'Pü. kimutatások'!$D1)*Paraméterek!$B$39*(1+Paraméterek!$B$9) -> 1531.936149 | AL3: =Paraméterek!$B$6*Paraméterek!$B$41*(1+Paraméterek!$B$11)^('Pü. kimutatások'!AL1-'Pü. kimutatások'!$D1)*Paraméterek!$B$39*(1+Paraméterek!$B$9) -> 1554.915191 | AM3: =Paraméterek!$B$6*Paraméterek!$B$41*(1+Paraméterek!$B$11)^('Pü. kimutatások'!AM1-'Pü. kimutatások'!$D1)*Paraméterek!$B$39*(1+Paraméterek!$B$9) -> 1578.238919 | AN3: =Paraméterek!$B$6*Paraméterek!$B$41*(1+Paraméterek!$B$11)^('Pü. kimutatások'!AN1-'Pü. kimutatások'!$D1)*Paraméterek!$B$39*(1+Paraméterek!$B$9) -> 1601.912503 | AO3: =Paraméterek!$B$6*Paraméterek!$B$41*(1+Paraméterek!$B$11)^('Pü. kimutatások'!AO1-'Pü. kimutatások'!$D1)*Paraméterek!$B$39*(1+Paraméterek!$B$9) -> 1625.94119 | AP3: =Paraméterek!$B$6*Paraméterek!$B$41*(1+Paraméterek!$B$11)^('Pü. kimutatások'!AP1-'Pü. kimutatások'!$D1)*Paraméterek!$B$39*(1+Paraméterek!$B$9) -> 1650.330308 | AQ3: =Paraméterek!$B$6*Paraméterek!$B$41*(1+Paraméterek!$B$11)^('Pü. kimutatások'!AQ1-'Pü. kimutatások'!$D1)*Paraméterek!$B$39*(1+Paraméterek!$B$9) -> 1675.085263 | AR3: =Paraméterek!$B$6*Paraméterek!$B$41*(1+Paraméterek!$B$11)^('Pü. kimutatások'!AR1-'Pü. kimutatások'!$D1)*Paraméterek!$B$39*(1+Paraméterek!$B$9) -> 1700.211542 | AS3: =Paraméterek!$B$6*Paraméterek!$B$41*(1+Paraméterek!$B$11)^('Pü. kimutatások'!AS1-'Pü. kimutatások'!$D1)*Paraméterek!$B$39*(1+Paraméterek!$B$9) -> 1725.714715 | AT3: =Paraméterek!$B$6*Paraméterek!$B$41*(1+Paraméterek!$B$11)^('Pü. kimutatások'!AT1-'Pü. kimutatások'!$D1)*Paraméterek!$B$39*(1+Paraméterek!$B$9) -> 1751.600436 | AU3: =Paraméterek!$B$6*Paraméterek!$B$41*(1+Paraméterek!$B$11)^('Pü. kimutatások'!AU1-'Pü. kimutatások'!$D1)*Paraméterek!$B$39*(1+Paraméterek!$B$9) -> 1777.874442 | AV3: =Paraméterek!$B$6*Paraméterek!$B$41*(1+Paraméterek!$B$11)^('Pü. kimutatások'!AV1-'Pü. kimutatások'!$D1)*Paraméterek!$B$39*(1+Paraméterek!$B$9) -> 1804.542559 | AW3: =Paraméterek!$B$6*Paraméterek!$B$41*(1+Paraméterek!$B$11)^('Pü. kimutatások'!AW1-'Pü. kimutatások'!$D1)*Paraméterek!$B$39*(1+Paraméterek!$B$9) -> 1831.610697 | AX3: =Paraméterek!$B$6*Paraméterek!$B$41*(1+Paraméterek!$B$11)^('Pü. kimutatások'!AX1-'Pü. kimutatások'!$D1)*Paraméterek!$B$39*(1+Paraméterek!$B$9) -> 1859.084858 | AY3: =Paraméterek!$B$6*Paraméterek!$B$41*(1+Paraméterek!$B$11)^('Pü. kimutatások'!AY1-'Pü. kimutatások'!$D1)*Paraméterek!$B$39*(1+Paraméterek!$B$9) -> 1886.971131 | AZ3: =Paraméterek!$B$6*Paraméterek!$B$41*(1+Paraméterek!$B$11)^('Pü. kimutatások'!AZ1-'Pü. kimutatások'!$D1)*Paraméterek!$B$39*(1+Paraméterek!$B$9) -> 1915.275697 | BA3: =Paraméterek!$B$6*Paraméterek!$B$41*(1+Paraméterek!$B$11)^('Pü. kimutatások'!BA1-'Pü. kimutatások'!$D1)*Paraméterek!$B$39*(1+Paraméterek!$B$9) -> 1944.004833 | BB3: =Paraméterek!$B$6*Paraméterek!$B$41*(1+Paraméterek!$B$11)^('Pü. kimutatások'!BB1-'Pü. kimutatások'!$D1)*Paraméterek!$B$39*(1+Paraméterek!$B$9) -> 1973.164905 | BC3: =Paraméterek!$B$6*Paraméterek!$B$41*(1+Paraméterek!$B$11)^('Pü. kimutatások'!BC1-'Pü. kimutatások'!$D1)*Paraméterek!$B$39*(1+Paraméterek!$B$9) -> 2002.762379 | BD3: =Paraméterek!$B$6*Paraméterek!$B$41*(1+Paraméterek!$B$11)^('Pü. kimutatások'!BD1-'Pü. kimutatások'!$D1)*Paraméterek!$B$39*(1+Paraméterek!$B$9) -> 2032.803815 | BE3: =Paraméterek!$B$6*Paraméterek!$B$41*(1+Paraméterek!$B$11)^('Pü. kimutatások'!BE1-'Pü. kimutatások'!$D1)*Paraméterek!$B$39*(1+Paraméterek!$B$9) -> 2063.295872 | BF3: =Paraméterek!$B$6*Paraméterek!$B$41*(1+Paraméterek!$B$11)^('Pü. kimutatások'!BF1-'Pü. kimutatások'!$D1)*Paraméterek!$B$39*(1+Paraméterek!$B$9) -> 2094.24531 | BG3: =Paraméterek!$B$6*Paraméterek!$B$41*(1+Paraméterek!$B$11)^('Pü. kimutatások'!BG1-'Pü. kimutatások'!$D1)*Paraméterek!$B$39*(1+Paraméterek!$B$9) -> 2125.65899 | BH3: =Paraméterek!$B$6*Paraméterek!$B$41*(1+Paraméterek!$B$11)^('Pü. kimutatások'!BH1-'Pü. kimutatások'!$D1)*Paraméterek!$B$39*(1+Paraméterek!$B$9) -> 2157.543874 | BI3: =Paraméterek!$B$6*Paraméterek!$B$41*(1+Paraméterek!$B$11)^('Pü. kimutatások'!BI1-'Pü. kimutatások'!$D1)*Paraméterek!$B$39*(1+Paraméterek!$B$9) -> 2189.907033 | BJ3: =Paraméterek!$B$6*Paraméterek!$B$41*(1+Paraméterek!$B$11)^('Pü. kimutatások'!BJ1-'Pü. kimutatások'!$D1)*Paraméterek!$B$39*(1+Paraméterek!$B$9) -> 2222.755638 | BK3: =Paraméterek!$B$6*Paraméterek!$B$41*(1+Paraméterek!$B$11)^('Pü. kimutatások'!BK1-'Pü. kimutatások'!$D1)*Paraméterek!$B$39*(1+Paraméterek!$B$9) -> 2256.096973 | BL3: =Paraméterek!$B$6*Paraméterek!$B$41*(1+Paraméterek!$B$11)^('Pü. kimutatások'!BL1-'Pü. kimutatások'!$D1)*Paraméterek!$B$39*(1+Paraméterek!$B$9) -> 2289.938427 | BM3: =Paraméterek!$B$6*Paraméterek!$B$41*(1+Paraméterek!$B$11)^('Pü. kimutatások'!BM1-'Pü. kimutatások'!$D1)*Paraméterek!$B$39*(1+Paraméterek!$B$9) -> 2324.287504 | BN3: =Paraméterek!$B$6*Paraméterek!$B$41*(1+Paraméterek!$B$11)^('Pü. kimutatások'!BN1-'Pü. kimutatások'!$D1)*Paraméterek!$B$39*(1+Paraméterek!$B$9) -> 2359.151816 | BO3: =Paraméterek!$B$6*Paraméterek!$B$41*(1+Paraméterek!$B$11)^('Pü. kimutatások'!BO1-'Pü. kimutatások'!$D1)*Paraméterek!$B$39*(1+Paraméterek!$B$9) -> 2394.539093 | BP3: =Paraméterek!$B$6*Paraméterek!$B$41*(1+Paraméterek!$B$11)^('Pü. kimutatások'!BP1-'Pü. kimutatások'!$D1)*Paraméterek!$B$39*(1+Paraméterek!$B$9) -> 2430.45718 | BQ3: =Paraméterek!$B$6*Paraméterek!$B$41*(1+Paraméterek!$B$11)^('Pü. kimutatások'!BQ1-'Pü. kimutatások'!$D1)*Paraméterek!$B$39*(1+Paraméterek!$B$9) -> 2466.914038 | BR3: =Paraméterek!$B$6*Paraméterek!$B$41*(1+Paraméterek!$B$11)^('Pü. kimutatások'!BR1-'Pü. kimutatások'!$D1)*Paraméterek!$B$39*(1+Paraméterek!$B$9) -> 2503.917748 | BS3: =Paraméterek!$B$6*Paraméterek!$B$41*(1+Paraméterek!$B$11)^('Pü. kimutatások'!BS1-'Pü. kimutatások'!$D1)*Paraméterek!$B$39*(1+Paraméterek!$B$9) -> 2541.476514 | BT3: =Paraméterek!$B$6*Paraméterek!$B$41*(1+Paraméterek!$B$11)^('Pü. kimutatások'!BT1-'Pü. kimutatások'!$D1)*Paraméterek!$B$39*(1+Paraméterek!$B$9) -> 2579.598662 | BU3: =Paraméterek!$B$6*Paraméterek!$B$41*(1+Paraméterek!$B$11)^('Pü. kimutatások'!BU1-'Pü. kimutatások'!$D1)*Paraméterek!$B$39*(1+Paraméterek!$B$9) -> 2618.292642 | BV3: =Paraméterek!$B$6*Paraméterek!$B$41*(1+Paraméterek!$B$11)^('Pü. kimutatások'!BV1-'Pü. kimutatások'!$D1)*Paraméterek!$B$39*(1+Paraméterek!$B$9) -> 2657.567032
A4: II. | B4: Aktivált saját teljesítmények értéke (03.±04.) | C4: Own performance capitalized (+03+04)
A5: III. | B5: Egyéb bevételek | C5: Other income
A6: 5 | B6: Nukleáris fűtőanyag költsége | C6: Raw materials and consumables | O6: ='Paks1 '!$T$21*Paraméterek!$B$5*(1+Paraméterek!$B$11)^('Pü. kimutatások'!O1-'Pü. kimutatások'!$D1) -> 80.45639142 | P6: ='Paks1 '!$T$21*Paraméterek!$B$5*(1+Paraméterek!$B$11)^('Pü. kimutatások'!P1-'Pü. kimutatások'!$D1) -> 81.6632373 | Q6: ='Paks1 '!$T$21*Paraméterek!$B$5*(1+Paraméterek!$B$11)^('Pü. kimutatások'!Q1-'Pü. kimutatások'!$D1) -> 82.88818585 | R6: ='Paks1 '!$T$21*Paraméterek!$B$5*(1+Paraméterek!$B$11)^('Pü. kimutatások'!R1-'Pü. kimutatások'!$D1) -> 84.13150864 | S6: ='Paks1 '!$T$21*Paraméterek!$B$5*(1+Paraméterek!$B$11)^('Pü. kimutatások'!S1-'Pü. kimutatások'!$D1) -> 85.39348127 | T6: ='Paks1 '!$T$21*Paraméterek!$B$5*(1+Paraméterek!$B$11)^('Pü. kimutatások'!T1-'Pü. kimutatások'!$D1) -> 86.67438349 | U6: ='Paks1 '!$T$21*Paraméterek!$B$5*(1+Paraméterek!$B$11)^('Pü. kimutatások'!U1-'Pü. kimutatások'!$D1) -> 87.97449924 | V6: ='Paks1 '!$T$21*Paraméterek!$B$5*(1+Paraméterek!$B$11)^('Pü. kimutatások'!V1-'Pü. kimutatások'!$D1) -> 89.29411673 | W6: ='Paks1 '!$T$21*Paraméterek!$B$5*(1+Paraméterek!$B$11)^('Pü. kimutatások'!W1-'Pü. kimutatások'!$D1) -> 90.63352848 | X6: ='Paks1 '!$T$21*Paraméterek!$B$6*(1+Paraméterek!$B$11)^('Pü. kimutatások'!X1-'Pü. kimutatások'!$D1) -> 99.56892811 | Y6: ='Paks1 '!$T$21*Paraméterek!$B$6*(1+Paraméterek!$B$11)^('Pü. kimutatások'!Y1-'Pü. kimutatások'!$D1) -> 101.062462 | Z6: ='Paks1 '!$T$21*Paraméterek!$B$6*(1+Paraméterek!$B$11)^('Pü. kimutatások'!Z1-'Pü. kimutatások'!$D1) -> 102.578399 | AA6: ='Paks1 '!$T$21*Paraméterek!$B$6*(1+Paraméterek!$B$11)^('Pü. kimutatások'!AA1-'Pü. kimutatások'!$D1) -> 104.117075 | AB6: ='Paks1 '!$T$21*Paraméterek!$B$6*(1+Paraméterek!$B$11)^('Pü. kimutatások'!AB1-'Pü. kimutatások'!$D1) -> 105.6788311 | AC6: ='Paks1 '!$T$21*Paraméterek!$B$6*(1+Paraméterek!$B$11)^('Pü. kimutatások'!AC1-'Pü. kimutatások'!$D1) -> 107.2640135 | AD6: ='Paks1 '!$T$21*Paraméterek!$B$6*(1+Paraméterek!$B$11)^('Pü. kimutatások'!AD1-'Pü. kimutatások'!$D1) -> 108.8729737 | AE6: ='Paks1 '!$T$21*Paraméterek!$B$6*(1+Paraméterek!$B$11)^('Pü. kimutatások'!AE1-'Pü. kimutatások'!$D1) -> 110.5060684 | AF6: ='Paks1 '!$T$21*Paraméterek!$B$6*(1+Paraméterek!$B$11)^('Pü. kimutatások'!AF1-'Pü. kimutatások'!$D1) -> 112.1636594 | AG6: ='Paks1 '!$T$21*Paraméterek!$B$6*(1+Paraméterek!$B$11)^('Pü. kimutatások'!AG1-'Pü. kimutatások'!$D1) -> 113.8461143 | AH6: ='Paks1 '!$T$21*Paraméterek!$B$6*(1+Paraméterek!$B$11)^('Pü. kimutatások'!AH1-'Pü. kimutatások'!$D1) -> 115.553806 | AI6: ='Paks1 '!$T$21*Paraméterek!$B$6*(1+Paraméterek!$B$11)^('Pü. kimutatások'!AI1-'Pü. kimutatások'!$D1) -> 117.2871131 | AJ6: ='Paks1 '!$T$21*Paraméterek!$B$6*(1+Paraméterek!$B$11)^('Pü. kimutatások'!AJ1-'Pü. kimutatások'!$D1) -> 119.0464198 | AK6: ='Paks1 '!$T$21*Paraméterek!$B$6*(1+Paraméterek!$B$11)^('Pü. kimutatások'!AK1-'Pü. kimutatások'!$D1) -> 120.8321161 | AL6: ='Paks1 '!$T$21*Paraméterek!$B$6*(1+Paraméterek!$B$11)^('Pü. kimutatások'!AL1-'Pü. kimutatások'!$D1) -> 122.6445978 | AM6: ='Paks1 '!$T$21*Paraméterek!$B$6*(1+Paraméterek!$B$11)^('Pü. kimutatások'!AM1-'Pü. kimutatások'!$D1) -> 124.4842668 | AN6: ='Paks1 '!$T$21*Paraméterek!$B$6*(1+Paraméterek!$B$11)^('Pü. kimutatások'!AN1-'Pü. kimutatások'!$D1) -> 126.3515308 | AO6: ='Paks1 '!$T$21*Paraméterek!$B$6*(1+Paraméterek!$B$11)^('Pü. kimutatások'!AO1-'Pü. kimutatások'!$D1) -> 128.2468037 | AP6: ='Paks1 '!$T$21*Paraméterek!$B$6*(1+Paraméterek!$B$11)^('Pü. kimutatások'!AP1-'Pü. kimutatások'!$D1) -> 130.1705058 | AQ6: ='Paks1 '!$T$21*Paraméterek!$B$6*(1+Paraméterek!$B$11)^('Pü. kimutatások'!AQ1-'Pü. kimutatások'!$D1) -> 132.1230634 | AR6: ='Paks1 '!$T$21*Paraméterek!$B$6*(1+Paraméterek!$B$11)^('Pü. kimutatások'!AR1-'Pü. kimutatások'!$D1) -> 134.1049093 | AS6: ='Paks1 '!$T$21*Paraméterek!$B$6*(1+Paraméterek!$B$11)^('Pü. kimutatások'!AS1-'Pü. kimutatások'!$D1) -> 136.116483 | AT6: ='Paks1 '!$T$21*Paraméterek!$B$6*(1+Paraméterek!$B$11)^('Pü. kimutatások'!AT1-'Pü. kimutatások'!$D1) -> 138.1582302 | AU6: ='Paks1 '!$T$21*Paraméterek!$B$6*(1+Paraméterek!$B$11)^('Pü. kimutatások'!AU1-'Pü. kimutatások'!$D1) -> 140.2306037 | AV6: ='Paks1 '!$T$21*Paraméterek!$B$6*(1+Paraméterek!$B$11)^('Pü. kimutatások'!AV1-'Pü. kimutatások'!$D1) -> 142.3340627 | AW6: ='Paks1 '!$T$21*Paraméterek!$B$6*(1+Paraméterek!$B$11)^('Pü. kimutatások'!AW1-'Pü. kimutatások'!$D1) -> 144.4690737 | AX6: ='Paks1 '!$T$21*Paraméterek!$B$6*(1+Paraméterek!$B$11)^('Pü. kimutatások'!AX1-'Pü. kimutatások'!$D1) -> 146.6361098 | AY6: ='Paks1 '!$T$21*Paraméterek!$B$6*(1+Paraméterek!$B$11)^('Pü. kimutatások'!AY1-'Pü. kimutatások'!$D1) -> 148.8356514 | AZ6: ='Paks1 '!$T$21*Paraméterek!$B$6*(1+Paraméterek!$B$11)^('Pü. kimutatások'!AZ1-'Pü. kimutatások'!$D1) -> 151.0681862 | BA6: ='Paks1 '!$T$21*Paraméterek!$B$6*(1+Paraméterek!$B$11)^('Pü. kimutatások'!BA1-'Pü. kimutatások'!$D1) -> 153.334209 | BB6: ='Paks1 '!$T$21*Paraméterek!$B$6*(1+Paraméterek!$B$11)^('Pü. kimutatások'!BB1-'Pü. kimutatások'!$D1) -> 155.6342221 | BC6: ='Paks1 '!$T$21*Paraméterek!$B$6*(1+Paraméterek!$B$11)^('Pü. kimutatások'!BC1-'Pü. kimutatások'!$D1) -> 157.9687354 | BD6: ='Paks1 '!$T$21*Paraméterek!$B$6*(1+Paraméterek!$B$11)^('Pü. kimutatások'!BD1-'Pü. kimutatások'!$D1) -> 160.3382665 | BE6: ='Paks1 '!$T$21*Paraméterek!$B$6*(1+Paraméterek!$B$11)^('Pü. kimutatások'!BE1-'Pü. kimutatások'!$D1) -> 162.7433405 | BF6: ='Paks1 '!$T$21*Paraméterek!$B$6*(1+Paraméterek!$B$11)^('Pü. kimutatások'!BF1-'Pü. kimutatások'!$D1) -> 165.1844906 | BG6: ='Paks1 '!$T$21*Paraméterek!$B$6*(1+Paraméterek!$B$11)^('Pü. kimutatások'!BG1-'Pü. kimutatások'!$D1) -> 167.6622579 | BH6: ='Paks1 '!$T$21*Paraméterek!$B$6*(1+Paraméterek!$B$11)^('Pü. kimutatások'!BH1-'Pü. kimutatások'!$D1) -> 170.1771918 | BI6: ='Paks1 '!$T$21*Paraméterek!$B$6*(1+Paraméterek!$B$11)^('Pü. kimutatások'!BI1-'Pü. kimutatások'!$D1) -> 172.7298497 | BJ6: ='Paks1 '!$T$21*Paraméterek!$B$6*(1+Paraméterek!$B$11)^('Pü. kimutatások'!BJ1-'Pü. kimutatások'!$D1) -> 175.3207974 | BK6: ='Paks1 '!$T$21*Paraméterek!$B$6*(1+Paraméterek!$B$11)^('Pü. kimutatások'!BK1-'Pü. kimutatások'!$D1) -> 177.9506094 | BL6: ='Paks1 '!$T$21*Paraméterek!$B$6*(1+Paraméterek!$B$11)^('Pü. kimutatások'!BL1-'Pü. kimutatások'!$D1) -> 180.6198685 | BM6: ='Paks1 '!$T$21*Paraméterek!$B$6*(1+Paraméterek!$B$11)^('Pü. kimutatások'!BM1-'Pü. kimutatások'!$D1) -> 183.3291666 | BN6: ='Paks1 '!$T$21*Paraméterek!$B$6*(1+Paraméterek!$B$11)^('Pü. kimutatások'!BN1-'Pü. kimutatások'!$D1) -> 186.0791041 | BO6: ='Paks1 '!$T$21*Paraméterek!$B$6*(1+Paraméterek!$B$11)^('Pü. kimutatások'!BO1-'Pü. kimutatások'!$D1) -> 188.8702906 | BP6: ='Paks1 '!$T$21*Paraméterek!$B$6*(1+Paraméterek!$B$11)^('Pü. kimutatások'!BP1-'Pü. kimutatások'!$D1) -> 191.703345 | BQ6: ='Paks1 '!$T$21*Paraméterek!$B$6*(1+Paraméterek!$B$11)^('Pü. kimutatások'!BQ1-'Pü. kimutatások'!$D1) -> 194.5788952 | BR6: ='Paks1 '!$T$21*Paraméterek!$B$6*(1+Paraméterek!$B$11)^('Pü. kimutatások'!BR1-'Pü. kimutatások'!$D1) -> 197.4975786 | BS6: ='Paks1 '!$T$21*Paraméterek!$B$6*(1+Paraméterek!$B$11)^('Pü. kimutatások'!BS1-'Pü. kimutatások'!$D1) -> 200.4600423 | BT6: ='Paks1 '!$T$21*Paraméterek!$B$6*(1+Paraméterek!$B$11)^('Pü. kimutatások'!BT1-'Pü. kimutatások'!$D1) -> 203.4669429 | BU6: ='Paks1 '!$T$21*Paraméterek!$B$6*(1+Paraméterek!$B$11)^('Pü. kimutatások'!BU1-'Pü. kimutatások'!$D1) -> 206.518947 | BV6: ='Paks1 '!$T$21*Paraméterek!$B$6*(1+Paraméterek!$B$11)^('Pü. kimutatások'!BV1-'Pü. kimutatások'!$D1) -> 209.6167312
A7: 06. | B7: Egyéb anyagköltség | C7: Contracted services | O7: =('Paks1 '!$T$6-'Paks1 '!$T$21)*(1+Paraméterek!$B$11)^('Pü. kimutatások'!O1-'Pü. kimutatások'!$D1) -> 35.05441469 | P7: =('Paks1 '!$T$6-'Paks1 '!$T$21)*(1+Paraméterek!$B$11)^('Pü. kimutatások'!P1-'Pü. kimutatások'!$D1) -> 35.58023091 | Q7: =('Paks1 '!$T$6-'Paks1 '!$T$21)*(1+Paraméterek!$B$11)^('Pü. kimutatások'!Q1-'Pü. kimutatások'!$D1) -> 36.11393438 | R7: =('Paks1 '!$T$6-'Paks1 '!$T$21)*(1+Paraméterek!$B$11)^('Pü. kimutatások'!R1-'Pü. kimutatások'!$D1) -> 36.65564339 | S7: =('Paks1 '!$T$6-'Paks1 '!$T$21)*(1+Paraméterek!$B$11)^('Pü. kimutatások'!S1-'Pü. kimutatások'!$D1) -> 37.20547804 | T7: =('Paks1 '!$T$6-'Paks1 '!$T$21)*(1+Paraméterek!$B$11)^('Pü. kimutatások'!T1-'Pü. kimutatások'!$D1) -> 37.76356022 | U7: =('Paks1 '!$T$6-'Paks1 '!$T$21)*(1+Paraméterek!$B$11)^('Pü. kimutatások'!U1-'Pü. kimutatások'!$D1) -> 38.33001362 | V7: =('Paks1 '!$T$6-'Paks1 '!$T$21)*(1+Paraméterek!$B$11)^('Pü. kimutatások'!V1-'Pü. kimutatások'!$D1) -> 38.90496382 | W7: =('Paks1 '!$T$6-'Paks1 '!$T$21)*(1+Paraméterek!$B$11)^('Pü. kimutatások'!W1-'Pü. kimutatások'!$D1) -> 39.48853828 | X7: =('Paks1 '!$T$6-'Paks1 '!$T$21)*(1+Paraméterek!$B$11)^('Pü. kimutatások'!X1-'Pü. kimutatások'!$D1) -> 40.08086635 | Y7: =('Paks1 '!$T$6-'Paks1 '!$T$21)*(1+Paraméterek!$B$11)^('Pü. kimutatások'!Y1-'Pü. kimutatások'!$D1) -> 40.68207935 | Z7: =('Paks1 '!$T$6-'Paks1 '!$T$21)*(1+Paraméterek!$B$11)^('Pü. kimutatások'!Z1-'Pü. kimutatások'!$D1) -> 41.29231054 | AA7: =('Paks1 '!$T$6-'Paks1 '!$T$21)*(1+Paraméterek!$B$11)^('Pü. kimutatások'!AA1-'Pü. kimutatások'!$D1) -> 41.9116952 | AB7: =('Paks1 '!$T$6-'Paks1 '!$T$21)*(1+Paraméterek!$B$11)^('Pü. kimutatások'!AB1-'Pü. kimutatások'!$D1) -> 42.54037063 | AC7: =('Paks1 '!$T$6-'Paks1 '!$T$21)*(1+Paraméterek!$B$11)^('Pü. kimutatások'!AC1-'Pü. kimutatások'!$D1) -> 43.17847619 | AD7: =('Paks1 '!$T$6-'Paks1 '!$T$21)*(1+Paraméterek!$B$11)^('Pü. kimutatások'!AD1-'Pü. kimutatások'!$D1) -> 43.82615333 | AE7: =('Paks1 '!$T$6-'Paks1 '!$T$21)*(1+Paraméterek!$B$11)^('Pü. kimutatások'!AE1-'Pü. kimutatások'!$D1) -> 44.48354563 | AF7: =('Paks1 '!$T$6-'Paks1 '!$T$21)*(1+Paraméterek!$B$11)^('Pü. kimutatások'!AF1-'Pü. kimutatások'!$D1) -> 45.15079881 | AG7: =('Paks1 '!$T$6-'Paks1 '!$T$21)*(1+Paraméterek!$B$11)^('Pü. kimutatások'!AG1-'Pü. kimutatások'!$D1) -> 45.82806079 | AH7: =('Paks1 '!$T$6-'Paks1 '!$T$21)*(1+Paraméterek!$B$11)^('Pü. kimutatások'!AH1-'Pü. kimutatások'!$D1) -> 46.51548171 | AI7: =('Paks1 '!$T$6-'Paks1 '!$T$21)*(1+Paraméterek!$B$11)^('Pü. kimutatások'!AI1-'Pü. kimutatások'!$D1) -> 47.21321393 | AJ7: =('Paks1 '!$T$6-'Paks1 '!$T$21)*(1+Paraméterek!$B$11)^('Pü. kimutatások'!AJ1-'Pü. kimutatások'!$D1) -> 47.92141214 | AK7: =('Paks1 '!$T$6-'Paks1 '!$T$21)*(1+Paraméterek!$B$11)^('Pü. kimutatások'!AK1-'Pü. kimutatások'!$D1) -> 48.64023332 | AL7: =('Paks1 '!$T$6-'Paks1 '!$T$21)*(1+Paraméterek!$B$11)^('Pü. kimutatások'!AL1-'Pü. kimutatások'!$D1) -> 49.36983682 | AM7: =('Paks1 '!$T$6-'Paks1 '!$T$21)*(1+Paraméterek!$B$11)^('Pü. kimutatások'!AM1-'Pü. kimutatások'!$D1) -> 50.11038438 | AN7: =('Paks1 '!$T$6-'Paks1 '!$T$21)*(1+Paraméterek!$B$11)^('Pü. kimutatások'!AN1-'Pü. kimutatások'!$D1) -> 50.86204014 | AO7: =('Paks1 '!$T$6-'Paks1 '!$T$21)*(1+Paraméterek!$B$11)^('Pü. kimutatások'!AO1-'Pü. kimutatások'!$D1) -> 51.62497074 | AP7: =('Paks1 '!$T$6-'Paks1 '!$T$21)*(1+Paraméterek!$B$11)^('Pü. kimutatások'!AP1-'Pü. kimutatások'!$D1) -> 52.3993453 | AQ7: =('Paks1 '!$T$6-'Paks1 '!$T$21)*(1+Paraméterek!$B$11)^('Pü. kimutatások'!AQ1-'Pü. kimutatások'!$D1) -> 53.18533548 | AR7: =('Paks1 '!$T$6-'Paks1 '!$T$21)*(1+Paraméterek!$B$11)^('Pü. kimutatások'!AR1-'Pü. kimutatások'!$D1) -> 53.98311552 | AS7: =('Paks1 '!$T$6-'Paks1 '!$T$21)*(1+Paraméterek!$B$11)^('Pü. kimutatások'!AS1-'Pü. kimutatások'!$D1) -> 54.79286225 | AT7: =('Paks1 '!$T$6-'Paks1 '!$T$21)*(1+Paraméterek!$B$11)^('Pü. kimutatások'!AT1-'Pü. kimutatások'!$D1) -> 55.61475518 | AU7: =('Paks1 '!$T$6-'Paks1 '!$T$21)*(1+Paraméterek!$B$11)^('Pü. kimutatások'!AU1-'Pü. kimutatások'!$D1) -> 56.44897651 | AV7: =('Paks1 '!$T$6-'Paks1 '!$T$21)*(1+Paraméterek!$B$11)^('Pü. kimutatások'!AV1-'Pü. kimutatások'!$D1) -> 57.29571116 | AW7: =('Paks1 '!$T$6-'Paks1 '!$T$21)*(1+Paraméterek!$B$11)^('Pü. kimutatások'!AW1-'Pü. kimutatások'!$D1) -> 58.15514683 | AX7: =('Paks1 '!$T$6-'Paks1 '!$T$21)*(1+Paraméterek!$B$11)^('Pü. kimutatások'!AX1-'Pü. kimutatások'!$D1) -> 59.02747403 | AY7: =('Paks1 '!$T$6-'Paks1 '!$T$21)*(1+Paraméterek!$B$11)^('Pü. kimutatások'!AY1-'Pü. kimutatások'!$D1) -> 59.91288614 | AZ7: =('Paks1 '!$T$6-'Paks1 '!$T$21)*(1+Paraméterek!$B$11)^('Pü. kimutatások'!AZ1-'Pü. kimutatások'!$D1) -> 60.81157943 | BA7: =('Paks1 '!$T$6-'Paks1 '!$T$21)*(1+Paraméterek!$B$11)^('Pü. kimutatások'!BA1-'Pü. kimutatások'!$D1) -> 61.72375312 | BB7: =('Paks1 '!$T$6-'Paks1 '!$T$21)*(1+Paraméterek!$B$11)^('Pü. kimutatások'!BB1-'Pü. kimutatások'!$D1) -> 62.64960942 | BC7: =('Paks1 '!$T$6-'Paks1 '!$T$21)*(1+Paraméterek!$B$11)^('Pü. kimutatások'!BC1-'Pü. kimutatások'!$D1) -> 63.58935356 | BD7: =('Paks1 '!$T$6-'Paks1 '!$T$21)*(1+Paraméterek!$B$11)^('Pü. kimutatások'!BD1-'Pü. kimutatások'!$D1) -> 64.54319386 | BE7: =('Paks1 '!$T$6-'Paks1 '!$T$21)*(1+Paraméterek!$B$11)^('Pü. kimutatások'!BE1-'Pü. kimutatások'!$D1) -> 65.51134177 | BF7: =('Paks1 '!$T$6-'Paks1 '!$T$21)*(1+Paraméterek!$B$11)^('Pü. kimutatások'!BF1-'Pü. kimutatások'!$D1) -> 66.4940119 | BG7: =('Paks1 '!$T$6-'Paks1 '!$T$21)*(1+Paraméterek!$B$11)^('Pü. kimutatások'!BG1-'Pü. kimutatások'!$D1) -> 67.49142208 | BH7: =('Paks1 '!$T$6-'Paks1 '!$T$21)*(1+Paraméterek!$B$11)^('Pü. kimutatások'!BH1-'Pü. kimutatások'!$D1) -> 68.50379341 | BI7: =('Paks1 '!$T$6-'Paks1 '!$T$21)*(1+Paraméterek!$B$11)^('Pü. kimutatások'!BI1-'Pü. kimutatások'!$D1) -> 69.53135031 | BJ7: =('Paks1 '!$T$6-'Paks1 '!$T$21)*(1+Paraméterek!$B$11)^('Pü. kimutatások'!BJ1-'Pü. kimutatások'!$D1) -> 70.57432056 | BK7: =('Paks1 '!$T$6-'Paks1 '!$T$21)*(1+Paraméterek!$B$11)^('Pü. kimutatások'!BK1-'Pü. kimutatások'!$D1) -> 71.63293537 | BL7: =('Paks1 '!$T$6-'Paks1 '!$T$21)*(1+Paraméterek!$B$11)^('Pü. kimutatások'!BL1-'Pü. kimutatások'!$D1) -> 72.7074294 | BM7: =('Paks1 '!$T$6-'Paks1 '!$T$21)*(1+Paraméterek!$B$11)^('Pü. kimutatások'!BM1-'Pü. kimutatások'!$D1) -> 73.79804084 | BN7: =('Paks1 '!$T$6-'Paks1 '!$T$21)*(1+Paraméterek!$B$11)^('Pü. kimutatások'!BN1-'Pü. kimutatások'!$D1) -> 74.90501146 | BO7: =('Paks1 '!$T$6-'Paks1 '!$T$21)*(1+Paraméterek!$B$11)^('Pü. kimutatások'!BO1-'Pü. kimutatások'!$D1) -> 76.02858663 | BP7: =('Paks1 '!$T$6-'Paks1 '!$T$21)*(1+Paraméterek!$B$11)^('Pü. kimutatások'!BP1-'Pü. kimutatások'!$D1) -> 77.16901543 | BQ7: =('Paks1 '!$T$6-'Paks1 '!$T$21)*(1+Paraméterek!$B$11)^('Pü. kimutatások'!BQ1-'Pü. kimutatások'!$D1) -> 78.32655066 | BR7: =('Paks1 '!$T$6-'Paks1 '!$T$21)*(1+Paraméterek!$B$11)^('Pü. kimutatások'!BR1-'Pü. kimutatások'!$D1) -> 79.50144892 | BS7: =('Paks1 '!$T$6-'Paks1 '!$T$21)*(1+Paraméterek!$B$11)^('Pü. kimutatások'!BS1-'Pü. kimutatások'!$D1) -> 80.69397065 | BT7: =('Paks1 '!$T$6-'Paks1 '!$T$21)*(1+Paraméterek!$B$11)^('Pü. kimutatások'!BT1-'Pü. kimutatások'!$D1) -> 81.90438021 | BU7: =('Paks1 '!$T$6-'Paks1 '!$T$21)*(1+Paraméterek!$B$11)^('Pü. kimutatások'!BU1-'Pü. kimutatások'!$D1) -> 83.13294591 | BV7: =('Paks1 '!$T$6-'Paks1 '!$T$21)*(1+Paraméterek!$B$11)^('Pü. kimutatások'!BV1-'Pü. kimutatások'!$D1) -> 84.3799401
A8: 7 | B8: Igénybe vett és egyéb szolgáltatások értéke | C8: Other service activities | O8: =('Paks1 '!$T$7+'Paks1 '!$T$8)*(1+Paraméterek!$B$11)^('Pü. kimutatások'!O1-'Pü. kimutatások'!$D1) -> 141.4435318 | P8: =('Paks1 '!$T$7+'Paks1 '!$T$8)*(1+Paraméterek!$B$11)^('Pü. kimutatások'!P1-'Pü. kimutatások'!$D1) -> 143.5651848 | Q8: =('Paks1 '!$T$7+'Paks1 '!$T$8)*(1+Paraméterek!$B$11)^('Pü. kimutatások'!Q1-'Pü. kimutatások'!$D1) -> 145.7186626 | R8: =('Paks1 '!$T$7+'Paks1 '!$T$8)*(1+Paraméterek!$B$11)^('Pü. kimutatások'!R1-'Pü. kimutatások'!$D1) -> 147.9044425 | S8: =('Paks1 '!$T$7+'Paks1 '!$T$8)*(1+Paraméterek!$B$11)^('Pü. kimutatások'!S1-'Pü. kimutatások'!$D1) -> 150.1230091 | T8: =('Paks1 '!$T$7+'Paks1 '!$T$8)*(1+Paraméterek!$B$11)^('Pü. kimutatások'!T1-'Pü. kimutatások'!$D1) -> 152.3748543 | U8: =('Paks1 '!$T$7+'Paks1 '!$T$8)*(1+Paraméterek!$B$11)^('Pü. kimutatások'!U1-'Pü. kimutatások'!$D1) -> 154.6604771 | V8: =('Paks1 '!$T$7+'Paks1 '!$T$8)*(1+Paraméterek!$B$11)^('Pü. kimutatások'!V1-'Pü. kimutatások'!$D1) -> 156.9803842 | W8: =('Paks1 '!$T$7+'Paks1 '!$T$8)*(1+Paraméterek!$B$11)^('Pü. kimutatások'!W1-'Pü. kimutatások'!$D1) -> 159.33509 | X8: =('Paks1 '!$T$7+'Paks1 '!$T$8)*(1+Paraméterek!$B$11)^('Pü. kimutatások'!X1-'Pü. kimutatások'!$D1) -> 161.7251164 | Y8: =('Paks1 '!$T$7+'Paks1 '!$T$8)*(1+Paraméterek!$B$11)^('Pü. kimutatások'!Y1-'Pü. kimutatások'!$D1) -> 164.1509931 | Z8: =('Paks1 '!$T$7+'Paks1 '!$T$8)*(1+Paraméterek!$B$11)^('Pü. kimutatások'!Z1-'Pü. kimutatások'!$D1) -> 166.613258 | AA8: =('Paks1 '!$T$7+'Paks1 '!$T$8)*(1+Paraméterek!$B$11)^('Pü. kimutatások'!AA1-'Pü. kimutatások'!$D1) -> 169.1124569 | AB8: =('Paks1 '!$T$7+'Paks1 '!$T$8)*(1+Paraméterek!$B$11)^('Pü. kimutatások'!AB1-'Pü. kimutatások'!$D1) -> 171.6491437 | AC8: =('Paks1 '!$T$7+'Paks1 '!$T$8)*(1+Paraméterek!$B$11)^('Pü. kimutatások'!AC1-'Pü. kimutatások'!$D1) -> 174.2238809 | AD8: =('Paks1 '!$T$7+'Paks1 '!$T$8)*(1+Paraméterek!$B$11)^('Pü. kimutatások'!AD1-'Pü. kimutatások'!$D1) -> 176.8372391 | AE8: =('Paks1 '!$T$7+'Paks1 '!$T$8)*(1+Paraméterek!$B$11)^('Pü. kimutatások'!AE1-'Pü. kimutatások'!$D1) -> 179.4897977 | AF8: =('Paks1 '!$T$7+'Paks1 '!$T$8)*(1+Paraméterek!$B$11)^('Pü. kimutatások'!AF1-'Pü. kimutatások'!$D1) -> 182.1821446 | AG8: =('Paks1 '!$T$7+'Paks1 '!$T$8)*(1+Paraméterek!$B$11)^('Pü. kimutatások'!AG1-'Pü. kimutatások'!$D1) -> 184.9148768 | AH8: =('Paks1 '!$T$7+'Paks1 '!$T$8)*(1+Paraméterek!$B$11)^('Pü. kimutatások'!AH1-'Pü. kimutatások'!$D1) -> 187.6886 | AI8: =('Paks1 '!$T$7+'Paks1 '!$T$8)*(1+Paraméterek!$B$11)^('Pü. kimutatások'!AI1-'Pü. kimutatások'!$D1) -> 190.503929 | AJ8: =('Paks1 '!$T$7+'Paks1 '!$T$8)*(1+Paraméterek!$B$11)^('Pü. kimutatások'!AJ1-'Pü. kimutatások'!$D1) -> 193.3614879 | AK8: =('Paks1 '!$T$7+'Paks1 '!$T$8)*(1+Paraméterek!$B$11)^('Pü. kimutatások'!AK1-'Pü. kimutatások'!$D1) -> 196.2619102 | AL8: =('Paks1 '!$T$7+'Paks1 '!$T$8)*(1+Paraméterek!$B$11)^('Pü. kimutatások'!AL1-'Pü. kimutatások'!$D1) -> 199.2058389 | AM8: =('Paks1 '!$T$7+'Paks1 '!$T$8)*(1+Paraméterek!$B$11)^('Pü. kimutatások'!AM1-'Pü. kimutatások'!$D1) -> 202.1939265 | AN8: =('Paks1 '!$T$7+'Paks1 '!$T$8)*(1+Paraméterek!$B$11)^('Pü. kimutatások'!AN1-'Pü. kimutatások'!$D1) -> 205.2268353 | AO8: =('Paks1 '!$T$7+'Paks1 '!$T$8)*(1+Paraméterek!$B$11)^('Pü. kimutatások'!AO1-'Pü. kimutatások'!$D1) -> 208.3052379 | AP8: =('Paks1 '!$T$7+'Paks1 '!$T$8)*(1+Paraméterek!$B$11)^('Pü. kimutatások'!AP1-'Pü. kimutatások'!$D1) -> 211.4298164 | AQ8: =('Paks1 '!$T$7+'Paks1 '!$T$8)*(1+Paraméterek!$B$11)^('Pü. kimutatások'!AQ1-'Pü. kimutatások'!$D1) -> 214.6012637 | AR8: =('Paks1 '!$T$7+'Paks1 '!$T$8)*(1+Paraméterek!$B$11)^('Pü. kimutatások'!AR1-'Pü. kimutatások'!$D1) -> 217.8202826 | AS8: =('Paks1 '!$T$7+'Paks1 '!$T$8)*(1+Paraméterek!$B$11)^('Pü. kimutatások'!AS1-'Pü. kimutatások'!$D1) -> 221.0875869 | AT8: =('Paks1 '!$T$7+'Paks1 '!$T$8)*(1+Paraméterek!$B$11)^('Pü. kimutatások'!AT1-'Pü. kimutatások'!$D1) -> 224.4039007 | AU8: =('Paks1 '!$T$7+'Paks1 '!$T$8)*(1+Paraméterek!$B$11)^('Pü. kimutatások'!AU1-'Pü. kimutatások'!$D1) -> 227.7699592 | AV8: =('Paks1 '!$T$7+'Paks1 '!$T$8)*(1+Paraméterek!$B$11)^('Pü. kimutatások'!AV1-'Pü. kimutatások'!$D1) -> 231.1865086 | AW8: =('Paks1 '!$T$7+'Paks1 '!$T$8)*(1+Paraméterek!$B$11)^('Pü. kimutatások'!AW1-'Pü. kimutatások'!$D1) -> 234.6543062 | AX8: =('Paks1 '!$T$7+'Paks1 '!$T$8)*(1+Paraméterek!$B$11)^('Pü. kimutatások'!AX1-'Pü. kimutatások'!$D1) -> 238.1741208 | AY8: =('Paks1 '!$T$7+'Paks1 '!$T$8)*(1+Paraméterek!$B$11)^('Pü. kimutatások'!AY1-'Pü. kimutatások'!$D1) -> 241.7467326 | AZ8: =('Paks1 '!$T$7+'Paks1 '!$T$8)*(1+Paraméterek!$B$11)^('Pü. kimutatások'!AZ1-'Pü. kimutatások'!$D1) -> 245.3729336 | BA8: =('Paks1 '!$T$7+'Paks1 '!$T$8)*(1+Paraméterek!$B$11)^('Pü. kimutatások'!BA1-'Pü. kimutatások'!$D1) -> 249.0535276 | BB8: =('Paks1 '!$T$7+'Paks1 '!$T$8)*(1+Paraméterek!$B$11)^('Pü. kimutatások'!BB1-'Pü. kimutatások'!$D1) -> 252.7893305 | BC8: =('Paks1 '!$T$7+'Paks1 '!$T$8)*(1+Paraméterek!$B$11)^('Pü. kimutatások'!BC1-'Pü. kimutatások'!$D1) -> 256.5811705 | BD8: =('Paks1 '!$T$7+'Paks1 '!$T$8)*(1+Paraméterek!$B$11)^('Pü. kimutatások'!BD1-'Pü. kimutatások'!$D1) -> 260.429888 | BE8: =('Paks1 '!$T$7+'Paks1 '!$T$8)*(1+Paraméterek!$B$11)^('Pü. kimutatások'!BE1-'Pü. kimutatások'!$D1) -> 264.3363364 | BF8: =('Paks1 '!$T$7+'Paks1 '!$T$8)*(1+Paraméterek!$B$11)^('Pü. kimutatások'!BF1-'Pü. kimutatások'!$D1) -> 268.3013814 | BG8: =('Paks1 '!$T$7+'Paks1 '!$T$8)*(1+Paraméterek!$B$11)^('Pü. kimutatások'!BG1-'Pü. kimutatások'!$D1) -> 272.3259021 | BH8: =('Paks1 '!$T$7+'Paks1 '!$T$8)*(1+Paraméterek!$B$11)^('Pü. kimutatások'!BH1-'Pü. kimutatások'!$D1) -> 276.4107907 | BI8: =('Paks1 '!$T$7+'Paks1 '!$T$8)*(1+Paraméterek!$B$11)^('Pü. kimutatások'!BI1-'Pü. kimutatások'!$D1) -> 280.5569525 | BJ8: =('Paks1 '!$T$7+'Paks1 '!$T$8)*(1+Paraméterek!$B$11)^('Pü. kimutatások'!BJ1-'Pü. kimutatások'!$D1) -> 284.7653068 | BK8: =('Paks1 '!$T$7+'Paks1 '!$T$8)*(1+Paraméterek!$B$11)^('Pü. kimutatások'!BK1-'Pü. kimutatások'!$D1) -> 289.0367864 | BL8: =('Paks1 '!$T$7+'Paks1 '!$T$8)*(1+Paraméterek!$B$11)^('Pü. kimutatások'!BL1-'Pü. kimutatások'!$D1) -> 293.3723382 | BM8: =('Paks1 '!$T$7+'Paks1 '!$T$8)*(1+Paraméterek!$B$11)^('Pü. kimutatások'!BM1-'Pü. kimutatások'!$D1) -> 297.7729233 | BN8: =('Paks1 '!$T$7+'Paks1 '!$T$8)*(1+Paraméterek!$B$11)^('Pü. kimutatások'!BN1-'Pü. kimutatások'!$D1) -> 302.2395171 | BO8: =('Paks1 '!$T$7+'Paks1 '!$T$8)*(1+Paraméterek!$B$11)^('Pü. kimutatások'!BO1-'Pü. kimutatások'!$D1) -> 306.7731099 | BP8: =('Paks1 '!$T$7+'Paks1 '!$T$8)*(1+Paraméterek!$B$11)^('Pü. kimutatások'!BP1-'Pü. kimutatások'!$D1) -> 311.3747065 | BQ8: =('Paks1 '!$T$7+'Paks1 '!$T$8)*(1+Paraméterek!$B$11)^('Pü. kimutatások'!BQ1-'Pü. kimutatások'!$D1) -> 316.0453271 | BR8: =('Paks1 '!$T$7+'Paks1 '!$T$8)*(1+Paraméterek!$B$11)^('Pü. kimutatások'!BR1-'Pü. kimutatások'!$D1) -> 320.786007 | BS8: =('Paks1 '!$T$7+'Paks1 '!$T$8)*(1+Paraméterek!$B$11)^('Pü. kimutatások'!BS1-'Pü. kimutatások'!$D1) -> 325.5977972 | BT8: =('Paks1 '!$T$7+'Paks1 '!$T$8)*(1+Paraméterek!$B$11)^('Pü. kimutatások'!BT1-'Pü. kimutatások'!$D1) -> 330.4817641 | BU8: =('Paks1 '!$T$7+'Paks1 '!$T$8)*(1+Paraméterek!$B$11)^('Pü. kimutatások'!BU1-'Pü. kimutatások'!$D1) -> 335.4389906 | BV8: =('Paks1 '!$T$7+'Paks1 '!$T$8)*(1+Paraméterek!$B$11)^('Pü. kimutatások'!BV1-'Pü. kimutatások'!$D1) -> 340.4705754
A9: IV. | B9: Anyagjellegű ráfordítások (05.+06.+07.+08.+09.) | C9: Material costs (05+06+07+08+09) | D9: =14832/300 -> 49.44 | E9: =D9*(1+Paraméterek!$B11) -> 50.1816 | F9: =E9*(1+Paraméterek!$B11) -> 50.934324 | G9: =F9*(1+Paraméterek!$B11) -> 51.69833886 | H9: =G9*(1+Paraméterek!$B11) -> 52.47381394 | I9: =H9*(1+Paraméterek!$B11) -> 53.26092115 | J9: =I9*(1+Paraméterek!$B11) -> 54.05983497 | K9: =J9*(1+Paraméterek!$B11) -> 54.87073249 | L9: =K9*(1+Paraméterek!$B11) -> 55.69379348 | M9: =L9*(1+Paraméterek!$B11) -> 56.52920038 | N9: =M9*(1+Paraméterek!$B11) -> 57.37713839 | O9: =SUM(O6:O8) -> 256.9543379 | P9: 260.808653 | Q9: 264.7207828 | R9: 268.6915945 | S9: 272.7219685 | T9: 276.812798 | U9: 280.9649899 | V9: 285.1794648 | W9: =SUM(W6:W8) -> 289.4571568 | X9: =SUM(X6:X8) -> 301.3749108 | Y9: 305.8955345 | Z9: 310.4839675 | AA9: 315.141227 | AB9: 319.8683454 | AC9: 324.6663706 | AD9: 329.5363662 | AE9: 334.4794117 | AF9: 339.4966028 | AG9: 344.5890519 | AH9: 349.7578877 | AI9: 355.004256 | AJ9: 360.3293198 | AK9: 365.7342596 | AL9: 371.2202735 | AM9: 376.7885776 | AN9: 382.4404063 | AO9: 388.1770124 | AP9: 393.9996675 | AQ9: 399.9096626 | AR9: 405.9083075 | AS9: 411.9969321 | AT9: 418.1768861 | AU9: 424.4495394 | AV9: 430.8162825 | AW9: 437.2785267 | AX9: 443.8377046 | AY9: 450.4952702 | AZ9: 457.2526992 | BA9: 464.1114897 | BB9: 471.0731621 | BC9: 478.1392595 | BD9: 485.3113484 | BE9: 492.5910186 | BF9: 499.9798839 | BG9: 507.4795821 | BH9: 515.0917759 | BI9: 522.8181525 | BJ9: 530.6604248 | BK9: 538.6203312 | BL9: 546.6996361 | BM9: =SUM(BM6:BM8) -> 554.9001307 | BN9: 563.2236327 | BO9: 571.6719871 | BP9: 580.2470669 | BQ9: 588.950773 | BR9: 597.7850345 | BS9: 606.7518101 | BT9: 615.8530872 | BU9: =SUM(BU6:BU8) -> 625.0908835 | BV9: 634.4672468
A10: 10. | B10: Bérköltség | C10: Wages and salaries | O10: ='Paks1 '!$T12*(1+Paraméterek!$B$11)^('Pü. kimutatások'!O$1-'Pü. kimutatások'!$D$1) -> 75.58360217 | P10: ='Paks1 '!$T12*(1+Paraméterek!$B$11)^('Pü. kimutatások'!P$1-'Pü. kimutatások'!$D$1) -> 76.7173562 | Q10: ='Paks1 '!$T12*(1+Paraméterek!$B$11)^('Pü. kimutatások'!Q$1-'Pü. kimutatások'!$D$1) -> 77.86811654 | R10: ='Paks1 '!$T12*(1+Paraméterek!$B$11)^('Pü. kimutatások'!R$1-'Pü. kimutatások'!$D$1) -> 79.03613829 | S10: ='Paks1 '!$T12*(1+Paraméterek!$B$11)^('Pü. kimutatások'!S$1-'Pü. kimutatások'!$D$1) -> 80.22168036 | T10: ='Paks1 '!$T12*(1+Paraméterek!$B$11)^('Pü. kimutatások'!T$1-'Pü. kimutatások'!$D$1) -> 81.42500557 | U10: ='Paks1 '!$T12*(1+Paraméterek!$B$11)^('Pü. kimutatások'!U$1-'Pü. kimutatások'!$D$1) -> 82.64638065 | V10: ='Paks1 '!$T12*(1+Paraméterek!$B$11)^('Pü. kimutatások'!V$1-'Pü. kimutatások'!$D$1) -> 83.88607636 | W10: ='Paks1 '!$T12*(1+Paraméterek!$B$11)^('Pü. kimutatások'!W$1-'Pü. kimutatások'!$D$1) -> 85.14436751 | X10: ='Paks1 '!$T12*(1+Paraméterek!$B$11)^('Pü. kimutatások'!X$1-'Pü. kimutatások'!$D$1) -> 86.42153302 | Y10: ='Paks1 '!$T12*(1+Paraméterek!$B$11)^('Pü. kimutatások'!Y$1-'Pü. kimutatások'!$D$1) -> 87.71785602 | Z10: ='Paks1 '!$T12*(1+Paraméterek!$B$11)^('Pü. kimutatások'!Z$1-'Pü. kimutatások'!$D$1) -> 89.03362386 | AA10: ='Paks1 '!$T12*(1+Paraméterek!$B$11)^('Pü. kimutatások'!AA$1-'Pü. kimutatások'!$D$1) -> 90.36912822 | AB10: ='Paks1 '!$T12*(1+Paraméterek!$B$11)^('Pü. kimutatások'!AB$1-'Pü. kimutatások'!$D$1) -> 91.72466514 | AC10: ='Paks1 '!$T12*(1+Paraméterek!$B$11)^('Pü. kimutatások'!AC$1-'Pü. kimutatások'!$D$1) -> 93.10053512 | AD10: ='Paks1 '!$T12*(1+Paraméterek!$B$11)^('Pü. kimutatások'!AD$1-'Pü. kimutatások'!$D$1) -> 94.49704314 | AE10: ='Paks1 '!$T12*(1+Paraméterek!$B$11)^('Pü. kimutatások'!AE$1-'Pü. kimutatások'!$D$1) -> 95.91449879 | AF10: ='Paks1 '!$T12*(1+Paraméterek!$B$11)^('Pü. kimutatások'!AF$1-'Pü. kimutatások'!$D$1) -> 97.35321627 | AG10: ='Paks1 '!$T12*(1+Paraméterek!$B$11)^('Pü. kimutatások'!AG$1-'Pü. kimutatások'!$D$1) -> 98.81351452 | AH10: ='Paks1 '!$T12*(1+Paraméterek!$B$11)^('Pü. kimutatások'!AH$1-'Pü. kimutatások'!$D$1) -> 100.2957172 | AI10: ='Paks1 '!$T12*(1+Paraméterek!$B$11)^('Pü. kimutatások'!AI$1-'Pü. kimutatások'!$D$1) -> 101.800153 | AJ10: ='Paks1 '!$T12*(1+Paraméterek!$B$11)^('Pü. kimutatások'!AJ$1-'Pü. kimutatások'!$D$1) -> 103.3271553 | AK10: ='Paks1 '!$T12*(1+Paraméterek!$B$11)^('Pü. kimutatások'!AK$1-'Pü. kimutatások'!$D$1) -> 104.8770626 | AL10: ='Paks1 '!$T12*(1+Paraméterek!$B$11)^('Pü. kimutatások'!AL$1-'Pü. kimutatások'!$D$1) -> 106.4502186 | AM10: ='Paks1 '!$T12*(1+Paraméterek!$B$11)^('Pü. kimutatások'!AM$1-'Pü. kimutatások'!$D$1) -> 108.0469718 | AN10: ='Paks1 '!$T12*(1+Paraméterek!$B$11)^('Pü. kimutatások'!AN$1-'Pü. kimutatások'!$D$1) -> 109.6676764 | AO10: ='Paks1 '!$T12*(1+Paraméterek!$B$11)^('Pü. kimutatások'!AO$1-'Pü. kimutatások'!$D$1) -> 111.3126916 | AP10: ='Paks1 '!$T12*(1+Paraméterek!$B$11)^('Pü. kimutatások'!AP$1-'Pü. kimutatások'!$D$1) -> 112.9823819 | AQ10: ='Paks1 '!$T12*(1+Paraméterek!$B$11)^('Pü. kimutatások'!AQ$1-'Pü. kimutatások'!$D$1) -> 114.6771177 | AR10: ='Paks1 '!$T12*(1+Paraméterek!$B$11)^('Pü. kimutatások'!AR$1-'Pü. kimutatások'!$D$1) -> 116.3972744 | AS10: ='Paks1 '!$T12*(1+Paraméterek!$B$11)^('Pü. kimutatások'!AS$1-'Pü. kimutatások'!$D$1) -> 118.1432335 | AT10: ='Paks1 '!$T12*(1+Paraméterek!$B$11)^('Pü. kimutatások'!AT$1-'Pü. kimutatások'!$D$1) -> 119.915382 | AU10: ='Paks1 '!$T12*(1+Paraméterek!$B$11)^('Pü. kimutatások'!AU$1-'Pü. kimutatások'!$D$1) -> 121.7141128 | AV10: ='Paks1 '!$T12*(1+Paraméterek!$B$11)^('Pü. kimutatások'!AV$1-'Pü. kimutatások'!$D$1) -> 123.5398245 | AW10: ='Paks1 '!$T12*(1+Paraméterek!$B$11)^('Pü. kimutatások'!AW$1-'Pü. kimutatások'!$D$1) -> 125.3929218 | AX10: ='Paks1 '!$T12*(1+Paraméterek!$B$11)^('Pü. kimutatások'!AX$1-'Pü. kimutatások'!$D$1) -> 127.2738157 | AY10: ='Paks1 '!$T12*(1+Paraméterek!$B$11)^('Pü. kimutatások'!AY$1-'Pü. kimutatások'!$D$1) -> 129.1829229 | AZ10: ='Paks1 '!$T12*(1+Paraméterek!$B$11)^('Pü. kimutatások'!AZ$1-'Pü. kimutatások'!$D$1) -> 131.1206667 | BA10: ='Paks1 '!$T12*(1+Paraméterek!$B$11)^('Pü. kimutatások'!BA$1-'Pü. kimutatások'!$D$1) -> 133.0874767 | BB10: ='Paks1 '!$T12*(1+Paraméterek!$B$11)^('Pü. kimutatások'!BB$1-'Pü. kimutatások'!$D$1) -> 135.0837889 | BC10: ='Paks1 '!$T12*(1+Paraméterek!$B$11)^('Pü. kimutatások'!BC$1-'Pü. kimutatások'!$D$1) -> 137.1100457 | BD10: ='Paks1 '!$T12*(1+Paraméterek!$B$11)^('Pü. kimutatások'!BD$1-'Pü. kimutatások'!$D$1) -> 139.1666964 | BE10: ='Paks1 '!$T12*(1+Paraméterek!$B$11)^('Pü. kimutatások'!BE$1-'Pü. kimutatások'!$D$1) -> 141.2541969 | BF10: ='Paks1 '!$T12*(1+Paraméterek!$B$11)^('Pü. kimutatások'!BF$1-'Pü. kimutatások'!$D$1) -> 143.3730098 | BG10: ='Paks1 '!$T12*(1+Paraméterek!$B$11)^('Pü. kimutatások'!BG$1-'Pü. kimutatások'!$D$1) -> 145.523605 | BH10: ='Paks1 '!$T12*(1+Paraméterek!$B$11)^('Pü. kimutatások'!BH$1-'Pü. kimutatások'!$D$1) -> 147.706459 | BI10: ='Paks1 '!$T12*(1+Paraméterek!$B$11)^('Pü. kimutatások'!BI$1-'Pü. kimutatások'!$D$1) -> 149.9220559 | BJ10: ='Paks1 '!$T12*(1+Paraméterek!$B$11)^('Pü. kimutatások'!BJ$1-'Pü. kimutatások'!$D$1) -> 152.1708868 | BK10: ='Paks1 '!$T12*(1+Paraméterek!$B$11)^('Pü. kimutatások'!BK$1-'Pü. kimutatások'!$D$1) -> 154.4534501 | BL10: ='Paks1 '!$T12*(1+Paraméterek!$B$11)^('Pü. kimutatások'!BL$1-'Pü. kimutatások'!$D$1) -> 156.7702518 | BM10: ='Paks1 '!$T12*(1+Paraméterek!$B$11)^('Pü. kimutatások'!BM$1-'Pü. kimutatások'!$D$1) -> 159.1218056 | BN10: ='Paks1 '!$T12*(1+Paraméterek!$B$11)^('Pü. kimutatások'!BN$1-'Pü. kimutatások'!$D$1) -> 161.5086327 | BO10: ='Paks1 '!$T12*(1+Paraméterek!$B$11)^('Pü. kimutatások'!BO$1-'Pü. kimutatások'!$D$1) -> 163.9312622 | BP10: ='Paks1 '!$T12*(1+Paraméterek!$B$11)^('Pü. kimutatások'!BP$1-'Pü. kimutatások'!$D$1) -> 166.3902311 | BQ10: ='Paks1 '!$T12*(1+Paraméterek!$B$11)^('Pü. kimutatások'!BQ$1-'Pü. kimutatások'!$D$1) -> 168.8860846 | BR10: ='Paks1 '!$T12*(1+Paraméterek!$B$11)^('Pü. kimutatások'!BR$1-'Pü. kimutatások'!$D$1) -> 171.4193758 | BS10: ='Paks1 '!$T12*(1+Paraméterek!$B$11)^('Pü. kimutatások'!BS$1-'Pü. kimutatások'!$D$1) -> 173.9906665 | BT10: ='Paks1 '!$T12*(1+Paraméterek!$B$11)^('Pü. kimutatások'!BT$1-'Pü. kimutatások'!$D$1) -> 176.6005265 | BU10: ='Paks1 '!$T12*(1+Paraméterek!$B$11)^('Pü. kimutatások'!BU$1-'Pü. kimutatások'!$D$1) -> 179.2495344 | BV10: ='Paks1 '!$T12*(1+Paraméterek!$B$11)^('Pü. kimutatások'!BV$1-'Pü. kimutatások'!$D$1) -> 181.9382774
A11: 11. | B11: Személyi jellegű egyéb kifizetések | C11: Other employee benefits | O11: ='Paks1 '!$T13*(1+Paraméterek!$B$11)^('Pü. kimutatások'!O$1-'Pü. kimutatások'!$D$1) -> 20.94695672 | P11: ='Paks1 '!$T13*(1+Paraméterek!$B$11)^('Pü. kimutatások'!P$1-'Pü. kimutatások'!$D$1) -> 21.26116107 | Q11: ='Paks1 '!$T13*(1+Paraméterek!$B$11)^('Pü. kimutatások'!Q$1-'Pü. kimutatások'!$D$1) -> 21.58007849 | R11: ='Paks1 '!$T13*(1+Paraméterek!$B$11)^('Pü. kimutatások'!R$1-'Pü. kimutatások'!$D$1) -> 21.90377966 | S11: ='Paks1 '!$T13*(1+Paraméterek!$B$11)^('Pü. kimutatások'!S$1-'Pü. kimutatások'!$D$1) -> 22.23233636 | T11: ='Paks1 '!$T13*(1+Paraméterek!$B$11)^('Pü. kimutatások'!T$1-'Pü. kimutatások'!$D$1) -> 22.56582141 | U11: ='Paks1 '!$T13*(1+Paraméterek!$B$11)^('Pü. kimutatások'!U$1-'Pü. kimutatások'!$D$1) -> 22.90430873 | V11: ='Paks1 '!$T13*(1+Paraméterek!$B$11)^('Pü. kimutatások'!V$1-'Pü. kimutatások'!$D$1) -> 23.24787336 | W11: ='Paks1 '!$T13*(1+Paraméterek!$B$11)^('Pü. kimutatások'!W$1-'Pü. kimutatások'!$D$1) -> 23.59659146 | X11: ='Paks1 '!$T13*(1+Paraméterek!$B$11)^('Pü. kimutatások'!X$1-'Pü. kimutatások'!$D$1) -> 23.95054033 | Y11: ='Paks1 '!$T13*(1+Paraméterek!$B$11)^('Pü. kimutatások'!Y$1-'Pü. kimutatások'!$D$1) -> 24.30979843 | Z11: ='Paks1 '!$T13*(1+Paraméterek!$B$11)^('Pü. kimutatások'!Z$1-'Pü. kimutatások'!$D$1) -> 24.67444541 | AA11: ='Paks1 '!$T13*(1+Paraméterek!$B$11)^('Pü. kimutatások'!AA$1-'Pü. kimutatások'!$D$1) -> 25.04456209 | AB11: ='Paks1 '!$T13*(1+Paraméterek!$B$11)^('Pü. kimutatások'!AB$1-'Pü. kimutatások'!$D$1) -> 25.42023052 | AC11: ='Paks1 '!$T13*(1+Paraméterek!$B$11)^('Pü. kimutatások'!AC$1-'Pü. kimutatások'!$D$1) -> 25.80153398 | AD11: ='Paks1 '!$T13*(1+Paraméterek!$B$11)^('Pü. kimutatások'!AD$1-'Pü. kimutatások'!$D$1) -> 26.18855699 | AE11: ='Paks1 '!$T13*(1+Paraméterek!$B$11)^('Pü. kimutatások'!AE$1-'Pü. kimutatások'!$D$1) -> 26.58138535 | AF11: ='Paks1 '!$T13*(1+Paraméterek!$B$11)^('Pü. kimutatások'!AF$1-'Pü. kimutatások'!$D$1) -> 26.98010613 | AG11: ='Paks1 '!$T13*(1+Paraméterek!$B$11)^('Pü. kimutatások'!AG$1-'Pü. kimutatások'!$D$1) -> 27.38480772 | AH11: ='Paks1 '!$T13*(1+Paraméterek!$B$11)^('Pü. kimutatások'!AH$1-'Pü. kimutatások'!$D$1) -> 27.79557983 | AI11: ='Paks1 '!$T13*(1+Paraméterek!$B$11)^('Pü. kimutatások'!AI$1-'Pü. kimutatások'!$D$1) -> 28.21251353 | AJ11: ='Paks1 '!$T13*(1+Paraméterek!$B$11)^('Pü. kimutatások'!AJ$1-'Pü. kimutatások'!$D$1) -> 28.63570123 | AK11: ='Paks1 '!$T13*(1+Paraméterek!$B$11)^('Pü. kimutatások'!AK$1-'Pü. kimutatások'!$D$1) -> 29.06523675 | AL11: ='Paks1 '!$T13*(1+Paraméterek!$B$11)^('Pü. kimutatások'!AL$1-'Pü. kimutatások'!$D$1) -> 29.5012153 | AM11: ='Paks1 '!$T13*(1+Paraméterek!$B$11)^('Pü. kimutatások'!AM$1-'Pü. kimutatások'!$D$1) -> 29.94373353 | AN11: ='Paks1 '!$T13*(1+Paraméterek!$B$11)^('Pü. kimutatások'!AN$1-'Pü. kimutatások'!$D$1) -> 30.39288954 | AO11: ='Paks1 '!$T13*(1+Paraméterek!$B$11)^('Pü. kimutatások'!AO$1-'Pü. kimutatások'!$D$1) -> 30.84878288 | AP11: ='Paks1 '!$T13*(1+Paraméterek!$B$11)^('Pü. kimutatások'!AP$1-'Pü. kimutatások'!$D$1) -> 31.31151462 | AQ11: ='Paks1 '!$T13*(1+Paraméterek!$B$11)^('Pü. kimutatások'!AQ$1-'Pü. kimutatások'!$D$1) -> 31.78118734 | AR11: ='Paks1 '!$T13*(1+Paraméterek!$B$11)^('Pü. kimutatások'!AR$1-'Pü. kimutatások'!$D$1) -> 32.25790515 | AS11: ='Paks1 '!$T13*(1+Paraméterek!$B$11)^('Pü. kimutatások'!AS$1-'Pü. kimutatások'!$D$1) -> 32.74177373 | AT11: ='Paks1 '!$T13*(1+Paraméterek!$B$11)^('Pü. kimutatások'!AT$1-'Pü. kimutatások'!$D$1) -> 33.23290034 | AU11: ='Paks1 '!$T13*(1+Paraméterek!$B$11)^('Pü. kimutatások'!AU$1-'Pü. kimutatások'!$D$1) -> 33.73139384 | AV11: ='Paks1 '!$T13*(1+Paraméterek!$B$11)^('Pü. kimutatások'!AV$1-'Pü. kimutatások'!$D$1) -> 34.23736475 | AW11: ='Paks1 '!$T13*(1+Paraméterek!$B$11)^('Pü. kimutatások'!AW$1-'Pü. kimutatások'!$D$1) -> 34.75092522 | AX11: ='Paks1 '!$T13*(1+Paraméterek!$B$11)^('Pü. kimutatások'!AX$1-'Pü. kimutatások'!$D$1) -> 35.2721891 | AY11: ='Paks1 '!$T13*(1+Paraméterek!$B$11)^('Pü. kimutatások'!AY$1-'Pü. kimutatások'!$D$1) -> 35.80127193 | AZ11: ='Paks1 '!$T13*(1+Paraméterek!$B$11)^('Pü. kimutatások'!AZ$1-'Pü. kimutatások'!$D$1) -> 36.33829101 | BA11: ='Paks1 '!$T13*(1+Paraméterek!$B$11)^('Pü. kimutatások'!BA$1-'Pü. kimutatások'!$D$1) -> 36.88336538 | BB11: ='Paks1 '!$T13*(1+Paraméterek!$B$11)^('Pü. kimutatások'!BB$1-'Pü. kimutatások'!$D$1) -> 37.43661586 | BC11: ='Paks1 '!$T13*(1+Paraméterek!$B$11)^('Pü. kimutatások'!BC$1-'Pü. kimutatások'!$D$1) -> 37.9981651 | BD11: ='Paks1 '!$T13*(1+Paraméterek!$B$11)^('Pü. kimutatások'!BD$1-'Pü. kimutatások'!$D$1) -> 38.56813757 | BE11: ='Paks1 '!$T13*(1+Paraméterek!$B$11)^('Pü. kimutatások'!BE$1-'Pü. kimutatások'!$D$1) -> 39.14665964 | BF11: ='Paks1 '!$T13*(1+Paraméterek!$B$11)^('Pü. kimutatások'!BF$1-'Pü. kimutatások'!$D$1) -> 39.73385953 | BG11: ='Paks1 '!$T13*(1+Paraméterek!$B$11)^('Pü. kimutatások'!BG$1-'Pü. kimutatások'!$D$1) -> 40.32986742 | BH11: ='Paks1 '!$T13*(1+Paraméterek!$B$11)^('Pü. kimutatások'!BH$1-'Pü. kimutatások'!$D$1) -> 40.93481544 | BI11: ='Paks1 '!$T13*(1+Paraméterek!$B$11)^('Pü. kimutatások'!BI$1-'Pü. kimutatások'!$D$1) -> 41.54883767 | BJ11: ='Paks1 '!$T13*(1+Paraméterek!$B$11)^('Pü. kimutatások'!BJ$1-'Pü. kimutatások'!$D$1) -> 42.17207023 | BK11: ='Paks1 '!$T13*(1+Paraméterek!$B$11)^('Pü. kimutatások'!BK$1-'Pü. kimutatások'!$D$1) -> 42.80465129 | BL11: ='Paks1 '!$T13*(1+Paraméterek!$B$11)^('Pü. kimutatások'!BL$1-'Pü. kimutatások'!$D$1) -> 43.44672105 | BM11: ='Paks1 '!$T13*(1+Paraméterek!$B$11)^('Pü. kimutatások'!BM$1-'Pü. kimutatások'!$D$1) -> 44.09842187 | BN11: ='Paks1 '!$T13*(1+Paraméterek!$B$11)^('Pü. kimutatások'!BN$1-'Pü. kimutatások'!$D$1) -> 44.7598982 | BO11: ='Paks1 '!$T13*(1+Paraméterek!$B$11)^('Pü. kimutatások'!BO$1-'Pü. kimutatások'!$D$1) -> 45.43129667 | BP11: ='Paks1 '!$T13*(1+Paraméterek!$B$11)^('Pü. kimutatások'!BP$1-'Pü. kimutatások'!$D$1) -> 46.11276612 | BQ11: ='Paks1 '!$T13*(1+Paraméterek!$B$11)^('Pü. kimutatások'!BQ$1-'Pü. kimutatások'!$D$1) -> 46.80445761 | BR11: ='Paks1 '!$T13*(1+Paraméterek!$B$11)^('Pü. kimutatások'!BR$1-'Pü. kimutatások'!$D$1) -> 47.50652448 | BS11: ='Paks1 '!$T13*(1+Paraméterek!$B$11)^('Pü. kimutatások'!BS$1-'Pü. kimutatások'!$D$1) -> 48.21912235 | BT11: ='Paks1 '!$T13*(1+Paraméterek!$B$11)^('Pü. kimutatások'!BT$1-'Pü. kimutatások'!$D$1) -> 48.94240918 | BU11: ='Paks1 '!$T13*(1+Paraméterek!$B$11)^('Pü. kimutatások'!BU$1-'Pü. kimutatások'!$D$1) -> 49.67654532 | BV11: ='Paks1 '!$T13*(1+Paraméterek!$B$11)^('Pü. kimutatások'!BV$1-'Pü. kimutatások'!$D$1) -> 50.4216935
A12: 12. | B12: Bérjárulékok | C12: Contributions on wages and salaries | O12: ='Paks1 '!$T14*(1+Paraméterek!$B$11)^('Pü. kimutatások'!O$1-'Pü. kimutatások'!$D$1) -> 33.94755846 | P12: ='Paks1 '!$T14*(1+Paraméterek!$B$11)^('Pü. kimutatások'!P$1-'Pü. kimutatások'!$D$1) -> 34.45677183 | Q12: ='Paks1 '!$T14*(1+Paraméterek!$B$11)^('Pü. kimutatások'!Q$1-'Pü. kimutatások'!$D$1) -> 34.97362341 | R12: ='Paks1 '!$T14*(1+Paraméterek!$B$11)^('Pü. kimutatások'!R$1-'Pü. kimutatások'!$D$1) -> 35.49822776 | S12: ='Paks1 '!$T14*(1+Paraméterek!$B$11)^('Pü. kimutatások'!S$1-'Pü. kimutatások'!$D$1) -> 36.03070118 | T12: ='Paks1 '!$T14*(1+Paraméterek!$B$11)^('Pü. kimutatások'!T$1-'Pü. kimutatások'!$D$1) -> 36.5711617 | U12: ='Paks1 '!$T14*(1+Paraméterek!$B$11)^('Pü. kimutatások'!U$1-'Pü. kimutatások'!$D$1) -> 37.11972912 | V12: ='Paks1 '!$T14*(1+Paraméterek!$B$11)^('Pü. kimutatások'!V$1-'Pü. kimutatások'!$D$1) -> 37.67652506 | W12: ='Paks1 '!$T14*(1+Paraméterek!$B$11)^('Pü. kimutatások'!W$1-'Pü. kimutatások'!$D$1) -> 38.24167294 | X12: ='Paks1 '!$T14*(1+Paraméterek!$B$11)^('Pü. kimutatások'!X$1-'Pü. kimutatások'!$D$1) -> 38.81529803 | Y12: ='Paks1 '!$T14*(1+Paraméterek!$B$11)^('Pü. kimutatások'!Y$1-'Pü. kimutatások'!$D$1) -> 39.3975275 | Z12: ='Paks1 '!$T14*(1+Paraméterek!$B$11)^('Pü. kimutatások'!Z$1-'Pü. kimutatások'!$D$1) -> 39.98849041 | AA12: ='Paks1 '!$T14*(1+Paraméterek!$B$11)^('Pü. kimutatások'!AA$1-'Pü. kimutatások'!$D$1) -> 40.58831777 | AB12: ='Paks1 '!$T14*(1+Paraméterek!$B$11)^('Pü. kimutatások'!AB$1-'Pü. kimutatások'!$D$1) -> 41.19714254 | AC12: ='Paks1 '!$T14*(1+Paraméterek!$B$11)^('Pü. kimutatások'!AC$1-'Pü. kimutatások'!$D$1) -> 41.81509967 | AD12: ='Paks1 '!$T14*(1+Paraméterek!$B$11)^('Pü. kimutatások'!AD$1-'Pü. kimutatások'!$D$1) -> 42.44232617 | AE12: ='Paks1 '!$T14*(1+Paraméterek!$B$11)^('Pü. kimutatások'!AE$1-'Pü. kimutatások'!$D$1) -> 43.07896106 | AF12: ='Paks1 '!$T14*(1+Paraméterek!$B$11)^('Pü. kimutatások'!AF$1-'Pü. kimutatások'!$D$1) -> 43.72514548 | AG12: ='Paks1 '!$T14*(1+Paraméterek!$B$11)^('Pü. kimutatások'!AG$1-'Pü. kimutatások'!$D$1) -> 44.38102266 | AH12: ='Paks1 '!$T14*(1+Paraméterek!$B$11)^('Pü. kimutatások'!AH$1-'Pü. kimutatások'!$D$1) -> 45.046738 | AI12: ='Paks1 '!$T14*(1+Paraméterek!$B$11)^('Pü. kimutatások'!AI$1-'Pü. kimutatások'!$D$1) -> 45.72243907 | AJ12: ='Paks1 '!$T14*(1+Paraméterek!$B$11)^('Pü. kimutatások'!AJ$1-'Pü. kimutatások'!$D$1) -> 46.40827566 | AK12: ='Paks1 '!$T14*(1+Paraméterek!$B$11)^('Pü. kimutatások'!AK$1-'Pü. kimutatások'!$D$1) -> 47.10439979 | AL12: ='Paks1 '!$T14*(1+Paraméterek!$B$11)^('Pü. kimutatások'!AL$1-'Pü. kimutatások'!$D$1) -> 47.81096579 | AM12: ='Paks1 '!$T14*(1+Paraméterek!$B$11)^('Pü. kimutatások'!AM$1-'Pü. kimutatások'!$D$1) -> 48.52813027 | AN12: ='Paks1 '!$T14*(1+Paraméterek!$B$11)^('Pü. kimutatások'!AN$1-'Pü. kimutatások'!$D$1) -> 49.25605223 | AO12: ='Paks1 '!$T14*(1+Paraméterek!$B$11)^('Pü. kimutatások'!AO$1-'Pü. kimutatások'!$D$1) -> 49.99489301 | AP12: ='Paks1 '!$T14*(1+Paraméterek!$B$11)^('Pü. kimutatások'!AP$1-'Pü. kimutatások'!$D$1) -> 50.74481641 | AQ12: ='Paks1 '!$T14*(1+Paraméterek!$B$11)^('Pü. kimutatások'!AQ$1-'Pü. kimutatások'!$D$1) -> 51.50598865 | AR12: ='Paks1 '!$T14*(1+Paraméterek!$B$11)^('Pü. kimutatások'!AR$1-'Pü. kimutatások'!$D$1) -> 52.27857848 | AS12: ='Paks1 '!$T14*(1+Paraméterek!$B$11)^('Pü. kimutatások'!AS$1-'Pü. kimutatások'!$D$1) -> 53.06275716 | AT12: ='Paks1 '!$T14*(1+Paraméterek!$B$11)^('Pü. kimutatások'!AT$1-'Pü. kimutatások'!$D$1) -> 53.85869852 | AU12: ='Paks1 '!$T14*(1+Paraméterek!$B$11)^('Pü. kimutatások'!AU$1-'Pü. kimutatások'!$D$1) -> 54.66657899 | AV12: ='Paks1 '!$T14*(1+Paraméterek!$B$11)^('Pü. kimutatások'!AV$1-'Pü. kimutatások'!$D$1) -> 55.48657768 | AW12: ='Paks1 '!$T14*(1+Paraméterek!$B$11)^('Pü. kimutatások'!AW$1-'Pü. kimutatások'!$D$1) -> 56.31887634 | AX12: ='Paks1 '!$T14*(1+Paraméterek!$B$11)^('Pü. kimutatások'!AX$1-'Pü. kimutatások'!$D$1) -> 57.16365949 | AY12: ='Paks1 '!$T14*(1+Paraméterek!$B$11)^('Pü. kimutatások'!AY$1-'Pü. kimutatások'!$D$1) -> 58.02111438 | AZ12: ='Paks1 '!$T14*(1+Paraméterek!$B$11)^('Pü. kimutatások'!AZ$1-'Pü. kimutatások'!$D$1) -> 58.8914311 | BA12: ='Paks1 '!$T14*(1+Paraméterek!$B$11)^('Pü. kimutatások'!BA$1-'Pü. kimutatások'!$D$1) -> 59.77480256 | BB12: ='Paks1 '!$T14*(1+Paraméterek!$B$11)^('Pü. kimutatások'!BB$1-'Pü. kimutatások'!$D$1) -> 60.6714246 | BC12: ='Paks1 '!$T14*(1+Paraméterek!$B$11)^('Pü. kimutatások'!BC$1-'Pü. kimutatások'!$D$1) -> 61.58149597 | BD12: ='Paks1 '!$T14*(1+Paraméterek!$B$11)^('Pü. kimutatások'!BD$1-'Pü. kimutatások'!$D$1) -> 62.50521841 | BE12: ='Paks1 '!$T14*(1+Paraméterek!$B$11)^('Pü. kimutatások'!BE$1-'Pü. kimutatások'!$D$1) -> 63.44279669 | BF12: ='Paks1 '!$T14*(1+Paraméterek!$B$11)^('Pü. kimutatások'!BF$1-'Pü. kimutatások'!$D$1) -> 64.39443864 | BG12: ='Paks1 '!$T14*(1+Paraméterek!$B$11)^('Pü. kimutatások'!BG$1-'Pü. kimutatások'!$D$1) -> 65.36035522 | BH12: ='Paks1 '!$T14*(1+Paraméterek!$B$11)^('Pü. kimutatások'!BH$1-'Pü. kimutatások'!$D$1) -> 66.34076055 | BI12: ='Paks1 '!$T14*(1+Paraméterek!$B$11)^('Pü. kimutatások'!BI$1-'Pü. kimutatások'!$D$1) -> 67.33587195 | BJ12: ='Paks1 '!$T14*(1+Paraméterek!$B$11)^('Pü. kimutatások'!BJ$1-'Pü. kimutatások'!$D$1) -> 68.34591003 | BK12: ='Paks1 '!$T14*(1+Paraméterek!$B$11)^('Pü. kimutatások'!BK$1-'Pü. kimutatások'!$D$1) -> 69.37109868 | BL12: ='Paks1 '!$T14*(1+Paraméterek!$B$11)^('Pü. kimutatások'!BL$1-'Pü. kimutatások'!$D$1) -> 70.41166516 | BM12: ='Paks1 '!$T14*(1+Paraméterek!$B$11)^('Pü. kimutatások'!BM$1-'Pü. kimutatások'!$D$1) -> 71.46784014 | BN12: ='Paks1 '!$T14*(1+Paraméterek!$B$11)^('Pü. kimutatások'!BN$1-'Pü. kimutatások'!$D$1) -> 72.53985774 | BO12: ='Paks1 '!$T14*(1+Paraméterek!$B$11)^('Pü. kimutatások'!BO$1-'Pü. kimutatások'!$D$1) -> 73.62795561 | BP12: ='Paks1 '!$T14*(1+Paraméterek!$B$11)^('Pü. kimutatások'!BP$1-'Pü. kimutatások'!$D$1) -> 74.73237494 | BQ12: ='Paks1 '!$T14*(1+Paraméterek!$B$11)^('Pü. kimutatások'!BQ$1-'Pü. kimutatások'!$D$1) -> 75.85336057 | BR12: ='Paks1 '!$T14*(1+Paraméterek!$B$11)^('Pü. kimutatások'!BR$1-'Pü. kimutatások'!$D$1) -> 76.99116098 | BS12: ='Paks1 '!$T14*(1+Paraméterek!$B$11)^('Pü. kimutatások'!BS$1-'Pü. kimutatások'!$D$1) -> 78.14602839 | BT12: ='Paks1 '!$T14*(1+Paraméterek!$B$11)^('Pü. kimutatások'!BT$1-'Pü. kimutatások'!$D$1) -> 79.31821882 | BU12: ='Paks1 '!$T14*(1+Paraméterek!$B$11)^('Pü. kimutatások'!BU$1-'Pü. kimutatások'!$D$1) -> 80.5079921 | BV12: ='Paks1 '!$T14*(1+Paraméterek!$B$11)^('Pü. kimutatások'!BV$1-'Pü. kimutatások'!$D$1) -> 81.71561198
A13: V. | B13: Személyi jellegű ráfordítások (10.+11.+12.) | C13: Staff costs (10+11+12) | D13: =E13/(1+Paraméterek!$B11) -> 2.658413041 | E13: =F13/(1+Paraméterek!$B11) -> 2.698289236 | F13: =G13/(1+Paraméterek!$B11) -> 2.738763575 | G13: =H13/(1+Paraméterek!$B11) -> 2.779845028 | H13: =I13/(1+Paraméterek!$B11) -> 2.821542704 | I13: =J13/(1+Paraméterek!$B11) -> 2.863865844 | J13: =K13/(1+Paraméterek!$B11) -> 2.906823832 | K13: =L13/(1+Paraméterek!$B11)*0.2 -> 2.950426189 | L13: =M13/(1+Paraméterek!$B11)*0.4 -> 14.97341291 | M13: =N13/(1+Paraméterek!$B11)*0.5 -> 37.99503526 | N13: =O13/(1+Paraméterek!$B11)*0.6 -> 77.12992158 | O13: =SUM(O10:O12) -> 130.4781173 | P13: 132.4352891 | Q13: 134.4218184 | R13: 136.4381457 | S13: 138.4847179 | T13: 140.5619887 | U13: 142.6704185 | V13: 144.8104748 | W13: =SUM(W10:W12) -> 146.9826319 | X13: =SUM(X10:X12) -> 149.1873714 | Y13: 151.425182 | Z13: 153.6965597 | AA13: 156.0020081 | AB13: 158.3420382 | AC13: 160.7171688 | AD13: 163.1279263 | AE13: 165.5748452 | AF13: 168.0584679 | AG13: 170.5793449 | AH13: 173.1380351 | AI13: 175.7351056 | AJ13: 178.3711322 | AK13: 181.0466992 | AL13: 183.7623996 | AM13: 186.5188356 | AN13: 189.3166182 | AO13: 192.1563674 | AP13: 195.038713 | AQ13: 197.9642937 | AR13: 200.9337581 | AS13: 203.9477644 | AT13: 207.0069809 | AU13: 210.1120856 | AV13: 213.2637669 | AW13: 216.4627234 | AX13: 219.7096642 | AY13: 223.0053092 | AZ13: 226.3503888 | BA13: 229.7456447 | BB13: 233.1918294 | BC13: 236.6897068 | BD13: 240.2400524 | BE13: 243.8436532 | BF13: 247.501308 | BG13: 251.2138276 | BH13: 254.982035 | BI13: 258.8067655 | BJ13: 262.688867 | BK13: 266.6292 | BL13: 270.628638 | BM13: =SUM(BM10:BM12) -> 274.6880676 | BN13: 278.8083886 | BO13: 282.9905144 | BP13: 287.2353722 | BQ13: 291.5439027 | BR13: 295.9170613 | BS13: 300.3558172 | BT13: 304.8611545 | BU13: =SUM(BU10:BU12) -> 309.4340718 | BV13: 314.0755829
A14: VI. | B14: Értékcsökkenési leírás | C14: Depreciation | O14: ='CAPEX&Depr'!M21 -> 417.65 | P14: ='CAPEX&Depr'!N21 -> 417.65 | Q14: ='CAPEX&Depr'!O21 -> 417.65 | R14: ='CAPEX&Depr'!P21 -> 417.65 | S14: ='CAPEX&Depr'!Q21 -> 417.65 | T14: ='CAPEX&Depr'!R21 -> 417.65 | U14: ='CAPEX&Depr'!S21 -> 417.65 | V14: ='CAPEX&Depr'!T21 -> 417.65 | W14: ='CAPEX&Depr'!U21 -> 417.65 | X14: ='CAPEX&Depr'!V21 -> 417.65 | Y14: ='CAPEX&Depr'!W21 -> 417.65 | Z14: ='CAPEX&Depr'!X21 -> 417.65 | AA14: ='CAPEX&Depr'!Y21 -> 417.65 | AB14: ='CAPEX&Depr'!Z21 -> 417.65 | AC14: ='CAPEX&Depr'!AA21 -> 417.65 | AD14: ='CAPEX&Depr'!AB21 -> 417.65 | AE14: ='CAPEX&Depr'!AC21 -> 417.65 | AF14: ='CAPEX&Depr'!AD21 -> 417.65 | AG14: ='CAPEX&Depr'!AE21 -> 417.65 | AH14: ='CAPEX&Depr'!AF21 -> 417.65 | AI14: ='CAPEX&Depr'!AG21 -> 417.65 | AJ14: ='CAPEX&Depr'!AH21 -> 417.65 | AK14: ='CAPEX&Depr'!AI21 -> 417.65 | AL14: ='CAPEX&Depr'!AJ21 -> 417.65 | AM14: ='CAPEX&Depr'!AK21 -> 417.65 | AN14: ='CAPEX&Depr'!AL21 -> 82.35 | AO14: ='CAPEX&Depr'!AM21 -> 82.35 | AP14: ='CAPEX&Depr'!AN21 -> 82.35 | AQ14: ='CAPEX&Depr'!AO21 -> 82.35 | AR14: ='CAPEX&Depr'!AP21 -> 82.35 | AS14: ='CAPEX&Depr'!AQ21 -> 239.5802394 | AT14: ='CAPEX&Depr'!AR21 -> 239.5802394 | AU14: ='CAPEX&Depr'!AS21 -> 239.5802394 | AV14: ='CAPEX&Depr'!AT21 -> 239.5802394 | AW14: ='CAPEX&Depr'!AU21 -> 239.5802394 | AX14: ='CAPEX&Depr'!AV21 -> 239.5802394 | AY14: ='CAPEX&Depr'!AW21 -> 239.5802394 | AZ14: ='CAPEX&Depr'!AX21 -> 239.5802394 | BA14: ='CAPEX&Depr'!AY21 -> 239.5802394 | BB14: ='CAPEX&Depr'!AZ21 -> 239.5802394 | BC14: ='CAPEX&Depr'!BA21 -> 239.5802394 | BD14: ='CAPEX&Depr'!BB21 -> 239.5802394 | BE14: ='CAPEX&Depr'!BC21 -> 239.5802394 | BF14: ='CAPEX&Depr'!BD21 -> 239.5802394 | BG14: ='CAPEX&Depr'!BE21 -> 239.5802394 | BH14: ='CAPEX&Depr'!BF21 -> 239.5802394 | BI14: ='CAPEX&Depr'!BG21 -> 239.5802394 | BJ14: ='CAPEX&Depr'!BH21 -> 239.5802394 | BK14: ='CAPEX&Depr'!BI21 -> 239.5802394 | BL14: ='CAPEX&Depr'!BJ21 -> 239.5802394 | BM14: ='CAPEX&Depr'!BK21 -> 157.2302394 | BN14: ='CAPEX&Depr'!BL21 -> 157.2302394 | BO14: ='CAPEX&Depr'!BM21 -> 157.2302394 | BP14: ='CAPEX&Depr'!BN21 -> 157.2302394 | BQ14: ='CAPEX&Depr'!BO21 -> 157.2302394 | BR14: ='CAPEX&Depr'!BP21 -> 0 | BS14: ='CAPEX&Depr'!BQ21 -> 0 | BT14: ='CAPEX&Depr'!BR21 -> 0 | BU14: ='CAPEX&Depr'!BS21 -> 0 | BV14: ='CAPEX&Depr'!BT21 -> 0
A15: VII. | B15: Egyéb ráfordítások | C15: Other operating charges | O15: =O169+Paraméterek!$C$5*Paraméterek!$B$26*(1+Paraméterek!$B$11)^('Pü. kimutatások'!O$1-'Pü. kimutatások'!$D$1)+'Paks1 '!$T$27*(1+Paraméterek!$B$11)^('Pü. kimutatások'!O$1-'Pü. kimutatások'!$D$1) -> 135.5219741 | P15: =P169+Paraméterek!$C$5*Paraméterek!$B$26*(1+Paraméterek!$B$11)^('Pü. kimutatások'!P$1-'Pü. kimutatások'!$D$1)+'Paks1 '!$T$27*(1+Paraméterek!$B$11)^('Pü. kimutatások'!P$1-'Pü. kimutatások'!$D$1) -> 137.5548037 | Q15: =Q169+Paraméterek!$C$5*Paraméterek!$B$26*(1+Paraméterek!$B$11)^('Pü. kimutatások'!Q$1-'Pü. kimutatások'!$D$1)+'Paks1 '!$T$27*(1+Paraméterek!$B$11)^('Pü. kimutatások'!Q$1-'Pü. kimutatások'!$D$1) -> 139.6181258 | R15: =R169+Paraméterek!$C$5*Paraméterek!$B$26*(1+Paraméterek!$B$11)^('Pü. kimutatások'!R$1-'Pü. kimutatások'!$D$1)+'Paks1 '!$T$27*(1+Paraméterek!$B$11)^('Pü. kimutatások'!R$1-'Pü. kimutatások'!$D$1) -> 141.7123977 | S15: =S169+Paraméterek!$C$5*Paraméterek!$B$26*(1+Paraméterek!$B$11)^('Pü. kimutatások'!S$1-'Pü. kimutatások'!$D$1)+'Paks1 '!$T$27*(1+Paraméterek!$B$11)^('Pü. kimutatások'!S$1-'Pü. kimutatások'!$D$1) -> 143.8380836 | T15: =T169+Paraméterek!$C$5*Paraméterek!$B$26*(1+Paraméterek!$B$11)^('Pü. kimutatások'!T$1-'Pü. kimutatások'!$D$1)+'Paks1 '!$T$27*(1+Paraméterek!$B$11)^('Pü. kimutatások'!T$1-'Pü. kimutatások'!$D$1) -> 145.9956549 | U15: =U169+Paraméterek!$C$5*Paraméterek!$B$26*(1+Paraméterek!$B$11)^('Pü. kimutatások'!U$1-'Pü. kimutatások'!$D$1)+'Paks1 '!$T$27*(1+Paraméterek!$B$11)^('Pü. kimutatások'!U$1-'Pü. kimutatások'!$D$1) -> 148.1855897 | V15: =V169+Paraméterek!$C$5*Paraméterek!$B$26*(1+Paraméterek!$B$11)^('Pü. kimutatások'!V$1-'Pü. kimutatások'!$D$1)+'Paks1 '!$T$27*(1+Paraméterek!$B$11)^('Pü. kimutatások'!V$1-'Pü. kimutatások'!$D$1) -> 150.4083735 | W15: =W169+Paraméterek!$C$6*Paraméterek!$B$26*(1+Paraméterek!$B$11)^('Pü. kimutatások'!W$1-'Pü. kimutatások'!$D$1)+'Paks1 '!$T$27*(1+Paraméterek!$B$11)^('Pü. kimutatások'!W$1-'Pü. kimutatások'!$D$1) -> 165.0249986 | X15: =X169+Paraméterek!$C$6*Paraméterek!$B$26*(1+Paraméterek!$B$11)^('Pü. kimutatások'!X$1-'Pü. kimutatások'!$D$1)+'Paks1 '!$T$27*(1+Paraméterek!$B$11)^('Pü. kimutatások'!X$1-'Pü. kimutatások'!$D$1) -> 167.3488556 | Y15: =Y169+Paraméterek!$C$6*Paraméterek!$B$26*(1+Paraméterek!$B$11)^('Pü. kimutatások'!Y$1-'Pü. kimutatások'!$D$1)+'Paks1 '!$T$27*(1+Paraméterek!$B$11)^('Pü. kimutatások'!Y$1-'Pü. kimutatások'!$D$1) -> 169.8590885 | Z15: =Z169+Paraméterek!$C$6*Paraméterek!$B$26*(1+Paraméterek!$B$11)^('Pü. kimutatások'!Z$1-'Pü. kimutatások'!$D$1)+'Paks1 '!$T$27*(1+Paraméterek!$B$11)^('Pü. kimutatások'!Z$1-'Pü. kimutatások'!$D$1) -> 172.4069748 | AA15: =AA169+Paraméterek!$C$6*Paraméterek!$B$26*(1+Paraméterek!$B$11)^('Pü. kimutatások'!AA$1-'Pü. kimutatások'!$D$1)+'Paks1 '!$T$27*(1+Paraméterek!$B$11)^('Pü. kimutatások'!AA$1-'Pü. kimutatások'!$D$1) -> 174.9930794 | AB15: =AB169+Paraméterek!$C$6*Paraméterek!$B$26*(1+Paraméterek!$B$11)^('Pü. kimutatások'!AB$1-'Pü. kimutatások'!$D$1)+'Paks1 '!$T$27*(1+Paraméterek!$B$11)^('Pü. kimutatások'!AB$1-'Pü. kimutatások'!$D$1) -> 177.6179756 | AC15: =AC169+Paraméterek!$C$6*Paraméterek!$B$26*(1+Paraméterek!$B$11)^('Pü. kimutatások'!AC$1-'Pü. kimutatások'!$D$1)+'Paks1 '!$T$27*(1+Paraméterek!$B$11)^('Pü. kimutatások'!AC$1-'Pü. kimutatások'!$D$1) -> 180.2822452 | AD15: =AD169+Paraméterek!$C$6*Paraméterek!$B$26*(1+Paraméterek!$B$11)^('Pü. kimutatások'!AD$1-'Pü. kimutatások'!$D$1)+'Paks1 '!$T$27*(1+Paraméterek!$B$11)^('Pü. kimutatások'!AD$1-'Pü. kimutatások'!$D$1) -> 182.9864789 | AE15: =AE169+Paraméterek!$C$6*Paraméterek!$B$26*(1+Paraméterek!$B$11)^('Pü. kimutatások'!AE$1-'Pü. kimutatások'!$D$1)+'Paks1 '!$T$27*(1+Paraméterek!$B$11)^('Pü. kimutatások'!AE$1-'Pü. kimutatások'!$D$1) -> 185.7312761 | AF15: =AF169+Paraméterek!$C$6*Paraméterek!$B$26*(1+Paraméterek!$B$11)^('Pü. kimutatások'!AF$1-'Pü. kimutatások'!$D$1)+'Paks1 '!$T$27*(1+Paraméterek!$B$11)^('Pü. kimutatások'!AF$1-'Pü. kimutatások'!$D$1) -> 188.5172453 | AG15: =AG169+Paraméterek!$C$6*Paraméterek!$B$26*(1+Paraméterek!$B$11)^('Pü. kimutatások'!AG$1-'Pü. kimutatások'!$D$1)+'Paks1 '!$T$27*(1+Paraméterek!$B$11)^('Pü. kimutatások'!AG$1-'Pü. kimutatások'!$D$1) -> 191.3450039 | AH15: =AH169+Paraméterek!$C$6*Paraméterek!$B$26*(1+Paraméterek!$B$11)^('Pü. kimutatások'!AH$1-'Pü. kimutatások'!$D$1)+'Paks1 '!$T$27*(1+Paraméterek!$B$11)^('Pü. kimutatások'!AH$1-'Pü. kimutatások'!$D$1) -> 194.215179 | AI15: =AI169+Paraméterek!$C$6*Paraméterek!$B$26*(1+Paraméterek!$B$11)^('Pü. kimutatások'!AI$1-'Pü. kimutatások'!$D$1)+'Paks1 '!$T$27*(1+Paraméterek!$B$11)^('Pü. kimutatások'!AI$1-'Pü. kimutatások'!$D$1) -> 197.1284067 | AJ15: =AJ169+Paraméterek!$C$6*Paraméterek!$B$26*(1+Paraméterek!$B$11)^('Pü. kimutatások'!AJ$1-'Pü. kimutatások'!$D$1)+'Paks1 '!$T$27*(1+Paraméterek!$B$11)^('Pü. kimutatások'!AJ$1-'Pü. kimutatások'!$D$1) -> 200.0853328 | AK15: =AK169+Paraméterek!$C$6*Paraméterek!$B$26*(1+Paraméterek!$B$11)^('Pü. kimutatások'!AK$1-'Pü. kimutatások'!$D$1)+'Paks1 '!$T$27*(1+Paraméterek!$B$11)^('Pü. kimutatások'!AK$1-'Pü. kimutatások'!$D$1) -> 203.0866128 | AL15: =AL169+Paraméterek!$C$6*Paraméterek!$B$26*(1+Paraméterek!$B$11)^('Pü. kimutatások'!AL$1-'Pü. kimutatások'!$D$1)+'Paks1 '!$T$27*(1+Paraméterek!$B$11)^('Pü. kimutatások'!AL$1-'Pü. kimutatások'!$D$1) -> 206.132912 | AM15: =AM169+Paraméterek!$C$6*Paraméterek!$B$26*(1+Paraméterek!$B$11)^('Pü. kimutatások'!AM$1-'Pü. kimutatások'!$D$1)+'Paks1 '!$T$27*(1+Paraméterek!$B$11)^('Pü. kimutatások'!AM$1-'Pü. kimutatások'!$D$1) -> 209.2249056 | AN15: =AN169+Paraméterek!$C$6*Paraméterek!$B$26*(1+Paraméterek!$B$11)^('Pü. kimutatások'!AN$1-'Pü. kimutatások'!$D$1)+'Paks1 '!$T$27*(1+Paraméterek!$B$11)^('Pü. kimutatások'!AN$1-'Pü. kimutatások'!$D$1) -> 212.3632792 | AO15: =AO169+Paraméterek!$C$6*Paraméterek!$B$26*(1+Paraméterek!$B$11)^('Pü. kimutatások'!AO$1-'Pü. kimutatások'!$D$1)+'Paks1 '!$T$27*(1+Paraméterek!$B$11)^('Pü. kimutatások'!AO$1-'Pü. kimutatások'!$D$1) -> 215.5487284 | AP15: =AP169+Paraméterek!$C$6*Paraméterek!$B$26*(1+Paraméterek!$B$11)^('Pü. kimutatások'!AP$1-'Pü. kimutatások'!$D$1)+'Paks1 '!$T$27*(1+Paraméterek!$B$11)^('Pü. kimutatások'!AP$1-'Pü. kimutatások'!$D$1) -> 218.7819593 | AQ15: =AQ169+Paraméterek!$C$6*Paraméterek!$B$26*(1+Paraméterek!$B$11)^('Pü. kimutatások'!AQ$1-'Pü. kimutatások'!$D$1)+'Paks1 '!$T$27*(1+Paraméterek!$B$11)^('Pü. kimutatások'!AQ$1-'Pü. kimutatások'!$D$1) -> 222.0636887 | AR15: =AR169+Paraméterek!$C$6*Paraméterek!$B$26*(1+Paraméterek!$B$11)^('Pü. kimutatások'!AR$1-'Pü. kimutatások'!$D$1)+'Paks1 '!$T$27*(1+Paraméterek!$B$11)^('Pü. kimutatások'!AR$1-'Pü. kimutatások'!$D$1) -> 225.3946441 | AS15: =AS169+Paraméterek!$C$6*Paraméterek!$B$26*(1+Paraméterek!$B$11)^('Pü. kimutatások'!AS$1-'Pü. kimutatások'!$D$1)+'Paks1 '!$T$27*(1+Paraméterek!$B$11)^('Pü. kimutatások'!AS$1-'Pü. kimutatások'!$D$1) -> 228.7755637 | AT15: =AT169+Paraméterek!$C$6*Paraméterek!$B$26*(1+Paraméterek!$B$11)^('Pü. kimutatások'!AT$1-'Pü. kimutatások'!$D$1)+'Paks1 '!$T$27*(1+Paraméterek!$B$11)^('Pü. kimutatások'!AT$1-'Pü. kimutatások'!$D$1) -> 232.2071972 | AU15: =AU169+Paraméterek!$C$6*Paraméterek!$B$26*(1+Paraméterek!$B$11)^('Pü. kimutatások'!AU$1-'Pü. kimutatások'!$D$1)+'Paks1 '!$T$27*(1+Paraméterek!$B$11)^('Pü. kimutatások'!AU$1-'Pü. kimutatások'!$D$1) -> 235.6903051 | AV15: =AV169+Paraméterek!$C$6*Paraméterek!$B$26*(1+Paraméterek!$B$11)^('Pü. kimutatások'!AV$1-'Pü. kimutatások'!$D$1)+'Paks1 '!$T$27*(1+Paraméterek!$B$11)^('Pü. kimutatások'!AV$1-'Pü. kimutatások'!$D$1) -> 239.2256597 | AW15: =AW169+Paraméterek!$C$6*Paraméterek!$B$26*(1+Paraméterek!$B$11)^('Pü. kimutatások'!AW$1-'Pü. kimutatások'!$D$1)+'Paks1 '!$T$27*(1+Paraméterek!$B$11)^('Pü. kimutatások'!AW$1-'Pü. kimutatások'!$D$1) -> 242.8140446 | AX15: =AX169+Paraméterek!$C$6*Paraméterek!$B$26*(1+Paraméterek!$B$11)^('Pü. kimutatások'!AX$1-'Pü. kimutatások'!$D$1)+'Paks1 '!$T$27*(1+Paraméterek!$B$11)^('Pü. kimutatások'!AX$1-'Pü. kimutatások'!$D$1) -> 246.4562553 | AY15: =AY169+Paraméterek!$C$6*Paraméterek!$B$26*(1+Paraméterek!$B$11)^('Pü. kimutatások'!AY$1-'Pü. kimutatások'!$D$1)+'Paks1 '!$T$27*(1+Paraméterek!$B$11)^('Pü. kimutatások'!AY$1-'Pü. kimutatások'!$D$1) -> 250.1530991 | AZ15: =AZ169+Paraméterek!$C$6*Paraméterek!$B$26*(1+Paraméterek!$B$11)^('Pü. kimutatások'!AZ$1-'Pü. kimutatások'!$D$1)+'Paks1 '!$T$27*(1+Paraméterek!$B$11)^('Pü. kimutatások'!AZ$1-'Pü. kimutatások'!$D$1) -> 253.9053956 | BA15: =BA169+Paraméterek!$C$6*Paraméterek!$B$26*(1+Paraméterek!$B$11)^('Pü. kimutatások'!BA$1-'Pü. kimutatások'!$D$1)+'Paks1 '!$T$27*(1+Paraméterek!$B$11)^('Pü. kimutatások'!BA$1-'Pü. kimutatások'!$D$1) -> 257.7139765 | BB15: =BB169+Paraméterek!$C$6*Paraméterek!$B$26*(1+Paraméterek!$B$11)^('Pü. kimutatások'!BB$1-'Pü. kimutatások'!$D$1)+'Paks1 '!$T$27*(1+Paraméterek!$B$11)^('Pü. kimutatások'!BB$1-'Pü. kimutatások'!$D$1) -> 261.5796862 | BC15: =BC169+Paraméterek!$C$6*Paraméterek!$B$26*(1+Paraméterek!$B$11)^('Pü. kimutatások'!BC$1-'Pü. kimutatások'!$D$1)+'Paks1 '!$T$27*(1+Paraméterek!$B$11)^('Pü. kimutatások'!BC$1-'Pü. kimutatások'!$D$1) -> 265.5033815 | BD15: =BD169+Paraméterek!$C$6*Paraméterek!$B$26*(1+Paraméterek!$B$11)^('Pü. kimutatások'!BD$1-'Pü. kimutatások'!$D$1)+'Paks1 '!$T$27*(1+Paraméterek!$B$11)^('Pü. kimutatások'!BD$1-'Pü. kimutatások'!$D$1) -> 269.4859322 | BE15: =BE169+Paraméterek!$C$6*Paraméterek!$B$26*(1+Paraméterek!$B$11)^('Pü. kimutatások'!BE$1-'Pü. kimutatások'!$D$1)+'Paks1 '!$T$27*(1+Paraméterek!$B$11)^('Pü. kimutatások'!BE$1-'Pü. kimutatások'!$D$1) -> 273.5282212 | BF15: =BF169+Paraméterek!$C$6*Paraméterek!$B$26*(1+Paraméterek!$B$11)^('Pü. kimutatások'!BF$1-'Pü. kimutatások'!$D$1)+'Paks1 '!$T$27*(1+Paraméterek!$B$11)^('Pü. kimutatások'!BF$1-'Pü. kimutatások'!$D$1) -> 277.6311445 | BG15: =BG169+Paraméterek!$C$6*Paraméterek!$B$26*(1+Paraméterek!$B$11)^('Pü. kimutatások'!BG$1-'Pü. kimutatások'!$D$1)+'Paks1 '!$T$27*(1+Paraméterek!$B$11)^('Pü. kimutatások'!BG$1-'Pü. kimutatások'!$D$1) -> 281.7956117 | BH15: =BH169+Paraméterek!$C$6*Paraméterek!$B$26*(1+Paraméterek!$B$11)^('Pü. kimutatások'!BH$1-'Pü. kimutatások'!$D$1)+'Paks1 '!$T$27*(1+Paraméterek!$B$11)^('Pü. kimutatások'!BH$1-'Pü. kimutatások'!$D$1) -> 286.0225458 | BI15: =BI169+Paraméterek!$C$6*Paraméterek!$B$26*(1+Paraméterek!$B$11)^('Pü. kimutatások'!BI$1-'Pü. kimutatások'!$D$1)+'Paks1 '!$T$27*(1+Paraméterek!$B$11)^('Pü. kimutatások'!BI$1-'Pü. kimutatások'!$D$1) -> 290.312884 | BJ15: =BJ169+Paraméterek!$C$6*Paraméterek!$B$26*(1+Paraméterek!$B$11)^('Pü. kimutatások'!BJ$1-'Pü. kimutatások'!$D$1)+'Paks1 '!$T$27*(1+Paraméterek!$B$11)^('Pü. kimutatások'!BJ$1-'Pü. kimutatások'!$D$1) -> 294.6675773 | BK15: =BK169+Paraméterek!$C$6*Paraméterek!$B$26*(1+Paraméterek!$B$11)^('Pü. kimutatások'!BK$1-'Pü. kimutatások'!$D$1)+'Paks1 '!$T$27*(1+Paraméterek!$B$11)^('Pü. kimutatások'!BK$1-'Pü. kimutatások'!$D$1) -> 299.0875909 | BL15: =BL169+Paraméterek!$C$6*Paraméterek!$B$26*(1+Paraméterek!$B$11)^('Pü. kimutatások'!BL$1-'Pü. kimutatások'!$D$1)+'Paks1 '!$T$27*(1+Paraméterek!$B$11)^('Pü. kimutatások'!BL$1-'Pü. kimutatások'!$D$1) -> 303.5739048 | BM15: =BM169+Paraméterek!$C$6*Paraméterek!$B$26*(1+Paraméterek!$B$11)^('Pü. kimutatások'!BM$1-'Pü. kimutatások'!$D$1)+'Paks1 '!$T$27*(1+Paraméterek!$B$11)^('Pü. kimutatások'!BM$1-'Pü. kimutatások'!$D$1) -> 308.1275134 | BN15: =BN169+Paraméterek!$C$6*Paraméterek!$B$26*(1+Paraméterek!$B$11)^('Pü. kimutatások'!BN$1-'Pü. kimutatások'!$D$1)+'Paks1 '!$T$27*(1+Paraméterek!$B$11)^('Pü. kimutatások'!BN$1-'Pü. kimutatások'!$D$1) -> 312.7494261 | BO15: =BO169+Paraméterek!$C$6*Paraméterek!$B$26*(1+Paraméterek!$B$11)^('Pü. kimutatások'!BO$1-'Pü. kimutatások'!$D$1)+'Paks1 '!$T$27*(1+Paraméterek!$B$11)^('Pü. kimutatások'!BO$1-'Pü. kimutatások'!$D$1) -> 317.4406675 | BP15: =BP169+Paraméterek!$C$6*Paraméterek!$B$26*(1+Paraméterek!$B$11)^('Pü. kimutatások'!BP$1-'Pü. kimutatások'!$D$1)+'Paks1 '!$T$27*(1+Paraméterek!$B$11)^('Pü. kimutatások'!BP$1-'Pü. kimutatások'!$D$1) -> 322.2022775 | BQ15: =BQ169+Paraméterek!$C$6*Paraméterek!$B$26*(1+Paraméterek!$B$11)^('Pü. kimutatások'!BQ$1-'Pü. kimutatások'!$D$1)+'Paks1 '!$T$27*(1+Paraméterek!$B$11)^('Pü. kimutatások'!BQ$1-'Pü. kimutatások'!$D$1) -> 327.0353116 | BR15: =BR169+Paraméterek!$C$6*Paraméterek!$B$26*(1+Paraméterek!$B$11)^('Pü. kimutatások'!BR$1-'Pü. kimutatások'!$D$1)+'Paks1 '!$T$27*(1+Paraméterek!$B$11)^('Pü. kimutatások'!BR$1-'Pü. kimutatások'!$D$1) -> 331.9408413 | BS15: =BS169+Paraméterek!$C$6*Paraméterek!$B$26*(1+Paraméterek!$B$11)^('Pü. kimutatások'!BS$1-'Pü. kimutatások'!$D$1)+'Paks1 '!$T$27*(1+Paraméterek!$B$11)^('Pü. kimutatások'!BS$1-'Pü. kimutatások'!$D$1) -> 336.9199539 | BT15: =BT169+Paraméterek!$C$6*Paraméterek!$B$26*(1+Paraméterek!$B$11)^('Pü. kimutatások'!BT$1-'Pü. kimutatások'!$D$1)+'Paks1 '!$T$27*(1+Paraméterek!$B$11)^('Pü. kimutatások'!BT$1-'Pü. kimutatások'!$D$1) -> 341.9737532 | BU15: =BU169+Paraméterek!$C$6*Paraméterek!$B$26*(1+Paraméterek!$B$11)^('Pü. kimutatások'!BU$1-'Pü. kimutatások'!$D$1)+'Paks1 '!$T$27*(1+Paraméterek!$B$11)^('Pü. kimutatások'!BU$1-'Pü. kimutatások'!$D$1) -> 347.1033595 | BV15: =BV169+Paraméterek!$C$6*Paraméterek!$B$26*(1+Paraméterek!$B$11)^('Pü. kimutatások'!BV$1-'Pü. kimutatások'!$D$1)+'Paks1 '!$T$27*(1+Paraméterek!$B$11)^('Pü. kimutatások'!BV$1-'Pü. kimutatások'!$D$1) -> 352.3099099
B16: Ebből: értékvesztés | C16: including: loss in value
A17: A. | B17: ÜZEMI ( ÜZLETI) TEVÉKENYSÉG EREDMÉNYE (I.±II.+III.-IV.-V.-VI.-VII.) | C17: Income from operations (I+II+III-IV-V-VI-VII) | D17: =+D3+D5-D9-D13-D14-D15 -> -52.09841304 | E17: -52.87988924 | F17: -53.67308757 | G17: -54.47818389 | H17: -55.29535665 | I17: -56.124787 | J17: -56.9666588 | K17: -57.82115868 | L17: -70.66720639 | M17: -94.52423565 | N17: -134.50706 | O17: 79.43940044 | P17: 86.89574145 | Q17: 94.46392757 | R17: 102.1456365 | S17: 109.942571 | T17: 117.8564596 | U17: 125.8890565 | V17: 134.0421423 | W17: =+W3+W5-W9-W13-W14-W15 -> 224.5864684 | X17: =+X3+X5-X9-X13-X14-X15 -> 226.7956367 | Y17: 236.4623212 | Z17: 246.274006 | AA17: 256.2328661 | AB17: 266.3411091 | AC17: 276.6009757 | AD17: 287.0147404 | AE17: 297.5847115 | AF17: 308.3132321 | AG17: 319.2026806 | AH17: 330.2554708 | AI17: 341.4740529 | AJ17: 352.8609137 | AK17: 364.4185774 | AL17: 376.1496061 | AM17: 388.0566002 | AN17: 735.4421992 | AO17: 747.7090821 | AP17: 760.1599684 | AQ17: 772.7976179 | AR17: 785.6248322 | AS17: 641.4142153 | AT17: 654.6291321 | AU17: 668.0422727 | AV17: 681.6566103 | AW17: 695.4751631 | AX17: 709.5009941 | AY17: 723.7372126 | AZ17: 738.1869744 | BA17: 752.8534826 | BB17: 767.7399885 | BC17: 782.8497919 | BD17: 798.1862423 | BE17: 813.7527396 | BF17: 829.5527342 | BG17: 845.5897289 | BH17: 861.8672784 | BI17: 878.3889911 | BJ17: 895.1585296 | BK17: 912.1796111 | BL17: 929.4560089 | BM17: =+BM3+BM5-BM9-BM13-BM14-BM15 -> 1029.341553 | BN17: 1047.140129 | BO17: 1065.205685 | BP17: 1083.542224 | BQ17: 1102.153811 | BR17: 1278.274811 | BS17: 1297.448933 | BT17: 1316.910667 | BU17: =+BU3+BU5-BU9-BU13-BU14-BU15 -> 1336.664327 | BV17: 1356.714292
A18: 15. | B18: Befektetett pénzügyi eszközök kamatai, árfolyamnyeresége | C18: Interest and capital gains on financial investments | D18: =D71*Paraméterek!$B13 -> 0 | E18: =E71*Paraméterek!$B13 -> 0 | F18: =F71*Paraméterek!$B13 -> 0 | G18: =G71*Paraméterek!$B13 -> 13.99528117 | H18: =H71*Paraméterek!$B13 -> 1.231075885 | I18: =I71*Paraméterek!$B13 -> 0 | J18: =J71*Paraméterek!$B13 -> 0 | K18: =K71*Paraméterek!$B13 -> 0 | L18: =L71*Paraméterek!$B13 -> 0 | M18: =M71*Paraméterek!$B13 -> 0 | N18: =N71*Paraméterek!$B13 -> 0 | O18: =O71*Paraméterek!$B13 -> 0 | P18: =P71*Paraméterek!$B13 -> 0 | Q18: =Q71*Paraméterek!$B13 -> 0 | R18: =R71*Paraméterek!$B13 -> 0 | S18: =S71*Paraméterek!$B13 -> 0 | T18: =T71*Paraméterek!$B13 -> 0 | U18: =U71*Paraméterek!$B13 -> 0 | V18: =V71*Paraméterek!$B13 -> 0 | W18: =W71*Paraméterek!$B13 -> 0 | X18: =X71*Paraméterek!$B13 -> 0 | Y18: =Y71*Paraméterek!$B13 -> 0 | Z18: =Z71*Paraméterek!$B13 -> 0 | AA18: =AA71*Paraméterek!$B13 -> 0 | AB18: =AB71*Paraméterek!$B13 -> 0 | AC18: =AC71*Paraméterek!$B13 -> 0 | AD18: =AD71*Paraméterek!$B13 -> 0 | AE18: =AE71*Paraméterek!$B13 -> 0 | AF18: =AF71*Paraméterek!$B13 -> 0 | AG18: =AG71*Paraméterek!$B13 -> 0 | AH18: =AH71*Paraméterek!$B13 -> 0 | AI18: =AI71*Paraméterek!$B13 -> 0 | AJ18: =AJ71*Paraméterek!$B13 -> 0 | AK18: =AK71*Paraméterek!$B13 -> 0 | AL18: =AL71*Paraméterek!$B13 -> 0 | AM18: =AM71*Paraméterek!$B13 -> 0 | AN18: =AN71*Paraméterek!$B13 -> 0 | AO18: =AO71*Paraméterek!$B13 -> 0 | AP18: =AP71*Paraméterek!$B13 -> 13.89466411 | AQ18: =AQ71*Paraméterek!$B13 -> 44.52271091 | AR18: =AR71*Paraméterek!$B13 -> 0 | AS18: =AS71*Paraméterek!$B13 -> 0 | AT18: =AT71*Paraméterek!$B13 -> 0 | AU18: =AU71*Paraméterek!$B13 -> 0 | AV18: =AV71*Paraméterek!$B13 -> 0 | AW18: =AW71*Paraméterek!$B13 -> 0 | AX18: =AX71*Paraméterek!$B13 -> 0 | AY18: =AY71*Paraméterek!$B13 -> 5.634976233 | AZ18: =AZ71*Paraméterek!$B13 -> 20.16807358 | BA18: =BA71*Paraméterek!$B13 -> 34.8965111 | BB18: =BB71*Paraméterek!$B13 -> 49.8230656 | BC18: =BC71*Paraméterek!$B13 -> 64.95055452 | BD18: =BD71*Paraméterek!$B13 -> 80.28183652 | BE18: =BE71*Paraméterek!$B13 -> 95.81981208 | BF18: =BF71*Paraméterek!$B13 -> 111.5674241 | BG18: =BG71*Paraméterek!$B13 -> 127.5276587 | BH18: =BH71*Paraméterek!$B13 -> 143.7035455 | BI18: =BI71*Paraméterek!$B13 -> 160.0981586 | BJ18: =BJ71*Paraméterek!$B13 -> 176.7146172 | BK18: =BK71*Paraméterek!$B13 -> 193.556086 | BL18: =BL71*Paraméterek!$B13 -> 210.6257763 | BM18: =BM71*Paraméterek!$B13 -> 225.1677968 | BN18: =BN71*Paraméterek!$B13 -> 239.925936 | BO18: =BO71*Paraméterek!$B13 -> 254.9034221 | BP18: =BP71*Paraméterek!$B13 -> 270.1035317 | BQ18: =BQ71*Paraméterek!$B13 -> 285.5295903 | BR18: =BR71*Paraméterek!$B13 -> 295.9169497 | BS18: =BS71*Paraméterek!$B13 -> 306.5014187 | BT18: =BT71*Paraméterek!$B13 -> 317.2862333 | BU18: =BU71*Paraméterek!$B13 -> 328.2746801 | BV18: =BV71*Paraméterek!$B13 -> 348.0381131
A19: VIII. | B19: Pénzügyi műveletek bevételei (13.+14.+15.+16.+17.) | C19: Income from financial transactions (13+14+15+16+17) | D19: =D18 -> 0 | E19: 0 | F19: 0 | G19: 13.99528117 | H19: 1.231075885 | I19: 0 | J19: 0 | K19: 0 | L19: =L18 -> 0 | M19: =M18 -> 0 | N19: 0 | O19: 0 | P19: 0 | Q19: 0 | R19: 0 | S19: 0 | T19: 0 | U19: 0 | V19: 0 | W19: 0 | X19: =X18 -> 0 | Y19: 0 | Z19: 0 | AA19: 0 | AB19: 0 | AC19: 0 | AD19: 0 | AE19: 0 | AF19: 0 | AG19: 0 | AH19: 0 | AI19: 0 | AJ19: 0 | AK19: 0 | AL19: 0 | AM19: 0 | AN19: 0 | AO19: 0 | AP19: 13.89466411 | AQ19: 44.52271091 | AR19: 0 | AS19: 0 | AT19: 0 | AU19: 0 | AV19: 0 | AW19: 0 | AX19: 0 | AY19: 5.634976233 | AZ19: 20.16807358 | BA19: 34.8965111 | BB19: 49.8230656 | BC19: 64.95055452 | BD19: 80.28183652 | BE19: 95.81981208 | BF19: 111.5674241 | BG19: 127.5276587 | BH19: 143.7035455 | BI19: 160.0981586 | BJ19: 176.7146172 | BK19: 193.556086 | BL19: 210.6257763 | BM19: =BM18 -> 225.1677968 | BN19: 239.925936 | BO19: 254.9034221 | BP19: 270.1035317 | BQ19: 285.5295903 | BR19: 295.9169497 | BS19: 306.5014187 | BT19: 317.2862333 | BU19: =BU18 -> 328.2746801 | BV19: 348.0381131
A20: 18. | B20: Orosz hitel kamatköltsége | C20: Interest payable on Russian loan | D20: ='Orosz hitel'!C19 -> 1.975 | E20: ='Orosz hitel'!D19 -> 6.32 | F20: ='Orosz hitel'!E19 -> 12.64 | G20: ='Orosz hitel'!F19 -> 51.35 | H20: ='Orosz hitel'!G19 -> 110.995 | I20: ='Orosz hitel'!H19 -> 161.555 | J20: ='Orosz hitel'!I19 -> 208.955 | K20: ='Orosz hitel'!J19 -> 255.3675 | L20: ='Orosz hitel'!K19 -> 304.3475 | M20: ='Orosz hitel'!L19 -> 353.13 | N20: ='Orosz hitel'!M19 -> 386.31 | O20: ='Orosz hitel'!N19 -> 450 | P20: ='Orosz hitel'!O19 -> 441.9642857 | Q20: ='Orosz hitel'!P19 -> 425.8928571 | R20: ='Orosz hitel'!Q19 -> 409.8214286 | S20: ='Orosz hitel'!R19 -> 393.75 | T20: ='Orosz hitel'!S19 -> 377.6785714 | U20: ='Orosz hitel'!T19 -> 361.6071429 | V20: ='Orosz hitel'!U19 -> 365.1428571 | W20: ='Orosz hitel'!V19 -> 341.1428571 | X20: ='Orosz hitel'!W19 -> 317.1428571 | Y20: ='Orosz hitel'!X19 -> 293.1428571 | Z20: ='Orosz hitel'!Y19 -> 269.1428571 | AA20: ='Orosz hitel'!Z19 -> 245.1428571 | AB20: ='Orosz hitel'!AA19 -> 221.1428571 | AC20: ='Orosz hitel'!AB19 -> 201.5357143 | AD20: ='Orosz hitel'!AC19 -> 173.25 | AE20: ='Orosz hitel'!AD19 -> 144.9642857 | AF20: ='Orosz hitel'!AE19 -> 116.6785714 | AG20: ='Orosz hitel'!AF19 -> 88.39285714 | AH20: ='Orosz hitel'!AG19 -> 60.10714286 | AI20: ='Orosz hitel'!AH19 -> 31.82142857 | AJ20: ='Orosz hitel'!AI19 -> 0 | AK20: ='Orosz hitel'!AJ19 -> 0
A21: 19. | B21: Fizetendő kamatok és kamatjellegű ráfordítások | C21: Interest payable and similar charges | D21: =IF(D96>0,Paraméterek!$B12*'Pü. kimutatások'!D96,0) -> 1.668515964 | E21: =IF(E96>0,Paraméterek!$B12*'Pü. kimutatások'!E96,0) -> 3.746875895 | F21: =IF(F96>0,Paraméterek!$B12*'Pü. kimutatások'!F96,0) -> 4.824597319 | G21: =IF(G96>0,Paraméterek!$B12*'Pü. kimutatások'!G96,0) -> 0 | H21: =IF(H96>0,Paraméterek!$B12*'Pü. kimutatások'!H96,0) -> 0 | I21: =IF(I96>0,Paraméterek!$B12*'Pü. kimutatások'!I96,0) -> 15.17473296 | J21: =IF(J96>0,Paraméterek!$B12*'Pü. kimutatások'!J96,0) -> 44.97252106 | K21: =IF(K96>0,Paraméterek!$B12*'Pü. kimutatások'!K96,0) -> 72.09092575 | L21: =IF(L96>0,Paraméterek!$B12*'Pü. kimutatások'!L96,0) -> 111.4998272 | M21: =IF(M96>0,Paraméterek!$B12*'Pü. kimutatások'!M96,0) -> 159.8479322 | N21: =IF(N96>0,Paraméterek!$B12*'Pü. kimutatások'!N96,0) -> 247.4676742 | O21: =IF(O96>0,Paraméterek!$B12*'Pü. kimutatások'!O96,0) -> 224.5607949 | P21: =IF(P96>0,Paraméterek!$B12*'Pü. kimutatások'!P96,0) -> 218.1211322 | Q21: =IF(Q96>0,Paraméterek!$B12*'Pü. kimutatások'!Q96,0) -> 210.9755207 | R21: =IF(R96>0,Paraméterek!$B12*'Pü. kimutatások'!R96,0) -> 203.82261 | S21: =IF(S96>0,Paraméterek!$B12*'Pü. kimutatások'!S96,0) -> 196.6622908 | T21: =IF(T96>0,Paraméterek!$B12*'Pü. kimutatások'!T96,0) -> 189.4944518 | U21: =IF(U96>0,Paraméterek!$B12*'Pü. kimutatások'!U96,0) -> 182.3189804 | V21: =IF(V96>0,Paraméterek!$B12*'Pü. kimutatások'!V96,0) -> 189.2630912 | W21: =IF(W96>0,Paraméterek!$B12*'Pü. kimutatások'!W96,0) -> 187.9862085 | X21: =IF(X96>0,Paraméterek!$B12*'Pü. kimutatások'!X96,0) -> 193.0242366 | Y21: =IF(Y96>0,Paraméterek!$B12*'Pü. kimutatások'!Y96,0) -> 197.470274 | Z21: =IF(Z96>0,Paraméterek!$B12*'Pü. kimutatások'!Z96,0) -> 201.9068934 | AA21: =IF(AA96>0,Paraméterek!$B12*'Pü. kimutatások'!AA96,0) -> 206.3339533 | AB21: =IF(AB96>0,Paraméterek!$B12*'Pü. kimutatások'!AB96,0) -> 210.7513104 | AC21: =IF(AC96>0,Paraméterek!$B12*'Pü. kimutatások'!AC96,0) -> 221.7519869 | AD21: =IF(AD96>0,Paraméterek!$B12*'Pü. kimutatások'!AD96,0) -> 231.9880089 | AE21: =IF(AE96>0,Paraméterek!$B12*'Pü. kimutatások'!AE96,0) -> 242.213885 | AF21: =IF(AF96>0,Paraméterek!$B12*'Pü. kimutatások'!AF96,0) -> 252.4294628 | AG21: =IF(AG96>0,Paraméterek!$B12*'Pü. kimutatások'!AG96,0) -> 262.634588 | AH21: =IF(AH96>0,Paraméterek!$B12*'Pü. kimutatások'!AH96,0) -> 272.8291037 | AI21: =IF(AI96>0,Paraméterek!$B12*'Pü. kimutatások'!AI96,0) -> 283.3784052 | AJ21: =IF(AJ96>0,Paraméterek!$B12*'Pü. kimutatások'!AJ96,0) -> 273.4306306 | AK21: =IF(AK96>0,Paraméterek!$B12*'Pü. kimutatások'!AK96,0) -> 231.3075384 | AL21: =IF(AL96>0,Paraméterek!$B12*'Pü. kimutatások'!AL96,0) -> 185.3084949 | AM21: =IF(AM96>0,Paraméterek!$B12*'Pü. kimutatások'!AM96,0) -> 135.1416517 | AN21: =IF(AN96>0,Paraméterek!$B12*'Pü. kimutatások'!AN96,0) -> 85.09497516 | AO21: =IF(AO96>0,Paraméterek!$B12*'Pü. kimutatások'!AO96,0) -> 30.56309139 | AP21: =IF(AP96>0,Paraméterek!$B12*'Pü. kimutatások'!AP96,0) -> 0 | AQ21: =IF(AQ96>0,Paraméterek!$B12*'Pü. kimutatások'!AQ96,0) -> 0 | AR21: =IF(AR96>0,Paraméterek!$B12*'Pü. kimutatások'!AR96,0) -> 178.272661 | AS21: =IF(AS96>0,Paraméterek!$B12*'Pü. kimutatások'!AS96,0) -> 152.8028704 | AT21: =IF(AT96>0,Paraméterek!$B12*'Pü. kimutatások'!AT96,0) -> 126.8100817 | AU21: =IF(AU96>0,Paraméterek!$B12*'Pü. kimutatások'!AU96,0) -> 100.2845297 | AV21: =IF(AV96>0,Paraméterek!$B12*'Pü. kimutatások'!AV96,0) -> 73.21627675 | AW21: =IF(AW96>0,Paraméterek!$B12*'Pü. kimutatások'!AW96,0) -> 45.59520933 | AX21: =IF(AX96>0,Paraméterek!$B12*'Pü. kimutatások'!AX96,0) -> 17.41103551 | AY21: =IF(AY96>0,Paraméterek!$B12*'Pü. kimutatások'!AY96,0) -> 0 | AZ21: =IF(AZ96>0,Paraméterek!$B12*'Pü. kimutatások'!AZ96,0) -> 0 | BA21: =IF(BA96>0,Paraméterek!$B12*'Pü. kimutatások'!BA96,0) -> 0 | BB21: =IF(BB96>0,Paraméterek!$B12*'Pü. kimutatások'!BB96,0) -> 0 | BC21: =IF(BC96>0,Paraméterek!$B12*'Pü. kimutatások'!BC96,0) -> 0 | BD21: =IF(BD96>0,Paraméterek!$B12*'Pü. kimutatások'!BD96,0) -> 0 | BE21: =IF(BE96>0,Paraméterek!$B12*'Pü. kimutatások'!BE96,0) -> 0 | BF21: =IF(BF96>0,Paraméterek!$B12*'Pü. kimutatások'!BF96,0) -> 0 | BG21: =IF(BG96>0,Paraméterek!$B12*'Pü. kimutatások'!BG96,0) -> 0 | BH21: =IF(BH96>0,Paraméterek!$B12*'Pü. kimutatások'!BH96,0) -> 0 | BI21: =IF(BI96>0,Paraméterek!$B12*'Pü. kimutatások'!BI96,0) -> 0 | BJ21: =IF(BJ96>0,Paraméterek!$B12*'Pü. kimutatások'!BJ96,0) -> 0 | BK21: =IF(BK96>0,Paraméterek!$B12*'Pü. kimutatások'!BK96,0) -> 0 | BL21: =IF(BL96>0,Paraméterek!$B12*'Pü. kimutatások'!BL96,0) -> 0 | BM21: =IF(BM96>0,Paraméterek!$B12*'Pü. kimutatások'!BM96,0) -> 0 | BN21: =IF(BN96>0,Paraméterek!$B12*'Pü. kimutatások'!BN96,0) -> 0 | BO21: =IF(BO96>0,Paraméterek!$B12*'Pü. kimutatások'!BO96,0) -> 0 | BP21: =IF(BP96>0,Paraméterek!$B12*'Pü. kimutatások'!BP96,0) -> 0 | BQ21: =IF(BQ96>0,Paraméterek!$B12*'Pü. kimutatások'!BQ96,0) -> 0 | BR21: =IF(BR96>0,Paraméterek!$B12*'Pü. kimutatások'!BR96,0) -> 0 | BS21: =IF(BS96>0,Paraméterek!$B12*'Pü. kimutatások'!BS96,0) -> 0 | BT21: =IF(BT96>0,Paraméterek!$B12*'Pü. kimutatások'!BT96,0) -> 0 | BU21: =IF(BU96>0,Paraméterek!$B12*'Pü. kimutatások'!BU96,0) -> 0 | BV21: =IF(BV96>0,Paraméterek!$B12*'Pü. kimutatások'!BV96,0) -> 0
A22: IX. | B22: Pénzügyi műveletek ráfordításai (18.+19.±20.+21.) | C22: Expenses on financial transactions (18+19+20+21) | D22: =SUM(D20,D21) -> 3.643515964 | E22: =SUM(E20,E21) -> 10.0668759 | F22: 17.46459732 | G22: 51.35 | H22: 110.995 | I22: 176.729733 | J22: 253.9275211 | K22: 327.4584258 | L22: 415.8473272 | M22: 512.9779322 | N22: 633.7776742 | O22: 674.5607949 | P22: 660.085418 | Q22: 636.8683778 | R22: 613.6440386 | S22: 590.4122908 | T22: 567.1730233 | U22: 543.9261233 | V22: 554.4059483 | W22: 529.1290656 | X22: =SUM(X20,X21) -> 510.1670937 | Y22: 490.6131312 | Z22: 471.0497505 | AA22: 451.4768104 | AB22: 431.8941675 | AC22: 423.2877012 | AD22: 405.2380089 | AE22: 387.1781707 | AF22: 369.1080342 | AG22: 351.0274451 | AH22: 332.9362466 | AI22: 315.1998337 | AJ22: 273.4306306 | AK22: 231.3075384 | AL22: 185.3084949 | AM22: 135.1416517 | AN22: 85.09497516 | AO22: 30.56309139 | AP22: 0 | AQ22: 0 | AR22: 178.272661 | AS22: 152.8028704 | AT22: 126.8100817 | AU22: 100.2845297 | AV22: 73.21627675 | AW22: 45.59520933 | AX22: 17.41103551 | AY22: 0 | AZ22: 0 | BA22: 0 | BB22: 0 | BC22: 0 | BD22: 0 | BE22: 0 | BF22: 0 | BG22: 0 | BH22: 0 | BI22: 0 | BJ22: 0 | BK22: 0 | BL22: 0 | BM22: =SUM(BM20,BM21) -> 0 | BN22: 0 | BO22: 0 | BP22: 0 | BQ22: 0 | BR22: 0 | BS22: 0 | BT22: 0 | BU22: =SUM(BU20,BU21) -> 0 | BV22: 0
A23: B. | B23: PÉNZÜGYI MŰVELETEK EREDMÉNYE (VIII.-IX.) | C23: Profit or loss from financial transactions (VIII-IX) | D23: =+D19-D22 -> -3.643515964 | E23: -10.0668759 | F23: -17.46459732 | G23: -37.35471883 | H23: -109.7639241 | I23: -176.729733 | J23: -253.9275211 | K23: -327.4584258 | L23: -415.8473272 | M23: -512.9779322 | N23: -633.7776742 | O23: -674.5607949 | P23: -660.085418 | Q23: -636.8683778 | R23: -613.6440386 | S23: -590.4122908 | T23: -567.1730233 | U23: -543.9261233 | V23: -554.4059483 | W23: -529.1290656 | X23: -510.1670937 | Y23: -490.6131312 | Z23: -471.0497505 | AA23: -451.4768104 | AB23: -431.8941675 | AC23: -423.2877012 | AD23: -405.2380089 | AE23: -387.1781707 | AF23: -369.1080342 | AG23: -351.0274451 | AH23: -332.9362466 | AI23: -315.1998337 | AJ23: =+AJ19-AJ22 -> -273.4306306 | AK23: -231.3075384 | AL23: -185.3084949 | AM23: -135.1416517 | AN23: -85.09497516 | AO23: -30.56309139 | AP23: 13.89466411 | AQ23: 44.52271091 | AR23: -178.272661 | AS23: -152.8028704 | AT23: -126.8100817 | AU23: -100.2845297 | AV23: -73.21627675 | AW23: -45.59520933 | AX23: -17.41103551 | AY23: 5.634976233 | AZ23: 20.16807358 | BA23: 34.8965111 | BB23: 49.8230656 | BC23: 64.95055452 | BD23: 80.28183652 | BE23: 95.81981208 | BF23: 111.5674241 | BG23: 127.5276587 | BH23: 143.7035455 | BI23: 160.0981586 | BJ23: 176.7146172 | BK23: 193.556086 | BL23: 210.6257763 | BM23: =+BM19-BM22 -> 225.1677968 | BN23: =+BN19-BN22 -> 239.925936 | BO23: =+BO19-BO22 -> 254.9034221 | BP23: =+BP19-BP22 -> 270.1035317 | BQ23: =+BQ19-BQ22 -> 285.5295903 | BR23: =+BR19-BR22 -> 295.9169497 | BS23: =+BS19-BS22 -> 306.5014187 | BT23: =+BT19-BT22 -> 317.2862333 | BU23: =+BU19-BU22 -> 328.2746801 | BV23: =+BV19-BV22 -> 348.0381131
A24: C. | B24: SZOKÁSOS VÁLLALKOZÁSI EREDMÉNY (±A.±B.) | C24: Profit or loss of ordinary activities (+A+B) | D24: =+D17+D23 -> -55.741929 | E24: -62.94676513 | F24: -71.13768489 | G24: -91.83290272 | H24: -165.0592808 | I24: -232.85452 | J24: -310.8941799 | K24: -385.2795844 | L24: -486.5145336 | M24: -607.5021679 | N24: -768.2847342 | O24: -595.1213944 | P24: -573.1896765 | Q24: -542.4044502 | R24: -511.4984021 | S24: -480.4697197 | T24: -449.3165637 | U24: -418.0370668 | V24: -420.363806 | W24: -304.5425972 | X24: -283.3714571 | Y24: -254.15081 | Z24: -224.7757445 | AA24: -195.2439443 | AB24: -165.5530584 | AC24: -146.6867254 | AD24: -118.2232686 | AE24: -89.5934592 | AF24: -60.79480209 | AG24: -31.82476449 | AH24: -2.680775709 | AI24: 26.27421917 | AJ24: =+AJ17+AJ23 -> 79.43028307 | AK24: 133.111039 | AL24: 190.8411112 | AM24: 252.9149485 | AN24: 650.347224 | AO24: 717.1459908 | AP24: 774.0546325 | AQ24: 817.3203288 | AR24: 607.3521712 | AS24: 488.6113449 | AT24: 527.8190504 | AU24: 567.7577429 | AV24: 608.4403336 | AW24: 649.8799538 | AX24: 692.0899586 | AY24: 729.3721889 | AZ24: 758.355048 | BA24: 787.7499937 | BB24: 817.563054 | BC24: 847.8003464 | BD24: 878.4680789 | BE24: 909.5725516 | BF24: 941.1201584 | BG24: 973.1173875 | BH24: 1005.570824 | BI24: 1038.48715 | BJ24: 1071.873147 | BK24: 1105.735697 | BL24: 1140.081785 | BM24: =+BM17+BM23 -> 1254.509349 | BN24: =+BN17+BN23 -> 1287.066065 | BO24: =+BO17+BO23 -> 1320.109107 | BP24: =+BP17+BP23 -> 1353.645756 | BQ24: =+BQ17+BQ23 -> 1387.683401 | BR24: =+BR17+BR23 -> 1574.191761 | BS24: =+BS17+BS23 -> 1603.950352 | BT24: =+BT17+BT23 -> 1634.1969 | BU24: =+BU17+BU23 -> 1664.939007 | BV24: =+BV17+BV23 -> 1704.752405
A25: X. | B25: Rendkívüli bevételek | C25: Extraordinary income
A26: XI. | B26: Rendkívüli ráfordítások | C26: Extraordinary expenses
A27: D. | B27: RENDKÍVÜLI EREDMÉNY (X.-XI.) | C27: Extraordinary profit or loss (X-XI) | D27: =+D25-D26 -> 0 | E27: 0 | F27: 0 | G27: 0 | H27: 0 | I27: 0 | J27: 0 | K27: 0 | L27: 0 | M27: 0 | N27: 0 | O27: 0 | P27: 0 | Q27: 0 | R27: 0 | S27: 0 | T27: 0 | U27: 0 | V27: 0 | W27: =+W25-W26 -> 0 | X27: =+X25-X26 -> 0 | Y27: 0 | Z27: 0 | AA27: 0 | AB27: 0 | AC27: 0 | AD27: 0 | AE27: 0 | AF27: 0 | AG27: 0 | AH27: 0 | AI27: 0 | AJ27: 0 | AK27: 0 | AL27: 0 | AM27: 0 | AN27: 0 | AO27: 0 | AP27: 0 | AQ27: 0 | AR27: 0 | AS27: 0 | AT27: 0 | AU27: 0 | AV27: 0 | AW27: 0 | AX27: 0 | AY27: 0 | AZ27: 0 | BA27: 0 | BB27: 0 | BC27: 0 | BD27: 0 | BE27: 0 | BF27: 0 | BG27: 0 | BH27: 0 | BI27: 0 | BJ27: 0 | BK27: 0 | BL27: 0 | BM27: =+BM25-BM26 -> 0 | BN27: 0 | BO27: 0 | BP27: 0 | BQ27: 0 | BR27: 0 | BS27: 0 | BT27: 0 | BU27: =+BU25-BU26 -> 0 | BV27: 0
A28: E. | B28: ADÓZÁS ELŐTTI EREDMÉNY (±C.±D.) | C28: Income before taxes (+C+D) | D28: =+D24+D27 -> -55.741929 | E28: -62.94676513 | F28: -71.13768489 | G28: -91.83290272 | H28: -165.0592808 | I28: -232.85452 | J28: -310.8941799 | K28: -385.2795844 | L28: -486.5145336 | M28: -607.5021679 | N28: -768.2847342 | O28: -595.1213944 | P28: -573.1896765 | Q28: -542.4044502 | R28: -511.4984021 | S28: -480.4697197 | T28: -449.3165637 | U28: -418.0370668 | V28: -420.363806 | W28: =+W24+W27 -> -304.5425972 | X28: =+X24+X27 -> -283.3714571 | Y28: -254.15081 | Z28: -224.7757445 | AA28: -195.2439443 | AB28: -165.5530584 | AC28: -146.6867254 | AD28: -118.2232686 | AE28: -89.5934592 | AF28: -60.79480209 | AG28: -31.82476449 | AH28: -2.680775709 | AI28: 26.27421917 | AJ28: 79.43028307 | AK28: 133.111039 | AL28: 190.8411112 | AM28: 252.9149485 | AN28: 650.347224 | AO28: 717.1459908 | AP28: 774.0546325 | AQ28: 817.3203288 | AR28: 607.3521712 | AS28: 488.6113449 | AT28: 527.8190504 | AU28: 567.7577429 | AV28: 608.4403336 | AW28: 649.8799538 | AX28: 692.0899586 | AY28: 729.3721889 | AZ28: 758.355048 | BA28: 787.7499937 | BB28: 817.563054 | BC28: 847.8003464 | BD28: 878.4680789 | BE28: 909.5725516 | BF28: 941.1201584 | BG28: 973.1173875 | BH28: 1005.570824 | BI28: 1038.48715 | BJ28: 1071.873147 | BK28: 1105.735697 | BL28: 1140.081785 | BM28: =+BM24+BM27 -> 1254.509349 | BN28: 1287.066065 | BO28: 1320.109107 | BP28: 1353.645756 | BQ28: 1387.683401 | BR28: 1574.191761 | BS28: 1603.950352 | BT28: 1634.1969 | BU28: =+BU24+BU27 -> 1664.939007 | BV28: 1704.752405
A29: XII. | B29: Adófizetési kötelezettség | C29: Tax payable | D29: =IF(D28>0,D28*Paraméterek!$B17,0) -> 0 | E29: =IF(E28>0,E28*Paraméterek!$B17,0) -> 0 | F29: =IF(F28>0,F28*Paraméterek!$B17,0) -> 0 | G29: =IF(G28>0,G28*Paraméterek!$B17,0) -> 0 | H29: =IF(H28>0,H28*Paraméterek!$B17,0) -> 0 | I29: =IF(I28>0,I28*Paraméterek!$B17,0) -> 0 | J29: =IF(J28>0,J28*Paraméterek!$B17,0) -> 0 | K29: =IF(K28>0,K28*Paraméterek!$B17,0) -> 0 | L29: =IF(L28>0,L28*Paraméterek!$B17,0) -> 0 | M29: =IF(M28>0,M28*Paraméterek!$B17,0) -> 0 | N29: =IF(N28>0,N28*Paraméterek!$B17,0) -> 0 | O29: =IF(O28>0,O28*Paraméterek!$B17,0) -> 0 | P29: =IF(P28>0,P28*Paraméterek!$B17,0) -> 0 | Q29: =IF(Q28>0,Q28*Paraméterek!$B17,0) -> 0 | R29: =IF(R28>0,R28*Paraméterek!$B17,0) -> 0 | S29: =IF(S28>0,S28*Paraméterek!$B17,0) -> 0 | T29: =IF(T28>0,T28*Paraméterek!$B17,0) -> 0 | U29: =IF(U28>0,U28*Paraméterek!$B17,0) -> 0 | V29: =IF(V28>0,V28*Paraméterek!$B17,0) -> 0 | W29: =IF(W28>0,W28*Paraméterek!$B17,0) -> 0 | X29: =IF(X28>0,X28*Paraméterek!$B17,0) -> 0 | Y29: =IF(Y28>0,Y28*Paraméterek!$B17,0) -> 0 | Z29: =IF(Z28>0,Z28*Paraméterek!$B17,0) -> 0 | AA29: =IF(AA28>0,AA28*Paraméterek!$B17,0) -> 0 | AB29: =IF(AB28>0,AB28*Paraméterek!$B17,0) -> 0 | AC29: =IF(AC28>0,AC28*Paraméterek!$B17,0) -> 0 | AD29: =IF(AD28>0,AD28*Paraméterek!$B17,0) -> 0 | AE29: =IF(AE28>0,AE28*Paraméterek!$B17,0) -> 0 | AF29: =IF(AF28>0,AF28*Paraméterek!$B17,0) -> 0 | AG29: =IF(AG28>0,AG28*Paraméterek!$B17,0) -> 0 | AH29: =IF(AH28>0,AH28*Paraméterek!$B17,0) -> 0 | AI29: =IF(AI28>0,AI28*Paraméterek!$B17,0) -> 4.203875067 | AJ29: =IF(AJ28>0,AJ28*Paraméterek!$B17,0) -> 12.70884529 | AK29: =IF(AK28>0,AK28*Paraméterek!$B17,0) -> 21.29776624 | AL29: =IF(AL28>0,AL28*Paraméterek!$B17,0) -> 30.53457779 | AM29: =IF(AM28>0,AM28*Paraméterek!$B17,0) -> 40.46639176 | AN29: =IF(AN28>0,AN28*Paraméterek!$B17,0) -> 104.0555558 | AO29: =IF(AO28>0,AO28*Paraméterek!$B17,0) -> 114.7433585 | AP29: =IF(AP28>0,AP28*Paraméterek!$B17,0) -> 123.8487412 | AQ29: =IF(AQ28>0,AQ28*Paraméterek!$B17,0) -> 130.7712526 | AR29: =IF(AR28>0,AR28*Paraméterek!$B17,0) -> 97.17634739 | AS29: =IF(AS28>0,AS28*Paraméterek!$B17,0) -> 78.17781518 | AT29: =IF(AT28>0,AT28*Paraméterek!$B17,0) -> 84.45104806 | AU29: =IF(AU28>0,AU28*Paraméterek!$B17,0) -> 90.84123887 | AV29: =IF(AV28>0,AV28*Paraméterek!$B17,0) -> 97.35045337 | AW29: =IF(AW28>0,AW28*Paraméterek!$B17,0) -> 103.9807926 | AX29: =IF(AX28>0,AX28*Paraméterek!$B17,0) -> 110.7343934 | AY29: =IF(AY28>0,AY28*Paraméterek!$B17,0) -> 116.6995502 | AZ29: =IF(AZ28>0,AZ28*Paraméterek!$B17,0) -> 121.3368077 | BA29: =IF(BA28>0,BA28*Paraméterek!$B17,0) -> 126.039999 | BB29: =IF(BB28>0,BB28*Paraméterek!$B17,0) -> 130.8100886 | BC29: =IF(BC28>0,BC28*Paraméterek!$B17,0) -> 135.6480554 | BD29: =IF(BD28>0,BD28*Paraméterek!$B17,0) -> 140.5548926 | BE29: =IF(BE28>0,BE28*Paraméterek!$B17,0) -> 145.5316083 | BF29: =IF(BF28>0,BF28*Paraméterek!$B17,0) -> 150.5792253 | BG29: =IF(BG28>0,BG28*Paraméterek!$B17,0) -> 155.698782 | BH29: =IF(BH28>0,BH28*Paraméterek!$B17,0) -> 160.8913318 | BI29: =IF(BI28>0,BI28*Paraméterek!$B17,0) -> 166.157944 | BJ29: =IF(BJ28>0,BJ28*Paraméterek!$B17,0) -> 171.4997035 | BK29: =IF(BK28>0,BK28*Paraméterek!$B17,0) -> 176.9177115 | BL29: =IF(BL28>0,BL28*Paraméterek!$B17,0) -> 182.4130856 | BM29: =IF(BM28>0,BM28*Paraméterek!$B17,0) -> 200.7214959 | BN29: =IF(BN28>0,BN28*Paraméterek!$B17,0) -> 205.9305705 | BO29: =IF(BO28>0,BO28*Paraméterek!$B17,0) -> 211.2174571 | BP29: =IF(BP28>0,BP28*Paraméterek!$B17,0) -> 216.5833209 | BQ29: =IF(BQ28>0,BQ28*Paraméterek!$B17,0) -> 222.0293442 | BR29: =IF(BR28>0,BR28*Paraméterek!$B17,0) -> 251.8706817 | BS29: =IF(BS28>0,BS28*Paraméterek!$B17,0) -> 256.6320563 | BT29: =IF(BT28>0,BT28*Paraméterek!$B17,0) -> 261.4715041 | BU29: =IF(BU28>0,BU28*Paraméterek!$B17,0) -> 266.3902412 | BV29: =IF(BV28>0,BV28*Paraméterek!$B17,0) -> 272.7603848
A30: F. | B30: ADÓZOTT EREDMÉNY (±E.-XII.) | C30: Profit after taxes (+E-XII) | D30: =+D28-D29 -> -55.741929 | E30: -62.94676513 | F30: -71.13768489 | G30: -91.83290272 | H30: -165.0592808 | I30: -232.85452 | J30: -310.8941799 | K30: -385.2795844 | L30: -486.5145336 | M30: -607.5021679 | N30: -768.2847342 | O30: -595.1213944 | P30: -573.1896765 | Q30: -542.4044502 | R30: -511.4984021 | S30: -480.4697197 | T30: -449.3165637 | U30: -418.0370668 | V30: -420.363806 | W30: =+W28-W29 -> -304.5425972 | X30: =+X28-X29 -> -283.3714571 | Y30: -254.15081 | Z30: -224.7757445 | AA30: -195.2439443 | AB30: -165.5530584 | AC30: -146.6867254 | AD30: -118.2232686 | AE30: -89.5934592 | AF30: -60.79480209 | AG30: -31.82476449 | AH30: -2.680775709 | AI30: 22.0703441 | AJ30: 66.72143778 | AK30: 111.8132728 | AL30: 160.3065334 | AM30: 212.4485567 | AN30: 546.2916682 | AO30: 602.4026322 | AP30: 650.2058913 | AQ30: 686.5490762 | AR30: 510.1758238 | AS30: 410.4335297 | AT30: 443.3680023 | AU30: 476.9165041 | AV30: 511.0898802 | AW30: 545.8991612 | AX30: 581.3555652 | AY30: 612.6726386 | AZ30: 637.0182403 | BA30: 661.7099947 | BB30: 686.7529654 | BC30: 712.152291 | BD30: 737.9131862 | BE30: 764.0409434 | BF30: 790.540933 | BG30: 817.4186055 | BH30: 844.679492 | BI30: 872.3292058 | BJ30: 900.3734433 | BK30: 928.8179856 | BL30: 957.6686995 | BM30: =+BM28-BM29 -> 1053.787853 | BN30: 1081.135495 | BO30: 1108.89165 | BP30: 1137.062435 | BQ30: 1165.654057 | BR30: 1322.321079 | BS30: 1347.318296 | BT30: 1372.725396 | BU30: =+BU28-BU29 -> 1398.548766 | BV30: 1431.99202
A31: 22. | B31: Eredménytartalék igénybevétele osztalékra, részesedésre | C31: Profit reserves used for dividends and profit-sharing
A32: 23. | B32: Jóváhagyott osztalék, részesedés | C32: Dividends and profit-sharing paid (payable) | AS32: =IF(AS30>0,IF(AR83>AR84,AS30*Paraméterek!$B$15,0),0) -> 328.3468238 | AT32: =IF(AT30>0,IF(AS83>AS84,AT30*Paraméterek!$B$15,0),0) -> 354.6944019 | AU32: =IF(AU30>0,IF(AT83>AT84,AU30*Paraméterek!$B$15,0),0) -> 381.5332032 | AV32: =IF(AV30>0,IF(AU83>AU84,AV30*Paraméterek!$B$15,0),0) -> 408.8719042 | AW32: =IF(AW30>0,IF(AV83>AV84,AW30*Paraméterek!$B$15,0),0) -> 436.7193289 | AX32: =IF(AX30>0,IF(AW83>AW84,AX30*Paraméterek!$B$15,0),0) -> 465.0844522 | AY32: =IF(AY30>0,IF(AX83>AX84,AY30*Paraméterek!$B$15,0),0) -> 490.1381109 | AZ32: =IF(AZ30>0,IF(AY83>AY84,AZ30*Paraméterek!$B$15,0),0) -> 509.6145923 | BA32: =IF(BA30>0,IF(AZ83>AZ84,BA30*Paraméterek!$B$15,0),0) -> 529.3679958 | BB32: =IF(BB30>0,IF(BA83>BA84,BB30*Paraméterek!$B$15,0),0) -> 549.4023723 | BC32: =IF(BC30>0,IF(BB83>BB84,BC30*Paraméterek!$B$15,0),0) -> 569.7218328 | BD32: =IF(BD30>0,IF(BC83>BC84,BD30*Paraméterek!$B$15,0),0) -> 590.330549 | BE32: =IF(BE30>0,IF(BD83>BD84,BE30*Paraméterek!$B$15,0),0) -> 611.2327547 | BF32: =IF(BF30>0,IF(BE83>BE84,BF30*Paraméterek!$B$15,0),0) -> 632.4327464 | BG32: =IF(BG30>0,IF(BF83>BF84,BG30*Paraméterek!$B$15,0),0) -> 653.9348844 | BH32: =IF(BH30>0,IF(BG83>BG84,BH30*Paraméterek!$B$15,0),0) -> 675.7435936 | BI32: =IF(BI30>0,IF(BH83>BH84,BI30*Paraméterek!$B$15,0),0) -> 697.8633646 | BJ32: =IF(BJ30>0,IF(BI83>BI84,BJ30*Paraméterek!$B$15,0),0) -> 720.2987546 | BK32: =IF(BK30>0,IF(BJ83>BJ84,BK30*Paraméterek!$B$15,0),0) -> 743.0543885 | BL32: =IF(BL30>0,IF(BK83>BK84,BL30*Paraméterek!$B$15,0),0) -> 766.1349596 | BM32: =IF(BM30>0,IF(BL83>BL84,BM30*Paraméterek!$B$15,0),0) -> 843.0302828 | BN32: =IF(BN30>0,IF(BM83>BM84,BN30*Paraméterek!$B$15,0),0) -> 864.908396 | BO32: =IF(BO30>0,IF(BN83>BN84,BO30*Paraméterek!$B$15,0),0) -> 887.11332 | BP32: =IF(BP30>0,IF(BO83>BO84,BP30*Paraméterek!$B$15,0),0) -> 909.6499478 | BQ32: =IF(BQ30>0,IF(BP83>BP84,BQ30*Paraméterek!$B$15,0),0) -> 932.5232455 | BR32: =IF(BR30>0,IF(BQ83>BQ84,BR30*Paraméterek!$B$15,0),0) -> 1057.856863 | BS32: =IF(BS30>0,IF(BR83>BR84,BS30*Paraméterek!$B$15,0),0) -> 1077.854636 | BT32: =IF(BT30>0,IF(BS83>BS84,BT30*Paraméterek!$B$15,0),0) -> 1098.180317 | BU32: =IF(BU30>0,IF(BT83>BT84,BU30*Paraméterek!$B$15,0),0) -> 1118.839013 | BV32: =IF(BV30>0,IF(BU83>BU84,BV30*Paraméterek!$B$15,0),0) -> 1145.593616
A34: G. | B34: MÉRLEG SZERINTI EREDMÉNY (±F.+22.-23.) | C34: Profit or loss for the year (+F+22-23) | D34: =+D30+D31-D32 -> -55.741929 | E34: -62.94676513 | F34: =+F30+F31-F32 -> -71.13768489 | G34: =+G30+G31-G32 -> -91.83290272 | H34: -165.0592808 | I34: -232.85452 | J34: -310.8941799 | K34: -385.2795844 | L34: -486.5145336 | M34: -607.5021679 | N34: -768.2847342 | O34: -595.1213944 | P34: -573.1896765 | Q34: -542.4044502 | R34: -511.4984021 | S34: -480.4697197 | T34: -449.3165637 | U34: -418.0370668 | V34: -420.363806 | W34: =+W30+W31-W32 -> -304.5425972 | X34: =+X30+X31-X32 -> -283.3714571 | Y34: -254.15081 | Z34: -224.7757445 | AA34: -195.2439443 | AB34: -165.5530584 | AC34: -146.6867254 | AD34: -118.2232686 | AE34: -89.5934592 | AF34: -60.79480209 | AG34: -31.82476449 | AH34: -2.680775709 | AI34: 22.0703441 | AJ34: 66.72143778 | AK34: 111.8132728 | AL34: 160.3065334 | AM34: 212.4485567 | AN34: 546.2916682 | AO34: 602.4026322 | AP34: 650.2058913 | AQ34: 686.5490762 | AR34: 510.1758238 | AS34: 82.08670594 | AT34: 88.67360047 | AU34: 95.38330081 | AV34: 102.217976 | AW34: 109.1798322 | AX34: 116.271113 | AY34: 122.5345277 | AZ34: 127.4036481 | BA34: 132.3419989 | BB34: 137.3505931 | BC34: 142.4304582 | BD34: 147.5826372 | BE34: 152.8081887 | BF34: 158.1081866 | BG34: 163.4837211 | BH34: 168.9358984 | BI34: 174.4658412 | BJ34: 180.0746887 | BK34: 185.7635971 | BL34: 191.5337399 | BM34: =+BM30+BM31-BM32 -> 210.7575707 | BN34: 216.227099 | BO34: 221.77833 | BP34: 227.4124869 | BQ34: 233.1308114 | BR34: 264.4642158 | BS34: 269.4636591 | BT34: 274.5450793 | BU34: =+BU30+BU31-BU32 -> 279.7097532 | BV34: 286.3984041
B35: effektív adókulcs | C35: effective corporate tax rate | D35: =+D29/D28 -> 0 | E35: =+E29/E28 -> 0 | F35: 0 | G35: 0 | H35: 0 | I35: 0 | J35: 0 | K35: 0 | L35: 0 | M35: 0 | N35: 0 | O35: 0 | P35: 0 | Q35: 0 | R35: 0 | S35: 0 | T35: 0 | U35: 0 | V35: 0 | W35: 0 | X35: 0 | Y35: 0 | Z35: 0 | AA35: 0 | AB35: 0 | AC35: 0 | AD35: 0 | AE35: 0 | AF35: 0 | AG35: 0 | AH35: 0 | AI35: 0.16 | AJ35: 0.16 | AK35: 0.16 | AL35: 0.16 | AM35: 0.16 | AN35: 0.16 | AO35: 0.16 | AP35: 0.16 | AQ35: 0.16 | AR35: 0.16 | AS35: 0.16 | AT35: 0.16 | AU35: 0.16 | AV35: 0.16 | AW35: 0.16 | AX35: 0.16 | AY35: 0.16 | AZ35: 0.16 | BA35: 0.16 | BB35: 0.16 | BC35: 0.16 | BD35: 0.16 | BE35: 0.16 | BF35: 0.16 | BG35: 0.16 | BH35: 0.16 | BI35: 0.16 | BJ35: 0.16 | BK35: 0.16 | BL35: 0.16 | BM35: =+BM29/BM28 -> 0.16 | BN35: 0.16 | BO35: 0.16 | BP35: 0.16 | BQ35: 0.16 | BR35: 0.16 | BS35: 0.16 | BT35: 0.16 | BU35: =+BU29/BU28 -> 0.16 | BV35: 0.16
B39: MÉRLEG | C39: Balance Sheet
B40: ESZKÖZÖK | C40: Assets
A41: 01. | B41: A. Befektetett eszközök (02.+10.+18. sor) | C41: A. Fixed assets | D41: =SUM(D42,D45,D53) -> 125 | E41: 275 | F41: 525 | G41: 2725 | H41: 4300 | I41: 5925 | J41: 7300 | K41: 8862.5 | L41: 10400 | M41: 11950 | N41: 12500 | O41: 12082.35 | P41: 11664.7 | Q41: 11247.05 | R41: 10829.4 | S41: 10411.75 | T41: 9994.1 | U41: 9576.45 | V41: 9158.8 | W41: 8741.15 | X41: 8323.5 | Y41: 7905.85 | Z41: 7488.2 | AA41: 7070.55 | AB41: 6652.9 | AC41: 6235.25 | AD41: 5817.6 | AE41: 5399.95 | AF41: 4982.3 | AG41: 4564.65 | AH41: 4147 | AI41: 3729.35 | AJ41: =SUM(AJ42,AJ45,AJ53) -> 3311.7 | AK41: 2894.05 | AL41: 2476.4 | AM41: 2058.75 | AN41: 1976.4 | AO41: 1894.05 | AP41: 1811.7 | AQ41: 1729.35 | AR41: 5577.755984 | AS41: 5338.175745 | AT41: 5098.595506 | AU41: 4859.015266 | AV41: 4619.435027 | AW41: 4379.854788 | AX41: 4140.274548 | AY41: 3900.694309 | AZ41: 3661.114069 | BA41: 3421.53383 | BB41: 3181.953591 | BC41: 2942.373351 | BD41: 2702.793112 | BE41: 2463.212873 | BF41: 2223.632633 | BG41: 1984.052394 | BH41: 1744.472154 | BI41: 1504.891915 | BJ41: 1265.311676 | BK41: 1025.731436 | BL41: 786.1511969 | BM41: =SUM(BM42,BM45,BM53) -> 628.9209575 | BN41: 471.6907181 | BO41: 314.4604788 | BP41: 157.2302394 | BQ41: 0 | BR41: 0 | BS41: 0 | BT41: =SUM(BT42,BT45,BT53) -> 0 | BU41: =SUM(BU42,BU45,BU53) -> 0 | BV41: =SUM(BV42,BV45,BV53) -> 0
A42: 02. | B42: I. IMMATERIÁLIS JAVAK (03.-09. sorok) | C42: I. Intangible assets | D42: =SUM(D43:D44) -> 0 | E42: 0 | F42: 0 | G42: 0 | H42: 0 | I42: 0 | J42: 0 | K42: 0 | L42: 0 | M42: 0 | N42: 0 | O42: 0 | P42: 0 | Q42: 0 | R42: 0 | S42: 0 | T42: 0 | U42: 0 | V42: 0 | W42: 0 | X42: 0 | Y42: 0 | Z42: 0 | AA42: 0 | AB42: 0 | AC42: 0 | AD42: 0 | AE42: 0 | AF42: 0 | AG42: 0 | AH42: 0 | AI42: 0 | AJ42: =SUM(AJ43:AJ44) -> 0 | AK42: 0 | AL42: 0 | AM42: 0 | AN42: 0 | AO42: 0 | AP42: 0 | AQ42: 0 | AR42: 0 | AS42: 0 | AT42: 0 | AU42: 0 | AV42: 0 | AW42: 0 | AX42: 0 | AY42: 0 | AZ42: 0 | BA42: 0 | BB42: 0 | BC42: 0 | BD42: 0 | BE42: 0 | BF42: 0 | BG42: 0 | BH42: 0 | BI42: 0 | BJ42: 0 | BK42: 0 | BL42: 0 | BM42: =SUM(BM43:BM44) -> 0 | BN42: 0 | BO42: 0 | BP42: 0 | BQ42: 0 | BR42: 0 | BS42: 0 | BT42: =SUM(BT43:BT44) -> 0 | BU42: =SUM(BU43:BU44) -> 0 | BV42: =SUM(BV43:BV44) -> 0
A43: 06. | B43: 4.Szellemi termékek | C43: 4) Trade-marks, patents and similar assets
A44: 07. | B44: 5.Üzleti vagy cégérték | C44: 5) Goodwill
A45: 10. | B45: II. TÁRGYI ESZKÖZÖK (11.-17. sorok) | C45: II. Tangible assets | D45: =SUM(D46:D52) -> 125 | E45: 275 | F45: 525 | G45: 2725 | H45: 4300 | I45: 5925 | J45: 7300 | K45: 8862.5 | L45: 10400 | M45: 11950 | N45: 12500 | O45: 12082.35 | P45: 11664.7 | Q45: 11247.05 | R45: 10829.4 | S45: 10411.75 | T45: 9994.1 | U45: 9576.45 | V45: 9158.8 | W45: 8741.15 | X45: 8323.5 | Y45: 7905.85 | Z45: 7488.2 | AA45: 7070.55 | AB45: 6652.9 | AC45: 6235.25 | AD45: 5817.6 | AE45: 5399.95 | AF45: 4982.3 | AG45: 4564.65 | AH45: 4147 | AI45: 3729.35 | AJ45: =SUM(AJ46:AJ52) -> 3311.7 | AK45: 2894.05 | AL45: 2476.4 | AM45: 2058.75 | AN45: 1976.4 | AO45: 1894.05 | AP45: 1811.7 | AQ45: 1729.35 | AR45: 5577.755984 | AS45: 5338.175745 | AT45: 5098.595506 | AU45: 4859.015266 | AV45: 4619.435027 | AW45: 4379.854788 | AX45: 4140.274548 | AY45: 3900.694309 | AZ45: 3661.114069 | BA45: 3421.53383 | BB45: 3181.953591 | BC45: 2942.373351 | BD45: 2702.793112 | BE45: 2463.212873 | BF45: 2223.632633 | BG45: 1984.052394 | BH45: 1744.472154 | BI45: 1504.891915 | BJ45: 1265.311676 | BK45: 1025.731436 | BL45: 786.1511969 | BM45: =SUM(BM46:BM52) -> 628.9209575 | BN45: =SUM(BN46:BN52) -> 471.6907181 | BO45: =SUM(BO46:BO52) -> 314.4604788 | BP45: =SUM(BP46:BP52) -> 157.2302394 | BQ45: =SUM(BQ46:BQ52) -> 0 | BR45: =SUM(BR46:BR52) -> 0 | BS45: =SUM(BS46:BS52) -> 0 | BT45: =SUM(BT46:BT52) -> 0 | BU45: =SUM(BU46:BU52) -> 0 | BV45: =SUM(BV46:BV52) -> 0
A46: 11. | B46: 1.Ingatlanok és a kapcsolódó vagyoni értékű jogok | C46: 1) Land and buildings and rights to immovables | O46: ='CAPEX&Depr'!M16 -> 4035.15 | P46: ='CAPEX&Depr'!N16 -> 3952.8 | Q46: ='CAPEX&Depr'!O16 -> 3870.45 | R46: ='CAPEX&Depr'!P16 -> 3788.1 | S46: ='CAPEX&Depr'!Q16 -> 3705.75 | T46: ='CAPEX&Depr'!R16 -> 3623.4 | U46: ='CAPEX&Depr'!S16 -> 3541.05 | V46: ='CAPEX&Depr'!T16 -> 3458.7 | W46: ='CAPEX&Depr'!U16 -> 3376.35 | X46: ='CAPEX&Depr'!V16 -> 3294 | Y46: ='CAPEX&Depr'!W16 -> 3211.65 | Z46: ='CAPEX&Depr'!X16 -> 3129.3 | AA46: ='CAPEX&Depr'!Y16 -> 3046.95 | AB46: ='CAPEX&Depr'!Z16 -> 2964.6 | AC46: ='CAPEX&Depr'!AA16 -> 2882.25 | AD46: ='CAPEX&Depr'!AB16 -> 2799.9 | AE46: ='CAPEX&Depr'!AC16 -> 2717.55 | AF46: ='CAPEX&Depr'!AD16 -> 2635.2 | AG46: ='CAPEX&Depr'!AE16 -> 2552.85 | AH46: ='CAPEX&Depr'!AF16 -> 2470.5 | AI46: ='CAPEX&Depr'!AG16 -> 2388.15 | AJ46: ='CAPEX&Depr'!AH16 -> 2305.8 | AK46: ='CAPEX&Depr'!AI16 -> 2223.45 | AL46: ='CAPEX&Depr'!AJ16 -> 2141.1 | AM46: ='CAPEX&Depr'!AK16 -> 2058.75 | AN46: ='CAPEX&Depr'!AL16 -> 1976.4 | AO46: ='CAPEX&Depr'!AM16 -> 1894.05 | AP46: ='CAPEX&Depr'!AN16 -> 1811.7 | AQ46: ='CAPEX&Depr'!AO16 -> 1729.35 | AR46: ='CAPEX&Depr'!AP16 -> 1647 | AS46: ='CAPEX&Depr'!AQ16 -> 1564.65 | AT46: ='CAPEX&Depr'!AR16 -> 1482.3 | AU46: ='CAPEX&Depr'!AS16 -> 1399.95 | AV46: ='CAPEX&Depr'!AT16 -> 1317.6 | AW46: ='CAPEX&Depr'!AU16 -> 1235.25 | AX46: ='CAPEX&Depr'!AV16 -> 1152.9 | AY46: ='CAPEX&Depr'!AW16 -> 1070.55 | AZ46: ='CAPEX&Depr'!AX16 -> 988.2 | BA46: ='CAPEX&Depr'!AY16 -> 905.85 | BB46: ='CAPEX&Depr'!AZ16 -> 823.5 | BC46: ='CAPEX&Depr'!BA16 -> 741.15 | BD46: ='CAPEX&Depr'!BB16 -> 658.8 | BE46: ='CAPEX&Depr'!BC16 -> 576.45 | BF46: ='CAPEX&Depr'!BD16 -> 494.1 | BG46: ='CAPEX&Depr'!BE16 -> 411.75 | BH46: ='CAPEX&Depr'!BF16 -> 329.4 | BI46: ='CAPEX&Depr'!BG16 -> 247.05 | BJ46: ='CAPEX&Depr'!BH16 -> 164.7 | BK46: ='CAPEX&Depr'!BI16 -> 82.35 | BL46: ='CAPEX&Depr'!BJ16 -> 3.097966328e-12 | BM46: ='CAPEX&Depr'!BK16 -> 0 | BN46: ='CAPEX&Depr'!BL16 -> 0 | BO46: ='CAPEX&Depr'!BM16 -> 0 | BP46: ='CAPEX&Depr'!BN16 -> 0 | BQ46: ='CAPEX&Depr'!BO16 -> 0 | BR46: ='CAPEX&Depr'!BP16 -> 0 | BS46: ='CAPEX&Depr'!BQ16 -> 0 | BT46: ='CAPEX&Depr'!BR16 -> 0 | BU46: ='CAPEX&Depr'!BS16 -> 0 | BV46: ='CAPEX&Depr'!BT16 -> 0
A47: 12. | B47: 2.Műszaki berendezések, gépek, járművek | C47: 2) Plant and machinery, vehicles | O47: ='CAPEX&Depr'!M17+'CAPEX&Depr'!M18 -> 8047.2 | P47: ='CAPEX&Depr'!N17+'CAPEX&Depr'!N18 -> 7711.9 | Q47: ='CAPEX&Depr'!O17+'CAPEX&Depr'!O18 -> 7376.6 | R47: ='CAPEX&Depr'!P17+'CAPEX&Depr'!P18 -> 7041.3 | S47: ='CAPEX&Depr'!Q17+'CAPEX&Depr'!Q18 -> 6706 | T47: ='CAPEX&Depr'!R17+'CAPEX&Depr'!R18 -> 6370.7 | U47: ='CAPEX&Depr'!S17+'CAPEX&Depr'!S18 -> 6035.4 | V47: ='CAPEX&Depr'!T17+'CAPEX&Depr'!T18 -> 5700.1 | W47: ='CAPEX&Depr'!U17+'CAPEX&Depr'!U18 -> 5364.8 | X47: ='CAPEX&Depr'!V17+'CAPEX&Depr'!V18 -> 5029.5 | Y47: ='CAPEX&Depr'!W17+'CAPEX&Depr'!W18 -> 4694.2 | Z47: ='CAPEX&Depr'!X17+'CAPEX&Depr'!X18 -> 4358.9 | AA47: ='CAPEX&Depr'!Y17+'CAPEX&Depr'!Y18 -> 4023.6 | AB47: ='CAPEX&Depr'!Z17+'CAPEX&Depr'!Z18 -> 3688.3 | AC47: ='CAPEX&Depr'!AA17+'CAPEX&Depr'!AA18 -> 3353 | AD47: ='CAPEX&Depr'!AB17+'CAPEX&Depr'!AB18 -> 3017.7 | AE47: ='CAPEX&Depr'!AC17+'CAPEX&Depr'!AC18 -> 2682.4 | AF47: ='CAPEX&Depr'!AD17+'CAPEX&Depr'!AD18 -> 2347.1 | AG47: ='CAPEX&Depr'!AE17+'CAPEX&Depr'!AE18 -> 2011.8 | AH47: ='CAPEX&Depr'!AF17+'CAPEX&Depr'!AF18 -> 1676.5 | AI47: ='CAPEX&Depr'!AG17+'CAPEX&Depr'!AG18 -> 1341.2 | AJ47: ='CAPEX&Depr'!AH17+'CAPEX&Depr'!AH18 -> 1005.9 | AK47: ='CAPEX&Depr'!AI17+'CAPEX&Depr'!AI18 -> 670.6 | AL47: ='CAPEX&Depr'!AJ17+'CAPEX&Depr'!AJ18 -> 335.3 | AM47: ='CAPEX&Depr'!AK17+'CAPEX&Depr'!AK18 -> 0 | AN47: ='CAPEX&Depr'!AL17+'CAPEX&Depr'!AL18 -> 0 | AO47: ='CAPEX&Depr'!AM17+'CAPEX&Depr'!AM18 -> 0 | AP47: ='CAPEX&Depr'!AN17+'CAPEX&Depr'!AN18 -> 0 | AQ47: ='CAPEX&Depr'!AO17+'CAPEX&Depr'!AO18 -> 0 | AR47: ='CAPEX&Depr'!AP17+'CAPEX&Depr'!AP18 -> 3930.755984 | AS47: ='CAPEX&Depr'!AQ17+'CAPEX&Depr'!AQ18 -> 3773.525745 | AT47: ='CAPEX&Depr'!AR17+'CAPEX&Depr'!AR18 -> 3616.295506 | AU47: ='CAPEX&Depr'!AS17+'CAPEX&Depr'!AS18 -> 3459.065266 | AV47: ='CAPEX&Depr'!AT17+'CAPEX&Depr'!AT18 -> 3301.835027 | AW47: ='CAPEX&Depr'!AU17+'CAPEX&Depr'!AU18 -> 3144.604788 | AX47: ='CAPEX&Depr'!AV17+'CAPEX&Depr'!AV18 -> 2987.374548 | AY47: ='CAPEX&Depr'!AW17+'CAPEX&Depr'!AW18 -> 2830.144309 | AZ47: ='CAPEX&Depr'!AX17+'CAPEX&Depr'!AX18 -> 2672.914069 | BA47: ='CAPEX&Depr'!AY17+'CAPEX&Depr'!AY18 -> 2515.68383 | BB47: ='CAPEX&Depr'!AZ17+'CAPEX&Depr'!AZ18 -> 2358.453591 | BC47: ='CAPEX&Depr'!BA17+'CAPEX&Depr'!BA18 -> 2201.223351 | BD47: ='CAPEX&Depr'!BB17+'CAPEX&Depr'!BB18 -> 2043.993112 | BE47: ='CAPEX&Depr'!BC17+'CAPEX&Depr'!BC18 -> 1886.762873 | BF47: ='CAPEX&Depr'!BD17+'CAPEX&Depr'!BD18 -> 1729.532633 | BG47: ='CAPEX&Depr'!BE17+'CAPEX&Depr'!BE18 -> 1572.302394 | BH47: ='CAPEX&Depr'!BF17+'CAPEX&Depr'!BF18 -> 1415.072154 | BI47: ='CAPEX&Depr'!BG17+'CAPEX&Depr'!BG18 -> 1257.841915 | BJ47: ='CAPEX&Depr'!BH17+'CAPEX&Depr'!BH18 -> 1100.611676 | BK47: ='CAPEX&Depr'!BI17+'CAPEX&Depr'!BI18 -> 943.3814363 | BL47: ='CAPEX&Depr'!BJ17+'CAPEX&Depr'!BJ18 -> 786.1511969 | BM47: ='CAPEX&Depr'!BK17+'CAPEX&Depr'!BK18 -> 628.9209575 | BN47: ='CAPEX&Depr'!BL17+'CAPEX&Depr'!BL18 -> 471.6907181 | BO47: ='CAPEX&Depr'!BM17+'CAPEX&Depr'!BM18 -> 314.4604788 | BP47: ='CAPEX&Depr'!BN17+'CAPEX&Depr'!BN18 -> 157.2302394 | BQ47: ='CAPEX&Depr'!BO17+'CAPEX&Depr'!BO18 -> 0 | BR47: ='CAPEX&Depr'!BP17+'CAPEX&Depr'!BP18 -> 0 | BS47: ='CAPEX&Depr'!BQ17+'CAPEX&Depr'!BQ18 -> 0 | BT47: ='CAPEX&Depr'!BR17+'CAPEX&Depr'!BR18 -> 0 | BU47: ='CAPEX&Depr'!BS17+'CAPEX&Depr'!BS18 -> 0 | BV47: ='CAPEX&Depr'!BT17+'CAPEX&Depr'!BT18 -> 0
A48: 13. | B48: 3.Egyéb berendezések, felszerelések, járművek | C48: 3) Other equipment, fixtures and fittings, vehicles
A49: 14. | B49: 4.Tenyészállatok | C49: 4) Breeding stock
A50: 15. | B50: 5.Beruházások, felújítások | C50: 5) Assets in course of construction | D50: ='CAPEX&Depr'!B8+'CAPEX&Depr'!B9 -> 125 | E50: ='CAPEX&Depr'!C8+'CAPEX&Depr'!C9 -> 275 | F50: ='CAPEX&Depr'!D8+'CAPEX&Depr'!D9 -> 525 | G50: ='CAPEX&Depr'!E8+'CAPEX&Depr'!E9 -> 2725 | H50: ='CAPEX&Depr'!F8+'CAPEX&Depr'!F9 -> 4300 | I50: ='CAPEX&Depr'!G8+'CAPEX&Depr'!G9 -> 5925 | J50: ='CAPEX&Depr'!H8+'CAPEX&Depr'!H9 -> 7300 | K50: ='CAPEX&Depr'!I8+'CAPEX&Depr'!I9 -> 8862.5 | L50: ='CAPEX&Depr'!J8+'CAPEX&Depr'!J9 -> 10400 | M50: ='CAPEX&Depr'!K8+'CAPEX&Depr'!K9 -> 11950 | N50: ='CAPEX&Depr'!L8+'CAPEX&Depr'!L9 -> 12500
A51: 16. | B51: 6.Beruházásokra adott előlegek | C51: 6) Payments on account
A52: 17. | B52: 7.Tárgyi eszközök értékhelyesbítése | C52: 7) Adjusted value of tangible assets
A53: 18. | B53: III. BEFEKTETETT PÉNZÜGYI ESZKÖZÖK (19.-25. sorok) | C53: III. Financial investments | D53: =SUM(D54:D61) -> 0 | E53: 0 | F53: 0 | G53: 0 | H53: 0 | I53: 0 | J53: 0 | K53: 0 | L53: 0 | M53: 0 | N53: 0 | O53: 0 | P53: 0 | Q53: 0 | R53: 0 | S53: 0 | T53: 0 | U53: 0 | V53: 0 | W53: =SUM(W54:W61) -> 0 | X53: 0 | Y53: 0 | Z53: 0 | AA53: 0 | AB53: 0 | AC53: 0 | AD53: 0 | AE53: 0 | AF53: 0 | AG53: 0 | AH53: 0 | AI53: 0 | AJ53: 0 | AK53: 0 | AL53: 0 | AM53: 0 | AN53: 0 | AO53: 0 | AP53: 0 | AQ53: 0 | AR53: 0 | AS53: 0 | AT53: 0 | AU53: 0 | AV53: 0 | AW53: 0 | AX53: 0 | AY53: 0 | AZ53: 0 | BA53: 0 | BB53: 0 | BC53: 0 | BD53: 0 | BE53: 0 | BF53: 0 | BG53: 0 | BH53: 0 | BI53: 0 | BJ53: 0 | BK53: 0 | BL53: 0 | BM53: =SUM(BM54:BM61) -> 0 | BN53: 0 | BO53: 0 | BP53: 0 | BQ53: 0 | BR53: 0 | BS53: 0 | BT53: 0 | BU53: =SUM(BU54:BU61) -> 0 | BV53: 0
A54: 19. | B54: 1.Tartós részesedés kapcsolt vállalkozásban | C54: 1) Long-term participations in affiliated undertakings
A55: 20. | B55: 2.Tartósan adott kölcsön kapcsolt vállalkozásban | C55: 2) Long-term credit to affiliated undertakings
A56: 21. | B56: 3.Egyéb tartós részesedés | C56: 3) Other long-term participations
A57: 22. | B57: 4.Tartósan adott kölcsön egyéb részesedési viszonyban álló vállalkozásban | C57: 4) Long-term loan to independent undertakings
A58: 23. | B58: 5.Egyéb tartósan adott kölcsön | C58: 5) Other long-term loans
A59: 24. | B59: 6.Tartós hitelviszonyt megtestesítő értékpapír | C59: 6) Securities signifying a long-term creditor relationship
A60: 25. | B60: 7.Befektetett pénzügyi eszközök értékhelyesbítése | C60: 7) Adjusted value of financial investments
A61: 26. | B61: 8. Befektetett pénzügyi eszközök értékelési különbözete
A62: 27. | B62: B. Forgóeszközök (27.+34.+40.+45. sor) | C62: B. Current assets | D62: =SUM(D63,D66,D71,D73) -> 0 | E62: 0 | F62: 0 | G62: 349.8820292 | H62: 30.77689712 | I62: 0 | J62: 0 | K62: 0 | L62: 0 | M62: 0 | N62: 80.45639142 | O62: 165.5024562 | P62: 167.984993 | Q62: 170.5047679 | R62: 173.0623394 | S62: 175.6582745 | T62: 178.2931487 | U62: 180.9675459 | V62: 183.6820591 | W62: 201.7909491 | X62: 204.8178134 | Y62: 207.8900806 | Z62: 211.0084318 | AA62: 214.1735583 | AB62: 217.3861616 | AC62: 220.646954 | AD62: 223.9566584 | AE62: 227.3160082 | AF62: 230.7257484 | AG62: 234.1866346 | AH62: 237.6994341 | AI62: 241.2649256 | AJ62: =SUM(AJ63,AJ66,AJ71,AJ73) -> 244.8838995 | AK62: 248.557158 | AL62: 252.2855154 | AM62: 256.0697981 | AN62: 259.9108451 | AO62: 263.8095077 | AP62: 615.133253 | AQ62: 1384.850923 | AR62: 275.8598974 | AS62: 279.9977958 | AT62: 284.1977628 | AU62: 288.4607292 | AV62: 292.7876401 | AW62: 297.1794547 | AX62: 301.6371466 | AY62: 447.0361096 | AZ62: 814.9559689 | BA62: 1187.828219 | BB62: 1565.723313 | BC62: 1948.712736 | BD62: 2336.869019 | BE62: 2730.265755 | BF62: 3128.977613 | BG62: 3533.080357 | BH62: 3942.65086 | BI62: 4357.767121 | BJ62: 4778.508283 | BK62: 5204.954647 | BL62: 5637.187691 | BM62: =SUM(BM63,BM66,BM71,BM73) -> 6006.311352 | BN62: 6380.921579 | BO62: 6761.100331 | BP62: 7146.930792 | BQ62: 7538.497393 | BR62: 7804.185243 | BS62: 8074.890891 | BT62: =SUM(BT63,BT66,BT71,BT73) -> 8350.696588 | BU62: =SUM(BU63,BU66,BU71,BU73) -> 8631.685869 | BV62: =SUM(BV63,BV66,BV71,BV73) -> 8919.382994
A63: 28. | B63: I. KÉSZLETEK (28.-33. sorok) | C63: I. Inventories | D63: =SUM(D64:D65) -> 0 | E63: 0 | F63: 0 | G63: 0 | H63: 0 | I63: 0 | J63: 0 | K63: 0 | L63: 0 | M63: 0 | N63: 80.45639142 | O63: 81.6632373 | P63: 82.88818585 | Q63: 84.13150864 | R63: 85.39348127 | S63: 86.67438349 | T63: 87.97449924 | U63: 89.29411673 | V63: 90.63352848 | W63: 99.56892811 | X63: 101.062462 | Y63: 102.578399 | Z63: 104.117075 | AA63: 105.6788311 | AB63: 107.2640135 | AC63: 108.8729737 | AD63: 110.5060684 | AE63: 112.1636594 | AF63: 113.8461143 | AG63: 115.553806 | AH63: 117.2871131 | AI63: 119.0464198 | AJ63: =SUM(AJ64:AJ65) -> 120.8321161 | AK63: 122.6445978 | AL63: 124.4842668 | AM63: 126.3515308 | AN63: 128.2468037 | AO63: 130.1705058 | AP63: 132.1230634 | AQ63: 134.1049093 | AR63: 136.116483 | AS63: 138.1582302 | AT63: 140.2306037 | AU63: 142.3340627 | AV63: 144.4690737 | AW63: 146.6361098 | AX63: 148.8356514 | AY63: 151.0681862 | AZ63: 153.334209 | BA63: 155.6342221 | BB63: 157.9687354 | BC63: 160.3382665 | BD63: 162.7433405 | BE63: 165.1844906 | BF63: 167.6622579 | BG63: 170.1771918 | BH63: 172.7298497 | BI63: 175.3207974 | BJ63: 177.9506094 | BK63: 180.6198685 | BL63: 183.3291666 | BM63: =SUM(BM64:BM65) -> 186.0791041 | BN63: 188.8702906 | BO63: 191.703345 | BP63: 194.5788952 | BQ63: 197.4975786 | BR63: 200.4600423 | BS63: 203.4669429 | BT63: =SUM(BT64:BT65) -> 206.518947 | BU63: =SUM(BU64:BU65) -> 209.6167312 | BV63: =SUM(BV64:BV65) -> 0
A64: 29. | B64: 1.Anyagok | C64: 1) Raw materials and consumables | D64: =E6*Paraméterek!$B30 -> 0 | E64: =F6*Paraméterek!$B30 -> 0 | F64: =G6*Paraméterek!$B30 -> 0 | G64: =H6*Paraméterek!$B30 -> 0 | H64: =I6*Paraméterek!$B30 -> 0 | I64: =J6*Paraméterek!$B30 -> 0 | J64: =K6*Paraméterek!$B30 -> 0 | K64: =L6*Paraméterek!$B30 -> 0 | L64: =M6*Paraméterek!$B30 -> 0 | M64: =N6*Paraméterek!$B30 -> 0 | N64: =O6*Paraméterek!$B30 -> 80.45639142 | O64: =P6*Paraméterek!$B30 -> 81.6632373 | P64: =Q6*Paraméterek!$B30 -> 82.88818585 | Q64: =R6*Paraméterek!$B30 -> 84.13150864 | R64: =S6*Paraméterek!$B30 -> 85.39348127 | S64: =T6*Paraméterek!$B30 -> 86.67438349 | T64: =U6*Paraméterek!$B30 -> 87.97449924 | U64: =V6*Paraméterek!$B30 -> 89.29411673 | V64: =W6*Paraméterek!$B30 -> 90.63352848 | W64: =X6*Paraméterek!$B30 -> 99.56892811 | X64: =Y6*Paraméterek!$B30 -> 101.062462 | Y64: =Z6*Paraméterek!$B30 -> 102.578399 | Z64: =AA6*Paraméterek!$B30 -> 104.117075 | AA64: =AB6*Paraméterek!$B30 -> 105.6788311 | AB64: =AC6*Paraméterek!$B30 -> 107.2640135 | AC64: =AD6*Paraméterek!$B30 -> 108.8729737 | AD64: =AE6*Paraméterek!$B30 -> 110.5060684 | AE64: =AF6*Paraméterek!$B30 -> 112.1636594 | AF64: =AG6*Paraméterek!$B30 -> 113.8461143 | AG64: =AH6*Paraméterek!$B30 -> 115.553806 | AH64: =AI6*Paraméterek!$B30 -> 117.2871131 | AI64: =AJ6*Paraméterek!$B30 -> 119.0464198 | AJ64: =AK6*Paraméterek!$B30 -> 120.8321161 | AK64: =AL6*Paraméterek!$B30 -> 122.6445978 | AL64: =AM6*Paraméterek!$B30 -> 124.4842668 | AM64: =AN6*Paraméterek!$B30 -> 126.3515308 | AN64: =AO6*Paraméterek!$B30 -> 128.2468037 | AO64: =AP6*Paraméterek!$B30 -> 130.1705058 | AP64: =AQ6*Paraméterek!$B30 -> 132.1230634 | AQ64: =AR6*Paraméterek!$B30 -> 134.1049093 | AR64: =AS6*Paraméterek!$B30 -> 136.116483 | AS64: =AT6*Paraméterek!$B30 -> 138.1582302 | AT64: =AU6*Paraméterek!$B30 -> 140.2306037 | AU64: =AV6*Paraméterek!$B30 -> 142.3340627 | AV64: =AW6*Paraméterek!$B30 -> 144.4690737 | AW64: =AX6*Paraméterek!$B30 -> 146.6361098 | AX64: =AY6*Paraméterek!$B30 -> 148.8356514 | AY64: =AZ6*Paraméterek!$B30 -> 151.0681862 | AZ64: =BA6*Paraméterek!$B30 -> 153.334209 | BA64: =BB6*Paraméterek!$B30 -> 155.6342221 | BB64: =BC6*Paraméterek!$B30 -> 157.9687354 | BC64: =BD6*Paraméterek!$B30 -> 160.3382665 | BD64: =BE6*Paraméterek!$B30 -> 162.7433405 | BE64: =BF6*Paraméterek!$B30 -> 165.1844906 | BF64: =BG6*Paraméterek!$B30 -> 167.6622579 | BG64: =BH6*Paraméterek!$B30 -> 170.1771918 | BH64: =BI6*Paraméterek!$B30 -> 172.7298497 | BI64: =BJ6*Paraméterek!$B30 -> 175.3207974 | BJ64: =BK6*Paraméterek!$B30 -> 177.9506094 | BK64: =BL6*Paraméterek!$B30 -> 180.6198685 | BL64: =BM6*Paraméterek!$B30 -> 183.3291666 | BM64: =BN6*Paraméterek!$B30 -> 186.0791041 | BN64: =BO6*Paraméterek!$B30 -> 188.8702906 | BO64: =BP6*Paraméterek!$B30 -> 191.703345 | BP64: =BQ6*Paraméterek!$B30 -> 194.5788952 | BQ64: =BR6*Paraméterek!$B30 -> 197.4975786 | BR64: =BS6*Paraméterek!$B30 -> 200.4600423 | BS64: =BT6*Paraméterek!$B30 -> 203.4669429 | BT64: =BU6*Paraméterek!$B30 -> 206.518947 | BU64: =BV6*Paraméterek!$B30 -> 209.6167312 | BV64: =BW6*Paraméterek!$B30 -> 0
A65: 32. | B65: 4.Késztermékek | C65: 4) Finished products
A66: 35. | B66: II. KÖVETELÉSEK (35.-39.sorok) | C66: II. Receivables | D66: =SUM(D67:D70) -> 0 | E66: 0 | F66: 0 | G66: 0 | H66: 0 | I66: 0 | J66: 0 | K66: 0 | L66: 0 | M66: 0 | N66: 0 | O66: 83.83921889 | P66: 85.09680717 | Q66: 86.37325928 | R66: 87.66885817 | S66: 88.98389104 | T66: 90.31864941 | U66: 91.67342915 | V66: 93.04853059 | W66: 102.222021 | X66: 103.7553513 | Y66: 105.3116816 | Z66: 106.8913568 | AA66: 108.4947272 | AB66: 110.1221481 | AC66: 111.7739803 | AD66: 113.45059 | AE66: 115.1523489 | AF66: 116.8796341 | AG66: 118.6328286 | AH66: 120.412321 | AI66: 122.2185058 | AJ66: =SUM(AJ67:AJ70) -> 124.0517834 | AK66: 125.9125602 | AL66: 127.8012486 | AM66: 129.7182673 | AN66: 131.6640413 | AO66: 133.6390019 | AP66: 135.643587 | AQ66: 137.6782408 | AR66: 139.7434144 | AS66: 141.8395656 | AT66: 143.9671591 | AU66: 146.1266665 | AV66: 148.3185665 | AW66: 150.543345 | AX66: 152.8014951 | AY66: 155.0935176 | AZ66: 157.4199203 | BA66: 159.7812191 | BB66: 162.1779374 | BC66: 164.6106065 | BD66: 167.0797656 | BE66: 169.5859621 | BF66: 172.1297515 | BG66: 174.7116978 | BH66: 177.3323732 | BI66: 179.9923588 | BJ66: 182.6922442 | BK66: 185.4326279 | BL66: 188.2141173 | BM66: =SUM(BM67:BM70) -> 191.0373291 | BN66: 193.902889 | BO66: 196.8114323 | BP66: 199.7636038 | BQ66: 202.7600579 | BR66: 205.8014587 | BS66: 208.8884806 | BT66: =SUM(BT67:BT70) -> 212.0218078 | BU66: =SUM(BU67:BU70) -> 215.202135 | BV66: =SUM(BV67:BV70) -> 218.430167
A67: 36. | B67: 1.Követelések áruszállításból és szolgáltatásokból (vevők) | C67: 1) Trade debtors | D67: =D3*Paraméterek!$B29/365 -> 0 | E67: =E3*Paraméterek!$B29/365 -> 0 | F67: =F3*Paraméterek!$B29/365 -> 0 | G67: =G3*Paraméterek!$B29/365 -> 0 | H67: =H3*Paraméterek!$B29/365 -> 0 | I67: =I3*Paraméterek!$B29/365 -> 0 | J67: =J3*Paraméterek!$B29/365 -> 0 | K67: =K3*Paraméterek!$B29/365 -> 0 | L67: =L3*Paraméterek!$B29/365 -> 0 | M67: =M3*Paraméterek!$B29/365 -> 0 | N67: =N3*Paraméterek!$B29/365 -> 0 | O67: =O3*Paraméterek!$B29/365 -> 83.83921889 | P67: =P3*Paraméterek!$B29/365 -> 85.09680717 | Q67: =Q3*Paraméterek!$B29/365 -> 86.37325928 | R67: =R3*Paraméterek!$B29/365 -> 87.66885817 | S67: =S3*Paraméterek!$B29/365 -> 88.98389104 | T67: =T3*Paraméterek!$B29/365 -> 90.31864941 | U67: =U3*Paraméterek!$B29/365 -> 91.67342915 | V67: =V3*Paraméterek!$B29/365 -> 93.04853059 | W67: =W3*Paraméterek!$B29/365 -> 102.222021 | X67: =X3*Paraméterek!$B29/365 -> 103.7553513 | Y67: =Y3*Paraméterek!$B29/365 -> 105.3116816 | Z67: =Z3*Paraméterek!$B29/365 -> 106.8913568 | AA67: =AA3*Paraméterek!$B29/365 -> 108.4947272 | AB67: =AB3*Paraméterek!$B29/365 -> 110.1221481 | AC67: =AC3*Paraméterek!$B29/365 -> 111.7739803 | AD67: =AD3*Paraméterek!$B29/365 -> 113.45059 | AE67: =AE3*Paraméterek!$B29/365 -> 115.1523489 | AF67: =AF3*Paraméterek!$B29/365 -> 116.8796341 | AG67: =AG3*Paraméterek!$B29/365 -> 118.6328286 | AH67: =AH3*Paraméterek!$B29/365 -> 120.412321 | AI67: =AI3*Paraméterek!$B29/365 -> 122.2185058 | AJ67: =AJ3*Paraméterek!$B29/365 -> 124.0517834 | AK67: =AK3*Paraméterek!$B29/365 -> 125.9125602 | AL67: =AL3*Paraméterek!$B29/365 -> 127.8012486 | AM67: =AM3*Paraméterek!$B29/365 -> 129.7182673 | AN67: =AN3*Paraméterek!$B29/365 -> 131.6640413 | AO67: =AO3*Paraméterek!$B29/365 -> 133.6390019 | AP67: =AP3*Paraméterek!$B29/365 -> 135.643587 | AQ67: =AQ3*Paraméterek!$B29/365 -> 137.6782408 | AR67: =AR3*Paraméterek!$B29/365 -> 139.7434144 | AS67: =AS3*Paraméterek!$B29/365 -> 141.8395656 | AT67: =AT3*Paraméterek!$B29/365 -> 143.9671591 | AU67: =AU3*Paraméterek!$B29/365 -> 146.1266665 | AV67: =AV3*Paraméterek!$B29/365 -> 148.3185665 | AW67: =AW3*Paraméterek!$B29/365 -> 150.543345 | AX67: =AX3*Paraméterek!$B29/365 -> 152.8014951 | AY67: =AY3*Paraméterek!$B29/365 -> 155.0935176 | AZ67: =AZ3*Paraméterek!$B29/365 -> 157.4199203 | BA67: =BA3*Paraméterek!$B29/365 -> 159.7812191 | BB67: =BB3*Paraméterek!$B29/365 -> 162.1779374 | BC67: =BC3*Paraméterek!$B29/365 -> 164.6106065 | BD67: =BD3*Paraméterek!$B29/365 -> 167.0797656 | BE67: =BE3*Paraméterek!$B29/365 -> 169.5859621 | BF67: =BF3*Paraméterek!$B29/365 -> 172.1297515 | BG67: =BG3*Paraméterek!$B29/365 -> 174.7116978 | BH67: =BH3*Paraméterek!$B29/365 -> 177.3323732 | BI67: =BI3*Paraméterek!$B29/365 -> 179.9923588 | BJ67: =BJ3*Paraméterek!$B29/365 -> 182.6922442 | BK67: =BK3*Paraméterek!$B29/365 -> 185.4326279 | BL67: =BL3*Paraméterek!$B29/365 -> 188.2141173 | BM67: =BM3*Paraméterek!$B29/365 -> 191.0373291 | BN67: =BN3*Paraméterek!$B29/365 -> 193.902889 | BO67: =BO3*Paraméterek!$B29/365 -> 196.8114323 | BP67: =BP3*Paraméterek!$B29/365 -> 199.7636038 | BQ67: =BQ3*Paraméterek!$B29/365 -> 202.7600579 | BR67: =BR3*Paraméterek!$B29/365 -> 205.8014587 | BS67: =BS3*Paraméterek!$B29/365 -> 208.8884806 | BT67: =BT3*Paraméterek!$B29/365 -> 212.0218078 | BU67: =BU3*Paraméterek!$B29/365 -> 215.202135 | BV67: =BV3*Paraméterek!$B29/365 -> 218.430167
A68: 40. | B68: 5.Egyéb követelések | C68: 5) Other receivables
A69: 41. | B69: 6. Követelések értékelési különbözete
A70: 42. | B70: 7. Származékos ügyletek pozitív értékelési különbözete
A71: 43. | B71: III. ÉRTÉKPAPÍROK (41.-44. sorok) | C71: III. Securities | D71: =IF(D105<0,-D105,0) -> 0 | E71: =IF(E105<0,-E105,0) -> 0 | F71: 0 | G71: 349.8820292 | H71: 30.77689712 | I71: 0 | J71: 0 | K71: 0 | L71: 0 | M71: 0 | N71: 0 | O71: 0 | P71: 0 | Q71: 0 | R71: 0 | S71: 0 | T71: 0 | U71: 0 | V71: 0 | W71: 0 | X71: 0 | Y71: 0 | Z71: 0 | AA71: 0 | AB71: 0 | AC71: 0 | AD71: 0 | AE71: 0 | AF71: 0 | AG71: 0 | AH71: 0 | AI71: 0 | AJ71: 0 | AK71: 0 | AL71: 0 | AM71: 0 | AN71: 0 | AO71: 0 | AP71: 347.3666026 | AQ71: 1113.067773 | AR71: 0 | AS71: 0 | AT71: 0 | AU71: 0 | AV71: 0 | AW71: 0 | AX71: 0 | AY71: 140.8744058 | AZ71: 504.2018396 | BA71: 872.4127774 | BB71: 1245.57664 | BC71: 1623.763863 | BD71: 2007.045913 | BE71: 2395.495302 | BF71: 2789.185603 | BG71: 3188.191467 | BH71: 3592.588637 | BI71: 4002.453965 | BJ71: 4417.865429 | BK71: 4838.90215 | BL71: 5265.644407 | BM71: =IF(BM105<0,-BM105,0) -> 5629.194919 | BN71: 5998.148399 | BO71: 6372.585553 | BP71: 6752.588293 | BQ71: 7138.239757 | BR71: 7397.923742 | BS71: 7662.535467 | BT71: 7932.155834 | BU71: =IF(BU105<0,-BU105,0) -> 8206.867003 | BV71: 8700.952827
A72: 48. | B72: 5. Értékpapírok értékelési különbözte
A73: 49. | B73: IV. PÉNZESZKÖZÖK (46.-47. sorok) | C73: IV. Liquid assets | D73: =SUM(D74:D75) -> 0 | E73: 0 | F73: 0 | G73: 0 | H73: 0 | I73: 0 | J73: 0 | K73: 0 | L73: 0 | M73: 0 | N73: 0 | O73: 0 | P73: 0 | Q73: 0 | R73: 0 | S73: 0 | T73: 0 | U73: 0 | V73: 0 | W73: =SUM(W74:W75) -> 0 | X73: 0 | Y73: 0 | Z73: 0 | AA73: 0 | AB73: 0 | AC73: 0 | AD73: 0 | AE73: 0 | AF73: 0 | AG73: 0 | AH73: 0 | AI73: 0 | AJ73: 0 | AK73: 0 | AL73: 0 | AM73: 0 | AN73: 0 | AO73: 0 | AP73: 0 | AQ73: 0 | AR73: 0 | AS73: 0 | AT73: 0 | AU73: 0 | AV73: 0 | AW73: 0 | AX73: 0 | AY73: 0 | AZ73: 0 | BA73: 0 | BB73: 0 | BC73: 0 | BD73: 0 | BE73: 0 | BF73: 0 | BG73: 0 | BH73: 0 | BI73: 0 | BJ73: 0 | BK73: 0 | BL73: 0 | BM73: =SUM(BM74:BM75) -> 0 | BN73: 0 | BO73: 0 | BP73: 0 | BQ73: 0 | BR73: 0 | BS73: 0 | BT73: 0 | BU73: =SUM(BU74:BU75) -> 0 | BV73: 0
A74: 50. | B74: 1.Pénztár, csekkek | C74: 1) Cash, checks
A75: 51. | B75: 2.Bankbetétek | C75: 2) Bank deposits
A76: 52. | B76: C. Aktív időbeli elhatárolások | C76: C. Accrued and deferred assets | D76: =SUM(D77:D78) -> 0 | E76: 0 | F76: 0 | G76: 0 | H76: 0 | I76: 0 | J76: 0 | K76: 0 | L76: 0 | M76: 0 | N76: 0 | O76: 0 | P76: 0 | Q76: 0 | R76: 0 | S76: 0 | T76: 0 | U76: 0 | V76: 0 | W76: 0 | X76: 0 | Y76: 0 | Z76: 0 | AA76: 0 | AB76: 0 | AC76: 0 | AD76: 0 | AE76: 0 | AF76: 0 | AG76: 0 | AH76: 0 | AI76: 0 | AJ76: =SUM(AJ77:AJ78) -> 0 | AK76: 0 | AL76: 0 | AM76: 0 | AN76: 0 | AO76: 0 | AP76: 0 | AQ76: 0 | AR76: 0 | AS76: 0 | AT76: 0 | AU76: 0 | AV76: 0 | AW76: 0 | AX76: 0 | AY76: 0 | AZ76: 0 | BA76: 0 | BB76: 0 | BC76: 0 | BD76: 0 | BE76: 0 | BF76: 0 | BG76: 0 | BH76: 0 | BI76: 0 | BJ76: 0 | BK76: 0 | BL76: 0 | BM76: =SUM(BM77:BM78) -> 0 | BN76: 0 | BO76: 0 | BP76: 0 | BQ76: 0 | BR76: 0 | BS76: 0 | BT76: =SUM(BT77:BT78) -> 0 | BU76: =SUM(BU77:BU78) -> 0 | BV76: =SUM(BV77:BV78) -> 0
A77: 53. | B77: 1.Bevételek aktív időbeli elhatárolása | C77: 1) Accrued income | D77: 0 | E77: 0 | F77: 0 | G77: 0 | H77: 0 | I77: 0 | J77: 0 | K77: 0 | L77: 0 | M77: 0 | N77: 0 | O77: 0 | P77: 0 | Q77: 0 | R77: 0 | S77: 0 | T77: 0 | U77: 0 | V77: 0 | W77: 0 | X77: 0 | Y77: 0 | Z77: 0 | AA77: 0 | AB77: 0 | AC77: 0 | AD77: 0 | AE77: 0 | AF77: 0 | AG77: 0 | AH77: 0 | AI77: 0 | AJ77: 0 | AK77: 0 | AL77: 0 | AM77: 0 | AN77: 0 | AO77: 0 | AP77: 0 | AQ77: 0 | AR77: 0 | AS77: 0 | AT77: 0 | AU77: 0 | AV77: 0 | AW77: 0 | AX77: 0 | AY77: 0 | AZ77: 0 | BA77: 0 | BB77: 0 | BC77: 0 | BD77: 0 | BE77: 0 | BF77: 0 | BG77: 0 | BH77: 0 | BI77: 0 | BJ77: 0 | BK77: 0 | BL77: 0 | BM77: 0 | BN77: 0 | BO77: 0 | BP77: 0 | BQ77: 0 | BR77: 0 | BS77: 0 | BT77: 0 | BU77: 0 | BV77: 0
A78: 54. | B78: 2.Költségek, ráfordítások aktív időbeli elhatárolása | C78: 2) Accrued expenses | D78: 0 | E78: 0 | F78: 0 | G78: 0 | H78: 0 | I78: 0 | J78: 0 | K78: 0 | L78: 0 | M78: 0 | N78: 0 | O78: 0 | P78: 0 | Q78: 0 | R78: 0 | S78: 0 | T78: 0 | U78: 0 | V78: 0 | W78: 0 | X78: 0 | Y78: 0 | Z78: 0 | AA78: 0 | AB78: 0 | AC78: 0 | AD78: 0 | AE78: 0 | AF78: 0 | AG78: 0 | AH78: 0 | AI78: 0 | AJ78: 0 | AK78: 0 | AL78: 0 | AM78: 0 | AN78: 0 | AO78: 0 | AP78: 0 | AQ78: 0 | AR78: 0 | AS78: 0 | AT78: 0 | AU78: 0 | AV78: 0 | AW78: 0 | AX78: 0 | AY78: 0 | AZ78: 0 | BA78: 0 | BB78: 0 | BC78: 0 | BD78: 0 | BE78: 0 | BF78: 0 | BG78: 0 | BH78: 0 | BI78: 0 | BJ78: 0 | BK78: 0 | BL78: 0 | BM78: 0 | BN78: 0 | BO78: 0 | BP78: 0 | BQ78: 0 | BR78: 0 | BS78: 0 | BT78: 0 | BU78: 0 | BV78: 0
A80: 56. | B80: ESZKÖZÖK (AKTÍVÁK) ÖSSZESEN (01.+26.+48. sor) | C80: Total assets | D80: =SUM(D76,D62,D41) -> 125 | E80: 275 | F80: 525 | G80: 3074.882029 | H80: 4330.776897 | I80: 5925 | J80: 7300 | K80: 8862.5 | L80: 10400 | M80: 11950 | N80: 12580.45639 | O80: 12247.85246 | P80: 11832.68499 | Q80: 11417.55477 | R80: 11002.46234 | S80: 10587.40827 | T80: 10172.39315 | U80: 9757.417546 | V80: 9342.482059 | W80: 8942.940949 | X80: 8528.317813 | Y80: 8113.740081 | Z80: 7699.208432 | AA80: 7284.723558 | AB80: 6870.286162 | AC80: 6455.896954 | AD80: 6041.556658 | AE80: 5627.266008 | AF80: 5213.025748 | AG80: 4798.836635 | AH80: 4384.699434 | AI80: 3970.614926 | AJ80: =SUM(AJ76,AJ62,AJ41) -> 3556.583899 | AK80: 3142.607158 | AL80: 2728.685515 | AM80: 2314.819798 | AN80: 2236.310845 | AO80: 2157.859508 | AP80: 2426.833253 | AQ80: 3114.200923 | AR80: 5853.615882 | AS80: 5618.173541 | AT80: 5382.793268 | AU80: 5147.475996 | AV80: 4912.222667 | AW80: 4677.034242 | AX80: 4441.911695 | AY80: 4347.730418 | AZ80: 4476.070038 | BA80: 4609.362049 | BB80: 4747.676903 | BC80: 4891.086087 | BD80: 5039.662131 | BE80: 5193.478627 | BF80: 5352.610246 | BG80: 5517.132751 | BH80: 5687.123014 | BI80: 5862.659036 | BJ80: 6043.819959 | BK80: 6230.686083 | BL80: 6423.338888 | BM80: =SUM(BM76,BM62,BM41) -> 6635.232309 | BN80: 6852.612297 | BO80: 7075.560809 | BP80: 7304.161031 | BQ80: 7538.497393 | BR80: 7804.185243 | BS80: 8074.890891 | BT80: =SUM(BT76,BT62,BT41) -> 8350.696588 | BU80: =SUM(BU76,BU62,BU41) -> 8631.685869 | BV80: 8919.382994
B82: FORRÁSOK | C82: Liabilities
A83: 57. | B83: D. Saját tőke | C83: D. Shareholders' equity | D83: =SUM(D84:D87) -> -30.741929 | E83: -32.94676513 | F83: -21.13768489 | G83: 348.1670973 | H83: 498.1078165 | I83: 590.2532966 | J83: 554.3591167 | K83: 481.5795323 | L83: 302.5649987 | M83: 5.062830786 | N83: -653.2219034 | O83: -595.1213944 | P83: -573.1896765 | Q83: -542.4044502 | R83: -511.4984021 | S83: -480.4697197 | T83: -449.3165637 | U83: -418.0370668 | V83: -420.363806 | W83: -304.5425972 | X83: -283.3714571 | Y83: -254.15081 | Z83: -224.7757445 | AA83: -195.2439443 | AB83: -165.5530584 | AC83: -146.6867254 | AD83: -118.2232686 | AE83: -89.5934592 | AF83: -60.79480209 | AG83: -31.82476449 | AH83: -2.680775709 | AI83: 22.0703441 | AJ83: =SUM(AJ84:AJ87) -> 88.79178188 | AK83: 200.6050546 | AL83: 360.911588 | AM83: 573.3601448 | AN83: 1119.651813 | AO83: 1722.054445 | AP83: 2372.260336 | AQ83: 3058.809413 | AR83: 3568.985236 | AS83: 3651.071942 | AT83: 3739.745543 | AU83: 3835.128844 | AV83: 3937.34682 | AW83: 4046.526652 | AX83: 4162.797765 | AY83: 4285.332293 | AZ83: 4412.735941 | BA83: 4545.07794 | BB83: 4682.428533 | BC83: 4824.858991 | BD83: 4972.441628 | BE83: 5125.249817 | BF83: 5283.358004 | BG83: 5446.841725 | BH83: 5615.777623 | BI83: 5790.243464 | BJ83: 5970.318153 | BK83: 6156.08175 | BL83: 6347.61549 | BM83: =SUM(BM84:BM87) -> 6558.373061 | BN83: 6774.60016 | BO83: 6996.37849 | BP83: 7223.790977 | BQ83: 7456.921788 | BR83: 7721.386004 | BS83: 7990.849663 | BT83: =SUM(BT84:BT87) -> 8265.394742 | BU83: =SUM(BU84:BU87) -> 8545.104495 | BV83: =SUM(BV84:BV87) -> 8831.502899
A84: 58. | B84: JEGYZETT TŐKE | C84: I. Subscribed (registered) capital | D84: ='Orosz hitel'!C4 -> 25 | E84: =D84+'Orosz hitel'!D4 -> 55 | F84: =E84+'Orosz hitel'!E4 -> 105 | G84: =F84+'Orosz hitel'!F4 -> 545 | H84: =G84+'Orosz hitel'!G4 -> 860 | I84: =H84+'Orosz hitel'!H4 -> 1185 | J84: =I84+'Orosz hitel'!I4 -> 1460 | K84: =J84+'Orosz hitel'!J4 -> 1772.5 | L84: =K84+'Orosz hitel'!K4 -> 2080 | M84: =L84+'Orosz hitel'!L4 -> 2390 | N84: =M84+'Orosz hitel'!M4 -> 2500 | O84: =N84+'Orosz hitel'!N4 -> 2500 | P84: =O84+'Orosz hitel'!O4 -> 2500 | Q84: =P84+'Orosz hitel'!P4 -> 2500 | R84: =Q84+'Orosz hitel'!Q4 -> 2500 | S84: =R84+'Orosz hitel'!R4 -> 2500 | T84: =S84+'Orosz hitel'!S4 -> 2500 | U84: =T84+'Orosz hitel'!T4 -> 2500 | V84: =U84+'Orosz hitel'!U4 -> 2500 | W84: =V84+'Orosz hitel'!V4 -> 2500 | X84: =W84+'Orosz hitel'!W4 -> 2500 | Y84: =X84+'Orosz hitel'!X4 -> 2500 | Z84: =Y84+'Orosz hitel'!Y4 -> 2500 | AA84: =Z84+'Orosz hitel'!Z4 -> 2500 | AB84: =AA84+'Orosz hitel'!AA4 -> 2500 | AC84: =AB84+'Orosz hitel'!AB4 -> 2500 | AD84: =AC84+'Orosz hitel'!AC4 -> 2500 | AE84: =AD84+'Orosz hitel'!AD4 -> 2500 | AF84: =AE84+'Orosz hitel'!AE4 -> 2500 | AG84: =AF84+'Orosz hitel'!AF4 -> 2500 | AH84: =AG84+'Orosz hitel'!AG4 -> 2500 | AI84: =AH84+'Orosz hitel'!AH4 -> 2500 | AJ84: =AI84+'Orosz hitel'!AI4 -> 2500 | AK84: =AJ84+'Orosz hitel'!AJ4 -> 2500 | AL84: =AK84+'Orosz hitel'!AK4 -> 2500 | AM84: =AL84+'Orosz hitel'!AL4 -> 2500 | AN84: =AM84+'Orosz hitel'!AM4 -> 2500 | AO84: =AN84+'Orosz hitel'!AN4 -> 2500 | AP84: =AO84+'Orosz hitel'!AO4 -> 2500 | AQ84: =AP84+'Orosz hitel'!AP4 -> 2500 | AR84: =AQ84+'Orosz hitel'!AQ4 -> 2500 | AS84: =AR84+'Orosz hitel'!AR4 -> 2500 | AT84: =AS84+'Orosz hitel'!AS4 -> 2500 | AU84: =AT84+'Orosz hitel'!AT4 -> 2500 | AV84: =AU84+'Orosz hitel'!AU4 -> 2500 | AW84: =AV84+'Orosz hitel'!AV4 -> 2500 | AX84: =AW84+'Orosz hitel'!AW4 -> 2500 | AY84: =AX84+'Orosz hitel'!AX4 -> 2500 | AZ84: =AY84+'Orosz hitel'!AY4 -> 2500 | BA84: =AZ84+'Orosz hitel'!AZ4 -> 2500 | BB84: =BA84+'Orosz hitel'!BA4 -> 2500 | BC84: =BB84+'Orosz hitel'!BB4 -> 2500 | BD84: =BC84+'Orosz hitel'!BC4 -> 2500 | BE84: =BD84+'Orosz hitel'!BD4 -> 2500 | BF84: =BE84+'Orosz hitel'!BE4 -> 2500 | BG84: =BF84+'Orosz hitel'!BF4 -> 2500 | BH84: =BG84+'Orosz hitel'!BG4 -> 2500 | BI84: =BH84+'Orosz hitel'!BH4 -> 2500 | BJ84: =BI84+'Orosz hitel'!BI4 -> 2500 | BK84: =BJ84+'Orosz hitel'!BJ4 -> 2500 | BL84: =BK84+'Orosz hitel'!BK4 -> 2500 | BM84: =BL84+'Orosz hitel'!BL4 -> 2500 | BN84: =BM84+'Orosz hitel'!BM4 -> 2500 | BO84: =BN84+'Orosz hitel'!BN4 -> 2500 | BP84: =BO84+'Orosz hitel'!BO4 -> 2500 | BQ84: =BP84+'Orosz hitel'!BP4 -> 2500 | BR84: =BQ84+'Orosz hitel'!BQ4 -> 2500 | BS84: =BR84+'Orosz hitel'!BR4 -> 2500 | BT84: =BS84+'Orosz hitel'!BS4 -> 2500 | BU84: =BT84+'Orosz hitel'!BT4 -> 2500 | BV84: =BU84+'Orosz hitel'!BU4 -> 2500
A85: 62. | B85: EREDMÉNYTARTALÉK | C85: IV. Accumulated profit reserve | E85: =D85+D87 -> -55.741929 | F85: -118.6886941 | G85: -189.826379 | H85: -281.6592817 | I85: -446.7185625 | J85: -679.5730825 | K85: -990.4672623 | L85: -1375.746847 | M85: -1862.26138 | N85: -2469.763548 | O85: -3238.048282 | P85: -3833.169677 | Q85: -4406.359353 | R85: -4948.763804 | S85: -5460.262206 | T85: -5940.731925 | U85: -6390.048489 | V85: -6808.085556 | W85: -7228.449362 | X85: -7532.991959 | Y85: -7816.363416 | Z85: -8070.514226 | AA85: -8295.289971 | AB85: -8490.533915 | AC85: -8656.086973 | AD85: -8802.773699 | AE85: -8920.996967 | AF85: -9010.590426 | AG85: -9071.385229 | AH85: -9103.209993 | AI85: -9105.890769 | AJ85: -9083.820425 | AK85: =AJ85+AJ87 -> -9017.098987 | AL85: -8905.285714 | AM85: -8744.979181 | AN85: -8532.530624 | AO85: -7986.238956 | AP85: -7383.836324 | AQ85: -6733.630432 | AR85: -6047.081356 | AS85: -5536.905532 | AT85: -5454.818826 | AU85: -5366.145226 | AV85: -5270.761925 | AW85: -5168.543949 | AX85: -5059.364117 | AY85: -4943.093004 | AZ85: -4820.558476 | BA85: -4693.154828 | BB85: -4560.812829 | BC85: -4423.462236 | BD85: -4281.031778 | BE85: -4133.449141 | BF85: -3980.640952 | BG85: -3822.532765 | BH85: -3659.049044 | BI85: -3490.113146 | BJ85: -3315.647305 | BK85: -3135.572616 | BL85: -2949.809019 | BM85: =BL85+BL87 -> -2758.275279 | BN85: -2547.517708 | BO85: -2331.290609 | BP85: -2109.512279 | BQ85: -1882.099792 | BR85: -1648.968981 | BS85: -1384.504765 | BT85: =BS85+BS87 -> -1115.041106 | BU85: =BT85+BT87 -> -840.4960267 | BV85: -560.7862735
B86: LEKÖTÖTT TARTALÉK | E86: =IF(D83<0,-D83,0) -> 30.741929 | F86: =IF(E83<0,-E83+E86,E86) -> 63.68869414 | G86: =IF(F83<0,-F83+F86,F86) -> 84.82637903 | H86: =IF(G83<0,-G83+G86,G86) -> 84.82637903 | I86: =IF(H83<0,-H83+H86,H86) -> 84.82637903 | J86: =IF(I83<0,-I83+I86,I86) -> 84.82637903 | K86: 84.82637903 | L86: 84.82637903 | M86: 84.82637903 | N86: 84.82637903 | O86: 738.0482824 | P86: 1333.169677 | Q86: 1906.359353 | R86: 2448.763804 | S86: 2960.262206 | T86: 3440.731925 | U86: 3890.048489 | V86: 4308.085556 | W86: 4728.449362 | X86: 5032.991959 | Y86: 5316.363416 | Z86: 5570.514226 | AA86: 5795.289971 | AB86: 5990.533915 | AC86: 6156.086973 | AD86: 6302.773699 | AE86: 6420.996967 | AF86: 6510.590426 | AG86: 6571.385229 | AH86: 6603.209993 | AI86: 6605.890769 | AJ86: 6605.890769 | AK86: 6605.890769 | AL86: 6605.890769 | AM86: 6605.890769 | AN86: 6605.890769 | AO86: 6605.890769 | AP86: 6605.890769 | AQ86: 6605.890769 | AR86: 6605.890769 | AS86: 6605.890769 | AT86: 6605.890769 | AU86: 6605.890769 | AV86: 6605.890769 | AW86: 6605.890769 | AX86: 6605.890769 | AY86: 6605.890769 | AZ86: 6605.890769 | BA86: 6605.890769 | BB86: 6605.890769 | BC86: 6605.890769 | BD86: 6605.890769 | BE86: 6605.890769 | BF86: 6605.890769 | BG86: 6605.890769 | BH86: 6605.890769 | BI86: 6605.890769 | BJ86: 6605.890769 | BK86: 6605.890769 | BL86: 6605.890769 | BM86: =IF(BL83<0,-BL83+BL86,BL86) -> 6605.890769 | BN86: 6605.890769 | BO86: 6605.890769 | BP86: 6605.890769 | BQ86: 6605.890769 | BR86: 6605.890769 | BS86: 6605.890769 | BT86: 6605.890769 | BU86: =IF(BT83<0,-BT83+BT86,BT86) -> 6605.890769 | BV86: 6605.890769
A87: 67. | B87: MÉRLEG SZERINTI EREDMÉNY | C87: VII. Profit or loss for the year | D87: =D34 -> -55.741929 | E87: -62.94676513 | F87: -71.13768489 | G87: -91.83290272 | H87: -165.0592808 | I87: -232.85452 | J87: -310.8941799 | K87: -385.2795844 | L87: -486.5145336 | M87: -607.5021679 | N87: -768.2847342 | O87: -595.1213944 | P87: -573.1896765 | Q87: -542.4044502 | R87: -511.4984021 | S87: -480.4697197 | T87: -449.3165637 | U87: -418.0370668 | V87: -420.363806 | W87: -304.5425972 | X87: -283.3714571 | Y87: -254.15081 | Z87: -224.7757445 | AA87: -195.2439443 | AB87: -165.5530584 | AC87: -146.6867254 | AD87: -118.2232686 | AE87: -89.5934592 | AF87: -60.79480209 | AG87: -31.82476449 | AH87: -2.680775709 | AI87: 22.0703441 | AJ87: =AJ34 -> 66.72143778 | AK87: 111.8132728 | AL87: 160.3065334 | AM87: 212.4485567 | AN87: 546.2916682 | AO87: 602.4026322 | AP87: 650.2058913 | AQ87: 686.5490762 | AR87: 510.1758238 | AS87: 82.08670594 | AT87: 88.67360047 | AU87: 95.38330081 | AV87: 102.217976 | AW87: 109.1798322 | AX87: 116.271113 | AY87: 122.5345277 | AZ87: 127.4036481 | BA87: 132.3419989 | BB87: 137.3505931 | BC87: 142.4304582 | BD87: 147.5826372 | BE87: 152.8081887 | BF87: 158.1081866 | BG87: 163.4837211 | BH87: 168.9358984 | BI87: 174.4658412 | BJ87: 180.0746887 | BK87: 185.7635971 | BL87: 191.5337399 | BM87: =BM34 -> 210.7575707 | BN87: 216.227099 | BO87: 221.77833 | BP87: 227.4124869 | BQ87: 233.1308114 | BR87: 264.4642158 | BS87: 269.4636591 | BT87: =BT34 -> 274.5450793 | BU87: =BU34 -> 279.7097532 | BV87: 286.3984041
A88: 68. | B88: E. Céltartalékok (63.-65. sorok) | C88: E. Provisions
A89: 72. | B89: F. Kötelezettségek (67.+71.+80. sor) | C89: F. Liabilities | D89: =SUM(D90,D91,D95) -> 155.741929 | E89: 307.9467651 | F89: 546.1376849 | G89: 2726.714932 | H89: 3832.669081 | I89: 5334.746703 | J89: 6745.640883 | K89: 8380.920468 | L89: 10097.435 | M89: 11944.93717 | N89: 13233.67829 | O89: 12842.97385 | P89: 12405.87467 | Q89: 11959.95922 | R89: 11513.96074 | S89: 11067.87799 | T89: 10621.70971 | U89: 10175.45461 | V89: 9762.845865 | W89: 9247.483546 | X89: 8811.68927 | Y89: 8367.890891 | Z89: 7923.984176 | AA89: 7479.967503 | AB89: 7035.83922 | AC89: 6602.583679 | AD89: 6159.779927 | AE89: 5716.859467 | AF89: 5273.82055 | AG89: 4830.661399 | AH89: 4387.38021 | AI89: 3948.544582 | AJ89: =SUM(AJ90,AJ91,AJ95) -> 3467.792118 | AK89: 2942.002103 | AL89: 2367.773927 | AM89: 1741.459653 | AN89: 1116.659032 | AO89: 435.8050626 | AP89: 54.57291654 | AQ89: 55.39151029 | AR89: 2284.630645 | AS89: 1967.101599 | AT89: 1643.047726 | AU89: 1312.347152 | AV89: 974.8758474 | AW89: 630.5075904 | AX89: 279.1139298 | AY89: 62.3981257 | AZ89: 63.33409758 | BA89: 64.28410905 | BB89: 65.24837068 | BC89: 66.22709624 | BD89: 67.22050269 | BE89: 68.22881023 | BF89: 69.25224238 | BG89: 70.29102602 | BH89: 71.34539141 | BI89: 72.41557228 | BJ89: 73.50180586 | BK89: 74.60433295 | BL89: 75.72339794 | BM89: =SUM(BM90,BM91,BM95) -> 76.85924891 | BN89: 78.01213765 | BO89: 79.18231971 | BP89: 80.37005451 | BQ89: 81.57560532 | BR89: 82.7992394 | BS89: 84.04122799 | BT89: =SUM(BT90,BT91,BT95) -> 85.30184641 | BU89: =SUM(BU90,BU91,BU95) -> 86.58137411 | BV89: =SUM(BV90,BV91,BV95) -> 87.88009472
A90: 73. | B90: I. HÁTRASOROLT KÖTELEZETTSÉGEK (68.-70. sorok) | C90: I. Subordinated liabilities
A91: 77. | B91: II. HOSSZÚ LEJÁRATÚ KÖTELEZETTSÉGEK (72.-79. sorok) | C91: II. Long-term liabilities | D91: =SUM(D92:D94) -> 100 | E91: 220 | F91: 420 | G91: 2180 | H91: 3440 | I91: 4740 | J91: 5840 | K91: 7090 | L91: 8320 | M91: 9560 | N91: 10000 | O91: 10000 | P91: 9642.857143 | Q91: 9285.714286 | R91: 8928.571429 | S91: 8571.428571 | T91: 8214.285714 | U91: 7857.142857 | V91: 7357.142857 | W91: 6857.142857 | X91: 6357.142857 | Y91: 5857.142857 | Z91: 5357.142857 | AA91: 4857.142857 | AB91: 4357.142857 | AC91: 3785.714286 | AD91: 3214.285714 | AE91: 2642.857143 | AF91: 2071.428571 | AG91: 1500 | AH91: 928.5714286 | AI91: 357.1428571 | AJ91: =SUM(AJ92:AJ94) -> 0 | AK91: 0 | AL91: 0 | AM91: 0 | AN91: 0 | AO91: 0 | AP91: 0 | AQ91: 0 | AR91: 0 | AS91: 0 | AT91: 0 | AU91: 0 | AV91: 0 | AW91: 0 | AX91: 0 | AY91: 0 | AZ91: 0 | BA91: 0 | BB91: 0 | BC91: 0 | BD91: 0 | BE91: 0 | BF91: 0 | BG91: 0 | BH91: 0 | BI91: 0 | BJ91: 0 | BK91: 0 | BL91: 0 | BM91: =SUM(BM92:BM94) -> 0 | BN91: 0 | BO91: 0 | BP91: 0 | BQ91: 0 | BR91: 0 | BS91: 0 | BT91: =SUM(BT92:BT94) -> 0 | BU91: =SUM(BU92:BU94) -> 0 | BV91: =SUM(BV92:BV94) -> 0
A92: 78. | B92: 1.Hosszú lejáratra kapott kölcsönök | C92: 1) Long-term loans
A93: 82. | B93: Orosz hitel | C93: Russian loan | D93: ='Orosz hitel'!C6 -> 100 | E93: ='Orosz hitel'!D6 -> 220 | F93: ='Orosz hitel'!E6 -> 420 | G93: ='Orosz hitel'!F6 -> 2180 | H93: ='Orosz hitel'!G6 -> 3440 | I93: ='Orosz hitel'!H6 -> 4740 | J93: ='Orosz hitel'!I6 -> 5840 | K93: ='Orosz hitel'!J6 -> 7090 | L93: ='Orosz hitel'!K6 -> 8320 | M93: ='Orosz hitel'!L6 -> 9560 | N93: ='Orosz hitel'!M6 -> 10000 | O93: ='Orosz hitel'!N6 -> 10000 | P93: ='Orosz hitel'!O6 -> 9642.857143 | Q93: ='Orosz hitel'!P6 -> 9285.714286 | R93: ='Orosz hitel'!Q6 -> 8928.571429 | S93: ='Orosz hitel'!R6 -> 8571.428571 | T93: ='Orosz hitel'!S6 -> 8214.285714 | U93: ='Orosz hitel'!T6 -> 7857.142857 | V93: ='Orosz hitel'!U6 -> 7357.142857 | W93: ='Orosz hitel'!V6 -> 6857.142857 | X93: ='Orosz hitel'!W6 -> 6357.142857 | Y93: ='Orosz hitel'!X6 -> 5857.142857 | Z93: ='Orosz hitel'!Y6 -> 5357.142857 | AA93: ='Orosz hitel'!Z6 -> 4857.142857 | AB93: ='Orosz hitel'!AA6 -> 4357.142857 | AC93: ='Orosz hitel'!AB6 -> 3785.714286 | AD93: ='Orosz hitel'!AC6 -> 3214.285714 | AE93: ='Orosz hitel'!AD6 -> 2642.857143 | AF93: ='Orosz hitel'!AE6 -> 2071.428571 | AG93: ='Orosz hitel'!AF6 -> 1500 | AH93: ='Orosz hitel'!AG6 -> 928.5714286 | AI93: ='Orosz hitel'!AH6 -> 357.1428571 | AJ93: ='Orosz hitel'!AI6 -> 0
A94: 85. | B94: 8.Egyéb hosszú lejáratú kötelezettségek | C94: 8) Other long-term liabilities
A95: 86. | B95: III. RÖVID LEJÁRATÚ KÖTELEZETTSÉGEK (81.-89. sorok) | C95: III. Current liabilities | D95: =SUM(D96:D98) -> 55.741929 | E95: =SUM(E96:E98) -> 87.94676513 | F95: 126.1376849 | G95: 546.714932 | H95: 392.6690806 | I95: 594.7467034 | J95: 905.6408833 | K95: 1290.920468 | L95: 1777.435001 | M95: 2384.937169 | N95: 3233.678295 | O95: 2842.973851 | P95: 2763.017527 | Q95: 2674.244932 | R95: 2585.389313 | S95: 2496.449423 | T95: 2407.423998 | U95: 2318.311756 | V95: 2405.703008 | W95: 2390.340689 | X95: 2454.546413 | Y95: 2510.748033 | Z95: 2566.841319 | AA95: 2622.824645 | AB95: 2678.696363 | AC95: 2816.869394 | AD95: 2945.494213 | AE95: 3074.002325 | AF95: 3202.391979 | AG95: 3330.661399 | AH95: 3458.808781 | AI95: 3591.401724 | AJ95: 3467.792118 | AK95: 2942.002103 | AL95: 2367.773927 | AM95: 1741.459653 | AN95: 1116.659032 | AO95: 435.8050626 | AP95: 54.57291654 | AQ95: 55.39151029 | AR95: 2284.630645 | AS95: 1967.101599 | AT95: 1643.047726 | AU95: 1312.347152 | AV95: 974.8758474 | AW95: 630.5075904 | AX95: 279.1139298 | AY95: 62.3981257 | AZ95: 63.33409758 | BA95: 64.28410905 | BB95: 65.24837068 | BC95: 66.22709624 | BD95: 67.22050269 | BE95: 68.22881023 | BF95: 69.25224238 | BG95: 70.29102602 | BH95: 71.34539141 | BI95: 72.41557228 | BJ95: 73.50180586 | BK95: 74.60433295 | BL95: 75.72339794 | BM95: =SUM(BM96:BM98) -> 76.85924891 | BN95: =SUM(BN96:BN98) -> 78.01213765 | BO95: =SUM(BO96:BO98) -> 79.18231971 | BP95: =SUM(BP96:BP98) -> 80.37005451 | BQ95: =SUM(BQ96:BQ98) -> 81.57560532 | BR95: =SUM(BR96:BR98) -> 82.7992394 | BS95: =SUM(BS96:BS98) -> 84.04122799 | BT95: =SUM(BT96:BT98) -> 85.30184641 | BU95: =SUM(BU96:BU98) -> 86.58137411 | BV95: =SUM(BV96:BV98) -> 87.88009472
A96: 87. | B96: 1.Rövid lejáratú kölcsönök | C96: 1) Short-term bank loans | D96: =IF(D105>0,D105,0) -> 20.85644955 | E96: =IF(E105>0,E105,0) -> 46.83594869 | F96: 60.30746648 | G96: 0 | H96: 0 | I96: 189.684162 | J96: 562.1565133 | K96: 901.1365719 | L96: 1393.74784 | M96: 1998.099153 | N96: 3093.345927 | O96: 2807.009936 | P96: 2726.514153 | Q96: 2637.194008 | R96: 2547.782625 | S96: 2458.278634 | T96: 2368.680648 | U96: 2278.987255 | V96: 2365.78864 | W96: 2349.827606 | X96: 2412.802957 | Y96: 2468.378425 | Z96: 2523.836167 | AA96: 2579.174416 | AB96: 2634.39138 | AC96: 2771.899836 | AD96: 2899.850112 | AE96: 3027.673562 | AF96: 3155.368285 | AG96: 3282.93235 | AH96: 3410.363796 | AI96: 3542.230065 | AJ96: 3417.882883 | AK96: 2891.34423 | AL96: 2316.356186 | AM96: 1689.270646 | AN96: 1063.68719 | AO96: 382.0386423 | AP96: 0 | AQ96: 0 | AR96: 2228.408262 | AS96: 1910.03588 | AT96: 1585.126021 | AU96: 1253.556622 | AV96: 915.2034594 | AW96: 569.9401166 | AX96: 217.6379439 | AY96: 0 | AZ96: 0 | BA96: 0 | BB96: 0 | BC96: 0 | BD96: 0 | BE96: 0 | BF96: 0 | BG96: 0 | BH96: 0 | BI96: 0 | BJ96: 0 | BK96: 0 | BL96: 0 | BM96: =IF(BM105>0,BM105,0) -> 0 | BN96: 0 | BO96: 0 | BP96: 0 | BQ96: 0 | BR96: 0 | BS96: 0 | BT96: 0 | BU96: =IF(BU105>0,BU105,0) -> 0 | BV96: 0
A97: 91. | B97: 4.Kötelezettségek áruszállításból és szolgáltatásból (szállítók) | C97: 4) Accounts payable | D97: =D50*Paraméterek!$B31/365+D9*Paraméterek!$B32/365 -> 34.88547945 | E97: =(E50-D50)*Paraméterek!$B31/365+E9*Paraméterek!$B32/365 -> 41.11081644 | F97: =(F50-E50)*Paraméterek!$B31/365+F9*Paraméterek!$B32/365 -> 65.83021841 | G97: =(G50-F50)*Paraméterek!$B31/365+G9*Paraméterek!$B32/365 -> 546.714932 | H97: =(H50-G50)*Paraméterek!$B31/365+H9*Paraméterek!$B32/365 -> 392.6690806 | I97: =(I50-H50)*Paraméterek!$B31/365+I9*Paraméterek!$B32/365 -> 405.0625415 | J97: =(J50-I50)*Paraméterek!$B31/365+J9*Paraméterek!$B32/365 -> 343.48437 | K97: =(K50-J50)*Paraméterek!$B31/365+K9*Paraméterek!$B32/365 -> 389.7838958 | L97: =(L50-K50)*Paraméterek!$B31/365+L9*Paraméterek!$B32/365 -> 383.6871611 | M97: =(M50-L50)*Paraméterek!$B31/365+M9*Paraméterek!$B32/365 -> 386.8380165 | N97: =(N50-M50)*Paraméterek!$B31/365+N9*Paraméterek!$B32/365 -> 140.3323675 | O97: =O9*Paraméterek!$B32/365 -> 21.11953462 | P97: =P9*Paraméterek!$B32/365 -> 21.43632764 | Q97: =Q9*Paraméterek!$B32/365 -> 21.75787256 | R97: =R9*Paraméterek!$B32/365 -> 22.08424065 | S97: =S9*Paraméterek!$B32/365 -> 22.41550426 | T97: =T9*Paraméterek!$B32/365 -> 22.75173682 | U97: =U9*Paraméterek!$B32/365 -> 23.09301287 | V97: =V9*Paraméterek!$B32/365 -> 23.43940807 | W97: =W9*Paraméterek!$B32/365 -> 23.79099919 | X97: =X9*Paraméterek!$B32/365 -> 24.77054062 | Y97: =Y9*Paraméterek!$B32/365 -> 25.14209872 | Z97: =Z9*Paraméterek!$B32/365 -> 25.51923021 | AA97: =AA9*Paraméterek!$B32/365 -> 25.90201866 | AB97: =AB9*Paraméterek!$B32/365 -> 26.29054894 | AC97: =AC9*Paraméterek!$B32/365 -> 26.68490717 | AD97: =AD9*Paraméterek!$B32/365 -> 27.08518078 | AE97: =AE9*Paraméterek!$B32/365 -> 27.49145849 | AF97: =AF9*Paraméterek!$B32/365 -> 27.90383037 | AG97: =AG9*Paraméterek!$B32/365 -> 28.32238783 | AH97: =AH9*Paraméterek!$B32/365 -> 28.74722364 | AI97: =AI9*Paraméterek!$B32/365 -> 29.178432 | AJ97: =AJ9*Paraméterek!$B32/365 -> 29.61610848 | AK97: =AK9*Paraméterek!$B32/365 -> 30.0603501 | AL97: =AL9*Paraméterek!$B32/365 -> 30.51125536 | AM97: =AM9*Paraméterek!$B32/365 -> 30.96892419 | AN97: =AN9*Paraméterek!$B32/365 -> 31.43345805 | AO97: =AO9*Paraméterek!$B32/365 -> 31.90495992 | AP97: =AP9*Paraméterek!$B32/365 -> 32.38353432 | AQ97: =AQ9*Paraméterek!$B32/365 -> 32.86928733 | AR97: =AR9*Paraméterek!$B32/365 -> 33.36232664 | AS97: =AS9*Paraméterek!$B32/365 -> 33.86276154 | AT97: =AT9*Paraméterek!$B32/365 -> 34.37070297 | AU97: =AU9*Paraméterek!$B32/365 -> 34.88626351 | AV97: =AV9*Paraméterek!$B32/365 -> 35.40955746 | AW97: =AW9*Paraméterek!$B32/365 -> 35.94070083 | AX97: =AX9*Paraméterek!$B32/365 -> 36.47981134 | AY97: =AY9*Paraméterek!$B32/365 -> 37.02700851 | AZ97: =AZ9*Paraméterek!$B32/365 -> 37.58241364 | BA97: =BA9*Paraméterek!$B32/365 -> 38.14614984 | BB97: =BB9*Paraméterek!$B32/365 -> 38.71834209 | BC97: =BC9*Paraméterek!$B32/365 -> 39.29911722 | BD97: =BD9*Paraméterek!$B32/365 -> 39.88860398 | BE97: =BE9*Paraméterek!$B32/365 -> 40.48693304 | BF97: =BF9*Paraméterek!$B32/365 -> 41.09423703 | BG97: =BG9*Paraméterek!$B32/365 -> 41.71065059 | BH97: =BH9*Paraméterek!$B32/365 -> 42.33631035 | BI97: =BI9*Paraméterek!$B32/365 -> 42.971355 | BJ97: =BJ9*Paraméterek!$B32/365 -> 43.61592533 | BK97: =BK9*Paraméterek!$B32/365 -> 44.27016421 | BL97: =BL9*Paraméterek!$B32/365 -> 44.93421667 | BM97: =BM9*Paraméterek!$B32/365 -> 45.60822992 | BN97: =BN9*Paraméterek!$B32/365 -> 46.29235337 | BO97: =BO9*Paraméterek!$B32/365 -> 46.98673867 | BP97: =BP9*Paraméterek!$B32/365 -> 47.69153975 | BQ97: =BQ9*Paraméterek!$B32/365 -> 48.40691285 | BR97: =BR9*Paraméterek!$B32/365 -> 49.13301654 | BS97: =BS9*Paraméterek!$B32/365 -> 49.87001179 | BT97: =BT9*Paraméterek!$B32/365 -> 50.61806196 | BU97: =BU9*Paraméterek!$B32/365 -> 51.37733289 | BV97: =BV9*Paraméterek!$B32/365 -> 52.14799289
A98: 95. | B98: 8.Egyéb rövid lejáratú kötelezettségek | C98: 8) Other short-term liabilities | O98: =O13*Paraméterek!$B33/12+(O9-O6)*Paraméterek!$B34/12 -> 14.84438024 | P98: =P13*Paraméterek!$B33/12+(P9-P6)*Paraméterek!$B34/12 -> 15.06704595 | Q98: =Q13*Paraméterek!$B33/12+(Q9-Q6)*Paraméterek!$B34/12 -> 15.29305163 | R98: =R13*Paraméterek!$B33/12+(R9-R6)*Paraméterek!$B34/12 -> 15.52244741 | S98: =S13*Paraméterek!$B33/12+(S9-S6)*Paraméterek!$B34/12 -> 15.75528412 | T98: =T13*Paraméterek!$B33/12+(T9-T6)*Paraméterek!$B34/12 -> 15.99161338 | U98: =U13*Paraméterek!$B33/12+(U9-U6)*Paraméterek!$B34/12 -> 16.23148758 | V98: =V13*Paraméterek!$B33/12+(V9-V6)*Paraméterek!$B34/12 -> 16.4749599 | W98: =W13*Paraméterek!$B33/12+(W9-W6)*Paraméterek!$B34/12 -> 16.72208429 | X98: =X13*Paraméterek!$B33/12+(X9-X6)*Paraméterek!$B34/12 -> 16.97291556 | Y98: =Y13*Paraméterek!$B33/12+(Y9-Y6)*Paraméterek!$B34/12 -> 17.22750929 | Z98: =Z13*Paraméterek!$B33/12+(Z9-Z6)*Paraméterek!$B34/12 -> 17.48592193 | AA98: =AA13*Paraméterek!$B33/12+(AA9-AA6)*Paraméterek!$B34/12 -> 17.74821076 | AB98: =AB13*Paraméterek!$B33/12+(AB9-AB6)*Paraméterek!$B34/12 -> 18.01443392 | AC98: =AC13*Paraméterek!$B33/12+(AC9-AC6)*Paraméterek!$B34/12 -> 18.28465043 | AD98: =AD13*Paraméterek!$B33/12+(AD9-AD6)*Paraméterek!$B34/12 -> 18.55892019 | AE98: =AE13*Paraméterek!$B33/12+(AE9-AE6)*Paraméterek!$B34/12 -> 18.83730399 | AF98: =AF13*Paraméterek!$B33/12+(AF9-AF6)*Paraméterek!$B34/12 -> 19.11986355 | AG98: =AG13*Paraméterek!$B33/12+(AG9-AG6)*Paraméterek!$B34/12 -> 19.4066615 | AH98: =AH13*Paraméterek!$B33/12+(AH9-AH6)*Paraméterek!$B34/12 -> 19.69776143 | AI98: =AI13*Paraméterek!$B33/12+(AI9-AI6)*Paraméterek!$B34/12 -> 19.99322785 | AJ98: =AJ13*Paraméterek!$B33/12+(AJ9-AJ6)*Paraméterek!$B34/12 -> 20.29312627 | AK98: =AK13*Paraméterek!$B33/12+(AK9-AK6)*Paraméterek!$B34/12 -> 20.59752316 | AL98: =AL13*Paraméterek!$B33/12+(AL9-AL6)*Paraméterek!$B34/12 -> 20.90648601 | AM98: =AM13*Paraméterek!$B33/12+(AM9-AM6)*Paraméterek!$B34/12 -> 21.2200833 | AN98: =AN13*Paraméterek!$B33/12+(AN9-AN6)*Paraméterek!$B34/12 -> 21.53838455 | AO98: =AO13*Paraméterek!$B33/12+(AO9-AO6)*Paraméterek!$B34/12 -> 21.86146031 | AP98: =AP13*Paraméterek!$B33/12+(AP9-AP6)*Paraméterek!$B34/12 -> 22.18938222 | AQ98: =AQ13*Paraméterek!$B33/12+(AQ9-AQ6)*Paraméterek!$B34/12 -> 22.52222295 | AR98: =AR13*Paraméterek!$B33/12+(AR9-AR6)*Paraméterek!$B34/12 -> 22.8600563 | AS98: =AS13*Paraméterek!$B33/12+(AS9-AS6)*Paraméterek!$B34/12 -> 23.20295714 | AT98: =AT13*Paraméterek!$B33/12+(AT9-AT6)*Paraméterek!$B34/12 -> 23.5510015 | AU98: =AU13*Paraméterek!$B33/12+(AU9-AU6)*Paraméterek!$B34/12 -> 23.90426652 | AV98: =AV13*Paraméterek!$B33/12+(AV9-AV6)*Paraméterek!$B34/12 -> 24.26283052 | AW98: =AW13*Paraméterek!$B33/12+(AW9-AW6)*Paraméterek!$B34/12 -> 24.62677298 | AX98: =AX13*Paraméterek!$B33/12+(AX9-AX6)*Paraméterek!$B34/12 -> 24.99617457 | AY98: =AY13*Paraméterek!$B33/12+(AY9-AY6)*Paraméterek!$B34/12 -> 25.37111719 | AZ98: =AZ13*Paraméterek!$B33/12+(AZ9-AZ6)*Paraméterek!$B34/12 -> 25.75168395 | BA98: =BA13*Paraméterek!$B33/12+(BA9-BA6)*Paraméterek!$B34/12 -> 26.13795921 | BB98: =BB13*Paraméterek!$B33/12+(BB9-BB6)*Paraméterek!$B34/12 -> 26.53002859 | BC98: =BC13*Paraméterek!$B33/12+(BC9-BC6)*Paraméterek!$B34/12 -> 26.92797902 | BD98: =BD13*Paraméterek!$B33/12+(BD9-BD6)*Paraméterek!$B34/12 -> 27.33189871 | BE98: =BE13*Paraméterek!$B33/12+(BE9-BE6)*Paraméterek!$B34/12 -> 27.74187719 | BF98: =BF13*Paraméterek!$B33/12+(BF9-BF6)*Paraméterek!$B34/12 -> 28.15800535 | BG98: =BG13*Paraméterek!$B33/12+(BG9-BG6)*Paraméterek!$B34/12 -> 28.58037543 | BH98: =BH13*Paraméterek!$B33/12+(BH9-BH6)*Paraméterek!$B34/12 -> 29.00908106 | BI98: =BI13*Paraméterek!$B33/12+(BI9-BI6)*Paraméterek!$B34/12 -> 29.44421728 | BJ98: =BJ13*Paraméterek!$B33/12+(BJ9-BJ6)*Paraméterek!$B34/12 -> 29.88588053 | BK98: =BK13*Paraméterek!$B33/12+(BK9-BK6)*Paraméterek!$B34/12 -> 30.33416874 | BL98: =BL13*Paraméterek!$B33/12+(BL9-BL6)*Paraméterek!$B34/12 -> 30.78918127 | BM98: =BM13*Paraméterek!$B33/12+(BM9-BM6)*Paraméterek!$B34/12 -> 31.25101899 | BN98: =BN13*Paraméterek!$B33/12+(BN9-BN6)*Paraméterek!$B34/12 -> 31.71978428 | BO98: =BO13*Paraméterek!$B33/12+(BO9-BO6)*Paraméterek!$B34/12 -> 32.19558104 | BP98: =BP13*Paraméterek!$B33/12+(BP9-BP6)*Paraméterek!$B34/12 -> 32.67851476 | BQ98: =BQ13*Paraméterek!$B33/12+(BQ9-BQ6)*Paraméterek!$B34/12 -> 33.16869248 | BR98: =BR13*Paraméterek!$B33/12+(BR9-BR6)*Paraméterek!$B34/12 -> 33.66622287 | BS98: =BS13*Paraméterek!$B33/12+(BS9-BS6)*Paraméterek!$B34/12 -> 34.17121621 | BT98: =BT13*Paraméterek!$B33/12+(BT9-BT6)*Paraméterek!$B34/12 -> 34.68378445 | BU98: =BU13*Paraméterek!$B33/12+(BU9-BU6)*Paraméterek!$B34/12 -> 35.20404122 | BV98: =BV13*Paraméterek!$B33/12+(BV9-BV6)*Paraméterek!$B34/12 -> 35.73210184
A99: 96. | B99: 9. Kötelezettségek értékelési különbözete
A100: 97. | B100: 10. Származékos ügyletek negatív értékelési különbözete
A101: 98. | B101: G. Passzív időbeli elhatárolások | C101: G. Accrued and deferred liabilities
A102: 102. | B102: FORRÁSOK (PASSZÍVÁK) ÖSSZESEN (53.+62.+66.+90. sor) | C102: Total liabilities | D102: =SUM(D101,D89,D88,D83) -> 125 | E102: 275 | F102: 525 | G102: 3074.882029 | H102: 4330.776897 | I102: 5925 | J102: 7300 | K102: 8862.5 | L102: 10400 | M102: 11950 | N102: 12580.45639 | O102: 12247.85246 | P102: 11832.68499 | Q102: 11417.55477 | R102: 11002.46234 | S102: 10587.40827 | T102: 10172.39315 | U102: 9757.417546 | V102: 9342.482059 | W102: 8942.940949 | X102: 8528.317813 | Y102: 8113.740081 | Z102: 7699.208432 | AA102: 7284.723558 | AB102: 6870.286162 | AC102: 6455.896954 | AD102: 6041.556658 | AE102: 5627.266008 | AF102: 5213.025748 | AG102: 4798.836635 | AH102: 4384.699434 | AI102: 3970.614926 | AJ102: =SUM(AJ101,AJ89,AJ88,AJ83) -> 3556.583899 | AK102: 3142.607158 | AL102: 2728.685515 | AM102: 2314.819798 | AN102: 2236.310845 | AO102: 2157.859508 | AP102: 2426.833253 | AQ102: 3114.200923 | AR102: 5853.615882 | AS102: 5618.173541 | AT102: 5382.793268 | AU102: 5147.475996 | AV102: 4912.222667 | AW102: 4677.034242 | AX102: 4441.911695 | AY102: 4347.730418 | AZ102: 4476.070038 | BA102: 4609.362049 | BB102: 4747.676903 | BC102: 4891.086087 | BD102: 5039.662131 | BE102: 5193.478627 | BF102: 5352.610246 | BG102: 5517.132751 | BH102: 5687.123014 | BI102: 5862.659036 | BJ102: 6043.819959 | BK102: 6230.686083 | BL102: 6423.338888 | BM102: =SUM(BM101,BM89,BM88,BM83) -> 6635.232309 | BN102: 6852.612297 | BO102: 7075.560809 | BP102: 7304.161031 | BQ102: 7538.497393 | BR102: 7804.185243 | BS102: 8074.890891 | BT102: =SUM(BT101,BT89,BT88,BT83) -> 8350.696588 | BU102: =SUM(BU101,BU89,BU88,BU83) -> 8631.685869 | BV102: =SUM(BV101,BV89,BV88,BV83) -> 8919.382994
B104: célérték | D104: =D80-D102 -> 0 | E104: 0 | F104: 0 | G104: 0 | H104: 0 | I104: 0 | J104: 0 | K104: 0 | L104: 0 | M104: 0 | N104: 0 | O104: 0 | P104: 0 | Q104: -1.455191523e-11 | R104: 0 | S104: 0 | T104: 0 | U104: 0 | V104: 0 | W104: 0 | X104: 0 | Y104: 0 | Z104: 0 | AA104: 0 | AB104: 0 | AC104: 0 | AD104: 0 | AE104: 0 | AF104: 0 | AG104: 0 | AH104: 0 | AI104: 0 | AJ104: =AJ80-AJ102 -> 0 | AK104: 0 | AL104: 0 | AM104: 0 | AN104: 0 | AO104: 0 | AP104: 0 | AQ104: 0 | AR104: 0 | AS104: 0 | AT104: 0 | AU104: 0 | AV104: 0 | AW104: 0 | AX104: 0 | AY104: 0 | AZ104: 0 | BA104: 0 | BB104: 0 | BC104: 0 | BD104: 0 | BE104: 0 | BF104: 0 | BG104: 0 | BH104: 0 | BI104: 0 | BJ104: 0 | BK104: 0 | BL104: 0 | BM104: =BM80-BM102 -> 0 | BN104: 0 | BO104: 0 | BP104: 0 | BQ104: 0 | BR104: 0 | BS104: 0 | BT104: =BT80-BT102 -> 0 | BU104: =BU80-BU102 -> 0 | BV104: 0 | BW104: =SUM(D104:BV104) -> -1.455191523e-11
B105: Addicionális finanszírozási igény | C105: Additional financing | D105: 20.85644955 | E105: 46.83594869 | F105: 60.30746648 | G105: -349.8820292 | H105: -30.77689712 | I105: 189.684162 | J105: 562.1565133 | K105: 901.1365719 | L105: 1393.74784 | M105: 1998.099153 | N105: 3093.345927 | O105: 2807.009936 | P105: 2726.514153 | Q105: 2637.194008 | R105: 2547.782625 | S105: 2458.278634 | T105: 2368.680648 | U105: 2278.987255 | V105: 2365.78864 | W105: 2349.827606 | X105: 2412.802957 | Y105: 2468.378425 | Z105: 2523.836167 | AA105: 2579.174416 | AB105: 2634.39138 | AC105: 2771.899836 | AD105: 2899.850112 | AE105: 3027.673562 | AF105: 3155.368285 | AG105: 3282.93235 | AH105: 3410.363796 | AI105: 3542.230065 | AJ105: 3417.882883 | AK105: 2891.34423 | AL105: 2316.356186 | AM105: 1689.270646 | AN105: 1063.68719 | AO105: 382.0386423 | AP105: -347.3666026 | AQ105: -1113.067773 | AR105: 2228.408262 | AS105: 1910.03588 | AT105: 1585.126021 | AU105: 1253.556622 | AV105: 915.2034594 | AW105: 569.9401166 | AX105: 217.6379439 | AY105: -140.8744058 | AZ105: -504.2018396 | BA105: -872.4127774 | BB105: -1245.57664 | BC105: -1623.763863 | BD105: -2007.045913 | BE105: -2395.495302 | BF105: -2789.185603 | BG105: -3188.191467 | BH105: -3592.588637 | BI105: -4002.453965 | BJ105: -4417.865429 | BK105: -4838.90215 | BL105: -5265.644407 | BM105: -5629.194919 | BN105: -5998.148399 | BO105: -6372.585553 | BP105: -6752.588293 | BQ105: -7138.239757 | BR105: -7397.923742 | BS105: -7662.535467 | BT105: -7932.155834 | BU105: -8206.867003 | BV105: -8700.952827
B107: CASH FLOW | C107: CASH FLOW
B109: A tétel megnevezése
B110: ÜZEMI ( ÜZLETI) TEVÉKENYSÉG EREDMÉNYE (I.±II.+III.-IV.-V.-VI.-VII.) | C110: Income from operations (I+II+III-IV-V-VI-VII) | D110: =+D17 -> -52.09841304 | E110: -52.87988924 | F110: -53.67308757 | G110: -54.47818389 | H110: -55.29535665 | I110: -56.124787 | J110: -56.9666588 | K110: -57.82115868 | L110: -70.66720639 | M110: -94.52423565 | N110: -134.50706 | O110: 79.43940044 | P110: 86.89574145 | Q110: 94.46392757 | R110: 102.1456365 | S110: 109.942571 | T110: 117.8564596 | U110: 125.8890565 | V110: =+V17 -> 134.0421423 | W110: 224.5864684 | X110: 226.7956367 | Y110: 236.4623212 | Z110: 246.274006 | AA110: =+AA17 -> 256.2328661 | AB110: 266.3411091 | AC110: 276.6009757 | AD110: 287.0147404 | AE110: 297.5847115 | AF110: 308.3132321 | AG110: 319.2026806 | AH110: 330.2554708 | AI110: 341.4740529 | AJ110: 352.8609137 | AK110: 364.4185774 | AL110: 376.1496061 | AM110: 388.0566002 | AN110: 735.4421992 | AO110: 747.7090821 | AP110: 760.1599684 | AQ110: 772.7976179 | AR110: 785.6248322 | AS110: 641.4142153 | AT110: 654.6291321 | AU110: 668.0422727 | AV110: 681.6566103 | AW110: 695.4751631 | AX110: 709.5009941 | AY110: 723.7372126 | AZ110: 738.1869744 | BA110: 752.8534826 | BB110: 767.7399885 | BC110: 782.8497919 | BD110: 798.1862423 | BE110: 813.7527396 | BF110: 829.5527342 | BG110: 845.5897289 | BH110: 861.8672784 | BI110: 878.3889911 | BJ110: 895.1585296 | BK110: 912.1796111 | BL110: 929.4560089 | BM110: =+BM17 -> 1029.341553 | BN110: 1047.140129 | BO110: 1065.205685 | BP110: 1083.542224 | BQ110: 1102.153811 | BR110: 1278.274811 | BS110: 1297.448933 | BT110: =+BT17 -> 1316.910667 | BU110: =+BU17 -> 1336.664327 | BV110: 1356.714292
A111: - | B111: Üzemi eredményre jutó adó | C111: Corporate tax on operating profit | D111: =D35*-D110 -> 0 | E111: =E35*-E110 -> 0 | F111: 0 | G111: 0 | H111: 0 | I111: 0 | J111: 0 | K111: 0 | L111: 0 | M111: 0 | N111: =N35*-N110 -> 0 | O111: =O35*-O110 -> 0 | P111: =P35*-P110 -> 0 | Q111: =Q35*-Q110 -> 0 | R111: =R35*-R110 -> 0 | S111: =S35*-S110 -> 0 | T111: =T35*-T110 -> 0 | U111: =U35*-U110 -> 0 | V111: 0 | W111: =W35*-W110 -> 0 | X111: =X35*-X110 -> 0 | Y111: 0 | Z111: 0 | AA111: =AA35*-AA110 -> 0 | AB111: =AB35*-AB110 -> 0 | AC111: =AC35*-AC110 -> 0 | AD111: =AD35*-AD110 -> 0 | AE111: =AE35*-AE110 -> 0 | AF111: =AF35*-AF110 -> 0 | AG111: =AG35*-AG110 -> 0 | AH111: =AH35*-AH110 -> 0 | AI111: =AI35*-AI110 -> -54.63584846 | AJ111: =AJ35*-AJ110 -> -56.45774619 | AK111: =AK35*-AK110 -> -58.30697238 | AL111: =AL35*-AL110 -> -60.18393697 | AM111: =AM35*-AM110 -> -62.08905602 | AN111: =AN35*-AN110 -> -117.6707519 | AO111: =AO35*-AO110 -> -119.6334531 | AP111: =AP35*-AP110 -> -121.6255949 | AQ111: =AQ35*-AQ110 -> -123.6476189 | AR111: =AR35*-AR110 -> -125.6999731 | AS111: =AS35*-AS110 -> -102.6262744 | AT111: =AT35*-AT110 -> -104.7406611 | AU111: =AU35*-AU110 -> -106.8867636 | AV111: =AV35*-AV110 -> -109.0650577 | AW111: =AW35*-AW110 -> -111.2760261 | AX111: =AX35*-AX110 -> -113.5201591 | AY111: =AY35*-AY110 -> -115.797954 | AZ111: =AZ35*-AZ110 -> -118.1099159 | BA111: =BA35*-BA110 -> -120.4565572 | BB111: =BB35*-BB110 -> -122.8383982 | BC111: =BC35*-BC110 -> -125.2559667 | BD111: =BD35*-BD110 -> -127.7097988 | BE111: =BE35*-BE110 -> -130.2004383 | BF111: =BF35*-BF110 -> -132.7284375 | BG111: =BG35*-BG110 -> -135.2943566 | BH111: =BH35*-BH110 -> -137.8987645 | BI111: =BI35*-BI110 -> -140.5422386 | BJ111: =BJ35*-BJ110 -> -143.2253647 | BK111: =BK35*-BK110 -> -145.9487378 | BL111: =BL35*-BL110 -> -148.7129614 | BM111: =BM35*-BM110 -> -164.6946484 | BN111: =BN35*-BN110 -> -167.5424207 | BO111: =BO35*-BO110 -> -170.4329096 | BP111: =BP35*-BP110 -> -173.3667558 | BQ111: =BQ35*-BQ110 -> -176.3446097 | BR111: =BR35*-BR110 -> -204.5239698 | BS111: =BS35*-BS110 -> -207.5918293 | BT111: =BT35*-BT110 -> -210.7057067 | BU111: =BU35*-BU110 -> -213.8662923 | BV111: =BV35*-BV110 -> -217.0742867
A112: + | B112: Értékcsökkenési leírás | C112: Depreciation | D112: =+D14 -> 0 | E112: 0 | F112: 0 | G112: 0 | H112: 0 | I112: 0 | J112: 0 | K112: 0 | L112: 0 | M112: 0 | N112: 0 | O112: 417.65 | P112: 417.65 | Q112: 417.65 | R112: 417.65 | S112: 417.65 | T112: 417.65 | U112: 417.65 | V112: =+V14 -> 417.65 | W112: 417.65 | X112: 417.65 | Y112: 417.65 | Z112: 417.65 | AA112: =+AA14 -> 417.65 | AB112: 417.65 | AC112: 417.65 | AD112: 417.65 | AE112: 417.65 | AF112: 417.65 | AG112: 417.65 | AH112: 417.65 | AI112: 417.65 | AJ112: 417.65 | AK112: 417.65 | AL112: 417.65 | AM112: 417.65 | AN112: 82.35 | AO112: 82.35 | AP112: 82.35 | AQ112: 82.35 | AR112: 82.35 | AS112: 239.5802394 | AT112: 239.5802394 | AU112: 239.5802394 | AV112: 239.5802394 | AW112: 239.5802394 | AX112: 239.5802394 | AY112: 239.5802394 | AZ112: 239.5802394 | BA112: 239.5802394 | BB112: 239.5802394 | BC112: 239.5802394 | BD112: 239.5802394 | BE112: 239.5802394 | BF112: 239.5802394 | BG112: 239.5802394 | BH112: 239.5802394 | BI112: 239.5802394 | BJ112: 239.5802394 | BK112: 239.5802394 | BL112: 239.5802394 | BM112: =+BM14 -> 157.2302394 | BN112: 157.2302394 | BO112: 157.2302394 | BP112: 157.2302394 | BQ112: 157.2302394 | BR112: 0 | BS112: 0 | BT112: =+BT14 -> 0 | BU112: =+BU14 -> 0 | BV112: 0
A113: + | B113: Céltartalékok állományváltozása | C113: Change in provisions | D113: =+D88 -> 0 | E113: =+E88-D88 -> 0 | F113: 0 | G113: 0 | H113: 0 | I113: 0 | J113: 0 | K113: 0 | L113: 0 | M113: 0 | N113: 0 | O113: 0 | P113: 0 | Q113: 0 | R113: 0 | S113: 0 | T113: 0 | U113: 0 | V113: =+V88-U88 -> 0 | W113: 0 | X113: 0 | Y113: 0 | Z113: 0 | AA113: =+AA88-Z88 -> 0 | AB113: 0 | AC113: 0 | AD113: 0 | AE113: 0 | AF113: 0 | AG113: 0 | AH113: 0 | AI113: 0 | AJ113: 0 | AK113: 0 | AL113: 0 | AM113: 0 | AN113: 0 | AO113: 0 | AP113: 0 | AQ113: 0 | AR113: 0 | AS113: 0 | AT113: 0 | AU113: 0 | AV113: 0 | AW113: 0 | AX113: 0 | AY113: 0 | AZ113: 0 | BA113: 0 | BB113: 0 | BC113: 0 | BD113: 0 | BE113: 0 | BF113: 0 | BG113: 0 | BH113: 0 | BI113: 0 | BJ113: 0 | BK113: 0 | BL113: 0 | BM113: =+BM88-BL88 -> 0 | BN113: 0 | BO113: 0 | BP113: 0 | BQ113: 0 | BR113: 0 | BS113: 0 | BT113: =+BT88-BS88 -> 0 | BU113: =+BU88-BT88 -> 0 | BV113: 0
B114: BRUTTÓ CASH FLOW | C114: Gros Cash Flow | D114: =SUM(D110:D113) -> -52.09841304 | E114: -52.87988924 | F114: -53.67308757 | G114: -54.47818389 | H114: -55.29535665 | I114: -56.124787 | J114: -56.9666588 | K114: -57.82115868 | L114: -70.66720639 | M114: -94.52423565 | N114: -134.50706 | O114: 497.0894004 | P114: 504.5457414 | Q114: 512.1139276 | R114: 519.7956365 | S114: 527.592571 | T114: 535.5064596 | U114: 543.5390565 | V114: =SUM(V110:V113) -> 551.6921423 | W114: 642.2364684 | X114: 644.4456367 | Y114: 654.1123212 | Z114: 663.924006 | AA114: =SUM(AA110:AA113) -> 673.8828661 | AB114: 683.9911091 | AC114: 694.2509757 | AD114: 704.6647404 | AE114: 715.2347115 | AF114: 725.9632321 | AG114: 736.8526806 | AH114: 747.9054708 | AI114: 704.4882044 | AJ114: 714.0531675 | AK114: 723.761605 | AL114: 733.6156691 | AM114: 743.6175441 | AN114: 700.1214473 | AO114: 710.425629 | AP114: 720.8843734 | AQ114: 731.499999 | AR114: 742.274859 | AS114: 778.3681802 | AT114: 789.4687103 | AU114: 800.7357484 | AV114: 812.1717921 | AW114: 823.7793764 | AX114: 835.5610744 | AY114: 847.519498 | AZ114: 859.6572979 | BA114: 871.9771648 | BB114: 884.4818297 | BC114: 897.1740645 | BD114: 910.0566829 | BE114: 923.1325406 | BF114: 936.4045361 | BG114: 949.8756116 | BH114: 963.5487532 | BI114: 977.4269919 | BJ114: 991.5134042 | BK114: 1005.811113 | BL114: 1020.323287 | BM114: =SUM(BM110:BM113) -> 1021.877144 | BN114: 1036.827948 | BO114: 1052.003015 | BP114: 1067.405707 | BQ114: 1083.03944 | BR114: 1073.750841 | BS114: 1089.857104 | BT114: 1106.20496 | BU114: =SUM(BU110:BU113) -> 1122.798035 | BV114: 1139.640005
A115: - | B115: Készletek állományváltozása | C115: Change in Inventories | D115: =-D63 -> 0 | E115: =-E63+D63 -> 0 | F115: 0 | G115: 0 | H115: 0 | I115: 0 | J115: 0 | K115: 0 | L115: 0 | M115: 0 | N115: -80.45639142 | O115: -1.206845871 | P115: -1.224948559 | Q115: -1.243322788 | R115: -1.26197263 | S115: -1.280902219 | T115: -1.300115752 | U115: -1.319617489 | V115: =-V63+U63 -> -1.339411751 | W115: -8.935399632 | X115: -1.493533922 | Y115: -1.515936931 | Z115: -1.538675985 | AA115: =-AA63+Z63 -> -1.561756124 | AB115: -1.585182466 | AC115: -1.608960203 | AD115: -1.633094606 | AE115: -1.657591025 | AF115: -1.682454891 | AG115: -1.707691714 | AH115: -1.73330709 | AI115: -1.759306696 | AJ115: -1.785696297 | AK115: -1.812481741 | AL115: -1.839668967 | AM115: -1.867264002 | AN115: -1.895272962 | AO115: -1.923702056 | AP115: -1.952557587 | AQ115: -1.981845951 | AR115: -2.01157364 | AS115: -2.041747245 | AT115: -2.072373453 | AU115: -2.103459055 | AV115: -2.135010941 | AW115: -2.167036105 | AX115: -2.199541646 | AY115: -2.232534771 | AZ115: -2.266022793 | BA115: -2.300013135 | BB115: -2.334513332 | BC115: -2.369531032 | BD115: -2.405073997 | BE115: -2.441150107 | BF115: -2.477767359 | BG115: -2.514933869 | BH115: -2.552657877 | BI115: -2.590947745 | BJ115: -2.629811961 | BK115: -2.669259141 | BL115: -2.709298028 | BM115: =-BM63+BL63 -> -2.749937498 | BN115: -2.791186561 | BO115: -2.833054359 | BP115: -2.875550175 | BQ115: -2.918683427 | BR115: -2.962463679 | BS115: -3.006900634 | BT115: =-BT63+BS63 -> -3.052004143 | BU115: =-BU63+BT63 -> -3.097784206 | BV115: 209.6167312
A116: - | B116: Követelések állományváltozása | C116: Change in Receivables | D116: =-D66 -> 0 | E116: =-E66+D66 -> 0 | F116: 0 | G116: 0 | H116: 0 | I116: 0 | J116: 0 | K116: 0 | L116: 0 | M116: 0 | N116: 0 | O116: -83.83921889 | P116: -1.257588283 | Q116: -1.276452108 | R116: -1.295598889 | S116: -1.315032873 | T116: -1.334758366 | U116: -1.354779741 | V116: =-V66+U66 -> -1.375101437 | W116: -9.173490427 | X116: -1.533330315 | Y116: -1.55633027 | Z116: -1.579675224 | AA116: =-AA66+Z66 -> -1.603370352 | AB116: -1.627420908 | AC116: -1.651832221 | AD116: -1.676609705 | AE116: -1.70175885 | AF116: -1.727285233 | AG116: -1.753194511 | AH116: -1.779492429 | AI116: -1.806184815 | AJ116: -1.833277588 | AK116: -1.860776752 | AL116: -1.888688403 | AM116: -1.917018729 | AN116: -1.94577401 | AO116: -1.97496062 | AP116: -2.004585029 | AQ116: -2.034653805 | AR116: -2.065173612 | AS116: -2.096151216 | AT116: -2.127593484 | AU116: -2.159507386 | AV116: -2.191899997 | AW116: -2.224778497 | AX116: -2.258150175 | AY116: -2.292022427 | AZ116: -2.326402764 | BA116: -2.361298805 | BB116: -2.396718287 | BC116: -2.432669061 | BD116: -2.469159097 | BE116: -2.506196484 | BF116: -2.543789431 | BG116: -2.581946273 | BH116: -2.620675467 | BI116: -2.659985599 | BJ116: -2.699885383 | BK116: -2.740383663 | BL116: -2.781489418 | BM116: =-BM66+BL66 -> -2.82321176 | BN116: -2.865559936 | BO116: -2.908543335 | BP116: -2.952171485 | BQ116: -2.996454057 | BR116: -3.041400868 | BS116: -3.087021881 | BT116: =-BT66+BS66 -> -3.133327209 | BU116: =-BU66+BT66 -> -3.180327118 | BV116: -3.228032024
A117: - | B117: Pénzeszközök állományváltozása | C117: Change in Liquid Assets | D117: =-D73 -> 0 | E117: =-E73+D73 -> 0 | F117: 0 | G117: 0 | H117: 0 | I117: 0 | J117: 0 | K117: 0 | L117: 0 | M117: 0 | N117: 0 | O117: 0 | P117: 0 | Q117: 0 | R117: 0 | S117: 0 | T117: 0 | U117: 0 | V117: =-V73+U73 -> 0 | W117: 0 | X117: 0 | Y117: 0 | Z117: 0 | AA117: =-AA73+Z73 -> 0 | AB117: 0 | AC117: 0 | AD117: 0 | AE117: 0 | AF117: 0 | AG117: 0 | AH117: 0 | AI117: 0 | AJ117: 0 | AK117: 0 | AL117: 0 | AM117: 0 | AN117: 0 | AO117: 0 | AP117: 0 | AQ117: 0 | AR117: 0 | AS117: 0 | AT117: 0 | AU117: 0 | AV117: 0 | AW117: 0 | AX117: 0 | AY117: 0 | AZ117: 0 | BA117: 0 | BB117: 0 | BC117: 0 | BD117: 0 | BE117: 0 | BF117: 0 | BG117: 0 | BH117: 0 | BI117: 0 | BJ117: 0 | BK117: 0 | BL117: 0 | BM117: =-BM73+BL73 -> 0 | BN117: 0 | BO117: 0 | BP117: 0 | BQ117: 0 | BR117: 0 | BS117: 0 | BT117: =-BT73+BS73 -> 0 | BU117: =-BU73+BT73 -> 0 | BV117: 0
A118: - | B118: Aktív időbeli elhatárolások állomány változása | C118: Change in Accrued and deferred assets | D118: =-D76 -> 0 | E118: =-E76+D76 -> 0 | F118: 0 | G118: 0 | H118: 0 | I118: 0 | J118: 0 | K118: 0 | L118: 0 | M118: 0 | N118: 0 | O118: 0 | P118: 0 | Q118: 0 | R118: 0 | S118: 0 | T118: 0 | U118: 0 | V118: =-V76+U76 -> 0 | W118: 0 | X118: 0 | Y118: 0 | Z118: 0 | AA118: =-AA76+Z76 -> 0 | AB118: 0 | AC118: 0 | AD118: 0 | AE118: 0 | AF118: 0 | AG118: 0 | AH118: 0 | AI118: 0 | AJ118: 0 | AK118: 0 | AL118: 0 | AM118: 0 | AN118: 0 | AO118: 0 | AP118: 0 | AQ118: 0 | AR118: 0 | AS118: 0 | AT118: 0 | AU118: 0 | AV118: 0 | AW118: 0 | AX118: 0 | AY118: 0 | AZ118: 0 | BA118: 0 | BB118: 0 | BC118: 0 | BD118: 0 | BE118: 0 | BF118: 0 | BG118: 0 | BH118: 0 | BI118: 0 | BJ118: 0 | BK118: 0 | BL118: 0 | BM118: =-BM76+BL76 -> 0 | BN118: 0 | BO118: 0 | BP118: 0 | BQ118: 0 | BR118: 0 | BS118: 0 | BT118: =-BT76+BS76 -> 0 | BU118: =-BU76+BT76 -> 0 | BV118: 0
A119: + | B119: Szállítók állományváltozása | C119: Change in Accounts payable | D119: =+D97 -> 34.88547945 | E119: =+E97-D97 -> 6.225336986 | F119: 24.71940197 | G119: 480.8847136 | H119: -154.0458514 | I119: 12.39346087 | J119: -61.57817147 | K119: 46.29952582 | L119: -6.096734713 | M119: 3.150855362 | N119: -246.5056489 | O119: -119.2128329 | P119: 0.3167930194 | Q119: 0.3215449147 | R119: 0.3263680884 | S119: 0.3312636097 | T119: 0.3362325638 | U119: 0.3412760523 | V119: =+V97-U97 -> 0.3463951931 | W119: 0.351591121 | X119: 0.9795414293 | Y119: 0.3715581092 | Z119: 0.3771314809 | AA119: =+AA97-Z97 -> 0.3827884531 | AB119: 0.3885302799 | AC119: 0.3943582341 | AD119: 0.4002736076 | AE119: 0.4062777117 | AF119: 0.4123718774 | AG119: 0.4185574555 | AH119: 0.4248358174 | AI119: 0.4312083546 | AJ119: 0.43767648 | AK119: 0.4442416272 | AL119: 0.4509052516 | AM119: 0.4576688303 | AN119: 0.4645338628 | AO119: 0.4715018707 | AP119: 0.4785743988 | AQ119: 0.4857530148 | AR119: 0.49303931 | AS119: 0.5004348996 | AT119: 0.5079414231 | AU119: 0.5155605445 | AV119: 0.5232939527 | AW119: 0.5311433619 | AX119: 0.5391105124 | AY119: 0.5471971701 | AZ119: 0.5554051276 | BA119: 0.5637362045 | BB119: 0.5721922476 | BC119: 0.5807751313 | BD119: 0.5894867583 | BE119: 0.5983290597 | BF119: 0.6073039955 | BG119: 0.6164135555 | BH119: 0.6256597588 | BI119: 0.6350446552 | BJ119: 0.644570325 | BK119: 0.6542388799 | BL119: 0.6640524631 | BM119: =+BM97-BL97 -> 0.67401325 | BN119: 0.6841234488 | BO119: 0.6943853005 | BP119: 0.70480108 | BQ119: 0.7153730962 | BR119: 0.7261036927 | BS119: 0.7369952481 | BT119: =+BT97-BS97 -> 0.7480501768 | BU119: =+BU97-BT97 -> 0.7592709294 | BV119: 0.7706599934
A120: + | B120: Egyéb rövid lejáratú kötelezettségek állományváltozása | C120: Change in other short term liablilities | D120: =+D98 -> 0 | E120: =+E98-D98 -> 0 | F120: 0 | G120: 0 | H120: 0 | I120: 0 | J120: 0 | K120: 0 | L120: 0 | M120: 0 | N120: 0 | O120: 14.84438024 | P120: 0.2226657036 | Q120: 0.2260056892 | R120: 0.2293957745 | S120: 0.2328367111 | T120: 0.2363292618 | U120: 0.2398742007 | V120: =+V98-U98 -> 0.2434723137 | W120: 0.2471243984 | X120: 0.2508312644 | Y120: 0.2545937334 | Z120: 0.2584126394 | AA120: =+AA98-Z98 -> 0.262288829 | AB120: 0.2662231614 | AC120: 0.2702165088 | AD120: 0.2742697565 | AE120: 0.2783838028 | AF120: 0.2825595599 | AG120: 0.2867979533 | AH120: 0.2910999226 | AI120: 0.2954664214 | AJ120: 0.2998984177 | AK120: 0.304396894 | AL120: 0.3089628474 | AM120: 0.3135972901 | AN120: 0.3183012495 | AO120: 0.3230757682 | AP120: 0.3279219047 | AQ120: 0.3328407333 | AR120: 0.3378333443 | AS120: 0.3429008445 | AT120: 0.3480443571 | AU120: 0.3532650225 | AV120: 0.3585639978 | AW120: 0.3639424578 | AX120: 0.3694015946 | AY120: 0.3749426186 | AZ120: 0.3805667578 | BA120: 0.3862752592 | BB120: 0.3920693881 | BC120: 0.3979504289 | BD120: 0.4039196854 | BE120: 0.4099784806 | BF120: 0.4161281578 | BG120: 0.4223700802 | BH120: 0.4287056314 | BI120: 0.4351362159 | BJ120: 0.4416632591 | BK120: 0.448288208 | BL120: 0.4550125311 | BM120: =+BM98-BL98 -> 0.4618377191 | BN120: 0.4687652849 | BO120: 0.4757967642 | BP120: 0.4829337156 | BQ120: 0.4901777214 | BR120: 0.4975303872 | BS120: 0.504993343 | BT120: =+BT98-BS98 -> 0.5125682431 | BU120: =+BU98-BT98 -> 0.5202567668 | BV120: 0.5280606183
A121: + | B121: Passzív időbeli elhatárolások állományváltozása | C121: Change in deferred liabilities | D121: =+D101 -> 0 | E121: =+E101-D101 -> 0 | F121: 0 | G121: 0 | H121: 0 | I121: 0 | J121: 0 | K121: 0 | L121: 0 | M121: 0 | N121: 0 | O121: 0 | P121: 0 | Q121: 0 | R121: 0 | S121: 0 | T121: 0 | U121: 0 | V121: =+V101-U101 -> 0 | W121: 0 | X121: 0 | Y121: 0 | Z121: 0 | AA121: =+AA101-Z101 -> 0 | AB121: 0 | AC121: 0 | AD121: 0 | AE121: 0 | AF121: 0 | AG121: 0 | AH121: 0 | AI121: 0 | AJ121: 0 | AK121: 0 | AL121: 0 | AM121: 0 | AN121: 0 | AO121: 0 | AP121: 0 | AQ121: 0 | AR121: 0 | AS121: 0 | AT121: 0 | AU121: 0 | AV121: 0 | AW121: 0 | AX121: 0 | AY121: 0 | AZ121: 0 | BA121: 0 | BB121: 0 | BC121: 0 | BD121: 0 | BE121: 0 | BF121: 0 | BG121: 0 | BH121: 0 | BI121: 0 | BJ121: 0 | BK121: 0 | BL121: 0 | BM121: =+BM101-BL101 -> 0 | BN121: 0 | BO121: 0 | BP121: 0 | BQ121: 0 | BR121: 0 | BS121: 0 | BT121: =+BT101-BS101 -> 0 | BU121: =+BU101-BT101 -> 0 | BV121: 0
B122: MŰKÖDŐ TŐKE VÁLTOZÁSA ÖSSZESEN | C122: Change in Working Capital | D122: =SUM(D115:D121) -> 34.88547945 | E122: 6.225336986 | F122: 24.71940197 | G122: 480.8847136 | H122: -154.0458514 | I122: 12.39346087 | J122: -61.57817147 | K122: 46.29952582 | L122: -6.096734713 | M122: 3.150855362 | N122: -326.9620404 | O122: -189.4145174 | P122: -1.94307812 | Q122: -1.972224292 | R122: -2.001807656 | S122: -2.031834771 | T122: -2.062312292 | U122: -2.093246977 | V122: =SUM(V115:V121) -> -2.124645681 | W122: -17.51017454 | X122: -1.796491543 | Y122: -2.446115358 | Z122: -2.482807088 | AA122: =SUM(AA115:AA121) -> -2.520049195 | AB122: -2.557849932 | AC122: -2.596217681 | AD122: -2.635160947 | AE122: -2.674688361 | AF122: -2.714808686 | AG122: -2.755530817 | AH122: -2.796863779 | AI122: -2.838816735 | AJ122: -2.881398987 | AK122: -2.924619971 | AL122: -2.968489271 | AM122: -3.01301661 | AN122: -3.058211859 | AO122: -3.104085037 | AP122: -3.150646313 | AQ122: -3.197906007 | AR122: -3.245874597 | AS122: -3.294562716 | AT122: -3.343981157 | AU122: -3.394140874 | AV122: -3.445052988 | AW122: -3.496728782 | AX122: -3.549179714 | AY122: -3.60241741 | AZ122: -3.656453671 | BA122: -3.711300476 | BB122: -3.766969983 | BC122: -3.823474533 | BD122: -3.880826651 | BE122: -3.939039051 | BF122: -3.998124636 | BG122: -4.058096506 | BH122: -4.118967954 | BI122: -4.180752473 | BJ122: -4.24346376 | BK122: -4.307115716 | BL122: -4.371722452 | BM122: =SUM(BM115:BM121) -> -4.437298289 | BN122: -4.503857763 | BO122: -4.57141563 | BP122: -4.639986864 | BQ122: -4.709586667 | BR122: -4.780230467 | BS122: -4.851933924 | BT122: -4.924712933 | BU122: =SUM(BU115:BU121) -> -4.998583627 | BV122: 207.6874198
B123: MŰKÖDÉSBŐL SZÁRMAZÓ PÉNZÁRAMLÁS | C123: Cash Flow from Operation | D123: =SUM(D122,D114) -> -17.21293359 | E123: -46.65455225 | F123: -28.9536856 | G123: 426.4065297 | H123: -209.341208 | I123: -43.73132613 | J123: -118.5448303 | K123: -11.52163286 | L123: -76.76394111 | M123: -91.37338028 | N123: -461.4691003 | O123: 307.674883 | P123: 502.6026633 | Q123: 510.1417033 | R123: 517.7938288 | S123: 525.5607363 | T123: 533.4441473 | U123: 541.4458095 | V123: =SUM(V122,V114) -> 549.5674967 | W123: 624.7262939 | X123: 642.6491451 | Y123: 651.6662058 | Z123: 661.4411989 | AA123: =SUM(AA122,AA114) -> 671.3628169 | AB123: 681.4332592 | AC123: 691.6547581 | AD123: 702.0295794 | AE123: 712.5600231 | AF123: 723.2484235 | AG123: 734.0971498 | AH123: 745.1086071 | AI123: 701.6493877 | AJ123: 711.1717685 | AK123: 720.836985 | AL123: 730.6471798 | AM123: 740.6045275 | AN123: 697.0632354 | AO123: 707.321544 | AP123: 717.7337271 | AQ123: 728.302093 | AR123: 739.0289844 | AS123: 775.0736175 | AT123: 786.1247292 | AU123: 797.3416075 | AV123: 808.7267391 | AW123: 820.2826476 | AX123: 832.0118947 | AY123: 843.9170806 | AZ123: 856.0008442 | BA123: 868.2658643 | BB123: 880.7148597 | BC123: 893.35059 | BD123: 906.1758563 | BE123: 919.1935016 | BF123: 932.4064115 | BG123: 945.8175151 | BH123: 959.4297853 | BI123: 973.2462395 | BJ123: 987.2699405 | BK123: 1001.503997 | BL123: 1015.951564 | BM123: =SUM(BM122,BM114) -> 1017.439845 | BN123: 1032.32409 | BO123: 1047.431599 | BP123: 1062.765721 | BQ123: 1078.329854 | BR123: 1068.970611 | BS123: 1085.00517 | BT123: 1101.280247 | BU123: =SUM(BU122,BU114) -> 1117.799451 | BV123: 1347.327425
A124: - | B124: Beruházás | C124: Investment to fixed assets | D124: =-D42-D45-D112 -> -125 | E124: =-E42-E45+D42+D45-E112 -> -150 | F124: -250 | G124: -2200 | H124: -1575 | I124: -1625 | J124: -1375 | K124: -1562.5 | L124: -1537.5 | M124: -1550 | N124: -550 | O124: -9.094947018e-13 | P124: 0 | Q124: 9.094947018e-13 | R124: 0 | S124: -9.094947018e-13 | T124: 1.818989404e-12 | U124: -9.094947018e-13 | V124: =-V42-V45+U42+U45-V112 -> 0 | W124: -9.094947018e-13 | X124: 0 | Y124: 9.094947018e-13 | Z124: 0 | AA124: =-AA42-AA45+Z42+Z45-AA112 -> -9.094947018e-13 | AB124: 9.094947018e-13 | AC124: 4.547473509e-13 | AD124: -4.547473509e-13 | AE124: -4.547473509e-13 | AF124: 4.547473509e-13 | AG124: 0 | AH124: 4.547473509e-13 | AI124: 0 | AJ124: 0 | AK124: 0 | AL124: 0 | AM124: 0 | AN124: 0 | AO124: 0 | AP124: 0 | AQ124: 0 | AR124: -3930.755984 | AS124: 0 | AT124: 0 | AU124: 0 | AV124: 0 | AW124: 0 | AX124: 0 | AY124: 4.547473509e-13 | AZ124: 0 | BA124: 4.547473509e-13 | BB124: 0 | BC124: 0 | BD124: 2.273736754e-13 | BE124: 0 | BF124: -2.273736754e-13 | BG124: 0 | BH124: 2.273736754e-13 | BI124: -2.273736754e-13 | BJ124: 0 | BK124: 0 | BL124: 0 | BM124: =-BM42-BM45+BL42+BL45-BM112 -> 0 | BN124: 0 | BO124: 0 | BP124: 0 | BQ124: 0 | BR124: 0 | BS124: 0 | BT124: =-BT42-BT45+BS42+BS45-BT112 -> 0 | BU124: =-BU42-BU45+BT42+BT45-BU112 -> 0 | BV124: 0
A125: - | B125: Befektetés | C125: Investment to equities | D125: =-D53 -> 0 | E125: =-E53+D53 -> 0 | F125: 0 | G125: 0 | H125: 0 | I125: 0 | J125: 0 | K125: 0 | L125: 0 | M125: 0 | N125: 0 | O125: 0 | P125: 0 | Q125: 0 | R125: 0 | S125: 0 | T125: 0 | U125: 0 | V125: =-V53+U53 -> 0 | W125: 0 | X125: 0 | Y125: 0 | Z125: 0 | AA125: =-AA53+Z53 -> 0 | AB125: 0 | AC125: 0 | AD125: 0 | AE125: 0 | AF125: 0 | AG125: 0 | AH125: 0 | AI125: 0 | AJ125: 0 | AK125: 0 | AL125: 0 | AM125: 0 | AN125: 0 | AO125: 0 | AP125: 0 | AQ125: 0 | AR125: 0 | AS125: 0 | AT125: 0 | AU125: 0 | AV125: 0 | AW125: 0 | AX125: 0 | AY125: 0 | AZ125: 0 | BA125: 0 | BB125: 0 | BC125: 0 | BD125: 0 | BE125: 0 | BF125: 0 | BG125: 0 | BH125: 0 | BI125: 0 | BJ125: 0 | BK125: 0 | BL125: 0 | BM125: =-BM53+BL53 -> 0 | BN125: 0 | BO125: 0 | BP125: 0 | BQ125: 0 | BR125: 0 | BS125: 0 | BT125: =-BT53+BS53 -> 0 | BU125: =-BU53+BT53 -> 0 | BV125: 0
B126: BEFEKTETÉSBŐL SZÁRMAZÓ PÉNZÁRAMLÁS | C126: Cash Flow from Investment | D126: =SUM(D124:D125) -> -125 | E126: -150 | F126: -250 | G126: -2200 | H126: -1575 | I126: -1625 | J126: -1375 | K126: -1562.5 | L126: -1537.5 | M126: -1550 | N126: -550 | O126: -9.094947018e-13 | P126: 0 | Q126: 9.094947018e-13 | R126: 0 | S126: -9.094947018e-13 | T126: 1.818989404e-12 | U126: -9.094947018e-13 | V126: =SUM(V124:V125) -> 0 | W126: -9.094947018e-13 | X126: 0 | Y126: 9.094947018e-13 | Z126: 0 | AA126: =SUM(AA124:AA125) -> -9.094947018e-13 | AB126: 9.094947018e-13 | AC126: 4.547473509e-13 | AD126: -4.547473509e-13 | AE126: -4.547473509e-13 | AF126: 4.547473509e-13 | AG126: 0 | AH126: 4.547473509e-13 | AI126: 0 | AJ126: 0 | AK126: 0 | AL126: 0 | AM126: 0 | AN126: 0 | AO126: 0 | AP126: 0 | AQ126: 0 | AR126: -3930.755984 | AS126: 0 | AT126: 0 | AU126: 0 | AV126: 0 | AW126: 0 | AX126: 0 | AY126: 4.547473509e-13 | AZ126: 0 | BA126: 4.547473509e-13 | BB126: 0 | BC126: 0 | BD126: 2.273736754e-13 | BE126: 0 | BF126: -2.273736754e-13 | BG126: 0 | BH126: 2.273736754e-13 | BI126: -2.273736754e-13 | BJ126: 0 | BK126: 0 | BL126: 0 | BM126: =SUM(BM124:BM125) -> 0 | BN126: 0 | BO126: 0 | BP126: 0 | BQ126: 0 | BR126: 0 | BS126: 0 | BT126: 0 | BU126: =SUM(BU124:BU125) -> 0 | BV126: 0
A127: + | B127: Rendkívüli eredmény | C127: Extraordinary profit | D127: =+D27 -> 0 | E127: 0 | F127: 0 | G127: 0 | H127: 0 | I127: 0 | J127: 0 | K127: 0 | L127: 0 | M127: 0 | N127: 0 | O127: 0 | P127: 0 | Q127: 0 | R127: 0 | S127: 0 | T127: 0 | U127: 0 | V127: =+V27 -> 0 | W127: 0 | X127: 0 | Y127: 0 | Z127: 0 | AA127: =+AA27 -> 0 | AB127: 0 | AC127: 0 | AD127: 0 | AE127: 0 | AF127: 0 | AG127: 0 | AH127: 0 | AI127: 0 | AJ127: 0 | AK127: 0 | AL127: 0 | AM127: 0 | AN127: 0 | AO127: 0 | AP127: 0 | AQ127: 0 | AR127: 0 | AS127: 0 | AT127: 0 | AU127: 0 | AV127: 0 | AW127: 0 | AX127: 0 | AY127: 0 | AZ127: 0 | BA127: 0 | BB127: 0 | BC127: 0 | BD127: 0 | BE127: 0 | BF127: 0 | BG127: 0 | BH127: 0 | BI127: 0 | BJ127: 0 | BK127: 0 | BL127: 0 | BM127: =+BM27 -> 0 | BN127: 0 | BO127: 0 | BP127: 0 | BQ127: 0 | BR127: 0 | BS127: 0 | BT127: =+BT27 -> 0 | BU127: =+BU27 -> 0 | BV127: 0
A128: - | B128: Rendkívüli eredményre jutó adó | C128: Corporate tax on extraordinary profit | D128: =-IF(D28>0,D127*Paraméterek!$B17,0) -> 0 | E128: =-IF(E28>0,E127*Paraméterek!$B17,0) -> 0 | F128: =-IF(F28>0,F127*Paraméterek!$B17,0) -> 0 | G128: =-IF(G28>0,G127*Paraméterek!$B17,0) -> 0 | H128: =-IF(H28>0,H127*Paraméterek!$B17,0) -> 0 | I128: =-IF(I28>0,I127*Paraméterek!$B17,0) -> 0 | J128: =-IF(J28>0,J127*Paraméterek!$B17,0) -> 0 | K128: =-IF(K28>0,K127*Paraméterek!$B17,0) -> 0 | L128: =-IF(L28>0,L127*Paraméterek!$B17,0) -> 0 | M128: =-IF(M28>0,M127*Paraméterek!$B17,0) -> 0 | N128: =-IF(N28>0,N127*Paraméterek!$B17,0) -> 0 | O128: =-IF(O28>0,O127*Paraméterek!$B17,0) -> 0 | P128: =-IF(P28>0,P127*Paraméterek!$B17,0) -> 0 | Q128: =-IF(Q28>0,Q127*Paraméterek!$B17,0) -> 0 | R128: =-IF(R28>0,R127*Paraméterek!$B17,0) -> 0 | S128: =-IF(S28>0,S127*Paraméterek!$B17,0) -> 0 | T128: =-IF(T28>0,T127*Paraméterek!$B17,0) -> 0 | U128: =-IF(U28>0,U127*Paraméterek!$B17,0) -> 0 | V128: =-IF(V28>0,V127*Paraméterek!$B17,0) -> 0 | W128: =-IF(W28>0,W127*Paraméterek!$B17,0) -> 0 | X128: =-IF(X28>0,X127*Paraméterek!$B17,0) -> 0 | Y128: =-IF(Y28>0,Y127*Paraméterek!$B17,0) -> 0 | Z128: =-IF(Z28>0,Z127*Paraméterek!$B17,0) -> 0 | AA128: =-IF(AA28>0,AA127*Paraméterek!$B17,0) -> 0 | AB128: =-IF(AB28>0,AB127*Paraméterek!$B17,0) -> 0 | AC128: =-IF(AC28>0,AC127*Paraméterek!$B17,0) -> 0 | AD128: =-IF(AD28>0,AD127*Paraméterek!$B17,0) -> 0 | AE128: =-IF(AE28>0,AE127*Paraméterek!$B17,0) -> 0 | AF128: =-IF(AF28>0,AF127*Paraméterek!$B17,0) -> 0 | AG128: =-IF(AG28>0,AG127*Paraméterek!$B17,0) -> 0 | AH128: =-IF(AH28>0,AH127*Paraméterek!$B17,0) -> 0 | AI128: =-IF(AI28>0,AI127*Paraméterek!$B17,0) -> 0 | AJ128: =-IF(AJ28>0,AJ127*Paraméterek!$B17,0) -> 0 | AK128: =-IF(AK28>0,AK127*Paraméterek!$B17,0) -> 0 | AL128: =-IF(AL28>0,AL127*Paraméterek!$B17,0) -> 0 | AM128: =-IF(AM28>0,AM127*Paraméterek!$B17,0) -> 0 | AN128: =-IF(AN28>0,AN127*Paraméterek!$B17,0) -> 0 | AO128: =-IF(AO28>0,AO127*Paraméterek!$B17,0) -> 0 | AP128: =-IF(AP28>0,AP127*Paraméterek!$B17,0) -> 0 | AQ128: =-IF(AQ28>0,AQ127*Paraméterek!$B17,0) -> 0 | AR128: =-IF(AR28>0,AR127*Paraméterek!$B17,0) -> 0 | AS128: =-IF(AS28>0,AS127*Paraméterek!$B17,0) -> 0 | AT128: =-IF(AT28>0,AT127*Paraméterek!$B17,0) -> 0 | AU128: =-IF(AU28>0,AU127*Paraméterek!$B17,0) -> 0 | AV128: =-IF(AV28>0,AV127*Paraméterek!$B17,0) -> 0 | AW128: =-IF(AW28>0,AW127*Paraméterek!$B17,0) -> 0 | AX128: =-IF(AX28>0,AX127*Paraméterek!$B17,0) -> 0 | AY128: =-IF(AY28>0,AY127*Paraméterek!$B17,0) -> 0 | AZ128: =-IF(AZ28>0,AZ127*Paraméterek!$B17,0) -> 0 | BA128: =-IF(BA28>0,BA127*Paraméterek!$B17,0) -> 0 | BB128: =-IF(BB28>0,BB127*Paraméterek!$B17,0) -> 0 | BC128: =-IF(BC28>0,BC127*Paraméterek!$B17,0) -> 0 | BD128: =-IF(BD28>0,BD127*Paraméterek!$B17,0) -> 0 | BE128: =-IF(BE28>0,BE127*Paraméterek!$B17,0) -> 0 | BF128: =-IF(BF28>0,BF127*Paraméterek!$B17,0) -> 0 | BG128: =-IF(BG28>0,BG127*Paraméterek!$B17,0) -> 0 | BH128: =-IF(BH28>0,BH127*Paraméterek!$B17,0) -> 0 | BI128: =-IF(BI28>0,BI127*Paraméterek!$B17,0) -> 0 | BJ128: =-IF(BJ28>0,BJ127*Paraméterek!$B17,0) -> 0 | BK128: =-IF(BK28>0,BK127*Paraméterek!$B17,0) -> 0 | BL128: =-IF(BL28>0,BL127*Paraméterek!$B17,0) -> 0 | BM128: =-IF(BM28>0,BM127*Paraméterek!$B17,0) -> 0 | BN128: =-IF(BN28>0,BN127*Paraméterek!$B17,0) -> 0 | BO128: =-IF(BO28>0,BO127*Paraméterek!$B17,0) -> 0 | BP128: =-IF(BP28>0,BP127*Paraméterek!$B17,0) -> 0 | BQ128: =-IF(BQ28>0,BQ127*Paraméterek!$B17,0) -> 0 | BR128: =-IF(BR28>0,BR127*Paraméterek!$B17,0) -> 0 | BS128: =-IF(BS28>0,BS127*Paraméterek!$B17,0) -> 0 | BT128: =-IF(BT28>0,BT127*Paraméterek!$B17,0) -> 0 | BU128: =-IF(BU28>0,BU127*Paraméterek!$B17,0) -> 0 | BV128: =-IF(BV28>0,BV127*Paraméterek!$B17,0) -> 0
B129: RENDKÍVÜLI CASH FLOW | C129: Extraordinary Cash Flow | D129: =SUM(D127:D128) -> 0 | E129: 0 | F129: 0 | G129: 0 | H129: 0 | I129: 0 | J129: 0 | K129: 0 | L129: 0 | M129: 0 | N129: 0 | O129: 0 | P129: 0 | Q129: 0 | R129: 0 | S129: 0 | T129: 0 | U129: 0 | V129: =SUM(V127:V128) -> 0 | W129: 0 | X129: 0 | Y129: 0 | Z129: 0 | AA129: =SUM(AA127:AA128) -> 0 | AB129: 0 | AC129: 0 | AD129: 0 | AE129: 0 | AF129: 0 | AG129: 0 | AH129: 0 | AI129: 0 | AJ129: 0 | AK129: 0 | AL129: 0 | AM129: 0 | AN129: 0 | AO129: 0 | AP129: 0 | AQ129: 0 | AR129: 0 | AS129: 0 | AT129: 0 | AU129: 0 | AV129: 0 | AW129: 0 | AX129: 0 | AY129: 0 | AZ129: 0 | BA129: 0 | BB129: 0 | BC129: 0 | BD129: 0 | BE129: 0 | BF129: 0 | BG129: 0 | BH129: 0 | BI129: 0 | BJ129: 0 | BK129: 0 | BL129: 0 | BM129: =SUM(BM127:BM128) -> 0 | BN129: 0 | BO129: 0 | BP129: 0 | BQ129: 0 | BR129: 0 | BS129: 0 | BT129: 0 | BU129: =SUM(BU127:BU128) -> 0 | BV129: 0
B130: FCFF / VÁLLALKOZÁS SZÁMÁRA RENDELKEZÉSRE ÁLLÓ CASH FLOW | C130: FCFF | D130: =SUM(D129,D126,D123) -> -142.2129336 | E130: -196.6545522 | F130: -278.9536856 | G130: -1773.59347 | H130: -1784.341208 | I130: -1668.731326 | J130: -1493.54483 | K130: -1574.021633 | L130: -1614.263941 | M130: -1641.37338 | N130: -1011.4691 | O130: 307.674883 | P130: 502.6026633 | Q130: 510.1417033 | R130: 517.7938288 | S130: 525.5607363 | T130: 533.4441473 | U130: 541.4458095 | V130: =SUM(V129,V126,V123) -> 549.5674967 | W130: 624.7262939 | X130: 642.6491451 | Y130: 651.6662058 | Z130: 661.4411989 | AA130: =SUM(AA129,AA126,AA123) -> 671.3628169 | AB130: 681.4332592 | AC130: 691.6547581 | AD130: 702.0295794 | AE130: 712.5600231 | AF130: 723.2484235 | AG130: 734.0971498 | AH130: 745.1086071 | AI130: 701.6493877 | AJ130: 711.1717685 | AK130: 720.836985 | AL130: 730.6471798 | AM130: 740.6045275 | AN130: 697.0632354 | AO130: 707.321544 | AP130: 717.7337271 | AQ130: 728.302093 | AR130: -3191.727 | AS130: 775.0736175 | AT130: 786.1247292 | AU130: 797.3416075 | AV130: 808.7267391 | AW130: 820.2826476 | AX130: 832.0118947 | AY130: 843.9170806 | AZ130: 856.0008442 | BA130: 868.2658643 | BB130: 880.7148597 | BC130: 893.35059 | BD130: 906.1758563 | BE130: 919.1935016 | BF130: 932.4064115 | BG130: 945.8175151 | BH130: 959.4297853 | BI130: 973.2462395 | BJ130: 987.2699405 | BK130: 1001.503997 | BL130: 1015.951564 | BM130: =SUM(BM129,BM126,BM123) -> 1017.439845 | BN130: 1032.32409 | BO130: 1047.431599 | BP130: 1062.765721 | BQ130: 1078.329854 | BR130: 1068.970611 | BS130: 1085.00517 | BT130: 1101.280247 | BU130: =SUM(BU129,BU126,BU123) -> 1117.799451 | BV130: 1347.327425
A131: - | B131: Tartósan adott kölcsön változása | C131: Change in long term loans given | D131: =-D55-D57-D58-D59 -> 0 | E131: =-E55-E57-E58-E59+D55+D57+D58+D59 -> 0 | F131: 0 | G131: 0 | H131: 0 | I131: 0 | J131: 0 | K131: 0 | L131: 0 | M131: 0 | N131: 0 | O131: 0 | P131: 0 | Q131: 0 | R131: 0 | S131: 0 | T131: 0 | U131: 0 | V131: =-V55-V57-V58-V59+U55+U57+U58+U59 -> 0 | W131: 0 | X131: 0 | Y131: 0 | Z131: 0 | AA131: =-AA55-AA57-AA58-AA59+Z55+Z57+Z58+Z59 -> 0 | AB131: 0 | AC131: 0 | AD131: 0 | AE131: 0 | AF131: 0 | AG131: 0 | AH131: 0 | AI131: 0 | AJ131: 0 | AK131: 0 | AL131: 0 | AM131: 0 | AN131: 0 | AO131: 0 | AP131: 0 | AQ131: 0 | AR131: 0 | AS131: 0 | AT131: 0 | AU131: 0 | AV131: 0 | AW131: 0 | AX131: 0 | AY131: 0 | AZ131: 0 | BA131: 0 | BB131: 0 | BC131: 0 | BD131: 0 | BE131: 0 | BF131: 0 | BG131: 0 | BH131: 0 | BI131: 0 | BJ131: 0 | BK131: 0 | BL131: 0 | BM131: =-BM55-BM57-BM58-BM59+BL55+BL57+BL58+BL59 -> 0 | BN131: 0 | BO131: 0 | BP131: 0 | BQ131: 0 | BR131: 0 | BS131: 0 | BT131: =-BT55-BT57-BT58-BT59+BS55+BS57+BS58+BS59 -> 0 | BU131: =-BU55-BU57-BU58-BU59+BT55+BT57+BT58+BT59 -> 0 | BV131: 0
A132: + | B132: Hátrasorolt kötelezettségek változása | C132: Change in subordinated liabilities | D132: =+D90 -> 0 | E132: =+E90-D90 -> 0 | F132: 0 | G132: 0 | H132: 0 | I132: 0 | J132: 0 | K132: 0 | L132: 0 | M132: 0 | N132: 0 | O132: 0 | P132: 0 | Q132: 0 | R132: 0 | S132: 0 | T132: 0 | U132: 0 | V132: =+V90-U90 -> 0 | W132: 0 | X132: 0 | Y132: 0 | Z132: 0 | AA132: =+AA90-Z90 -> 0 | AB132: 0 | AC132: 0 | AD132: 0 | AE132: 0 | AF132: 0 | AG132: 0 | AH132: 0 | AI132: 0 | AJ132: 0 | AK132: 0 | AL132: 0 | AM132: 0 | AN132: 0 | AO132: 0 | AP132: 0 | AQ132: 0 | AR132: 0 | AS132: 0 | AT132: 0 | AU132: 0 | AV132: 0 | AW132: 0 | AX132: 0 | AY132: 0 | AZ132: 0 | BA132: 0 | BB132: 0 | BC132: 0 | BD132: 0 | BE132: 0 | BF132: 0 | BG132: 0 | BH132: 0 | BI132: 0 | BJ132: 0 | BK132: 0 | BL132: 0 | BM132: =+BM90-BL90 -> 0 | BN132: 0 | BO132: 0 | BP132: 0 | BQ132: 0 | BR132: 0 | BS132: 0 | BT132: =+BT90-BS90 -> 0 | BU132: =+BU90-BT90 -> 0 | BV132: 0
A133: + | B133: Hosszú lejáratú kötelezettségek változása | C133: Change in long term liabilities | D133: =+D91 -> 100 | E133: =+E91-D91 -> 120 | F133: 200 | G133: 1760 | H133: 1260 | I133: 1300 | J133: 1100 | K133: 1250 | L133: 1230 | M133: 1240 | N133: 440 | O133: 0 | P133: -357.1428571 | Q133: -357.1428571 | R133: -357.1428571 | S133: -357.1428571 | T133: -357.1428571 | U133: -357.1428571 | V133: =+V91-U91 -> -500 | W133: -500 | X133: -500 | Y133: -500 | Z133: -500 | AA133: =+AA91-Z91 -> -500 | AB133: -500 | AC133: -571.4285714 | AD133: -571.4285714 | AE133: -571.4285714 | AF133: -571.4285714 | AG133: -571.4285714 | AH133: -571.4285714 | AI133: -571.4285714 | AJ133: -357.1428571 | AK133: 0 | AL133: 0 | AM133: 0 | AN133: 0 | AO133: 0 | AP133: 0 | AQ133: 0 | AR133: 0 | AS133: 0 | AT133: 0 | AU133: 0 | AV133: 0 | AW133: 0 | AX133: 0 | AY133: 0 | AZ133: 0 | BA133: 0 | BB133: 0 | BC133: 0 | BD133: 0 | BE133: 0 | BF133: 0 | BG133: 0 | BH133: 0 | BI133: 0 | BJ133: 0 | BK133: 0 | BL133: 0 | BM133: =+BM91-BL91 -> 0 | BN133: 0 | BO133: 0 | BP133: 0 | BQ133: 0 | BR133: 0 | BS133: 0 | BT133: =+BT91-BS91 -> 0 | BU133: =+BU91-BT91 -> 0 | BV133: 0
A134: + | B134: Addicionális finanszírozás (tulajdonosi hitenyújtás) változása | D134: =D96 -> 20.85644955 | E134: =E96-D96 -> 25.97949914 | F134: 13.47151779 | G134: -60.30746648 | H134: 0 | I134: 189.684162 | J134: 372.4723513 | K134: 338.9800586 | L134: 492.6112683 | M134: 604.3513125 | N134: 1095.246775 | O134: -286.3359915 | P134: -80.49578264 | Q134: -89.32014485 | R134: -89.41138335 | S134: -89.50399044 | T134: -89.59798663 | U134: -89.69339277 | V134: =V96-U96 -> 86.80138491 | W134: -15.96103426 | X134: 62.9753514 | Y134: 55.57546827 | Z134: 55.4577416 | AA134: =AA96-Z96 -> 55.33824903 | AB134: 55.21696407 | AC134: 137.5084561 | AD134: 127.9502755 | AE134: 127.8234504 | AF134: 127.694723 | AG134: 127.5640646 | AH134: 127.4314464 | AI134: 131.8662684 | AJ134: -124.3471816 | AK134: -526.5386528 | AL134: -574.9880441 | AM134: -627.0855401 | AN134: -625.5834563 | AO134: -681.6485472 | AP134: -382.0386423 | AQ134: 0 | AR134: 2228.408262 | AS134: -318.3723826 | AT134: -324.9098587 | AU134: -331.5693993 | AV134: -338.3531624 | AW134: -345.2633428 | AX134: -352.3021727 | AY134: -217.6379439 | AZ134: 0 | BA134: 0 | BB134: 0 | BC134: 0 | BD134: 0 | BE134: 0 | BF134: 0 | BG134: 0 | BH134: 0 | BI134: 0 | BJ134: 0 | BK134: 0 | BL134: 0 | BM134: =BM96-BL96 -> 0 | BN134: 0 | BO134: 0 | BP134: 0 | BQ134: 0 | BR134: 0 | BS134: 0 | BT134: =BT96-BS96 -> 0 | BU134: =BU96-BT96 -> 0 | BV134: 0
A135: + | B135: Pénzügyi műveletek eredménye | C135: Profit or loss from financial transactions | D135: =+D23 -> -3.643515964 | E135: -10.0668759 | F135: -17.46459732 | G135: -37.35471883 | H135: -109.7639241 | I135: -176.729733 | J135: -253.9275211 | K135: -327.4584258 | L135: -415.8473272 | M135: -512.9779322 | N135: -633.7776742 | O135: -674.5607949 | P135: -660.085418 | Q135: -636.8683778 | R135: -613.6440386 | S135: -590.4122908 | T135: -567.1730233 | U135: -543.9261233 | V135: =+V23 -> -554.4059483 | W135: -529.1290656 | X135: -510.1670937 | Y135: -490.6131312 | Z135: -471.0497505 | AA135: =+AA23 -> -451.4768104 | AB135: -431.8941675 | AC135: -423.2877012 | AD135: -405.2380089 | AE135: -387.1781707 | AF135: -369.1080342 | AG135: -351.0274451 | AH135: -332.9362466 | AI135: -315.1998337 | AJ135: -273.4306306 | AK135: -231.3075384 | AL135: -185.3084949 | AM135: -135.1416517 | AN135: -85.09497516 | AO135: -30.56309139 | AP135: 13.89466411 | AQ135: 44.52271091 | AR135: -178.272661 | AS135: -152.8028704 | AT135: -126.8100817 | AU135: -100.2845297 | AV135: -73.21627675 | AW135: -45.59520933 | AX135: -17.41103551 | AY135: 5.634976233 | AZ135: 20.16807358 | BA135: 34.8965111 | BB135: 49.8230656 | BC135: 64.95055452 | BD135: 80.28183652 | BE135: 95.81981208 | BF135: 111.5674241 | BG135: 127.5276587 | BH135: 143.7035455 | BI135: 160.0981586 | BJ135: 176.7146172 | BK135: 193.556086 | BL135: 210.6257763 | BM135: =+BM23 -> 225.1677968 | BN135: 239.925936 | BO135: 254.9034221 | BP135: 270.1035317 | BQ135: 285.5295903 | BR135: 295.9169497 | BS135: 306.5014187 | BT135: =+BT23 -> 317.2862333 | BU135: =+BU23 -> 328.2746801 | BV135: 348.0381131
A136: - | B136: Pénzügyi eredményre jutó adó | C136: Corporate tax on financial profit | D136: =-D35*D135 -> 0 | E136: 0 | F136: 0 | G136: 0 | H136: 0 | I136: 0 | J136: 0 | K136: 0 | L136: 0 | M136: 0 | N136: 0 | O136: 0 | P136: 0 | Q136: 0 | R136: 0 | S136: 0 | T136: 0 | U136: 0 | V136: 0 | W136: =-W35*W135 -> 0 | X136: =-X35*X135 -> 0 | Y136: =-Y35*Y135 -> 0 | Z136: =-Z35*Z135 -> 0 | AA136: =-AA35*AA135 -> 0 | AB136: =-AB35*AB135 -> 0 | AC136: =-AC35*AC135 -> 0 | AD136: =-AD35*AD135 -> 0 | AE136: =-AE35*AE135 -> 0 | AF136: =-AF35*AF135 -> 0 | AG136: =-AG35*AG135 -> 0 | AH136: =-AH35*AH135 -> 0 | AI136: =-AI35*AI135 -> 50.4319734 | AJ136: =-AJ35*AJ135 -> 43.7489009 | AK136: =-AK35*AK135 -> 37.00920615 | AL136: =-AL35*AL135 -> 29.64935918 | AM136: =-AM35*AM135 -> 21.62266427 | AN136: =-AN35*AN135 -> 13.61519603 | AO136: =-AO35*AO135 -> 4.890094622 | AP136: =-AP35*AP135 -> -2.223146257 | AQ136: =-AQ35*AQ135 -> -7.123633746 | AR136: =-AR35*AR135 -> 28.52362576 | AS136: =-AS35*AS135 -> 24.44845926 | AT136: =-AT35*AT135 -> 20.28961307 | AU136: =-AU35*AU135 -> 16.04552476 | AV136: =-AV35*AV135 -> 11.71460428 | AW136: =-AW35*AW135 -> 7.295233492 | AX136: =-AX35*AX135 -> 2.785765682 | AY136: =-AY35*AY135 -> -0.9015961972 | AZ136: =-AZ35*AZ135 -> -3.226891773 | BA136: =-BA35*BA135 -> -5.583441776 | BB136: =-BB35*BB135 -> -7.971690495 | BC136: =-BC35*BC135 -> -10.39208872 | BD136: =-BD35*BD135 -> -12.84509384 | BE136: =-BE35*BE135 -> -15.33116993 | BF136: =-BF35*BF135 -> -17.85078786 | BG136: =-BG35*BG135 -> -20.40442539 | BH136: =-BH35*BH135 -> -22.99256728 | BI136: =-BI35*BI135 -> -25.61570538 | BJ136: =-BJ35*BJ135 -> -28.27433875 | BK136: =-BK35*BK135 -> -30.96897376 | BL136: =-BL35*BL135 -> -33.70012421 | BM136: =-BM35*BM135 -> -36.02684748 | BN136: =-BN35*BN135 -> -38.38814976 | BO136: =-BO35*BO135 -> -40.78454754 | BP136: =-BP35*BP135 -> -43.21656507 | BQ136: =-BQ35*BQ135 -> -45.68473444 | BR136: =-BR35*BR135 -> -47.34671195 | BS136: =-BS35*BS135 -> -49.04022699 | BT136: =-BT35*BT135 -> -50.76579734 | BU136: =-BU35*BU135 -> -52.52394882 | BV136: =-BV35*BV135 -> -55.68609809
B137: KÜLSŐ FINANSZÍROZÁSBÓL SZÁRMAZÓ PÉNZÁRAMLÁS | D137: =SUM(D131:D136) -> 117.2129336 | E137: 135.9126232 | F137: 196.0069205 | G137: 1662.337815 | H137: 1150.236076 | I137: 1312.954429 | J137: 1218.54483 | K137: 1261.521633 | L137: 1306.763941 | M137: 1331.37338 | N137: 901.4691003 | O137: -960.8967864 | P137: -1097.724058 | Q137: -1083.33138 | R137: -1060.198279 | S137: -1037.059138 | T137: -1013.913867 | U137: -990.7623732 | V137: =SUM(V131:V136) -> -967.6045634 | W137: -1045.0901 | X137: -947.1917423 | Y137: -935.0376629 | Z137: -915.5920089 | AA137: =SUM(AA131:AA136) -> -896.1385614 | AB137: -876.6772035 | AC137: -857.2078165 | AD137: -848.7163049 | AE137: -830.7832917 | AF137: -812.8418827 | AG137: -794.8919519 | AH137: -776.9333716 | AI137: -704.3301634 | AJ137: -711.1717685 | AK137: -720.836985 | AL137: -730.6471798 | AM137: -740.6045275 | AN137: -697.0632354 | AO137: -707.321544 | AP137: -370.3671245 | AQ137: 37.39907717 | AR137: 2078.659227 | AS137: -446.7267937 | AT137: -431.4303273 | AU137: -415.8084043 | AV137: -399.8548349 | AW137: -383.5633187 | AX137: -366.9274425 | AY137: -212.9045638 | AZ137: 16.94118181 | BA137: 29.31306932 | BB137: 41.8513751 | BC137: 54.5584658 | BD137: 67.43674267 | BE137: 80.48864214 | BF137: 93.71663627 | BG137: 107.1232333 | BH137: 120.7109782 | BI137: 134.4824532 | BJ137: 148.4402784 | BK137: 162.5871122 | BL137: 176.9256521 | BM137: =SUM(BM131:BM136) -> 189.1409493 | BN137: 201.5377862 | BO137: 214.1188746 | BP137: 226.8869666 | BQ137: 239.8448558 | BR137: 248.5702377 | BS137: 257.4611917 | BT137: =SUM(BT131:BT136) -> 266.520436 | BU137: =SUM(BU131:BU136) -> 275.7507313 | BV137: =SUM(BV131:BV136) -> 292.352015
B138: FCFE (FREE CASH FLOW FOR EQUITY) | C138: FCFE | D138: =SUM(D137,D130) -> -25 | E138: -60.741929 | F138: -82.94676513 | G138: -111.2556557 | H138: -634.1051321 | I138: -355.7768971 | J138: -275 | K138: -312.5 | L138: -307.5 | M138: -310 | N138: -110 | O138: -653.2219034 | P138: -595.1213944 | Q138: -573.1896765 | R138: -542.4044502 | S138: -511.4984021 | T138: -480.4697197 | U138: -449.3165637 | V138: =SUM(V137,V130) -> -418.0370668 | W138: -420.363806 | X138: -304.5425972 | Y138: -283.3714571 | Z138: -254.15081 | AA138: =SUM(AA137,AA130) -> -224.7757445 | AB138: -195.2439443 | AC138: -165.5530584 | AD138: -146.6867254 | AE138: -118.2232686 | AF138: -89.5934592 | AG138: -60.79480209 | AH138: -31.82476449 | AI138: -2.680775709 | AJ138: 5.115907697e-12 | AK138: -1.023181539e-12 | AL138: 0 | AM138: -1.023181539e-12 | AN138: 1.47792889e-12 | AO138: -9.094947018e-13 | AP138: 347.3666026 | AQ138: 765.7011702 | AR138: -1113.067773 | AS138: 328.3468238 | AT138: 354.6944019 | AU138: 381.5332032 | AV138: 408.8719042 | AW138: 436.7193289 | AX138: 465.0844522 | AY138: 631.0125167 | AZ138: 872.942026 | BA138: 897.5789336 | BB138: 922.5662348 | BC138: 947.9090558 | BD138: 973.612599 | BE138: 999.6821437 | BF138: 1026.123048 | BG138: 1052.940748 | BH138: 1080.140763 | BI138: 1107.728693 | BJ138: 1135.710219 | BK138: 1164.091109 | BL138: 1192.877216 | BM138: =SUM(BM137,BM130) -> 1206.580795 | BN138: 1233.861877 | BO138: 1261.550474 | BP138: 1289.652687 | BQ138: 1318.17471 | BR138: 1317.540848 | BS138: 1342.466362 | BT138: =SUM(BT137,BT130) -> 1367.800683 | BU138: =SUM(BU137,BU130) -> 1393.550182 | BV138: =SUM(BV137,BV130) -> 1639.67944
A139: + | B139: Tőkeemelés | C139: Increase of registered capital | D139: =+D83-D87 -> 25 | E139: =+E83-E87-D83 -> 60.741929 | F139: 82.94676513 | G139: 461.1376849 | H139: 315 | I139: 325 | J139: 275 | K139: 312.5 | L139: 307.5 | M139: 310 | N139: 110 | O139: 653.2219034 | P139: 595.1213944 | Q139: 573.1896765 | R139: 542.4044502 | S139: 511.4984021 | T139: 480.4697197 | U139: 449.3165637 | V139: =+V83-V87-U83 -> 418.0370668 | W139: 420.363806 | X139: 304.5425972 | Y139: 283.3714571 | Z139: 254.15081 | AA139: =+AA83-AA87-Z83 -> 224.7757445 | AB139: 195.2439443 | AC139: 165.5530584 | AD139: 146.6867254 | AE139: 118.2232686 | AF139: 89.5934592 | AG139: 60.79480209 | AH139: 31.82476449 | AI139: 2.680775709 | AJ139: -1.065814104e-13 | AK139: -8.242295735e-13 | AL139: 0 | AM139: 0 | AN139: 0 | AO139: 0 | AP139: 0 | AQ139: 0 | AR139: 0 | AS139: 0 | AT139: 0 | AU139: 0 | AV139: 0 | AW139: 0 | AX139: 0 | AY139: 0 | AZ139: 0 | BA139: 0 | BB139: 0 | BC139: 0 | BD139: 0 | BE139: 0 | BF139: 0 | BG139: 0 | BH139: 0 | BI139: 0 | BJ139: 0 | BK139: 0 | BL139: 0 | BM139: =+BM83-BM87-BL83 -> 0 | BN139: 0 | BO139: 0 | BP139: 0 | BQ139: 0 | BR139: 0 | BS139: 0 | BT139: =+BT83-BT87-BS83 -> 0 | BU139: =+BU83-BU87-BT83 -> 0 | BV139: 0
A140: - | B140: Osztalék | C140: Dividents payed | D140: =-D32-D31 -> 0 | E140: 0 | F140: 0 | G140: 0 | H140: 0 | I140: 0 | J140: 0 | K140: 0 | L140: 0 | M140: 0 | N140: 0 | O140: 0 | P140: 0 | Q140: 0 | R140: 0 | S140: 0 | T140: 0 | U140: 0 | V140: =-V32-V31 -> 0 | W140: 0 | X140: 0 | Y140: 0 | Z140: 0 | AA140: =-AA32-AA31 -> 0 | AB140: 0 | AC140: 0 | AD140: 0 | AE140: 0 | AF140: 0 | AG140: 0 | AH140: 0 | AI140: 0 | AJ140: 0 | AK140: 0 | AL140: 0 | AM140: 0 | AN140: 0 | AO140: 0 | AP140: 0 | AQ140: 0 | AR140: 0 | AS140: -328.3468238 | AT140: -354.6944019 | AU140: -381.5332032 | AV140: -408.8719042 | AW140: -436.7193289 | AX140: -465.0844522 | AY140: -490.1381109 | AZ140: -509.6145923 | BA140: -529.3679958 | BB140: -549.4023723 | BC140: -569.7218328 | BD140: -590.330549 | BE140: -611.2327547 | BF140: -632.4327464 | BG140: -653.9348844 | BH140: -675.7435936 | BI140: -697.8633646 | BJ140: -720.2987546 | BK140: -743.0543885 | BL140: -766.1349596 | BM140: =-BM32-BM31 -> -843.0302828 | BN140: -864.908396 | BO140: -887.11332 | BP140: -909.6499478 | BQ140: -932.5232455 | BR140: -1057.856863 | BS140: -1077.854636 | BT140: =-BT32-BT31 -> -1098.180317 | BU140: =-BU32-BU31 -> -1118.839013 | BV140: -1145.593616
B141: TULAJDONOSI PÉNZÁRAMLÁS A TÁRSASÁG RÉSZÉRE (+), TÁRSASÁGTÓL (-) | C141: FCF for Equity Holders | D141: =SUM(D139:D140) -> 25 | E141: 60.741929 | F141: 82.94676513 | G141: 461.1376849 | H141: 315 | I141: 325 | J141: 275 | K141: 312.5 | L141: 307.5 | M141: 310 | N141: 110 | O141: 653.2219034 | P141: 595.1213944 | Q141: 573.1896765 | R141: 542.4044502 | S141: 511.4984021 | T141: 480.4697197 | U141: 449.3165637 | V141: =SUM(V139:V140) -> 418.0370668 | W141: 420.363806 | X141: 304.5425972 | Y141: 283.3714571 | Z141: 254.15081 | AA141: =SUM(AA139:AA140) -> 224.7757445 | AB141: 195.2439443 | AC141: 165.5530584 | AD141: 146.6867254 | AE141: 118.2232686 | AF141: 89.5934592 | AG141: 60.79480209 | AH141: 31.82476449 | AI141: 2.680775709 | AJ141: -1.065814104e-13 | AK141: -8.242295735e-13 | AL141: 0 | AM141: 0 | AN141: 0 | AO141: 0 | AP141: 0 | AQ141: 0 | AR141: 0 | AS141: -328.3468238 | AT141: -354.6944019 | AU141: -381.5332032 | AV141: -408.8719042 | AW141: -436.7193289 | AX141: -465.0844522 | AY141: -490.1381109 | AZ141: -509.6145923 | BA141: -529.3679958 | BB141: -549.4023723 | BC141: -569.7218328 | BD141: -590.330549 | BE141: -611.2327547 | BF141: -632.4327464 | BG141: -653.9348844 | BH141: -675.7435936 | BI141: -697.8633646 | BJ141: -720.2987546 | BK141: -743.0543885 | BL141: -766.1349596 | BM141: =SUM(BM139:BM140) -> -843.0302828 | BN141: -864.908396 | BO141: -887.11332 | BP141: -909.6499478 | BQ141: -932.5232455 | BR141: -1057.856863 | BS141: -1077.854636 | BT141: =SUM(BT139:BT140) -> -1098.180317 | BU141: =SUM(BU139:BU140) -> -1118.839013 | BV141: =SUM(BV139:BV140) -> -1145.593616
B142: VÁLLALATBAN BENTHAGYOTT PÉNZ | C142: Change in cash equivalents | D142: =SUM(D141,D138) -> -5.684341886e-14 | E142: -8.526512829e-14 | F142: 2.273736754e-13 | G142: 349.8820292 | H142: -319.1051321 | I142: -30.77689712 | J142: 1.136868377e-12 | K142: 1.364242053e-12 | L142: -4.718003765e-12 | M142: 6.252776075e-12 | N142: -3.637978807e-12 | O142: 8.753886505e-12 | P142: -5.570655048e-12 | Q142: 1.20508048e-11 | R142: -1.034550223e-11 | S142: -1.489297574e-11 | T142: 9.038103599e-12 | U142: 5.229594535e-12 | V142: =SUM(V141,V138) -> -3.97903932e-12 | W142: -1.47792889e-12 | X142: 8.071765478e-12 | Y142: -1.233502189e-11 | Z142: 1.122657523e-11 | AA142: =SUM(AA141,AA138) -> -2.842170943e-12 | AB142: -2.671640686e-12 | AC142: -5.115907697e-13 | AD142: 1.932676241e-12 | AE142: -6.707523426e-12 | AF142: 3.410605132e-13 | AG142: 9.436007531e-12 | AH142: -4.320099833e-12 | AI142: -2.330580173e-12 | AJ142: 5.009326287e-12 | AK142: -1.847411113e-12 | AL142: 0 | AM142: -1.023181539e-12 | AN142: 1.47792889e-12 | AO142: -9.094947018e-13 | AP142: 347.3666026 | AQ142: 765.7011702 | AR142: -1113.067773 | AS142: 9.094947018e-13 | AT142: -1.648459147e-12 | AU142: -5.684341886e-13 | AV142: 2.046363079e-12 | AW142: -8.526512829e-13 | AX142: 0 | AY142: 140.8744058 | AZ142: 363.3274338 | BA142: 368.2109378 | BB142: 373.1638625 | BC142: 378.187223 | BD142: 383.28205 | BE142: 388.449389 | BF142: 393.6903014 | BG142: 399.005864 | BH142: 404.3971698 | BI142: 409.8653281 | BJ142: 415.4114643 | BK142: 421.0367208 | BL142: 426.7422568 | BM142: =SUM(BM141,BM138) -> 363.5505118 | BN142: 368.9534806 | BO142: 374.4371538 | BP142: 380.0027395 | BQ142: 385.6514641 | BR142: 259.6839853 | BS142: 264.6117252 | BT142: =SUM(BT141,BT138) -> 269.6203663 | BU142: =SUM(BU141,BU138) -> 274.7111696 | BV142: =SUM(BV141,BV138) -> 494.0858239
B144: ELLENŐRZÉS: ÉRTÉKPAPÍR ÁLLOMÁNY VÁLTOZÁS | D144: =+D71 -> 0 | E144: =-D71+E71 -> 0 | F144: 0 | G144: 349.8820292 | H144: -319.1051321 | I144: -30.77689712 | J144: 0 | K144: 0 | L144: 0 | M144: 0 | N144: 0 | O144: 0 | P144: 0 | Q144: 0 | R144: 0 | S144: 0 | T144: 0 | U144: 0 | V144: =-U71+V71 -> 0 | W144: 0 | X144: 0 | Y144: 0 | Z144: 0 | AA144: =-Z71+AA71 -> 0 | AB144: 0 | AC144: 0 | AD144: 0 | AE144: 0 | AF144: 0 | AG144: 0 | AH144: 0 | AI144: 0 | AJ144: 0 | AK144: 0 | AL144: 0 | AM144: 0 | AN144: 0 | AO144: 0 | AP144: 347.3666026 | AQ144: 765.7011702 | AR144: -1113.067773 | AS144: 0 | AT144: 0 | AU144: 0 | AV144: 0 | AW144: 0 | AX144: 0 | AY144: 140.8744058 | AZ144: 363.3274338 | BA144: 368.2109378 | BB144: 373.1638625 | BC144: 378.187223 | BD144: 383.28205 | BE144: 388.449389 | BF144: 393.6903014 | BG144: 399.005864 | BH144: 404.3971698 | BI144: 409.8653281 | BJ144: 415.4114643 | BK144: 421.0367208 | BL144: 426.7422568 | BM144: =-BL71+BM71 -> 363.5505118 | BN144: 368.9534806 | BO144: 374.4371538 | BP144: 380.0027395 | BQ144: 385.6514641 | BR144: 259.6839853 | BS144: 264.6117252 | BT144: =-BS71+BT71 -> 269.6203663 | BU144: =-BT71+BU71 -> 274.7111696 | BV144: 494.0858239
B145: ELTÉRÉS | D145: =+D142-D144 -> -5.684341886e-14 | E145: -8.526512829e-14 | F145: 2.273736754e-13 | G145: 0 | H145: 0 | I145: -4.97379915e-13 | J145: 1.136868377e-12 | K145: 1.364242053e-12 | L145: -4.718003765e-12 | M145: 6.252776075e-12 | N145: -3.637978807e-12 | O145: 8.753886505e-12 | P145: -5.570655048e-12 | Q145: 1.20508048e-11 | R145: -1.034550223e-11 | S145: -1.489297574e-11 | T145: 9.038103599e-12 | U145: 5.229594535e-12 | V145: =+V142-V144 -> -3.97903932e-12 | W145: -1.47792889e-12 | X145: 8.071765478e-12 | Y145: -1.233502189e-11 | Z145: 1.122657523e-11 | AA145: =+AA142-AA144 -> -2.842170943e-12 | AB145: -2.671640686e-12 | AC145: -5.115907697e-13 | AD145: 1.932676241e-12 | AE145: -6.707523426e-12 | AF145: 3.410605132e-13 | AG145: 9.436007531e-12 | AH145: -4.320099833e-12 | AI145: -2.330580173e-12 | AJ145: 5.009326287e-12 | AK145: -1.847411113e-12 | AL145: 0 | AM145: -1.023181539e-12 | AN145: 1.47792889e-12 | AO145: -9.094947018e-13 | AP145: 5.684341886e-13 | AQ145: 0 | AR145: 0 | AS145: 9.094947018e-13 | AT145: -1.648459147e-12 | AU145: -5.684341886e-13 | AV145: 2.046363079e-12 | AW145: -8.526512829e-13 | AX145: 0 | AY145: 1.136868377e-12 | AZ145: 5.115907697e-13 | BA145: 5.115907697e-13 | BB145: 0 | BC145: -1.023181539e-12 | BD145: 1.47792889e-12 | BE145: -6.821210263e-13 | BF145: 6.821210263e-13 | BG145: -4.547473509e-13 | BH145: 5.684341886e-13 | BI145: 4.547473509e-13 | BJ145: -4.547473509e-13 | BK145: -1.591615728e-12 | BL145: 4.661160347e-12 | BM145: =+BM142-BM144 -> -3.069544618e-12 | BN145: -1.250555215e-12 | BO145: 1.47792889e-12 | BP145: 0 | BQ145: -2.273736754e-12 | BR145: 9.094947018e-13 | BS145: 0 | BT145: -6.821210263e-13 | BU145: =+BU142-BU144 -> 2.955857781e-12 | BV145: 0
D147: reál r=% | E147: NPV | F147: Maradvány jelenértéke | G147: Össz. NPV
B148: Nettó jelenérték (mEUR) 1) | D148: 0.05 | E148: =SUM(D158:BV158) -> -3261.553461 | F148: =$BV$71/(1+D148)^(BV$1-D$1) -> 285.9669736 | G148: =E148+F148 -> -2975.586487
B149: Nettó jelenérték (mEUR) 2) | D149: 0.08 | E149: =SUM(D165:BV165) -> -2857.639583 | F149: =$BV$71/(1+D149)^(BV$1-D$1) -> 39.80191153 | G149: =E149+F149 -> -2817.837672
B150: Nettó jelenérték (mEUR) 3) | D150: 0.1 | E150: =SUM(D159:BV159) -> -2473.22774 | F150: 11.0173933 | G150: -2462.210347
B153: Kumulált diszkontráta (nominál) 1) | D153: 1 | E153: =1+$D148+Paraméterek!$B$11 -> 1.065 | F153: =E153*(1+$D148+Paraméterek!$B$11) -> 1.134225 | G153: =F153*(1+$D148+Paraméterek!$B$11) -> 1.207949625 | H153: =G153*(1+$D148+Paraméterek!$B$11) -> 1.286466351 | I153: =H153*(1+$D148+Paraméterek!$B$11) -> 1.370086663 | J153: =I153*(1+$D148+Paraméterek!$B$11) -> 1.459142297 | K153: =J153*(1+$D148+Paraméterek!$B$11) -> 1.553986546 | L153: =K153*(1+$D148+Paraméterek!$B$11) -> 1.654995671 | M153: =L153*(1+$D148+Paraméterek!$B$11) -> 1.76257039 | N153: =M153*(1+$D148+Paraméterek!$B$11) -> 1.877137465 | O153: =N153*(1+$D148+Paraméterek!$B$11) -> 1.999151401 | P153: =O153*(1+$D148+Paraméterek!$B$11) -> 2.129096242 | Q153: =P153*(1+$D148+Paraméterek!$B$11) -> 2.267487497 | R153: =Q153*(1+$D148+Paraméterek!$B$11) -> 2.414874185 | S153: =R153*(1+$D148+Paraméterek!$B$11) -> 2.571841007 | T153: =S153*(1+$D148+Paraméterek!$B$11) -> 2.739010672 | U153: =T153*(1+$D148+Paraméterek!$B$11) -> 2.917046366 | V153: =U153*(1+$D148+Paraméterek!$B$11) -> 3.106654379 | W153: =V153*(1+$D148+Paraméterek!$B$11) -> 3.308586914 | X153: =W153*(1+$D148+Paraméterek!$B$11) -> 3.523645064 | Y153: =X153*(1+$D148+Paraméterek!$B$11) -> 3.752681993 | Z153: =Y153*(1+$D148+Paraméterek!$B$11) -> 3.996606322 | AA153: =Z153*(1+$D148+Paraméterek!$B$11) -> 4.256385733 | AB153: =AA153*(1+$D148+Paraméterek!$B$11) -> 4.533050806 | AC153: =AB153*(1+$D148+Paraméterek!$B$11) -> 4.827699108 | AD153: =AC153*(1+$D148+Paraméterek!$B$11) -> 5.14149955 | AE153: =AD153*(1+$D148+Paraméterek!$B$11) -> 5.475697021 | AF153: =AE153*(1+$D148+Paraméterek!$B$11) -> 5.831617327 | AG153: =AF153*(1+$D148+Paraméterek!$B$11) -> 6.210672454 | AH153: =AG153*(1+$D148+Paraméterek!$B$11) -> 6.614366163 | AI153: =AH153*(1+$D148+Paraméterek!$B$11) -> 7.044299964 | AJ153: =AI153*(1+$D148+Paraméterek!$B$11) -> 7.502179461 | AK153: =AJ153*(1+$D148+Paraméterek!$B$11) -> 7.989821126 | AL153: =AK153*(1+$D148+Paraméterek!$B$11) -> 8.509159499 | AM153: =AL153*(1+$D148+Paraméterek!$B$11) -> 9.062254867 | AN153: =AM153*(1+$D148+Paraméterek!$B$11) -> 9.651301433 | AO153: =AN153*(1+$D148+Paraméterek!$B$11) -> 10.27863603 | AP153: =AO153*(1+$D148+Paraméterek!$B$11) -> 10.94674737 | AQ153: =AP153*(1+$D148+Paraméterek!$B$11) -> 11.65828595 | AR153: =AQ153*(1+$D148+Paraméterek!$B$11) -> 12.41607453 | AS153: =AR153*(1+$D148+Paraméterek!$B$11) -> 13.22311938 | AT153: =AS153*(1+$D148+Paraméterek!$B$11) -> 14.08262214 | AU153: =AT153*(1+$D148+Paraméterek!$B$11) -> 14.99799258 | AV153: =AU153*(1+$D148+Paraméterek!$B$11) -> 15.97286209 | AW153: =AV153*(1+$D148+Paraméterek!$B$11) -> 17.01109813 | AX153: =AW153*(1+$D148+Paraméterek!$B$11) -> 18.11681951 | AY153: =AX153*(1+$D148+Paraméterek!$B$11) -> 19.29441278 | AZ153: =AY153*(1+$D148+Paraméterek!$B$11) -> 20.54854961 | BA153: =AZ153*(1+$D148+Paraméterek!$B$11) -> 21.88420533 | BB153: =BA153*(1+$D148+Paraméterek!$B$11) -> 23.30667868 | BC153: =BB153*(1+$D148+Paraméterek!$B$11) -> 24.82161279 | BD153: =BC153*(1+$D148+Paraméterek!$B$11) -> 26.43501762 | BE153: =BD153*(1+$D148+Paraméterek!$B$11) -> 28.15329377 | BF153: =BE153*(1+$D148+Paraméterek!$B$11) -> 29.98325786 | BG153: =BF153*(1+$D148+Paraméterek!$B$11) -> 31.93216963 | BH153: =BG153*(1+$D148+Paraméterek!$B$11) -> 34.00776065 | BI153: =BH153*(1+$D148+Paraméterek!$B$11) -> 36.21826509 | BJ153: =BI153*(1+$D148+Paraméterek!$B$11) -> 38.57245233 | BK153: =BJ153*(1+$D148+Paraméterek!$B$11) -> 41.07966173 | BL153: =BK153*(1+$D148+Paraméterek!$B$11) -> 43.74983974 | BM153: =BL153*(1+$D148+Paraméterek!$B$11) -> 46.59357932 | BN153: =BM153*(1+$D148+Paraméterek!$B$11) -> 49.62216198 | BO153: =BN153*(1+$D148+Paraméterek!$B$11) -> 52.84760251 | BP153: =BO153*(1+$D148+Paraméterek!$B$11) -> 56.28269667 | BQ153: =BP153*(1+$D148+Paraméterek!$B$11) -> 59.94107195 | BR153: =BQ153*(1+$D148+Paraméterek!$B$11) -> 63.83724163 | BS153: =BR153*(1+$D148+Paraméterek!$B$11) -> 67.98666234 | BT153: =BS153*(1+$D148+Paraméterek!$B$11) -> 72.40579539 | BU153: =BT153*(1+$D148+Paraméterek!$B$11) -> 77.11217209 | BV153: =BU153*(1+$D148+Paraméterek!$B$11) -> 82.12446327
D154: 1 | E154: =1+$D149+Paraméterek!$B$11 -> 1.095 | F154: =E154*(1+$D149+Paraméterek!$B$11) -> 1.199025 | G154: =F154*(1+$D149+Paraméterek!$B$11) -> 1.312932375 | H154: =G154*(1+$D149+Paraméterek!$B$11) -> 1.437660951 | I154: =H154*(1+$D149+Paraméterek!$B$11) -> 1.574238741 | J154: =I154*(1+$D149+Paraméterek!$B$11) -> 1.723791421 | K154: =J154*(1+$D149+Paraméterek!$B$11) -> 1.887551606 | L154: =K154*(1+$D149+Paraméterek!$B$11) -> 2.066869009 | M154: =L154*(1+$D149+Paraméterek!$B$11) -> 2.263221565 | N154: =M154*(1+$D149+Paraméterek!$B$11) -> 2.478227613 | O154: =N154*(1+$D149+Paraméterek!$B$11) -> 2.713659237 | P154: =O154*(1+$D149+Paraméterek!$B$11) -> 2.971456864 | Q154: =P154*(1+$D149+Paraméterek!$B$11) -> 3.253745266 | R154: =Q154*(1+$D149+Paraméterek!$B$11) -> 3.562851067 | S154: =R154*(1+$D149+Paraméterek!$B$11) -> 3.901321918 | T154: =S154*(1+$D149+Paraméterek!$B$11) -> 4.2719475 | U154: =T154*(1+$D149+Paraméterek!$B$11) -> 4.677782513 | V154: =U154*(1+$D149+Paraméterek!$B$11) -> 5.122171851 | W154: =V154*(1+$D149+Paraméterek!$B$11) -> 5.608778177 | X154: =W154*(1+$D149+Paraméterek!$B$11) -> 6.141612104 | Y154: =X154*(1+$D149+Paraméterek!$B$11) -> 6.725065254 | Z154: =Y154*(1+$D149+Paraméterek!$B$11) -> 7.363946453 | AA154: =Z154*(1+$D149+Paraméterek!$B$11) -> 8.063521366 | AB154: =AA154*(1+$D149+Paraméterek!$B$11) -> 8.829555896 | AC154: =AB154*(1+$D149+Paraméterek!$B$11) -> 9.668363706 | AD154: =AC154*(1+$D149+Paraméterek!$B$11) -> 10.58685826 | AE154: =AD154*(1+$D149+Paraméterek!$B$11) -> 11.59260979 | AF154: =AE154*(1+$D149+Paraméterek!$B$11) -> 12.69390772 | AG154: =AF154*(1+$D149+Paraméterek!$B$11) -> 13.89982896 | AH154: =AG154*(1+$D149+Paraméterek!$B$11) -> 15.22031271 | AI154: =AH154*(1+$D149+Paraméterek!$B$11) -> 16.66624241 | AJ154: =AI154*(1+$D149+Paraméterek!$B$11) -> 18.24953544 | AK154: =AJ154*(1+$D149+Paraméterek!$B$11) -> 19.98324131 | AL154: =AK154*(1+$D149+Paraméterek!$B$11) -> 21.88164924 | AM154: =AL154*(1+$D149+Paraméterek!$B$11) -> 23.96040591 | AN154: =AM154*(1+$D149+Paraméterek!$B$11) -> 26.23664448 | AO154: =AN154*(1+$D149+Paraméterek!$B$11) -> 28.7291257 | AP154: =AO154*(1+$D149+Paraméterek!$B$11) -> 31.45839264 | AQ154: =AP154*(1+$D149+Paraméterek!$B$11) -> 34.44693994 | AR154: =AQ154*(1+$D149+Paraméterek!$B$11) -> 37.71939924 | AS154: =AR154*(1+$D149+Paraméterek!$B$11) -> 41.30274216 | AT154: =AS154*(1+$D149+Paraméterek!$B$11) -> 45.22650267 | AU154: =AT154*(1+$D149+Paraméterek!$B$11) -> 49.52302042 | AV154: =AU154*(1+$D149+Paraméterek!$B$11) -> 54.22770736 | AW154: =AV154*(1+$D149+Paraméterek!$B$11) -> 59.37933956 | AX154: =AW154*(1+$D149+Paraméterek!$B$11) -> 65.02037682 | AY154: =AX154*(1+$D149+Paraméterek!$B$11) -> 71.19731262 | AZ154: =AY154*(1+$D149+Paraméterek!$B$11) -> 77.96105732 | BA154: =AZ154*(1+$D149+Paraméterek!$B$11) -> 85.36735777 | BB154: =BA154*(1+$D149+Paraméterek!$B$11) -> 93.47725675 | BC154: =BB154*(1+$D149+Paraméterek!$B$11) -> 102.3575961 | BD154: =BC154*(1+$D149+Paraméterek!$B$11) -> 112.0815678 | BE154: =BD154*(1+$D149+Paraméterek!$B$11) -> 122.7293167 | BF154: =BE154*(1+$D149+Paraméterek!$B$11) -> 134.3886018 | BG154: =BF154*(1+$D149+Paraméterek!$B$11) -> 147.155519 | BH154: =BG154*(1+$D149+Paraméterek!$B$11) -> 161.1352933 | BI154: =BH154*(1+$D149+Paraméterek!$B$11) -> 176.4431461 | BJ154: =BI154*(1+$D149+Paraméterek!$B$11) -> 193.205245 | BK154: =BJ154*(1+$D149+Paraméterek!$B$11) -> 211.5597433 | BL154: =BK154*(1+$D149+Paraméterek!$B$11) -> 231.6579189 | BM154: =BL154*(1+$D149+Paraméterek!$B$11) -> 253.6654212 | BN154: =BM154*(1+$D149+Paraméterek!$B$11) -> 277.7636362 | BO154: =BN154*(1+$D149+Paraméterek!$B$11) -> 304.1511817 | BP154: =BO154*(1+$D149+Paraméterek!$B$11) -> 333.0455439 | BQ154: =BP154*(1+$D149+Paraméterek!$B$11) -> 364.6848706 | BR154: =BQ154*(1+$D149+Paraméterek!$B$11) -> 399.3299333 | BS154: =BR154*(1+$D149+Paraméterek!$B$11) -> 437.266277 | BT154: =BS154*(1+$D149+Paraméterek!$B$11) -> 478.8065733 | BU154: =BT154*(1+$D149+Paraméterek!$B$11) -> 524.2931977 | BV154: =BU154*(1+$D149+Paraméterek!$B$11) -> 574.1010515
B155: Kumulált diszkontráta (nominál) 2) | D155: 1 | E155: =1+$D150+Paraméterek!$B$11 -> 1.115 | F155: =E155*(1+$D150+Paraméterek!$B$11) -> 1.243225 | G155: =F155*(1+$D150+Paraméterek!$B$11) -> 1.386195875 | H155: =G155*(1+$D150+Paraméterek!$B$11) -> 1.545608401 | I155: =H155*(1+$D150+Paraméterek!$B$11) -> 1.723353367 | J155: =I155*(1+$D150+Paraméterek!$B$11) -> 1.921539004 | K155: =J155*(1+$D150+Paraméterek!$B$11) -> 2.142515989 | L155: =K155*(1+$D150+Paraméterek!$B$11) -> 2.388905328 | M155: =L155*(1+$D150+Paraméterek!$B$11) -> 2.663629441 | N155: =M155*(1+$D150+Paraméterek!$B$11) -> 2.969946827 | O155: =N155*(1+$D150+Paraméterek!$B$11) -> 3.311490712 | P155: =O155*(1+$D150+Paraméterek!$B$11) -> 3.692312143 | Q155: =P155*(1+$D150+Paraméterek!$B$11) -> 4.11692804 | R155: =Q155*(1+$D150+Paraméterek!$B$11) -> 4.590374764 | S155: =R155*(1+$D150+Paraméterek!$B$11) -> 5.118267862 | T155: =S155*(1+$D150+Paraméterek!$B$11) -> 5.706868667 | U155: =T155*(1+$D150+Paraméterek!$B$11) -> 6.363158563 | V155: =U155*(1+$D150+Paraméterek!$B$11) -> 7.094921798 | W155: =V155*(1+$D150+Paraméterek!$B$11) -> 7.910837805 | X155: =W155*(1+$D150+Paraméterek!$B$11) -> 8.820584152 | Y155: =X155*(1+$D150+Paraméterek!$B$11) -> 9.83495133 | Z155: =Y155*(1+$D150+Paraméterek!$B$11) -> 10.96597073 | AA155: =Z155*(1+$D150+Paraméterek!$B$11) -> 12.22705737 | AB155: =AA155*(1+$D150+Paraméterek!$B$11) -> 13.63316896 | AC155: =AB155*(1+$D150+Paraméterek!$B$11) -> 15.2009834 | AD155: =AC155*(1+$D150+Paraméterek!$B$11) -> 16.94909649 | AE155: =AD155*(1+$D150+Paraméterek!$B$11) -> 18.89824258 | AF155: =AE155*(1+$D150+Paraméterek!$B$11) -> 21.07154048 | AG155: =AF155*(1+$D150+Paraméterek!$B$11) -> 23.49476763 | AH155: =AG155*(1+$D150+Paraméterek!$B$11) -> 26.19666591 | AI155: =AH155*(1+$D150+Paraméterek!$B$11) -> 29.20928249 | AJ155: =AI155*(1+$D150+Paraméterek!$B$11) -> 32.56834998 | AK155: =AJ155*(1+$D150+Paraméterek!$B$11) -> 36.31371022 | AL155: =AK155*(1+$D150+Paraméterek!$B$11) -> 40.4897869 | AM155: =AL155*(1+$D150+Paraméterek!$B$11) -> 45.14611239 | AN155: =AM155*(1+$D150+Paraméterek!$B$11) -> 50.33791532 | AO155: =AN155*(1+$D150+Paraméterek!$B$11) -> 56.12677558 | AP155: =AO155*(1+$D150+Paraméterek!$B$11) -> 62.58135477 | AQ155: =AP155*(1+$D150+Paraméterek!$B$11) -> 69.77821057 | AR155: =AQ155*(1+$D150+Paraméterek!$B$11) -> 77.80270479 | AS155: =AR155*(1+$D150+Paraméterek!$B$11) -> 86.75001584 | AT155: =AS155*(1+$D150+Paraméterek!$B$11) -> 96.72626766 | AU155: =AT155*(1+$D150+Paraméterek!$B$11) -> 107.8497884 | AV155: =AU155*(1+$D150+Paraméterek!$B$11) -> 120.2525141 | AW155: =AV155*(1+$D150+Paraméterek!$B$11) -> 134.0815532 | AX155: =AW155*(1+$D150+Paraméterek!$B$11) -> 149.5009319 | AY155: =AX155*(1+$D150+Paraméterek!$B$11) -> 166.693539 | AZ155: =AY155*(1+$D150+Paraméterek!$B$11) -> 185.863296 | BA155: =AZ155*(1+$D150+Paraméterek!$B$11) -> 207.237575 | BB155: =BA155*(1+$D150+Paraméterek!$B$11) -> 231.0698962 | BC155: =BB155*(1+$D150+Paraméterek!$B$11) -> 257.6429342 | BD155: =BC155*(1+$D150+Paraméterek!$B$11) -> 287.2718717 | BE155: =BD155*(1+$D150+Paraméterek!$B$11) -> 320.3081369 | BF155: =BE155*(1+$D150+Paraméterek!$B$11) -> 357.1435727 | BG155: =BF155*(1+$D150+Paraméterek!$B$11) -> 398.2150835 | BH155: =BG155*(1+$D150+Paraméterek!$B$11) -> 444.0098181 | BI155: =BH155*(1+$D150+Paraméterek!$B$11) -> 495.0709472 | BJ155: =BI155*(1+$D150+Paraméterek!$B$11) -> 552.0041061 | BK155: =BJ155*(1+$D150+Paraméterek!$B$11) -> 615.4845783 | BL155: =BK155*(1+$D150+Paraméterek!$B$11) -> 686.2653049 | BM155: =BL155*(1+$D150+Paraméterek!$B$11) -> 765.1858149 | BN155: =BM155*(1+$D150+Paraméterek!$B$11) -> 853.1821836 | BO155: =BN155*(1+$D150+Paraméterek!$B$11) -> 951.2981347 | BP155: =BO155*(1+$D150+Paraméterek!$B$11) -> 1060.69742 | BQ155: =BP155*(1+$D150+Paraméterek!$B$11) -> 1182.677624 | BR155: =BQ155*(1+$D150+Paraméterek!$B$11) -> 1318.68555 | BS155: =BR155*(1+$D150+Paraméterek!$B$11) -> 1470.334389 | BT155: =BS155*(1+$D150+Paraméterek!$B$11) -> 1639.422843 | BU155: =BT155*(1+$D150+Paraméterek!$B$11) -> 1827.95647 | BV155: =BU155*(1+$D150+Paraméterek!$B$11) -> 2038.171464
D157: 2015 | E157: 2016 | F157: 2017 | G157: 2018 | H157: 2019 | I157: 2020 | J157: 2021 | K157: 2022 | L157: 2023 | M157: 2024 | N157: 2025 | O157: 2026 | P157: 2027 | Q157: 2028 | R157: 2029 | S157: 2030 | T157: 2031 | U157: 2032 | V157: 2033 | W157: 2034 | X157: 2035 | Y157: 2036 | Z157: 2037 | AA157: 2038 | AB157: 2039 | AC157: 2040 | AD157: 2041 | AE157: 2042 | AF157: 2043 | AG157: 2044 | AH157: 2045 | AI157: 2046 | AJ157: 2047 | AK157: 2048 | AL157: 2049 | AM157: 2050 | AN157: 2051 | AO157: 2052 | AP157: 2053 | AQ157: 2054 | AR157: 2055 | AS157: 2056 | AT157: 2057 | AU157: 2058 | AV157: 2059 | AW157: 2060 | AX157: 2061 | AY157: 2062 | AZ157: 2063 | BA157: 2064 | BB157: 2065 | BC157: 2066 | BD157: 2067 | BE157: 2068 | BF157: 2069 | BG157: 2070 | BH157: 2071 | BI157: 2072 | BJ157: 2073 | BK157: 2074 | BL157: 2075 | BM157: 2076 | BN157: 2077 | BO157: 2078 | BP157: 2079 | BQ157: 2080 | BR157: 2081 | BS157: 2082 | BT157: 2083 | BU157: 2084 | BV157: 2085
B158: Éves tulajdonosi pénzáramlás jelenértéke r=5% | D158: =D138/D153 -> -25 | E158: -57.03467512 | F158: -73.13078545 | G158: -92.10289349 | H158: -492.9045613 | I158: -259.6747393 | J158: -188.4668827 | K158: -201.0956921 | L158: -185.8010902 | M158: -175.8795006 | N158: -58.59986391 | O158: -326.7495915 | P158: -279.5183152 | Q158: -252.7862567 | R158: -224.6098176 | S158: -198.8841459 | T158: -175.41725 | U158: -154.0313411 | V158: -134.5618198 | W158: -127.0523692 | X158: -86.42828427 | Y158: -75.51171605 | Z158: -63.59165489 | AA158: -52.80906351 | AB158: -43.07120142 | AC158: -34.29233155 | AD158: -28.52995007 | AE158: -21.59054237 | AF158: -15.36339821 | AG158: -9.78876322 | AH158: -4.811460948 | AI158: -0.3805595621 | AJ158: =AJ138/AJ153 -> 6.819228631e-13 | AK158: -1.280606316e-13 | AL158: 0 | AM158: -1.129058446e-13 | AN158: 1.531326009e-13 | AO158: -8.848398751e-14 | AP158: 31.73240333 | AQ158: 65.678709 | AR158: -89.64731726 | AS158: 24.8312682 | AT158: 25.18667322 | AU158: 25.43895133 | AV158: 25.59791112 | AW158: 25.67261241 | AX158: 25.67141832 | AY158: 32.70441677 | AZ158: 42.48192903 | BA158: 41.01492012 | BB158: 39.58377114 | BC158: 38.18885838 | BD158: 36.83041233 | BE158: 35.50853239 | BF158: 34.22320057 | BG158: 32.97429397 | BH158: 31.76159626 | BI158: 30.58480824 | BJ158: 29.44355752 | BK158: 28.33740738 | BL158: 27.26586483 | BM158: =BM138/BM153 -> 25.89585973 | BN158: 24.86513742 | BO158: 23.87147976 | BP158: 22.91383966 | BQ158: 21.99117678 | BR158: 20.63906295 | BS158: 19.7460254 | BT158: 18.89076249 | BU158: 18.07172778 | BV158: 19.96578577
B159: Éves tulajdonosi pénzáramlás jelenértéke r=10% | D159: =D138/D155 -> -25 | E159: -54.47706637 | F159: -66.71902924 | G159: -80.25969321 | H159: -410.2624778 | I159: -206.4445424 | J159: -143.1144512 | K159: -145.8565544 | L159: -128.7200444 | M159: -116.382555 | N159: -37.03770014 | O159: -197.2591682 | P159: -161.1785167 | Q159: -139.2275189 | R159: -118.1612566 | S159: -99.93584076 | T159: -84.19148009 | U159: -70.61219034 | V159: -58.92060246 | W159: -53.13771011 | X159: -34.52635244 | Y159: -28.81269541 | Z159: -23.17631664 | AA159: -18.38347018 | AB159: -14.32124437 | AC159: -10.89094397 | AD159: -8.654545425 | AE159: -6.255781089 | AF159: -4.251870398 | AG159: -2.587588992 | AH159: -1.214840262 | AI159: -0.0917782116 | AJ159: =AJ138/AJ155 -> 1.570821887e-13 | AK159: -2.817617735e-14 | AL159: 0 | AM159: -2.266377956e-14 | AN159: 2.93601529e-14 | AO159: -1.620429273e-14 | AP159: 5.550640504 | AQ159: 10.97335635 | AR159: -14.30628634 | AS159: 3.784977105 | AT159: 3.666991506 | AU159: 3.537635157 | AV159: 3.400111068 | AW159: 3.257117168 | AX159: 3.1109134 | AY159: 3.785464754 | AZ159: 4.696688614 | BA159: 4.331159219 | BB159: 3.992585144 | BC159: 3.679157973 | BD159: 3.389167875 | BE159: 3.1210014 | BF159: 2.873138778 | BG159: 2.644150842 | BH159: 2.432695673 | BI159: 2.237515045 | BJ159: 2.057430744 | BK159: 1.891340824 | BL159: 1.73821583 | BM159: =BM138/BM155 -> 1.576846788 | BN159: 1.446188048 | BO159: 1.326135759 | BP159: 1.215853515 | BQ159: 1.114568064 | BR159: 0.9991319373 | BS159: 0.9130347301 | BT159: 0.8343184244 | BU159: 0.7623541398 | BV159: 0.8044855248
B160: Kumulált tőkeemelés/osztalék | D160: =D141 -> 25 | E160: =D160+E141 -> 85.741929 | F160: =E160+F141 -> 168.6886941 | G160: =F160+G141 -> 629.826379 | H160: 944.826379 | I160: 1269.826379 | J160: 1544.826379 | K160: 1857.326379 | L160: 2164.826379 | M160: 2474.826379 | N160: 2584.826379 | O160: 3238.048282 | P160: 3833.169677 | Q160: 4406.359353 | R160: 4948.763804 | S160: 5460.262206 | T160: 5940.731925 | U160: 6390.048489 | V160: 6808.085556 | W160: 7228.449362 | X160: 7532.991959 | Y160: 7816.363416 | Z160: 8070.514226 | AA160: 8295.289971 | AB160: 8490.533915 | AC160: 8656.086973 | AD160: 8802.773699 | AE160: 8920.996967 | AF160: 9010.590426 | AG160: 9071.385229 | AH160: 9103.209993 | AI160: 9105.890769 | AJ160: 9105.890769 | AK160: 9105.890769 | AL160: 9105.890769 | AM160: 9105.890769 | AN160: 9105.890769 | AO160: 9105.890769 | AP160: 9105.890769 | AQ160: 9105.890769 | AR160: 9105.890769 | AS160: 8777.543945 | AT160: 8422.849543 | AU160: 8041.31634 | AV160: 7632.444436 | AW160: 7195.725107 | AX160: 6730.640655 | AY160: 6240.502544 | AZ160: 5730.887951 | BA160: 5201.519956 | BB160: 4652.117583 | BC160: 4082.395751 | BD160: 3492.065202 | BE160: 2880.832447 | BF160: 2248.3997 | BG160: 1594.464816 | BH160: 918.7212224 | BI160: 220.8578578 | BJ160: -499.4408969 | BK160: -1242.495285 | BL160: -2008.630245 | BM160: =BL160+BM141 -> -2851.660528 | BN160: -3716.568924 | BO160: -4603.682244 | BP160: -5513.332192 | BQ160: -6445.855437 | BR160: -7503.7123 | BS160: -8581.566937 | BT160: -9679.747254 | BU160: -10798.58627 | BV160: -11944.17988
B161: Kumulált tulajdonosi hitelfinanszírozás | D161: =D134 -> 20.85644955 | E161: =D161+E134 -> 46.83594869 | F161: 60.30746648 | G161: 0 | H161: 0 | I161: 189.684162 | J161: 562.1565133 | K161: 901.1365719 | L161: 1393.74784 | M161: 1998.099153 | N161: 3093.345927 | O161: 2807.009936 | P161: 2726.514153 | Q161: 2637.194008 | R161: 2547.782625 | S161: 2458.278634 | T161: 2368.680648 | U161: 2278.987255 | V161: 2365.78864 | W161: 2349.827606 | X161: 2412.802957 | Y161: 2468.378425 | Z161: 2523.836167 | AA161: 2579.174416 | AB161: 2634.39138 | AC161: 2771.899836 | AD161: 2899.850112 | AE161: 3027.673562 | AF161: 3155.368285 | AG161: 3282.93235 | AH161: 3410.363796 | AI161: 3542.230065 | AJ161: 3417.882883 | AK161: =AJ161+AK134 -> 2891.34423 | AL161: 2316.356186 | AM161: 1689.270646 | AN161: 1063.68719 | AO161: 382.0386423 | AP161: 0 | AQ161: 0 | AR161: 2228.408262 | AS161: 1910.03588 | AT161: 1585.126021 | AU161: 1253.556622 | AV161: 915.2034594 | AW161: 569.9401166 | AX161: 217.6379439 | AY161: 0 | AZ161: 0 | BA161: 0 | BB161: 0 | BC161: 0 | BD161: 0 | BE161: 0 | BF161: 0 | BG161: 0 | BH161: 0 | BI161: 0 | BJ161: 0 | BK161: 0 | BL161: 0 | BM161: =BL161+BM134 -> 0 | BN161: 0 | BO161: 0 | BP161: 0 | BQ161: 0 | BR161: 0 | BS161: 0 | BT161: 0 | BU161: 0 | BV161: 0
B162: Éves tulajdonosi pénzáramlás kum. jelenértéke r=5% (jobb tengely) | D162: =D158 -> -25 | E162: =D162+E158 -> -82.03467512 | F162: -155.1654606 | G162: -247.2683541 | H162: -740.1729153 | I162: -999.8476546 | J162: -1188.314537 | K162: -1389.410229 | L162: -1575.21132 | M162: -1751.09082 | N162: -1809.690684 | O162: -2136.440276 | P162: -2415.958591 | Q162: -2668.744848 | R162: -2893.354665 | S162: -3092.238811 | T162: -3267.656061 | U162: -3421.687402 | V162: -3556.249222 | W162: -3683.301591 | X162: -3769.729875 | Y162: -3845.241591 | Z162: -3908.833246 | AA162: -3961.64231 | AB162: -4004.713511 | AC162: -4039.005843 | AD162: -4067.535793 | AE162: -4089.126335 | AF162: -4104.489733 | AG162: -4114.278497 | AH162: -4119.089958 | AI162: -4119.470517 | AJ162: -4119.470517 | AK162: =AJ162+AK158 -> -4119.470517 | AL162: -4119.470517 | AM162: -4119.470517 | AN162: -4119.470517 | AO162: -4119.470517 | AP162: -4087.738114 | AQ162: -4022.059405 | AR162: -4111.706722 | AS162: -4086.875454 | AT162: -4061.688781 | AU162: -4036.249829 | AV162: -4010.651918 | AW162: -3984.979306 | AX162: -3959.307887 | AY162: -3926.603471 | AZ162: -3884.121542 | BA162: -3843.106622 | BB162: -3803.52285 | BC162: -3765.333992 | BD162: -3728.50358 | BE162: -3692.995047 | BF162: -3658.771847 | BG162: -3625.797553 | BH162: -3594.035957 | BI162: -3563.451148 | BJ162: -3534.007591 | BK162: -3505.670183 | BL162: -3478.404319 | BM162: =BL162+BM158 -> -3452.508459 | BN162: -3427.643321 | BO162: -3403.771842 | BP162: -3380.858002 | BQ162: -3358.866825 | BR162: -3338.227762 | BS162: -3318.481737 | BT162: -3299.590974 | BU162: -3281.519247 | BV162: -3261.553461
B163: Éves tulajdonosi pénzáramlás kum. jelenértéke r=10% (jobb tengely) | D163: =D159 -> -25 | E163: =D163+E159 -> -79.47706637 | F163: =E163+F159 -> -146.1960956 | G163: -226.4557888 | H163: -636.7182666 | I163: -843.162809 | J163: -986.2772602 | K163: -1132.133815 | L163: -1260.853859 | M163: -1377.236414 | N163: -1414.274114 | O163: -1611.533282 | P163: -1772.711799 | Q163: -1911.939318 | R163: -2030.100575 | S163: -2130.036415 | T163: -2214.227895 | U163: -2284.840086 | V163: -2343.760688 | W163: -2396.898398 | X163: -2431.424751 | Y163: -2460.237446 | Z163: -2483.413763 | AA163: -2501.797233 | AB163: -2516.118477 | AC163: -2527.009421 | AD163: -2535.663967 | AE163: -2541.919748 | AF163: -2546.171618 | AG163: -2548.759207 | AH163: -2549.974048 | AI163: -2550.065826 | AJ163: -2550.065826 | AK163: -2550.065826 | AL163: -2550.065826 | AM163: -2550.065826 | AN163: -2550.065826 | AO163: -2550.065826 | AP163: -2544.515185 | AQ163: -2533.541829 | AR163: -2547.848115 | AS163: -2544.063138 | AT163: -2540.396147 | AU163: -2536.858511 | AV163: -2533.4584 | AW163: -2530.201283 | AX163: -2527.09037 | AY163: -2523.304905 | AZ163: -2518.608216 | BA163: -2514.277057 | BB163: -2510.284472 | BC163: -2506.605314 | BD163: -2503.216146 | BE163: -2500.095145 | BF163: -2497.222006 | BG163: -2494.577855 | BH163: -2492.14516 | BI163: -2489.907645 | BJ163: -2487.850214 | BK163: -2485.958873 | BL163: -2484.220657 | BM163: =BL163+BM159 -> -2482.64381 | BN163: -2481.197622 | BO163: -2479.871487 | BP163: -2478.655633 | BQ163: -2477.541065 | BR163: -2476.541933 | BS163: -2475.628898 | BT163: -2474.79458 | BU163: -2474.032226 | BV163: -2473.22774
B165: Éves tulajdonosi pénzáramlás jelenértéke r=8% | D165: =D138/D154 -> -25 | E165: =E138/E154 -> -55.47208128 | F165: -69.17851182 | G165: -84.73829861 | H165: -441.0672293 | I165: -225.9993277 | J165: -159.5320621 | K165: -165.5583874 | L165: -148.7757563 | M165: -136.9728907 | N165: -44.38656054 | O165: -240.7162604 | P165: -200.2793315 | Q165: -176.1630458 | R165: -152.2388784 | S165: -131.1089966 | T165: -112.4708859 | U165: -96.05332493 | V165: -81.6132451 | W165: -74.94748281 | X165: -49.58675215 | Y165: -42.13661078 | Z165: -34.51285416 | AA165: -27.87563079 | AB165: -22.11254412 | AC165: -17.12317239 | AD165: -13.85554825 | AE165: -10.1981582 | AF165: -7.057988853 | AG165: -4.373780589 | AH165: -2.090940252 | AI165: -0.160850637 | AJ165: 2.803308453e-13 | AK165: -5.120198088e-14 | AL165: 0 | AM165: -4.27030136e-14 | AN165: 5.633071301e-14 | AO165: -3.165758371e-14 | AP165: 11.04209635 | AQ165: 22.22842353 | AR165: -29.50915962 | AS165: 7.949758456 | AT165: 7.842622819 | AU165: 7.704158591 | AV165: 7.539907624 | AW165: 7.35473537 | AX165: 7.152903058 | AY165: 8.862869868 | AZ165: 11.19715479 | BA165: 10.51431082 | BB165: 9.869419224 | BC165: 9.260759255 | BD165: 8.686643293 | BE165: 8.145422548 | BF165: 7.635491656 | BG165: 7.155292277 | BH165: 6.703315838 | BI165: 6.278105537 | BJ165: 5.878257698 | BK165: 5.502422583 | BL165: 5.149304725 | BM165: =BM138/BM154 -> 4.756583648 | BN165: 4.442128903 | BO165: 4.147774363 | BP165: 3.872301284 | BQ165: 3.614558255 | BR165: 3.299379131 | BS165: 3.070134681 | BT165: 2.856687355 | BU165: 2.657959685 | BV165: 2.856081583
B169: Iparűzési adó | D169: =(D3-D6-D7)*Paraméterek!$B$18 -> 0 | E169: =(E3-E6-E7)*Paraméterek!$B$18 -> 0 | F169: =(F3-F6-F7)*Paraméterek!$B$18 -> 0 | G169: =(G3-G6-G7)*Paraméterek!$B$18 -> 0 | H169: =(H3-H6-H7)*Paraméterek!$B$18 -> 0 | I169: =(I3-I6-I7)*Paraméterek!$B$18 -> 0 | J169: =(J3-J6-J7)*Paraméterek!$B$18 -> 0 | K169: =(K3-K6-K7)*Paraméterek!$B$18 -> 0 | L169: =(L3-L6-L7)*Paraméterek!$B$18 -> 0 | M169: =(M3-M6-M7)*Paraméterek!$B$18 -> 0 | N169: =(N3-N6-N7)*Paraméterek!$B$18 -> 0 | O169: =(O3-O6-O7)*Paraméterek!$B$18 -> 18.09066047 | P169: =(P3-P6-P7)*Paraméterek!$B$18 -> 18.36202038 | Q169: =(Q3-Q6-Q7)*Paraméterek!$B$18 -> 18.63745069 | R169: =(R3-R6-R7)*Paraméterek!$B$18 -> 18.91701245 | S169: =(S3-S6-S7)*Paraméterek!$B$18 -> 19.20076763 | T169: =(T3-T6-T7)*Paraméterek!$B$18 -> 19.48877915 | U169: =(U3-U6-U7)*Paraméterek!$B$18 -> 19.78111084 | V169: =(V3-V6-V7)*Paraméterek!$B$18 -> 20.0778275 | W169: =(W3-W6-W7)*Paraméterek!$B$18 -> 22.27158378 | X169: =(X3-X6-X7)*Paraméterek!$B$18 -> 22.4541396 | Y169: =(Y3-Y6-Y7)*Paraméterek!$B$18 -> 22.79095169 | Z169: =(Z3-Z6-Z7)*Paraméterek!$B$18 -> 23.13281597 | AA169: =(AA3-AA6-AA7)*Paraméterek!$B$18 -> 23.47980821 | AB169: =(AB3-AB6-AB7)*Paraméterek!$B$18 -> 23.83200533 | AC169: =(AC3-AC6-AC7)*Paraméterek!$B$18 -> 24.18948541 | AD169: =(AD3-AD6-AD7)*Paraméterek!$B$18 -> 24.55232769 | AE169: =(AE3-AE6-AE7)*Paraméterek!$B$18 -> 24.92061261 | AF169: =(AF3-AF6-AF7)*Paraméterek!$B$18 -> 25.2944218 | AG169: =(AG3-AG6-AG7)*Paraméterek!$B$18 -> 25.67383813 | AH169: =(AH3-AH6-AH7)*Paraméterek!$B$18 -> 26.0589457 | AI169: =(AI3-AI6-AI7)*Paraméterek!$B$18 -> 26.44982988 | AJ169: =(AJ3-AJ6-AJ7)*Paraméterek!$B$18 -> 26.84657733 | AK169: =(AK3-AK6-AK7)*Paraméterek!$B$18 -> 27.24927599 | AL169: =(AL3-AL6-AL7)*Paraméterek!$B$18 -> 27.65801513 | AM169: =(AM3-AM6-AM7)*Paraméterek!$B$18 -> 28.07288536 | AN169: =(AN3-AN6-AN7)*Paraméterek!$B$18 -> 28.49397864 | AO169: =(AO3-AO6-AO7)*Paraméterek!$B$18 -> 28.92138832 | AP169: =(AP3-AP6-AP7)*Paraméterek!$B$18 -> 29.35520914 | AQ169: =(AQ3-AQ6-AQ7)*Paraméterek!$B$18 -> 29.79553728 | AR169: =(AR3-AR6-AR7)*Paraméterek!$B$18 -> 30.24247034 | AS169: =(AS3-AS6-AS7)*Paraméterek!$B$18 -> 30.69610739 | AT169: =(AT3-AT6-AT7)*Paraméterek!$B$18 -> 31.156549 | AU169: =(AU3-AU6-AU7)*Paraméterek!$B$18 -> 31.62389724 | AV169: =(AV3-AV6-AV7)*Paraméterek!$B$18 -> 32.0982557 | AW169: =(AW3-AW6-AW7)*Paraméterek!$B$18 -> 32.57972953 | AX169: =(AX3-AX6-AX7)*Paraméterek!$B$18 -> 33.06842548 | AY169: =(AY3-AY6-AY7)*Paraméterek!$B$18 -> 33.56445186 | AZ169: =(AZ3-AZ6-AZ7)*Paraméterek!$B$18 -> 34.06791864 | BA169: =(BA3-BA6-BA7)*Paraméterek!$B$18 -> 34.57893742 | BB169: =(BB3-BB6-BB7)*Paraméterek!$B$18 -> 35.09762148 | BC169: =(BC3-BC6-BC7)*Paraméterek!$B$18 -> 35.6240858 | BD169: =(BD3-BD6-BD7)*Paraméterek!$B$18 -> 36.15844709 | BE169: =(BE3-BE6-BE7)*Paraméterek!$B$18 -> 36.70082379 | BF169: =(BF3-BF6-BF7)*Paraméterek!$B$18 -> 37.25133615 | BG169: =(BG3-BG6-BG7)*Paraméterek!$B$18 -> 37.81010619 | BH169: =(BH3-BH6-BH7)*Paraméterek!$B$18 -> 38.37725779 | BI169: =(BI3-BI6-BI7)*Paraméterek!$B$18 -> 38.95291665 | BJ169: =(BJ3-BJ6-BJ7)*Paraméterek!$B$18 -> 39.5372104 | BK169: =(BK3-BK6-BK7)*Paraméterek!$B$18 -> 40.13026856 | BL169: =(BL3-BL6-BL7)*Paraméterek!$B$18 -> 40.73222259 | BM169: =(BM3-BM6-BM7)*Paraméterek!$B$18 -> 41.34320592 | BN169: =(BN3-BN6-BN7)*Paraméterek!$B$18 -> 41.96335401 | BO169: =(BO3-BO6-BO7)*Paraméterek!$B$18 -> 42.59280432 | BP169: =(BP3-BP6-BP7)*Paraméterek!$B$18 -> 43.23169639 | BQ169: =(BQ3-BQ6-BQ7)*Paraméterek!$B$18 -> 43.88017183 | BR169: =(BR3-BR6-BR7)*Paraméterek!$B$18 -> 44.53837441 | BS169: =(BS3-BS6-BS7)*Paraméterek!$B$18 -> 45.20645003 | BT169: =(BT3-BT6-BT7)*Paraméterek!$B$18 -> 45.88454678 | BU169: =(BU3-BU6-BU7)*Paraméterek!$B$18 -> 46.57281498 | BV169: =(BV3-BV6-BV7)*Paraméterek!$B$18 -> 47.27140721
B170: Pótlólagos finanszírozás | D170: =D86+D96+D84 -> 45.85644955 | E170: =E86+E96+E84 -> 132.5778777 | F170: 228.9961606 | G170: 629.826379 | H170: 944.826379 | I170: 1459.510541 | J170: 2106.982892 | K170: 2758.462951 | L170: 3558.574219 | M170: 4472.925532 | N170: 5678.172306 | O170: 6045.058218 | P170: 6559.68383 | Q170: 7043.553362 | R170: 7496.546428 | S170: 7918.54084 | T170: 8309.412573 | U170: 8669.035744 | V170: 9173.874196 | W170: 9578.276968 | X170: 9945.794916 | Y170: 10284.74184 | Z170: 10594.35039 | AA170: 10874.46439 | AB170: 11124.92529 | AC170: 11427.98681 | AD170: 11702.62381 | AE170: 11948.67053 | AF170: 12165.95871 | AG170: 12354.31758 | AH170: 12513.57379 | AI170: 12648.12083 | AJ170: 12523.77365 | AK170: 11997.235 | AL170: 11422.24695 | AM170: 10795.16141 | AN170: 10169.57796 | AO170: 9487.929411 | AP170: 9105.890769 | AQ170: 9105.890769 | AR170: 11334.29903 | AS170: 11015.92665 | AT170: 10691.01679 | AU170: 10359.44739 | AV170: 10021.09423 | AW170: 9675.830885 | AX170: 9323.528713 | AY170: 9105.890769 | AZ170: 9105.890769 | BA170: 9105.890769 | BB170: 9105.890769 | BC170: 9105.890769 | BD170: 9105.890769 | BE170: 9105.890769 | BF170: 9105.890769 | BG170: 9105.890769 | BH170: 9105.890769 | BI170: 9105.890769 | BJ170: 9105.890769 | BK170: 9105.890769 | BL170: 9105.890769 | BM170: 9105.890769 | BN170: 9105.890769 | BO170: 9105.890769 | BP170: 9105.890769 | BQ170: =BQ86+BQ96+BQ84 -> 9105.890769 | BR170: 9105.890769 | BS170: 9105.890769 | BT170: 9105.890769 | BU170: 9105.890769 | BV170: 9105.890769
D173: 2015 | E173: 2016 | F173: 2017 | G173: 2018 | H173: 2019 | I173: 2020 | J173: 2021 | K173: 2022 | L173: 2023 | M173: 2024 | N173: 2025 | O173: 2026 | P173: 2027 | Q173: 2028 | R173: 2029 | S173: 2030 | T173: 2031 | U173: 2032 | V173: 2033 | W173: 2034 | X173: 2035 | Y173: 2036 | Z173: 2037 | AA173: 2038 | AB173: 2039 | AC173: 2040 | AD173: 2041 | AE173: 2042 | AF173: 2043 | AG173: 2044 | AH173: 2045 | AI173: 2046 | AJ173: 2047 | AK173: 2048 | AL173: 2049 | AM173: 2050 | AN173: 2051 | AO173: 2052 | AP173: 2053 | AQ173: 2054 | AR173: 2055 | AS173: 2056 | AT173: 2057 | AU173: 2058 | AV173: 2059 | AW173: 2060 | AX173: 2061 | AY173: 2062 | AZ173: 2063 | BA173: 2064 | BB173: 2065 | BC173: 2066 | BD173: 2067 | BE173: 2068 | BF173: 2069 | BG173: 2070 | BH173: 2071 | BI173: 2072 | BJ173: 2073 | BK173: 2074 | BL173: 2075 | BM173: 2076 | BN173: 2077 | BO173: 2078 | BP173: 2079 | BQ173: 2080 | BR173: 2081 | BS173: 2082 | BT173: 2083 | BU173: 2084 | BV173: 2085
B174: Tulajdonosi pénzáramlás (FCFE) | D174: =D138 -> -25 | E174: =E138 -> -60.741929 | F174: -82.94676513 | G174: -111.2556557 | H174: -634.1051321 | I174: -355.7768971 | J174: -275 | K174: -312.5 | L174: -307.5 | M174: -310 | N174: -110 | O174: -653.2219034 | P174: -595.1213944 | Q174: -573.1896765 | R174: -542.4044502 | S174: -511.4984021 | T174: -480.4697197 | U174: -449.3165637 | V174: -418.0370668 | W174: -420.363806 | X174: -304.5425972 | Y174: -283.3714571 | Z174: -254.15081 | AA174: -224.7757445 | AB174: -195.2439443 | AC174: -165.5530584 | AD174: -146.6867254 | AE174: -118.2232686 | AF174: -89.5934592 | AG174: -60.79480209 | AH174: -31.82476449 | AI174: -2.680775709 | AJ174: 5.115907697e-12 | AK174: -1.023181539e-12 | AL174: 0 | AM174: -1.023181539e-12 | AN174: 1.47792889e-12 | AO174: -9.094947018e-13 | AP174: 347.3666026 | AQ174: 765.7011702 | AR174: -1113.067773 | AS174: 328.3468238 | AT174: 354.6944019 | AU174: 381.5332032 | AV174: 408.8719042 | AW174: 436.7193289 | AX174: 465.0844522 | AY174: 631.0125167 | AZ174: 872.942026 | BA174: 897.5789336 | BB174: 922.5662348 | BC174: 947.9090558 | BD174: 973.612599 | BE174: 999.6821437 | BF174: 1026.123048 | BG174: 1052.940748 | BH174: 1080.140763 | BI174: 1107.728693 | BJ174: 1135.710219 | BK174: 1164.091109 | BL174: 1192.877216 | BM174: 1206.580795 | BN174: 1233.861877 | BO174: 1261.550474 | BP174: 1289.652687 | BQ174: =BQ138 -> 1318.17471 | BR174: 1317.540848 | BS174: 1342.466362 | BT174: 1367.800683 | BU174: 1393.550182 | BV174: 1639.67944
B175: Pótlólagos hitelnyújtás (tulajdonosi hitel)* | D175: =-D134 -> -20.85644955 | E175: =-E134 -> -25.97949914 | F175: -13.47151779 | G175: 60.30746648 | H175: 0 | I175: -189.684162 | J175: -372.4723513 | K175: -338.9800586 | L175: -492.6112683 | M175: -604.3513125 | N175: -1095.246775 | O175: 286.3359915 | P175: 80.49578264 | Q175: 89.32014485 | R175: 89.41138335 | S175: 89.50399044 | T175: 89.59798663 | U175: 89.69339277 | V175: -86.80138491 | W175: 15.96103426 | X175: -62.9753514 | Y175: -55.57546827 | Z175: -55.4577416 | AA175: -55.33824903 | AB175: -55.21696407 | AC175: -137.5084561 | AD175: -127.9502755 | AE175: -127.8234504 | AF175: -127.694723 | AG175: -127.5640646 | AH175: -127.4314464 | AI175: -131.8662684 | AJ175: 124.3471816 | AK175: 526.5386528 | AL175: 574.9880441 | AM175: 627.0855401 | AN175: 625.5834563 | AO175: 681.6485472 | AP175: 382.0386423 | AQ175: 0 | AR175: -2228.408262 | AS175: 318.3723826 | AT175: 324.9098587 | AU175: 331.5693993 | AV175: 338.3531624 | AW175: 345.2633428 | AX175: 352.3021727 | AY175: 217.6379439 | AZ175: 0 | BA175: 0 | BB175: 0 | BC175: 0 | BD175: 0 | BE175: 0 | BF175: 0 | BG175: 0 | BH175: 0 | BI175: 0 | BJ175: 0 | BK175: 0 | BL175: 0 | BM175: 0 | BN175: 0 | BO175: 0 | BP175: 0 | BQ175: =-BQ134 -> 0 | BR175: 0 | BS175: 0 | BT175: 0 | BU175: 0 | BV175: 0
B176: Tulajdonosi pénzáramlás kumulált jelenértéke r=5% (jobb tengely) | D176: =D162 -> -25 | E176: =E162 -> -82.03467512 | F176: =F162 -> -155.1654606 | G176: -247.2683541 | H176: -740.1729153 | I176: -999.8476546 | J176: -1188.314537 | K176: -1389.410229 | L176: -1575.21132 | M176: -1751.09082 | N176: -1809.690684 | O176: -2136.440276 | P176: -2415.958591 | Q176: -2668.744848 | R176: -2893.354665 | S176: -3092.238811 | T176: -3267.656061 | U176: -3421.687402 | V176: -3556.249222 | W176: -3683.301591 | X176: -3769.729875 | Y176: -3845.241591 | Z176: -3908.833246 | AA176: -3961.64231 | AB176: -4004.713511 | AC176: -4039.005843 | AD176: -4067.535793 | AE176: -4089.126335 | AF176: -4104.489733 | AG176: -4114.278497 | AH176: -4119.089958 | AI176: -4119.470517 | AJ176: -4119.470517 | AK176: -4119.470517 | AL176: -4119.470517 | AM176: -4119.470517 | AN176: -4119.470517 | AO176: -4119.470517 | AP176: -4087.738114 | AQ176: -4022.059405 | AR176: -4111.706722 | AS176: -4086.875454 | AT176: -4061.688781 | AU176: -4036.249829 | AV176: -4010.651918 | AW176: -3984.979306 | AX176: -3959.307887 | AY176: -3926.603471 | AZ176: -3884.121542 | BA176: -3843.106622 | BB176: -3803.52285 | BC176: -3765.333992 | BD176: -3728.50358 | BE176: -3692.995047 | BF176: -3658.771847 | BG176: -3625.797553 | BH176: -3594.035957 | BI176: -3563.451148 | BJ176: -3534.007591 | BK176: -3505.670183 | BL176: -3478.404319 | BM176: -3452.508459 | BN176: -3427.643321 | BO176: -3403.771842 | BP176: -3380.858002 | BQ176: -3358.866825 | BR176: =BR162 -> -3338.227762 | BS176: -3318.481737 | BT176: -3299.590974 | BU176: -3281.519247 | BV176: -3261.553461
B177: =B163 -> Éves tulajdonosi pénzáramlás kum. jelenértéke r=10% (jobb tengely) | D177: =D163 -> -25 | E177: -79.47706637 | F177: -146.1960956 | G177: -226.4557888 | H177: -636.7182666 | I177: -843.162809 | J177: -986.2772602 | K177: -1132.133815 | L177: -1260.853859 | M177: -1377.236414 | N177: -1414.274114 | O177: -1611.533282 | P177: -1772.711799 | Q177: -1911.939318 | R177: -2030.100575 | S177: -2130.036415 | T177: -2214.227895 | U177: -2284.840086 | V177: -2343.760688 | W177: -2396.898398 | X177: -2431.424751 | Y177: -2460.237446 | Z177: -2483.413763 | AA177: -2501.797233 | AB177: -2516.118477 | AC177: -2527.009421 | AD177: -2535.663967 | AE177: -2541.919748 | AF177: -2546.171618 | AG177: -2548.759207 | AH177: -2549.974048 | AI177: -2550.065826 | AJ177: -2550.065826 | AK177: -2550.065826 | AL177: -2550.065826 | AM177: -2550.065826 | AN177: -2550.065826 | AO177: -2550.065826 | AP177: -2544.515185 | AQ177: -2533.541829 | AR177: -2547.848115 | AS177: -2544.063138 | AT177: -2540.396147 | AU177: -2536.858511 | AV177: -2533.4584 | AW177: -2530.201283 | AX177: -2527.09037 | AY177: -2523.304905 | AZ177: -2518.608216 | BA177: -2514.277057 | BB177: -2510.284472 | BC177: -2506.605314 | BD177: -2503.216146 | BE177: -2500.095145 | BF177: -2497.222006 | BG177: -2494.577855 | BH177: -2492.14516 | BI177: -2489.907645 | BJ177: -2487.850214 | BK177: -2485.958873 | BL177: -2484.220657 | BM177: -2482.64381 | BN177: -2481.197622 | BO177: -2479.871487 | BP177: -2478.655633 | BQ177: -2477.541065 | BR177: -2476.541933 | BS177: -2475.628898 | BT177: -2474.79458 | BU177: -2474.032226 | BV177: -2473.22774
BX180: utolsó 30 év átlaga
B181: EBIT/Sales | O181: =O17/O3 -> 0.07787841867 | P181: =P17/P3 -> 0.08392930326 | Q181: 0.0898907659 | R181: 0.09576412812 | S181: 0.1015506919 | T181: 0.1072517399 | U181: 0.112868536 | V181: 0.1184023253 | W181: 0.180579112 | X181: 0.17966049 | Y181: 0.1845498902 | Z181: 0.1893670333 | AA181: 0.194112987 | AB181: 0.1987888036 | AC181: 0.2033955193 | AD181: 0.2079341556 | AE181: 0.2124057184 | AF181: 0.216811199 | AG181: 0.2211515739 | AH181: 0.2254278054 | AI181: 0.2296408414 | AJ181: 0.2337916157 | AK181: 0.2378810485 | AL181: 0.2419100464 | AM181: 0.2458795024 | AN181: 0.4591026026 | AO181: 0.4598623164 | AP181: 0.4606108029 | AQ181: 0.4613482281 | AR181: 0.4620747553 | AS181: 0.3716803303 | AT181: 0.3737319989 | AU181: 0.3757533473 | AV181: 0.3777448235 | AW181: 0.379706869 | AX181: 0.3816399188 | AY181: 0.3835444014 | AZ181: 0.3854207388 | BA181: 0.3872693472 | BB181: 0.3890906362 | BC181: 0.3908850097 | BD181: 0.3926528653 | BE181: 0.3943945949 | BF181: 0.3961105847 | BG181: 0.397801215 | BH181: 0.3994668607 | BI181: 0.4011078909 | BJ181: 0.4027246694 | BK181: 0.4043175547 | BL181: 0.4058868998 | BM181: =BM17/BM3 -> 0.442863265 | BN181: 0.443862969 | BO181: 0.4448478991 | BP181: 0.4458182736 | BQ181: 0.4467743075 | BR181: 0.5105099047 | BS181: 0.5105099047 | BT181: 0.5105099047 | BU181: 0.5105099047 | BV181: 0.5105099047 | BW181: =AVERAGE(O181:AR181) -> 0.2231273986 | BX181: =AVERAGE(AS181:BV181) -> 0.4189215598
B182: EBITDA/Sales | O182: =(O17+O14)/O3 -> 0.487321609 | P182: 0.487321609 | Q182: =(Q17+Q14)/Q3 -> 0.487321609 | R182: =(R17+R14)/R3 -> 0.487321609 | S182: 0.487321609 | T182: 0.487321609 | U182: 0.487321609 | V182: 0.487321609 | W182: 0.516391268 | X182: 0.5105099047 | Y182: 0.5105099047 | Z182: 0.5105099047 | AA182: 0.5105099047 | AB182: 0.5105099047 | AC182: 0.5105099047 | AD182: 0.5105099047 | AE182: 0.5105099047 | AF182: 0.5105099047 | AG182: 0.5105099047 | AH182: 0.5105099047 | AI182: 0.5105099047 | AJ182: 0.5105099047 | AK182: 0.5105099047 | AL182: 0.5105099047 | AM182: 0.5105099047 | AN182: 0.5105099047 | AO182: 0.5105099047 | AP182: 0.5105099047 | AQ182: 0.5105099047 | AR182: 0.5105099047 | AS182: 0.5105099047 | AT182: 0.5105099047 | AU182: 0.5105099047 | AV182: 0.5105099047 | AW182: 0.5105099047 | AX182: 0.5105099047 | AY182: 0.5105099047 | AZ182: 0.5105099047 | BA182: 0.5105099047 | BB182: 0.5105099047 | BC182: 0.5105099047 | BD182: 0.5105099047 | BE182: 0.5105099047 | BF182: 0.5105099047 | BG182: 0.5105099047 | BH182: 0.5105099047 | BI182: 0.5105099047 | BJ182: 0.5105099047 | BK182: 0.5105099047 | BL182: 0.5105099047 | BM182: 0.5105099047 | BN182: 0.5105099047 | BO182: 0.5105099047 | BP182: 0.5105099047 | BQ182: 0.5105099047 | BR182: 0.5105099047 | BS182: 0.5105099047 | BT182: 0.5105099047 | BU182: 0.5105099047 | BV182: 0.5105099047 | BW182: =AVERAGE(O182:AR182) -> 0.5045224046 | BX182: =AVERAGE(AS182:BV182) -> 0.5105099047
B183: Bérhányad | O183: =O13/O3 -> 0.1279142264 | P183: =P13/P3 -> 0.1279142264 | Q183: 0.1279142264 | R183: 0.1279142264 | S183: 0.1279142264 | T183: 0.1279142264 | U183: 0.1279142264 | V183: 0.1279142264 | W183: 0.1181816222 | X183: 0.1181816222 | Y183: 0.1181816222 | Z183: 0.1181816222 | AA183: 0.1181816222 | AB183: 0.1181816222 | AC183: 0.1181816222 | AD183: 0.1181816222 | AE183: 0.1181816222 | AF183: 0.1181816222 | AG183: 0.1181816222 | AH183: 0.1181816222 | AI183: 0.1181816222 | AJ183: 0.1181816222 | AK183: 0.1181816222 | AL183: 0.1181816222 | AM183: 0.1181816222 | AN183: 0.1181816222 | AO183: 0.1181816222 | AP183: 0.1181816222 | AQ183: 0.1181816222 | AR183: 0.1181816222 | AS183: 0.1181816222 | AT183: 0.1181816222 | AU183: 0.1181816222 | AV183: 0.1181816222 | AW183: 0.1181816222 | AX183: 0.1181816222 | AY183: 0.1181816222 | AZ183: 0.1181816222 | BA183: 0.1181816222 | BB183: 0.1181816222 | BC183: 0.1181816222 | BD183: 0.1181816222 | BE183: 0.1181816222 | BF183: 0.1181816222 | BG183: 0.1181816222 | BH183: 0.1181816222 | BI183: 0.1181816222 | BJ183: 0.1181816222 | BK183: 0.1181816222 | BL183: 0.1181816222 | BM183: 0.1181816222 | BN183: 0.1181816222 | BO183: 0.1181816222 | BP183: 0.1181816222 | BQ183: 0.1181816222 | BR183: 0.1181816222 | BS183: 0.1181816222 | BT183: 0.1181816222 | BU183: 0.1181816222 | BV183: 0.1181816222 | BW183: 0.1207769833 | BX183: =AVERAGE(AS183:BV183) -> 0.1181816222
B184: Anyaghányad | O184: =O9/O3 -> 0.2519051931 | P184: =P9/P3 -> 0.2519051931 | Q184: 0.2519051931 | R184: 0.2519051931 | S184: 0.2519051931 | T184: 0.2519051931 | U184: 0.2519051931 | V184: 0.2519051931 | W184: 0.2327384936 | X184: 0.2387398847 | Y184: 0.2387398847 | Z184: 0.2387398847 | AA184: 0.2387398847 | AB184: 0.2387398847 | AC184: 0.2387398847 | AD184: 0.2387398847 | AE184: 0.2387398847 | AF184: 0.2387398847 | AG184: 0.2387398847 | AH184: 0.2387398847 | AI184: 0.2387398847 | AJ184: 0.2387398847 | AK184: 0.2387398847 | AL184: 0.2387398847 | AM184: 0.2387398847 | AN184: 0.2387398847 | AO184: 0.2387398847 | AP184: 0.2387398847 | AQ184: 0.2387398847 | AR184: 0.2387398847 | AS184: 0.2387398847 | AT184: 0.2387398847 | AU184: 0.2387398847 | AV184: 0.2387398847 | AW184: 0.2387398847 | AX184: 0.2387398847 | AY184: 0.2387398847 | AZ184: 0.2387398847 | BA184: 0.2387398847 | BB184: 0.2387398847 | BC184: 0.2387398847 | BD184: 0.2387398847 | BE184: 0.2387398847 | BF184: 0.2387398847 | BG184: 0.2387398847 | BH184: 0.2387398847 | BI184: 0.2387398847 | BJ184: 0.2387398847 | BK184: 0.2387398847 | BL184: 0.2387398847 | BM184: 0.2387398847 | BN184: 0.2387398847 | BO184: 0.2387398847 | BP184: 0.2387398847 | BQ184: 0.2387398847 | BR184: 0.2387398847 | BS184: 0.2387398847 | BT184: 0.2387398847 | BU184: 0.2387398847 | BV184: 0.2387398847 | BW184: 0.2420505873 | BX184: =AVERAGE(AS184:BV184) -> 0.2387398847
B185: Egyéb ráfordítások aránya | O185: =O15/O3 -> 0.1328589715 | P185: =P15/P3 -> 0.1328589715 | Q185: 0.1328589715 | R185: 0.1328589715 | S185: 0.1328589715 | T185: 0.1328589715 | U185: 0.1328589715 | V185: 0.1328589715 | W185: 0.1326886162 | X185: 0.1325685884 | Y185: 0.1325685884 | Z185: 0.1325685884 | AA185: 0.1325685884 | AB185: 0.1325685884 | AC185: 0.1325685884 | AD185: 0.1325685884 | AE185: 0.1325685884 | AF185: 0.1325685884 | AG185: 0.1325685884 | AH185: 0.1325685884 | AI185: 0.1325685884 | AJ185: 0.1325685884 | AK185: 0.1325685884 | AL185: 0.1325685884 | AM185: 0.1325685884 | AN185: 0.1325685884 | AO185: 0.1325685884 | AP185: 0.1325685884 | AQ185: 0.1325685884 | AR185: 0.1325685884 | AS185: 0.1325685884 | AT185: 0.1325685884 | AU185: 0.1325685884 | AV185: 0.1325685884 | AW185: 0.1325685884 | AX185: 0.1325685884 | AY185: 0.1325685884 | AZ185: 0.1325685884 | BA185: 0.1325685884 | BB185: 0.1325685884 | BC185: 0.1325685884 | BD185: 0.1325685884 | BE185: 0.1325685884 | BF185: 0.1325685884 | BG185: 0.1325685884 | BH185: 0.1325685884 | BI185: 0.1325685884 | BJ185: 0.1325685884 | BK185: 0.1325685884 | BL185: 0.1325685884 | BM185: 0.1325685884 | BN185: 0.1325685884 | BO185: 0.1325685884 | BP185: 0.1325685884 | BQ185: 0.1325685884 | BR185: 0.1325685884 | BS185: 0.1325685884 | BT185: 0.1325685884 | BU185: 0.1325685884 | BV185: 0.1325685884 | BW185: =AVERAGE(O185:AR185) -> 0.1326500248 | BX185: =AVERAGE(AS185:BV185) -> 0.1325685884
B188: ROE | O188: =IF(O83>0,O30/O83,"") ->  | P188: =IF(P83>0,P30/P83,"") ->  | AI188: 1 | AJ188: 0.7514370853 | AK188: 0.5573801366 | AL188: 0.4441712007 | AM188: 0.3705324806 | AN188: 0.4879121008 | AO188: 0.3498162523 | AP188: 0.2740870727 | AQ188: 0.2244497723 | AR188: 0.1429470256 | AS188: 0.1124145282 | AT188: 0.1185556603 | AU188: 0.124354754 | AV188: 0.1298056543 | AW188: 0.1349056137 | AX188: 0.1396550104 | AY188: 0.1429696921 | AZ188: 0.144359021 | BA188: 0.1455882613 | BB188: 0.1466659791 | BC188: 0.1476006433 | BD188: 0.1484005729 | BE188: 0.1490738931 | BF188: 0.1496285 | BG188: 0.150072032 | BH188: 0.1504118483 | BI188: 0.1506550132 | BJ188: 0.1508082853 | BK188: 0.150878111 | BL188: 0.1508706224 | BM188: 0.160678242 | BN188: 0.1595866132 | BO188: 0.1584950917 | BP188: 0.1574052237 | BQ188: 0.1563183965 | BR188: 0.1712543678 | BS188: 0.168607639 | BT188: 0.166081045 | BU188: 0.1636666663 | BV188: 0.1621459039 | BX188: =AVERAGE(AS188:BV188) -> 0.1487304295
B189: ROCE | O189: =O17/(O83+O93+O96) -> 0.006505087249 | P189: =P17/(P83+P93+P96) -> 0.0073664296 | Q189: 0.008300504869 | R189: 0.009315730159 | S189: =S17/(S83+S93+S96) -> 0.01042185003 | T189: 0.01163020846 | U189: 0.01295409047 | V189: 0.01440915528 | W189: 0.02522755273 | X189: 0.02672404991 | Y189: 0.02929642766 | Z189: 0.03216659707 | AA189: 0.03538603388 | AB189: 0.0390187289 | AC189: 0.04314523604 | AD189: 0.04786839995 | AE189: 0.05332163728 | AF189: 0.05968120587 | AG189: 0.06718489845 | AH189: 0.07616146025 | AI189: 0.08707866715 | AJ189: 0.1006255063 | AK189: 0.117860464 | AL189: 0.1404975661 | AM189: 0.1715068149 | AN189: 0.3368428807 | AO189: 0.3553593168 | AP189: 0.3204369928 | AQ189: 0.2526465411 | AR189: 0.1355134566 | AS189: 0.1153392877 | AT189: 0.1229380135 | AU189: 0.1312799302 | AV189: 0.1404738892 | AW189: 0.1506509627 | AX189: 0.161970416 | AY189: 0.1688870695 | AZ189: 0.1672855535 | BA189: 0.1656414901 | BB189: 0.1639619234 | BC189: 0.1622534033 | BD189: 0.1605219934 | BE189: 0.158773283 | BF189: 0.1570124027 | BG189: 0.1552440426 | BH189: 0.1534724728 | BI189: 0.1517015643 | BJ189: 0.149934812 | BK189: 0.148175357 | BL189: 0.14642601 | BM189: 0.1569507473 | BN189: 0.1545685509 | BO189: 0.1522510091 | BP189: 0.1499963423 | BQ189: 0.1478027854 | BR189: 0.1655499169 | BS189: 0.1623668305 | BT189: 0.1593282243 | BU189: 0.1564245736 | BV189: 0.1536221306 | BW189: =AVERAGE(O189:AR189) -> 0.08781511635 | BX189: =AVERAGE(AS189:BV189) -> 0.1530268329
B190: ROA | O190: =O30/O80 -> -0.04858985659 | P190: =P30/P80 -> -0.04844121827 | Q190: =Q30/Q80 -> -0.04750618335 | R190: -0.04648944812 | S190: -0.04538124036 | T190: -0.04417019251 | U190: -0.04284300275 | V190: -0.04499487431 | W190: -0.0340539649 | X190: -0.03322712207 | Y190: -0.03132350894 | Z190: -0.02919465637 | AA190: -0.02680183301 | AB190: -0.02409696693 | AC190: -0.02272135483 | AD190: -0.01956834558 | AE190: -0.01592131225 | AF190: -0.01166209511 | AG190: -0.006631766595 | AH190: -0.0006113932664 | AI190: 0.00555841967 | AJ190: 0.01875997858 | AK190: 0.03557978046 | AL190: 0.05874862915 | AM190: 0.09177757893 | AN190: 0.2442825287 | AO190: 0.279166753 | AP190: 0.2679235957 | AQ190: 0.2204575405 | AR190: 0.08715567165 | AS190: 0.07305461939 | AT190: 0.0823676445 | AU190: 0.09265055426 | AV190: 0.1040445262 | AW190: 0.1167190858 | AX190: 0.1308795864 | AY190: 0.1409178076 | AZ190: 0.1423164148 | BA190: 0.1435578259 | BB190: 0.1446503162 | BC190: 0.1456020766 | BD190: 0.1464211622 | BE190: 0.1471154496 | BF190: 0.1476926017 | BG190: 0.1481600394 | BH190: 0.1485249202 | BI190: 0.1487941223 | BJ190: 0.1489742331 | BK190: 0.1490715426 | BL190: 0.1490920402 | BM190: 0.1588170247 | BN190: 0.1577698326 | BO190: 0.1567213794 | BP190: 0.1556732429 | BQ190: 0.1546268435 | BR190: 0.1694374285 | BS190: 0.1668528174 | BT190: 0.1643845375 | BU190: 0.1620249841 | BV190: 0.1605483273 | BW190: =AVERAGE(O190:AR190) -> 0.02283933801 | BX190: =AVERAGE(AS190:BV190) -> 0.1419154329
B192: Éves átlagos tulajdonosi támogatás forintban | D192: Beruh. | E192: 2026-2035 | F192: 2036-2045 | G192: 2046-2055
B193: Tulajdonosi finanszírozás | D193: =SUM(D141:O141)/11*320 -> 94197.76822 | E193: =SUM(O141:X141)/10*320 -> 158341.2986 | F193: =SUM(Y141:AH141)/10*320 -> 50246.97709 | G193: =SUM(AI141:AR141)/10*320 -> 85.78482269

Sheet Orosz hitel
C1: 2015 | D1: 2016 | E1: 2017 | F1: 2018 | G1: 2019 | H1: 2020 | I1: 2021 | J1: 2022 | K1: 2023 | L1: 2024 | M1: 2025 | N1: 2026 | O1: 2027 | P1: 2028 | Q1: 2029 | R1: 2030 | S1: 2031 | T1: 2032 | U1: 2033 | V1: 2034 | W1: 2035 | X1: 2036 | Y1: 2037 | Z1: 2038 | AA1: 2039 | AB1: 2040 | AC1: 2041 | AD1: 2042 | AE1: 2043 | AF1: 2044 | AG1: 2045 | AH1: 2046 | AI1: 2047 | AJ1: 2048 | AK1: 2049 | AL1: 2050 | AM1: 2051 | AN1: 2052 | AO1: 2053 | AP1: 2054 | AQ1: 2055 | AR1: 2056 | AS1: 2057 | AT1: 2058 | AU1: 2059 | AV1: 2060 | AW1: 2061 | AX1: 2062 | AY1: 2063 | AZ1: 2064 | BA1: 2065 | BB1: 2066 | BC1: 2067 | BD1: 2068 | BE1: 2069 | BF1: 2070 | BG1: 2071 | BH1: 2072 | BI1: 2073 | BJ1: 2074 | BK1: 2075 | BL1: 2075 | BM1: 2075 | BN1: 2075 | BO1: 2075 | BP1: 2075 | BQ1: 2075 | BR1: 2075 | BS1: 2075 | BT1: 2075 | BU1: 2075
A2: Hitelfelvétel (millió euró) | B2: 10000 | C2: =0.8*(7500/300)/0.2 -> 100 | D2: =$B2*D3 -> 120 | E2: =$B2*E3 -> 200 | F2: 1760 | G2: 1260 | H2: 1300 | I2: 1100 | J2: 1250 | K2: 1230 | L2: 1240 | M2: 440
A3: Megoszlás évek között (%) | B3: =SUM(C3:N3) -> 1 | C3: =C2/B2 -> 0.01 | D3: 0.012 | E3: 0.02 | F3: 0.176 | G3: 0.126 | H3: 0.13 | I3: 0.11 | J3: 0.125 | K3: 0.123 | L3: 0.124 | M3: 0.044
A4: Magyar hozzájárulás (tőkeemelés) | C4: =7500/300 -> 25 | D4: =$B5*D3 -> 30 | E4: 50 | F4: 440 | G4: 315 | H4: 325 | I4: 275 | J4: 312.5 | K4: 307.5 | L4: 310 | M4: 110
A5: Hiteltörlesztés | B5: 2500 | N5: =$B2*$B9/7 -> 357.1428571 | O5: 357.1428571 | P5: 357.1428571 | Q5: 357.1428571 | R5: 357.1428571 | S5: 357.1428571 | T5: 357.1428571 | U5: =$B2*$B10/7 -> 500 | V5: 500 | W5: 500 | X5: 500 | Y5: 500 | Z5: 500 | AA5: 500 | AB5: =$B2*$B11/7 -> 571.4285714 | AC5: 571.4285714 | AD5: 571.4285714 | AE5: 571.4285714 | AF5: 571.4285714 | AG5: 571.4285714 | AH5: 571.4285714
A6: Kummulált hitelállomány (mEUR) | C6: =C2 -> 100 | D6: =C6+D2 -> 220 | E6: 420 | F6: 2180 | G6: 3440 | H6: 4740 | I6: 5840 | J6: 7090 | K6: 8320 | L6: 9560 | M6: 10000 | N6: 10000 | O6: =N6-O5 -> 9642.857143 | P6: 9285.714286 | Q6: 8928.571429 | R6: 8571.428571 | S6: 8214.285714 | T6: 7857.142857 | U6: 7357.142857 | V6: 6857.142857 | W6: 6357.142857 | X6: 5857.142857 | Y6: 5357.142857 | Z6: 4857.142857 | AA6: 4357.142857 | AB6: 3785.714286 | AC6: 3214.285714 | AD6: 2642.857143 | AE6: 2071.428571 | AF6: 1500 | AG6: 928.5714286 | AH6: 357.1428571
A8: Törlesztés évi kétszeri részletekben, egyenletesen az alábbiak szerint:
A9: Első 7 évben a hitelösszeg | B9: 0.25
A10: Második 7 évben a hitelösszeg | B10: 0.35
A11: Hamadik 7 évben a hitelösszeg | B11: 0.4
A13: Kamatok
A14: A beruházás üzembe helyezéséig | B14: 0.0395
A15: Első 7 évben a hitelösszeg | B15: 0.045
A16: Második 7 évben a hitelösszeg | B16: 0.048
A17: Hamadik 7 évben a hitelösszeg | B17: 0.0495
C18: 2015 | D18: 2016 | E18: 2017 | F18: 2018 | G18: 2019 | H18: 2020 | I18: 2021 | J18: 2022 | K18: 2023 | L18: 2024 | M18: 2025 | N18: 2026 | O18: 2027 | P18: 2028 | Q18: 2029 | R18: 2030 | S18: 2031 | T18: 2032 | U18: 2033 | V18: 2034 | W18: 2035 | X18: 2036 | Y18: 2037 | Z18: 2038 | AA18: 2039 | AB18: 2040 | AC18: 2041 | AD18: 2042 | AE18: 2043 | AF18: 2044 | AG18: 2045 | AH18: 2046
A19: Kamatköltség (mEUR) | C19: =C6/2*$B14 -> 1.975 | D19: =(D6+C6)/2*$B14 -> 6.32 | E19: 12.64 | F19: 51.35 | G19: 110.995 | H19: 161.555 | I19: 208.955 | J19: 255.3675 | K19: 304.3475 | L19: 353.13 | M19: 386.31 | N19: =(N6+M6)/2*$B15 -> 450 | O19: =(O6+N6)/2*$B15 -> 441.9642857 | P19: =(P6+O6)/2*$B15 -> 425.8928571 | Q19: 409.8214286 | R19: 393.75 | S19: 377.6785714 | T19: 361.6071429 | U19: =(U6+T6)/2*$B16 -> 365.1428571 | V19: =(V6+U6)/2*$B16 -> 341.1428571 | W19: =(W6+V6)/2*$B16 -> 317.1428571 | X19: 293.1428571 | Y19: 269.1428571 | Z19: 245.1428571 | AA19: 221.1428571 | AB19: =(AB6+AA6)/2*$B17 -> 201.5357143 | AC19: =(AC6+AB6)/2*$B17 -> 173.25 | AD19: =(AD6+AC6)/2*$B17 -> 144.9642857 | AE19: 116.6785714 | AF19: 88.39285714 | AG19: 60.10714286 | AH19: 31.82142857
A20: Teljes adósságszolgálat | C20: =C5+C19 -> 1.975 | D20: =D5+D19 -> 6.32 | E20: =E5+E19 -> 12.64 | F20: =F5+F19 -> 51.35 | G20: =G5+G19 -> 110.995 | H20: =H5+H19 -> 161.555 | I20: =I5+I19 -> 208.955 | J20: =J5+J19 -> 255.3675 | K20: =K5+K19 -> 304.3475 | L20: =L5+L19 -> 353.13 | M20: =M5+M19 -> 386.31 | N20: =N5+N19 -> 807.1428571 | O20: =O5+O19 -> 799.1071429 | P20: =P5+P19 -> 783.0357143 | Q20: =Q5+Q19 -> 766.9642857 | R20: =R5+R19 -> 750.8928571 | S20: =S5+S19 -> 734.8214286 | T20: =T5+T19 -> 718.75 | U20: 865.1428571 | V20: 841.1428571 | W20: 817.1428571 | X20: 793.1428571 | Y20: 769.1428571 | Z20: 745.1428571 | AA20: 721.1428571 | AB20: 772.9642857 | AC20: 744.6785714 | AD20: 716.3928571 | AE20: 688.1071429 | AF20: 659.8214286 | AG20: 631.5357143 | AH20: 603.25
A23: Beruházás lefutása | C23: =C3 -> 0.01 | D23: =D3 -> 0.012 | E23: 0.02 | F23: 0.176 | G23: 0.126 | H23: 0.13 | I23: 0.11 | J23: 0.125 | K23: 0.123 | L23: 0.124 | M23: 0.044
A24: Beruházás lefutása Romhányi tanulmányában | F24: 0.176 | G24: 0.126 | H24: 0.13 | I24: 0.11 | J24: 0.125 | K24: 0.123 | L24: 0.124 | M24: 0.042 | N24: 0.044

Sheet CAPEX&Depr
B1: 2015 | C1: 2016 | D1: 2017 | E1: 2018 | F1: 2019 | G1: 2020 | H1: 2021 | I1: 2022 | J1: 2023 | K1: 2024 | L1: 2025 | M1: 2026 | N1: 2027 | O1: 2028 | P1: 2029 | Q1: 2030 | R1: 2031 | S1: 2032 | T1: 2033 | U1: 2034 | V1: 2035 | W1: 2036 | X1: 2037 | Y1: 2038 | Z1: 2039 | AA1: 2040 | AB1: 2041 | AC1: 2042 | AD1: 2043 | AE1: 2044 | AF1: 2045 | AG1: 2046 | AH1: 2047 | AI1: 2048 | AJ1: 2049 | AK1: 2050 | AL1: 2051 | AM1: 2052 | AN1: 2053 | AO1: 2054 | AP1: 2055 | AQ1: 2056 | AR1: 2057 | AS1: 2058 | AT1: 2059 | AU1: 2060 | AV1: 2061 | AW1: 2062 | AX1: 2063 | AY1: 2064 | AZ1: 2065 | BA1: 2066 | BB1: 2067 | BC1: 2068 | BD1: 2069 | BE1: 2070 | BF1: 2071 | BG1: 2072 | BH1: 2073 | BI1: 2074 | BJ1: 2075 | BK1: 2076 | BL1: 2077 | BM1: 2078 | BN1: 2079 | BO1: 2080 | BP1: 2081 | BQ1: 2082 | BR1: 2083 | BS1: 2084 | BT1: 2085
A2: Beruházás teljes összege | B2: =('Orosz hitel'!C2+'Orosz hitel'!C4)*(1+Paraméterek!$B$7) -> 125 | C2: =('Orosz hitel'!D2+'Orosz hitel'!D4)*(1+Paraméterek!$B$7) -> 150 | D2: =('Orosz hitel'!E2+'Orosz hitel'!E4)*(1+Paraméterek!$B$7) -> 250 | E2: =('Orosz hitel'!F2+'Orosz hitel'!F4)*(1+Paraméterek!$B$7) -> 2200 | F2: =('Orosz hitel'!G2+'Orosz hitel'!G4)*(1+Paraméterek!$B$7) -> 1575 | G2: =('Orosz hitel'!H2+'Orosz hitel'!H4)*(1+Paraméterek!$B$7) -> 1625 | H2: =('Orosz hitel'!I2+'Orosz hitel'!I4)*(1+Paraméterek!$B$7) -> 1375 | I2: =('Orosz hitel'!J2+'Orosz hitel'!J4)*(1+Paraméterek!$B$7) -> 1562.5 | J2: =('Orosz hitel'!K2+'Orosz hitel'!K4)*(1+Paraméterek!$B$7) -> 1537.5 | K2: =('Orosz hitel'!L2+'Orosz hitel'!L4)*(1+Paraméterek!$B$7) -> 1550 | L2: =('Orosz hitel'!M2+'Orosz hitel'!M4)*(1+Paraméterek!$B$7) -> 550
A4: Ingatlanok | B4: =B2 -> 125 | C4: =C2 -> 150 | D4: 250 | E4: =E2*0.3 -> 660 | F4: =F2*0.3 -> 472.5 | G4: 487.5 | H4: 412.5 | I4: 468.75 | J4: 461.25 | K4: 465 | L4: 165
A5: Gépek, berendezések | E5: =E2*0.7 -> 1540 | F5: =F2*0.7 -> 1102.5 | G5: 1137.5 | H5: 962.5 | I5: 1093.75 | J5: 1076.25 | K5: 1085 | L5: 385
A7: Kummulált beruházási érték
A8: Ingatlanok | B8: =B4 -> 125 | C8: =B8+C4 -> 275 | D8: =C8+D4 -> 525 | E8: 1185 | F8: 1657.5 | G8: 2145 | H8: =G8+H4 -> 2557.5 | I8: 3026.25 | J8: 3487.5 | K8: 3952.5 | L8: 4117.5
A9: Gépek, berendezések | B9: =B5 -> 0 | C9: =B9+C5 -> 0 | D9: =C9+D5 -> 0 | E9: 1540 | F9: 2642.5 | G9: 3780 | H9: =G9+H5 -> 4742.5 | I9: 5836.25 | J9: 6912.5 | K9: 7997.5 | L9: 8382.5
A12: Amortizációs kulcsok
A13: Ingatlan | B13: =Paraméterek!B21 -> 0.02 | C13: =L8*B13 -> 82.35
A14: Gépek, berendezések | B14: =Paraméterek!B22 -> 0.04 | C14: =L9*B14 -> 335.3
C15: =AP18*B14 -> 157.2302394
A16: Eredeti beruházás nettó értéke | J16: Ingatlanok | M16: =L8-$C13 -> 4035.15 | N16: =IF(M16-$C13>0,M16-$C13,0) -> 3952.8 | O16: =IF(N16-$C13>0,N16-$C13,0) -> 3870.45 | P16: 3788.1 | Q16: 3705.75 | R16: 3623.4 | S16: 3541.05 | T16: 3458.7 | U16: 3376.35 | V16: 3294 | W16: 3211.65 | X16: 3129.3 | Y16: 3046.95 | Z16: 2964.6 | AA16: 2882.25 | AB16: 2799.9 | AC16: 2717.55 | AD16: 2635.2 | AE16: 2552.85 | AF16: 2470.5 | AG16: 2388.15 | AH16: 2305.8 | AI16: 2223.45 | AJ16: 2141.1 | AK16: =IF(AJ16-$C13>0,AJ16-$C13,0) -> 2058.75 | AL16: =IF(AK16-$C13>0,AK16-$C13,0) -> 1976.4 | AM16: 1894.05 | AN16: 1811.7 | AO16: 1729.35 | AP16: 1647 | AQ16: 1564.65 | AR16: 1482.3 | AS16: =IF(AR16-$C13>0,AR16-$C13,0) -> 1399.95 | AT16: =IF(AS16-$C13>0,AS16-$C13,0) -> 1317.6 | AU16: 1235.25 | AV16: 1152.9 | AW16: =IF(AV16-$C13>0,AV16-$C13,0) -> 1070.55 | AX16: 988.2 | AY16: 905.85 | AZ16: 823.5 | BA16: 741.15 | BB16: 658.8 | BC16: 576.45 | BD16: 494.1 | BE16: 411.75 | BF16: 329.4 | BG16: 247.05 | BH16: 164.7 | BI16: 82.35 | BJ16: 3.097966328e-12 | BK16: =IF(BJ16-$C13>0,BJ16-$C13,0) -> 0 | BL16: =IF(BK16-$C13>0,BK16-$C13,0) -> 0 | BM16: =IF(BL16-$C13>0,BL16-$C13,0) -> 0 | BN16: =IF(BM16-$C13>0,BM16-$C13,0) -> 0 | BO16: =IF(BN16-$C13>0,BN16-$C13,0) -> 0 | BP16: =IF(BO16-$C13>0,BO16-$C13,0) -> 0 | BQ16: =IF(BP16-$C13>0,BP16-$C13,0) -> 0 | BR16: =IF(BQ16-$C13>0,BQ16-$C13,0) -> 0 | BS16: =IF(BR16-$C13>0,BR16-$C13,0) -> 0 | BT16: =IF(BS16-$C13>0,BS16-$C13,0) -> 0
J17: Gépek, berendezések | M17: =L9-C14 -> 8047.2 | N17: =IF(M17-$C14>0,M17-$C14,0) -> 7711.9 | O17: =IF(N17-$C14>0,N17-$C14,0) -> 7376.6 | P17: 7041.3 | Q17: 6706 | R17: 6370.7 | S17: 6035.4 | T17: 5700.1 | U17: 5364.8 | V17: 5029.5 | W17: 4694.2 | X17: 4358.9 | Y17: 4023.6 | Z17: 3688.3 | AA17: 3353 | AB17: 3017.7 | AC17: 2682.4 | AD17: 2347.1 | AE17: 2011.8 | AF17: 1676.5 | AG17: 1341.2 | AH17: 1005.9 | AI17: 670.6 | AJ17: 335.3 | AK17: =IF(AJ17-$C14>0,AJ17-$C14,0) -> 0 | AL17: =IF(AK17-$C14>0,AK17-$C14,0) -> 0 | AM17: 0 | AN17: 0 | AO17: 0 | AP17: 0 | AQ17: 0 | AR17: 0 | AS17: =IF(AR17-$C14>0,AR17-$C14,0) -> 0 | AT17: =IF(AS17-$C14>0,AS17-$C14,0) -> 0 | AU17: 0 | AV17: 0 | AW17: =IF(AV17-$C14>0,AV17-$C14,0) -> 0 | AX17: 0 | AY17: 0 | AZ17: 0 | BA17: 0 | BB17: 0 | BC17: 0 | BD17: 0 | BE17: 0 | BF17: 0 | BG17: 0 | BH17: 0 | BI17: 0 | BJ17: 0 | BK17: 0 | BL17: 0 | BM17: 0 | BN17: 0 | BO17: 0 | BP17: 0 | BQ17: 0 | BR17: 0 | BS17: 0 | BT17: 0
A18: Új beruházás (félidős nagyjavítás), az eredeti berendezések értékének: | F18: =Paraméterek!B24 -> 0.3 | G18: -át értinti | AP18: =L9*F18*(1+Paraméterek!B11)^(AP1-L1) -> 3930.755984 | AQ18: =IF(AP18-$C15>0,AP18-$C15,0) -> 3773.525745 | AR18: 3616.295506 | AS18: 3459.065266 | AT18: 3301.835027 | AU18: 3144.604788 | AV18: 2987.374548 | AW18: 2830.144309 | AX18: 2672.914069 | AY18: 2515.68383 | AZ18: 2358.453591 | BA18: 2201.223351 | BB18: 2043.993112 | BC18: 1886.762873 | BD18: 1729.532633 | BE18: 1572.302394 | BF18: 1415.072154 | BG18: 1257.841915 | BH18: 1100.611676 | BI18: 943.3814363 | BJ18: 786.1511969 | BK18: 628.9209575 | BL18: 471.6907181 | BM18: 314.4604788 | BN18: 157.2302394 | BO18: 0 | BP18: 0 | BQ18: 0 | BR18: 0 | BS18: 0 | BT18: 0
A21: Éves értékcsökkenés | M21: =L8-M16+L9-M17 -> 417.65 | N21: =M16-N16+M17-N17 -> 417.65 | O21: =N16-O16+N17-O17 -> 417.65 | P21: =O16-P16+O17-P17 -> 417.65 | Q21: 417.65 | R21: 417.65 | S21: 417.65 | T21: 417.65 | U21: 417.65 | V21: 417.65 | W21: 417.65 | X21: 417.65 | Y21: 417.65 | Z21: 417.65 | AA21: 417.65 | AB21: 417.65 | AC21: 417.65 | AD21: 417.65 | AE21: 417.65 | AF21: 417.65 | AG21: 417.65 | AH21: =AG16-AH16+AG17-AH17 -> 417.65 | AI21: =AH16-AI16+AH17-AI17 -> 417.65 | AJ21: =AI16-AJ16+AI17-AJ17 -> 417.65 | AK21: =AJ16-AK16+AJ17-AK17 -> 417.65 | AL21: =AK16-AL16+AK17-AL17 -> 82.35 | AM21: =AL16-AM16+AL17-AM17 -> 82.35 | AN21: =AM16-AN16+AM17-AN17 -> 82.35 | AO21: =AN16-AO16+AN17-AO17 -> 82.35 | AP21: =AO16-AP16+AO17-AP17 -> 82.35 | AQ21: =AP16-AQ16+AP17-AQ17+AP18-AQ18 -> 239.5802394 | AR21: 239.5802394 | AS21: 239.5802394 | AT21: 239.5802394 | AU21: 239.5802394 | AV21: 239.5802394 | AW21: 239.5802394 | AX21: 239.5802394 | AY21: 239.5802394 | AZ21: 239.5802394 | BA21: 239.5802394 | BB21: 239.5802394 | BC21: 239.5802394 | BD21: 239.5802394 | BE21: 239.5802394 | BF21: 239.5802394 | BG21: 239.5802394 | BH21: 239.5802394 | BI21: 239.5802394 | BJ21: 239.5802394 | BK21: =BJ16-BK16+BJ17-BK17+BJ18-BK18 -> 157.2302394 | BL21: =BK16-BL16+BK17-BL17+BK18-BL18 -> 157.2302394 | BM21: =BL16-BM16+BL17-BM17+BL18-BM18 -> 157.2302394 | BN21: =BM16-BN16+BM17-BN17+BM18-BN18 -> 157.2302394 | BO21: =BN16-BO16+BN17-BO17+BN18-BO18 -> 157.2302394 | BP21: =BO16-BP16+BO17-BP17+BO18-BP18 -> 0 | BQ21: =BP16-BQ16+BP17-BQ17+BP18-BQ18 -> 0 | BR21: =BQ16-BR16+BQ17-BR17+BQ18-BR18 -> 0 | BS21: =BR16-BS16+BR17-BS17+BR18-BS18 -> 0 | BT21: =BS16-BT16+BS17-BT17+BS18-BT18 -> 0

Sheet Paks1
C1: 2003 | D1: 2004 | E1: 2005 | F1: 2006 | G1: 2007 | H1: 2008 | I1: 2009 | J1: 2010 | K1: 2011 | L1: 2012 | M1: 2013 | N1: 2014 | S1: mFt | T1: mEUR
A2: Értékesítés nettó árbevétele (01.+02.) | B2: Total sales (revenues) (01+02) | C2: 84073 | D2: 95853 | E2: 110318 | F2: 112383 | G2: 133489 | H2: 144274 | I2: 156984 | J2: 167867 | K2: 174616 | L2: 184243 | M2: 185528 | N2: 172878 | S2: 185528 | T2: =S2/Paraméterek!$B$42 -> 624.8417082
A3: Aktivált saját teljesítmények értéke (03.±04.) | B3: Own performance capitalized (+03+04) | C3: 1295 | D3: 946 | E3: 923 | F3: 777 | G3: 640 | H3: 696 | I3: 260 | J3: 547 | K3: 1019 | L3: 753 | M3: 541 | N3: 533 | S3: 541 | T3: =S3/Paraméterek!$B$42 -> 1.822039607
A4: Egyéb bevételek | B4: Other income | C4: 11007 | D4: 4594 | E4: 2455 | F4: 3757 | G4: 5586 | H4: 4066 | I4: 2343 | J4: 3757 | K4: 10582 | L4: 5004 | M4: 3442 | N4: 4011 | S4: 3442 | T4: =S4/Paraméterek!$B$42 -> 11.59234811
A5: Ebből: visszaírt értékvesztés | B5: including: loss in value marked back | E5: 19 | T5: =S5/Paraméterek!$B$42 -> 0
A6: Anyagköltség | B6: Raw materials and consumables | C6: 13556 | D6: 15868 | E6: 18190 | F6: 17326 | G6: 18661 | H6: 19064 | I6: 20617 | J6: 21989 | K6: 24684 | L6: 25497 | M6: 27128 | N6: 29145 | S6: 27128 | T6: =S6/Paraméterek!$B$42 -> 91.36467735
A7: Igénybe vett szolgáltatások értéke | B7: Contracted services | C7: 15837 | D7: 17140 | E7: 20197 | F7: 22301 | G7: 23302 | H7: 28378 | I7: 29958 | J7: 33732 | K7: 35146 | L7: 33933 | M7: 32653 | N7: 34154 | S7: 32653 | T7: =S7/Paraméterek!$B$42 -> 109.9723831
A8: Egyéb szolgáltatások értéke | B8: Other service activities | C8: 2028 | D8: 2279 | E8: 2356 | F8: 3599 | G8: 2310 | H8: 2363 | I8: 2436 | J8: 2448 | K8: 2456 | L8: 2896 | M8: 3000 | N8: 3049 | S8: 3000 | T8: =S8/Paraméterek!$B$42 -> 10.10373164
A9: Eladott áruk beszerzési értéke | B9: Original cost of goods sold | C9: 68 | D9: 42 | E9: 48 | F9: 61 | G9: 78 | H9: 149 | I9: 66 | J9: 72 | K9: 324 | L9: 291 | M9: 34 | N9: 40 | S9: 34 | T9: =S9/Paraméterek!$B$42 -> 0.1145089586
A10: Eladott (közvetített) szolgáltatások értéke | B10: Value of services sold (intermediated) | C10: 44 | D10: 104 | E10: 231 | F10: 340 | G10: 607 | H10: 588 | I10: 450 | J10: 93 | K10: 85 | L10: 280 | M10: 415 | N10: 641 | S10: 415 | T10: =S10/Paraméterek!$B$42 -> 1.397682878
A11: Anyagjellegű ráfordítások (05.+06.+07.+08.+09.) | B11: Material costs (05+06+07+08+09) | C11: =SUM(C6:C10) -> 31533 | D11: 35433 | E11: =SUM(E6:E10) -> 41022 | F11: =SUM(F6:F10) -> 43627 | G11: =SUM(G6:G10) -> 44958 | H11: 50542 | I11: =SUM(I6:I10) -> 53527 | J11: =SUM(J6:J10) -> 58334 | K11: 62695 | L11: =SUM(L6:L10) -> 62897 | M11: =SUM(M6:M10) -> 63230 | N11: 67029 | S11: =SUM(S5:S10) -> 63230 | T11: =S11/Paraméterek!$B$42 -> 212.952984
A12: Bérköltség | B12: Wages and salaries | C12: 11403 | D12: 12294 | E12: 13332 | F12: 14411 | G12: 15457 | H12: 14925 | I12: 15344 | J12: 16823 | K12: 17862 | L12: 18703 | M12: 19052 | N12: 19502 | S12: 19052 | T12: =S12/Paraméterek!$B$42 -> 64.16543177
A13: Személyi jellegű egyéb kifizetések | B13: Other employee benefits | C13: 2953 | D13: 3479 | E13: 4134 | F13: 4274 | G13: 5015 | H13: 4915 | I13: 4997 | J13: 6144 | K13: 5860 | L13: 5345 | M13: 5280 | N13: 5576 | S13: 5280 | T13: =S13/Paraméterek!$B$42 -> 17.7825677
A14: Bérjárulékok | B14: Contributions on wages and salaries | C14: 4188 | D14: 4608 | E14: 5115 | F14: 5328 | G14: 5754 | H14: 5756 | I14: 5776 | J14: 8020 | K14: 7654 | L14: 8419 | M14: 8557 | N14: 8809 | S14: 8557 | T14: =S14/Paraméterek!$B$42 -> 28.81921056
A15: Személyi jellegű ráfordítások (10.+11.+12.) | B15: Staff costs (10+11+12) | C15: =SUM(C12:C14) -> 18544 | D15: 20381 | E15: 22581 | F15: 24013 | G15: 26226 | H15: 25596 | I15: 26117 | J15: =SUM(J12:J14) -> 30987 | K15: =SUM(K12:K14) -> 31376 | L15: =SUM(L12:L14) -> 32467 | M15: 32889 | N15: 33887 | S15: =SUM(S12:S14) -> 32889 | T15: =S15/Paraméterek!$B$42 -> 110.76721
A16: Értékcsökkenési leírás | B16: Depreciation | C16: 17268 | D16: 17617 | E16: 14269 | F16: 14248 | G16: 13994 | H16: 14107 | I16: 16015 | J16: 18164 | K16: 21754 | L16: 24114 | M16: 20398 | N16: 22825 | S16: 20398 | T16: =S16/Paraméterek!$B$42 -> 68.69863936
A17: Egyéb ráfordítások | B17: Other operating charges | C17: 32786 | D17: 28787 | E17: 31448 | F17: 30540 | G17: 44682 | H17: 37367 | I17: 36768 | J17: 37559 | K17: 40945 | L17: 30337 | M17: 32889 | N17: 33456 | S17: 32889 | T17: =S17/Paraméterek!$B$42 -> 110.76721
A18: Ebből: értékvesztés | B18: including: loss in value | C18: 875 | D18: 357 | E18: 1815 | F18: 757 | G18: 3783 | H18: 2672 | I18: 416 | J18: 604 | K18: 680 | L18: 171 | M18: 202 | N18: 192 | S18: 202 | T18: =S18/Paraméterek!$B$42 -> 0.6803179308
A19: ÜZEMI ( ÜZLETI) TEVÉKENYSÉG EREDMÉNYE (I.±II.+III.-IV.-V.-VI.-VII.) | B19: Income from operations (I+II+III-IV-V-VI-VII) | C19: =+C2+C3+C4-C11-C15-C16-C17 -> -3756 | D19: -825 | E19: 4376 | F19: 4489 | G19: 9855 | H19: 21424 | I19: 27160 | J19: =+J2+J3+J4-J11-J15-J16-J17 -> 27127 | K19: =+K2+K3+K4-K11-K15-K16-K17 -> 29447 | L19: =+L2+L3+L4-L11-L15-L16-L17 -> 40185 | M19: =+M2+M3+M4-M11-M15-M16-M17 -> 40105 | N19: 20225 | S19: =+S2+S3+S4-S11-S15-S16-S17 -> 40105 | T19: =S19/Paraméterek!$B$42 -> 135.0700525
R21: Nukleáris tüzelőanyag költsége | S21: 18292 | T21: =S21/Paraméterek!$B$42 -> 61.60581975
A23: Kiegészítő melléklet adatai: | C23: 2010 | D23: 2011 | E23: 2012 | F23: 2013 | G23: 2014 | R23: KNPA befizetés | S23: 19329.4 | T23: =S23/Paraméterek!$B$42 -> 65.09969015
A24: Tárgyévi új beruházás | C24: 17892 | D24: 21559 | E24: 16420 | F24: 17260 | G24: 13226 | R24: Befizetés 1 MWh termelésre vetítve | S24: =S23/Paraméterek!B39 -> 1342.319444 | T24: =T23/Paraméterek!B39 -> 4.520811816
A25: Nukleáris üzemanyag költsége | C25: 12934 | D25: 14623 | E25: 16240 | F25: 18292 | G25: 20498
A26: Központi nukleáris alap befizetés | C26: 23127 | D26: 23127 | E26: 19329 | F26: 19329 | G26: 21294
R27: Egyéb ráfordítások (KNPA és iparűzési adón kívül) | S27: =32889-19329-3818-2661-5923 -> 1158 | T27: =S27/Paraméterek!$B$42 -> 3.900040415
C28: 2003 | D28: 2004 | E28: 2005 | F28: 2006 | G28: 2007 | H28: 2008 | I28: 2009 | J28: 2010 | K28: 2011 | L28: 2012 | M28: 2013 | N28: 2014 | O28: Átlag 2003-2014 | P28: Átlag 2008-2014
A29: EBIT/Árbevétel | C29: =C19/C2 -> -0.04467546061 | D29: -0.008606929361 | E29: 0.03966714407 | F29: 0.03994376374 | G29: 0.07382630779 | H29: 0.1484952244 | I29: 0.1730112623 | J29: 0.16159817 | K29: 0.1686386127 | L29: 0.2181086934 | M29: 0.216166832 | N29: 0.1169900161 | O29: =AVERAGE(C29:N29) -> 0.1085969697 | P29: =AVERAGE(H29:N29) -> 0.1718584015
A30: EBITDA/Árbevétel | C30: =(C19+C16)/C2 -> 0.1607174717 | D30: 0.1751849186 | E30: 0.1690114034 | F30: 0.1667245046 | G30: 0.1786589157 | H30: 0.24627445 | I30: 0.2750280283 | J30: 0.2698028797 | K30: 0.2932205525 | L30: 0.3489901923 | M30: 0.3261125005 | N30: 0.2490195398 | O30: =AVERAGE(C30:N30) -> 0.2382287798 | P30: =AVERAGE(H30:N30) -> 0.2869211633
A31: Bérhányad | C31: =C15/C2 -> 0.2205702187 | D31: 0.2126276695 | E31: 0.2046900778 | F31: 0.2136711068 | G31: 0.1964656264 | H31: 0.1774124236 | I31: 0.1663672731 | J31: 0.1845925644 | K31: 0.1796857104 | L31: 0.1762183638 | M31: 0.1772724333 | N31: 0.1960168442 | O31: 0.192132526 | P31: 0.1796522304
A32: Anyaghányad | C32: =C11/C2 -> 0.3750669061 | D32: 0.3696597916 | E32: 0.3718522816 | F32: 0.3881992828 | G32: 0.3367917956 | H32: 0.3503195309 | I32: 0.3409710544 | J32: 0.3475012957 | K32: 0.3590449901 | L32: 0.3413806766 | M32: 0.3408110905 | N32: 0.3877242911 | O32: 0.3591102489 | P32: 0.3525361328
A33: Egyéb ráfordítások aránya | C33: =C17/C2 -> 0.3899706208 | D33: =D17/D2 -> 0.3003244552 | E33: 0.2850668069 | F33: 0.2717492859 | G33: 0.3347242095 | H33: 0.2590002357 | I33: 0.2342149518 | J33: 0.2237426058 | K33: 0.2344859578 | L33: 0.1646575447 | M33: 0.1772724333 | N33: 0.1935237566 | O33: =AVERAGE(C33:N33) -> 0.2557277386 | P33: =AVERAGE(H33:N33) -> 0.2124139265
C36: 2003 | D36: 2004 | E36: 2005 | F36: 2006 | G36: 2007 | H36: 2008 | I36: 2009 | J36: 2010 | K36: 2011 | L36: 2012 | M36: 2013 | N36: 2014
A37: Üzemi (üzleti) tevékenység eredménye (EBIT) | C37: =C19 -> -3756 | D37: =D19 -> -825 | E37: 4376 | F37: 4489 | G37: 9855 | H37: 21424 | I37: 27160 | J37: 27127 | K37: 29447 | L37: 40185 | M37: 40105 | N37: 20225
A38: Egyéb ráfordítások | C38: =C17 -> 32786 | D38: =D17 -> 28787 | E38: 31448 | F38: 30540 | G38: 44682 | H38: 37367 | I38: 36768 | J38: 37559 | K38: 40945 | L38: 30337 | M38: 32889 | N38: 33456
A39: Értékcsökkenési leírás | C39: =C16 -> 17268 | D39: =D16 -> 17617 | E39: 14269 | F39: 14248 | G39: 13994 | H39: 14107 | I39: 16015 | J39: 18164 | K39: 21754 | L39: 24114 | M39: 20398 | N39: 22825
A40: Személyi jellegű ráfordítások | C40: =C15 -> 18544 | D40: =D15 -> 20381 | E40: 22581 | F40: 24013 | G40: 26226 | H40: 25596 | I40: 26117 | J40: 30987 | K40: 31376 | L40: 32467 | M40: 32889 | N40: 33887
A41: Anyagjellegű ráfordítások | C41: =C11 -> 31533 | D41: =D11 -> 35433 | E41: 41022 | F41: 43627 | G41: 44958 | H41: 50542 | I41: 53527 | J41: 58334 | K41: 62695 | L41: 62897 | M41: 63230 | N41: 67029
